Workbook

Sheet INTRO
B2: PC Joint Reporting Form v.3
B4: The purpose of this template Joint Reporting Form (JRF) - available as an Excel file - is to provide national health authorities and data managers with a standardized tool to address these reporting challenges, facilitate integration and thereby further contribute to improving overall programme management. This template aims to standardize national reporting of programme implementation outcomes, improve availability and coordination of preventive chemotherapy data across the World Health Organization regions. National authorities are requested to complete this form for submission to the World Health Organization any time before 15 August of the current year for reporting data on PC interventions implemented during the previous year.
B6: Structure of the application (worksheets):
B8: INTRO | C8: This worksheet includes guides on how to complete the joint reporting form and information about status of PC for endemic diseases in the country
B9: COUNTRY_INFO | C9: This worksheet includes information about administrative structure of the country, population by age group, status of endemicity for each disease, population requiring PC, planned interventions and interventions implemented
B10: MDA1, MDA2, MDA3, T1, T2 and T3 | C10: These worksheets include information about endemic districts targeted for treatment with specified PC medicines, treatment plan, and number of people who received treatment by age group
B11: DISTRICT | C11: This worksheet includes summary of people treated by disease at the level of implementation. If data by gender is available, it requires to enter.
B12: SUMMARY | C12: This worksheet includes summary of people treated by disease and by PC intervention. Before generating the report (run macros) please select the disease for which you need the report. Follow the same rule to generate various reports. This worksheet should be printed and submitted as a Joint Report (see the instruction for submission in the SUMMARY worksheet).
B14: Instruction for data entry
B16: Most of the cells in the above-mentioned worksheets include formula that are calculated automatically according to the treatment policy recommended by WHO for each disease. See the link http://www.who.int/neglected_diseases/preventive_chemotherapy/pct_manual/en/index.html
B18: Please enter your data into the cells according to their colour code:
C20: White - cell is not protected. Please enter the value of the requested indicator.
C22: Yellow - cell is protected and includes name of indicator. No data entry required.
C24: Orange - cell is not protected and includes a drop-down menu. Please select the value from the drop-down list.
C27: Green - cell is not protected and includes formula. Please change the value only if your data are different from those that are calculated automatically.
C30: Blue - cell is protected and includes formula. No data entry required.
B32: Country data
B34: COUNTRY | E34: Nigeria
B36: Year of reporting data | E36: 2016
B38: Is country endemic for lymphatic filariasis (LF)? | E38: Endemic
B40: Is country endemic for onchocerciasis (ONCHO)? | E40: Endemic
B42: Is country endemic for soil-transmitted helminthiases (STH)? | E42: Endemic
B44: Is country endemic for schistosomiasis (SCH)? | E44: Endemic
B46: How many administrative units in the country? | E46: 774
B47: If demographical data at the second administrative level are not available by age group, please enter the proportion (%) of population by age group in the country. If data are available, please leave these cells blank.
B48: 1-4 years age | C48: Preschool-age children (PreSAC) | E48: 0.2
B49: 5-14 years age | C49: School-age children (SAC) | E49: 0.28
B50: 15 years + | C50: Adults | E50: 0.52

Sheet COUNTRY_INFO
A1: COUNTRY INFORMATION
A2: Administrative structure, population by age group, endemicity status, planned interventions and interventions implemented
A4: TOTAL | D4: =SUM(D$9:D$1000) -> 179189575.1 | E4: =SUM(E$9:E$1000) -> 35837932 | F4: =SUM(F$9:F$1000) -> 50173074 | G4: =SUM(G$9:G$1000) -> 93178580 | L4: =SUM(L$9:L$1000) -> 123312529.5 | M4: =SUM(M$9:M$1000) -> 53083821.85 | N4: =SUM(N$9:N$1000) -> 45638290 | O4: =SUM(O$9:O$1000) -> 24246552.08
A6: Country administrative structure | D6: Population | H6: Endemicity | L6: Population requiring PC | P6: Number of treatment rounds planned for the year | T6: PC implemented | V6: Click to see the recommended strategy
A7: Country | B7: Province/State | C7: District | D7: Total | E7: PreSAC | F7: SAC | G7: Adults | H7: LF | I7: Oncho | J7: STH | K7: SCH | L7: LF | M7: Oncho | N7: STH | O7: SCH | P7: LF | Q7: Oncho | R7: STH | S7: SCH | T7: ROUND 1 | U7: ROUND2 | X7: IU_ID | Y7: IU_NAME
A9: =IF(INTRO!$E$34<>0,INTRO!$E$34,"") -> Nigeria | B9: Abia | C9: Aba North | D9: 137593.7275 | E9: =IF(INTRO!$E$48="","",ROUND($D9*INTRO!$E$48,0)) -> 27519 | F9: =IF(INTRO!$E$49="","",ROUND($D9*INTRO!$E$49,0)) -> 38526 | G9: =IF(INTRO!$E$50="","",ROUND($D9*INTRO!$E$50,0)) -> 71549 | H9: 1 | I9: 1 | J9: 2 | K9: 1 | L9: =IF(INTRO!$E$38="Endemic", IF($H9>0, IF($H9=4,"Unknown", IF($H9=99,"Stopped", $D9)), 0),"Not required") -> 137593.7275 | M9: 52385.21312 | N9: =IF(INTRO!$E$42="Endemic", IF(AND($J9>1,$J9<5), IF($J9=4, "Unknown", E9+F9), 0),"Not required") -> 66045 | O9: =IF(INTRO!$E$44="Endemic", IF(AND($K9>0,$K9<5), IF($K9=4,"Unknown", IF($K9=1, $F9*0.33, IF($K9=2, $F9*0.5+$G9*0.2, SUM(F9:G9)))), 0),"Not required") -> 12713.58 | P9: 1 | Q9: 1 | R9: 1 | S9: 0 | U9: T2 (PZQ) | X9: 36337 | Y9: Aba North | AA9: =Y9=C9 -> TRUE
A10: =IF(INTRO!$E$34<>0,INTRO!$E$34,"") -> Nigeria | B10: Abia | C10: Aba South | D10: 542566.3942 | E10: =IF(INTRO!$E$48="","",ROUND($D10*INTRO!$E$48,0)) -> 108513 | F10: =IF(INTRO!$E$49="","",ROUND($D10*INTRO!$E$49,0)) -> 151919 | G10: =IF(INTRO!$E$50="","",ROUND($D10*INTRO!$E$50,0)) -> 282135 | H10: 1 | I10: 1 | J10: 2 | K10: 0 | L10: =IF(INTRO!$E$38="Endemic", IF($H10>0, IF($H10=4,"Unknown", IF($H10=99,"Stopped", $D10)), 0),"Not required") -> 542566.3942 | M10: 206568.6344 | N10: =IF(INTRO!$E$42="Endemic", IF(AND($J10>1,$J10<5), IF($J10=4, "Unknown", E10+F10), 0),"Not required") -> 260432 | O10: =IF(INTRO!$E$44="Endemic", IF(AND($K10>0,$K10<5), IF($K10=4,"Unknown", IF($K10=1, $F10*0.33, IF($K10=2, $F10*0.5+$G10*0.2, SUM(F10:G10)))), 0),"Not required") -> 0 | P10: 1 | Q10: 1 | R10: 1 | S10: 0 | X10: 36338 | Y10: Aba South | AA10: =Y10=C10 -> TRUE
A11: =IF(INTRO!$E$34<>0,INTRO!$E$34,"") -> Nigeria | B11: Abia | C11: Arochukwu | D11: 217878.0699 | E11: =IF(INTRO!$E$48="","",ROUND($D11*INTRO!$E$48,0)) -> 43576 | F11: =IF(INTRO!$E$49="","",ROUND($D11*INTRO!$E$49,0)) -> 61006 | G11: =IF(INTRO!$E$50="","",ROUND($D11*INTRO!$E$50,0)) -> 113297 | H11: 1 | I11: 1 | J11: 3 | K11: 0 | L11: =IF(INTRO!$E$38="Endemic", IF($H11>0, IF($H11=4,"Unknown", IF($H11=99,"Stopped", $D11)), 0),"Not required") -> 217878.0699 | M11: 68270.66312 | N11: =IF(INTRO!$E$42="Endemic", IF(AND($J11>1,$J11<5), IF($J11=4, "Unknown", E11+F11), 0),"Not required") -> 104582 | O11: =IF(INTRO!$E$44="Endemic", IF(AND($K11>0,$K11<5), IF($K11=4,"Unknown", IF($K11=1, $F11*0.33, IF($K11=2, $F11*0.5+$G11*0.2, SUM(F11:G11)))), 0),"Not required") -> 0 | P11: 1 | Q11: 1 | R11: 2 | S11: 0 | T11: MDA1 (IVM+ALB) | U11: T3 (ALB/MBD) | X11: 36339 | Y11: Arochukwu | AA11: TRUE
A12: =IF(INTRO!$E$34<>0,INTRO!$E$34,"") -> Nigeria | B12: Abia | C12: Bende | D12: 245918.3219 | E12: =IF(INTRO!$E$48="","",ROUND($D12*INTRO!$E$48,0)) -> 49184 | F12: =IF(INTRO!$E$49="","",ROUND($D12*INTRO!$E$49,0)) -> 68857 | G12: =IF(INTRO!$E$50="","",ROUND($D12*INTRO!$E$50,0)) -> 127878 | H12: 1 | I12: 1 | J12: 3 | K12: 0 | L12: =IF(INTRO!$E$38="Endemic", IF($H12>0, IF($H12=4,"Unknown", IF($H12=99,"Stopped", $D12)), 0),"Not required") -> 245918.3219 | M12: 83964.89937 | N12: =IF(INTRO!$E$42="Endemic", IF(AND($J12>1,$J12<5), IF($J12=4, "Unknown", E12+F12), 0),"Not required") -> 118041 | O12: =IF(INTRO!$E$44="Endemic", IF(AND($K12>0,$K12<5), IF($K12=4,"Unknown", IF($K12=1, $F12*0.33, IF($K12=2, $F12*0.5+$G12*0.2, SUM(F12:G12)))), 0),"Not required") -> 0 | P12: 1 | Q12: 1 | R12: 2 | S12: 0 | T12: MDA1 (IVM+ALB) | X12: 36340 | Y12: Bende | AA12: TRUE
A13: =IF(INTRO!$E$34<>0,INTRO!$E$34,"") -> Nigeria | B13: Abia | C13: Ikwuano | D13: 176642.7065 | E13: =IF(INTRO!$E$48="","",ROUND($D13*INTRO!$E$48,0)) -> 35329 | F13: =IF(INTRO!$E$49="","",ROUND($D13*INTRO!$E$49,0)) -> 49460 | G13: =IF(INTRO!$E$50="","",ROUND($D13*INTRO!$E$50,0)) -> 91854 | H13: 1 | I13: 1 | J13: 2 | K13: 1 | L13: =IF(INTRO!$E$38="Endemic", IF($H13>0, IF($H13=4,"Unknown", IF($H13=99,"Stopped", $D13)), 0),"Not required") -> 176642.7065 | M13: 47644.79312 | N13: =IF(INTRO!$E$42="Endemic", IF(AND($J13>1,$J13<5), IF($J13=4, "Unknown", E13+F13), 0),"Not required") -> 84789 | O13: =IF(INTRO!$E$44="Endemic", IF(AND($K13>0,$K13<5), IF($K13=4,"Unknown", IF($K13=1, $F13*0.33, IF($K13=2, $F13*0.5+$G13*0.2, SUM(F13:G13)))), 0),"Not required") -> 16321.8 | P13: 1 | Q13: 1 | R13: 1 | S13: 0 | T13: MDA1 (IVM+ALB) | U13: T2 (PZQ) | X13: 36341 | Y13: Ikwuano | AA13: TRUE
A14: =IF(INTRO!$E$34<>0,INTRO!$E$34,"") -> Nigeria | B14: Abia | C14: Isiala-Ngwa North | D14: 196792.5173 | E14: =IF(INTRO!$E$48="","",ROUND($D14*INTRO!$E$48,0)) -> 39359 | F14: =IF(INTRO!$E$49="","",ROUND($D14*INTRO!$E$49,0)) -> 55102 | G14: =IF(INTRO!$E$50="","",ROUND($D14*INTRO!$E$50,0)) -> 102332 | H14: 1 | I14: 1 | J14: 2 | K14: 0 | L14: =IF(INTRO!$E$38="Endemic", IF($H14>0, IF($H14=4,"Unknown", IF($H14=99,"Stopped", $D14)), 0),"Not required") -> 196792.5173 | M14: 74923.22062 | N14: =IF(INTRO!$E$42="Endemic", IF(AND($J14>1,$J14<5), IF($J14=4, "Unknown", E14+F14), 0),"Not required") -> 94461 | O14: =IF(INTRO!$E$44="Endemic", IF(AND($K14>0,$K14<5), IF($K14=4,"Unknown", IF($K14=1, $F14*0.33, IF($K14=2, $F14*0.5+$G14*0.2, SUM(F14:G14)))), 0),"Not required") -> 0 | P14: 1 | Q14: 1 | R14: 1 | S14: 0 | T14: MDA1 (IVM+ALB) | X14: 36342 | Y14: Isiala-Ngwa North | AA14: TRUE
A15: =IF(INTRO!$E$34<>0,INTRO!$E$34,"") -> Nigeria | B15: Abia | C15: Isiala-Ngwa South | D15: 172506.7533 | E15: =IF(INTRO!$E$48="","",ROUND($D15*INTRO!$E$48,0)) -> 34501 | F15: =IF(INTRO!$E$49="","",ROUND($D15*INTRO!$E$49,0)) -> 48302 | G15: =IF(INTRO!$E$50="","",ROUND($D15*INTRO!$E$50,0)) -> 89704 | H15: 1 | I15: 1 | J15: 2 | K15: 0 | L15: =IF(INTRO!$E$38="Endemic", IF($H15>0, IF($H15=4,"Unknown", IF($H15=99,"Stopped", $D15)), 0),"Not required") -> 172506.7533 | M15: 65677.72062 | N15: =IF(INTRO!$E$42="Endemic", IF(AND($J15>1,$J15<5), IF($J15=4, "Unknown", E15+F15), 0),"Not required") -> 82803 | O15: =IF(INTRO!$E$44="Endemic", IF(AND($K15>0,$K15<5), IF($K15=4,"Unknown", IF($K15=1, $F15*0.33, IF($K15=2, $F15*0.5+$G15*0.2, SUM(F15:G15)))), 0),"Not required") -> 0 | P15: 1 | Q15: 1 | R15: 1 | S15: 0 | T15: MDA1 (IVM+ALB) | X15: 36343 | Y15: Isiala-Ngwa South | AA15: TRUE
A16: =IF(INTRO!$E$34<>0,INTRO!$E$34,"") -> Nigeria | B16: Abia | C16: Isiukwuato | D16: 146495.4354 | E16: =IF(INTRO!$E$48="","",ROUND($D16*INTRO!$E$48,0)) -> 29299 | F16: =IF(INTRO!$E$49="","",ROUND($D16*INTRO!$E$49,0)) -> 41019 | G16: =IF(INTRO!$E$50="","",ROUND($D16*INTRO!$E$50,0)) -> 76178 | H16: 1 | I16: 1 | J16: 2 | K16: 0 | L16: =IF(INTRO!$E$38="Endemic", IF($H16>0, IF($H16=4,"Unknown", IF($H16=99,"Stopped", $D16)), 0),"Not required") -> 146495.4354 | M16: 67941.8175 | N16: =IF(INTRO!$E$42="Endemic", IF(AND($J16>1,$J16<5), IF($J16=4, "Unknown", E16+F16), 0),"Not required") -> 70318 | O16: =IF(INTRO!$E$44="Endemic", IF(AND($K16>0,$K16<5), IF($K16=4,"Unknown", IF($K16=1, $F16*0.33, IF($K16=2, $F16*0.5+$G16*0.2, SUM(F16:G16)))), 0),"Not required") -> 0 | P16: 1 | Q16: 1 | R16: 1 | S16: 0 | T16: MDA1 (IVM+ALB) | U16: T2 (PZQ) | X16: 36344 | Y16: Isiukwuato | AA16: TRUE
A17: =IF(INTRO!$E$34<>0,INTRO!$E$34,"") -> Nigeria | B17: Abia | C17: Obio-Ngwa | D17: 232257.2596 | E17: =IF(INTRO!$E$48="","",ROUND($D17*INTRO!$E$48,0)) -> 46451 | F17: =IF(INTRO!$E$49="","",ROUND($D17*INTRO!$E$49,0)) -> 65032 | G17: =IF(INTRO!$E$50="","",ROUND($D17*INTRO!$E$50,0)) -> 120774 | H17: 1 | I17: 1 | J17: 2 | K17: 0 | L17: =IF(INTRO!$E$38="Endemic", IF($H17>0, IF($H17=4,"Unknown", IF($H17=99,"Stopped", $D17)), 0),"Not required") -> 232257.2596 | M17: 88425.85312 | N17: =IF(INTRO!$E$42="Endemic", IF(AND($J17>1,$J17<5), IF($J17=4, "Unknown", E17+F17), 0),"Not required") -> 111483 | O17: =IF(INTRO!$E$44="Endemic", IF(AND($K17>0,$K17<5), IF($K17=4,"Unknown", IF($K17=1, $F17*0.33, IF($K17=2, $F17*0.5+$G17*0.2, SUM(F17:G17)))), 0),"Not required") -> 0 | P17: 1 | Q17: 1 | R17: 1 | S17: 0 | U17: T2 (PZQ) | X17: 36345 | Y17: Obio-Ngwa | AA17: TRUE
A18: =IF(INTRO!$E$34<>0,INTRO!$E$34,"") -> Nigeria | B18: Abia | C18: Ohafia | D18: 313805.0455 | E18: =IF(INTRO!$E$48="","",ROUND($D18*INTRO!$E$48,0)) -> 62761 | F18: =IF(INTRO!$E$49="","",ROUND($D18*INTRO!$E$49,0)) -> 87865 | G18: =IF(INTRO!$E$50="","",ROUND($D18*INTRO!$E$50,0)) -> 163179 | H18: 1 | I18: 1 | J18: 2 | K18: 0 | L18: =IF(INTRO!$E$38="Endemic", IF($H18>0, IF($H18=4,"Unknown", IF($H18=99,"Stopped", $D18)), 0),"Not required") -> 313805.0455 | M18: 68768.65937 | N18: =IF(INTRO!$E$42="Endemic", IF(AND($J18>1,$J18<5), IF($J18=4, "Unknown", E18+F18), 0),"Not required") -> 150626 | O18: =IF(INTRO!$E$44="Endemic", IF(AND($K18>0,$K18<5), IF($K18=4,"Unknown", IF($K18=1, $F18*0.33, IF($K18=2, $F18*0.5+$G18*0.2, SUM(F18:G18)))), 0),"Not required") -> 0 | P18: 1 | Q18: 1 | R18: 1 | S18: 0 | T18: MDA1 (IVM+ALB) | U18: T2 (PZQ) | X18: 36346 | Y18: Ohafia | AA18: TRUE
A19: =IF(INTRO!$E$34<>0,INTRO!$E$34,"") -> Nigeria | B19: Abia | C19: Osisioma Ngwa | D19: 281147.5286 | E19: =IF(INTRO!$E$48="","",ROUND($D19*INTRO!$E$48,0)) -> 56230 | F19: =IF(INTRO!$E$49="","",ROUND($D19*INTRO!$E$49,0)) -> 78721 | G19: =IF(INTRO!$E$50="","",ROUND($D19*INTRO!$E$50,0)) -> 146197 | H19: 1 | I19: 1 | J19: 1 | K19: 0 | L19: =IF(INTRO!$E$38="Endemic", IF($H19>0, IF($H19=4,"Unknown", IF($H19=99,"Stopped", $D19)), 0),"Not required") -> 281147.5286 | M19: 107039.7762 | N19: =IF(INTRO!$E$42="Endemic", IF(AND($J19>1,$J19<5), IF($J19=4, "Unknown", E19+F19), 0),"Not required") -> 0 | O19: =IF(INTRO!$E$44="Endemic", IF(AND($K19>0,$K19<5), IF($K19=4,"Unknown", IF($K19=1, $F19*0.33, IF($K19=2, $F19*0.5+$G19*0.2, SUM(F19:G19)))), 0),"Not required") -> 0 | P19: 1 | Q19: 1 | R19: 0 | S19: 0 | X19: 36347 | Y19: Osisioma Ngwa | AA19: TRUE
A20: =IF(INTRO!$E$34<>0,INTRO!$E$34,"") -> Nigeria | B20: Abia | C20: Ugwunagbo | D20: 105758.0249 | E20: =IF(INTRO!$E$48="","",ROUND($D20*INTRO!$E$48,0)) -> 21152 | F20: =IF(INTRO!$E$49="","",ROUND($D20*INTRO!$E$49,0)) -> 29612 | G20: =IF(INTRO!$E$50="","",ROUND($D20*INTRO!$E$50,0)) -> 54994 | H20: 1 | I20: 1 | J20: 3 | K20: 0 | L20: =IF(INTRO!$E$38="Endemic", IF($H20>0, IF($H20=4,"Unknown", IF($H20=99,"Stopped", $D20)), 0),"Not required") -> 105758.0249 | M20: 40264.1525 | N20: =IF(INTRO!$E$42="Endemic", IF(AND($J20>1,$J20<5), IF($J20=4, "Unknown", E20+F20), 0),"Not required") -> 50764 | O20: =IF(INTRO!$E$44="Endemic", IF(AND($K20>0,$K20<5), IF($K20=4,"Unknown", IF($K20=1, $F20*0.33, IF($K20=2, $F20*0.5+$G20*0.2, SUM(F20:G20)))), 0),"Not required") -> 0 | P20: 1 | Q20: 1 | R20: 2 | S20: 0 | X20: 36348 | Y20: Ugwunagbo | AA20: TRUE
A21: =IF(INTRO!$E$34<>0,INTRO!$E$34,"") -> Nigeria | B21: Abia | C21: Ukwa East | D21: 75352.17669 | E21: =IF(INTRO!$E$48="","",ROUND($D21*INTRO!$E$48,0)) -> 15070 | F21: =IF(INTRO!$E$49="","",ROUND($D21*INTRO!$E$49,0)) -> 21099 | G21: =IF(INTRO!$E$50="","",ROUND($D21*INTRO!$E$50,0)) -> 39183 | H21: 1 | I21: 1 | J21: 2 | K21: 0 | L21: =IF(INTRO!$E$38="Endemic", IF($H21>0, IF($H21=4,"Unknown", IF($H21=99,"Stopped", $D21)), 0),"Not required") -> 75352.17669 | M21: 52528.09812 | N21: =IF(INTRO!$E$42="Endemic", IF(AND($J21>1,$J21<5), IF($J21=4, "Unknown", E21+F21), 0),"Not required") -> 36169 | O21: =IF(INTRO!$E$44="Endemic", IF(AND($K21>0,$K21<5), IF($K21=4,"Unknown", IF($K21=1, $F21*0.33, IF($K21=2, $F21*0.5+$G21*0.2, SUM(F21:G21)))), 0),"Not required") -> 0 | P21: 1 | Q21: 1 | R21: 1 | S21: 0 | T21: MDA1 (IVM+ALB) | X21: 36349 | Y21: Ukwa East | AA21: TRUE
A22: =IF(INTRO!$E$34<>0,INTRO!$E$34,"") -> Nigeria | B22: Abia | C22: Ukwa West | D22: 113357.8868 | E22: =IF(INTRO!$E$48="","",ROUND($D22*INTRO!$E$48,0)) -> 22672 | F22: =IF(INTRO!$E$49="","",ROUND($D22*INTRO!$E$49,0)) -> 31740 | G22: =IF(INTRO!$E$50="","",ROUND($D22*INTRO!$E$50,0)) -> 58946 | H22: 1 | I22: 1 | J22: 2 | K22: 0 | L22: =IF(INTRO!$E$38="Endemic", IF($H22>0, IF($H22=4,"Unknown", IF($H22=99,"Stopped", $D22)), 0),"Not required") -> 113357.8868 | M22: 68141.43625 | N22: =IF(INTRO!$E$42="Endemic", IF(AND($J22>1,$J22<5), IF($J22=4, "Unknown", E22+F22), 0),"Not required") -> 54412 | O22: =IF(INTRO!$E$44="Endemic", IF(AND($K22>0,$K22<5), IF($K22=4,"Unknown", IF($K22=1, $F22*0.33, IF($K22=2, $F22*0.5+$G22*0.2, SUM(F22:G22)))), 0),"Not required") -> 0 | P22: 1 | Q22: 1 | R22: 1 | S22: 0 | T22: MDA1 (IVM+ALB) | X22: 36350 | Y22: Ukwa West | AA22: TRUE
A23: =IF(INTRO!$E$34<>0,INTRO!$E$34,"") -> Nigeria | B23: Abia | C23: Umuahia North | D23: 282463.4555 | E23: =IF(INTRO!$E$48="","",ROUND($D23*INTRO!$E$48,0)) -> 56493 | F23: =IF(INTRO!$E$49="","",ROUND($D23*INTRO!$E$49,0)) -> 79090 | G23: =IF(INTRO!$E$50="","",ROUND($D23*INTRO!$E$50,0)) -> 146881 | H23: 1 | I23: 1 | J23: 2 | K23: 1 | L23: =IF(INTRO!$E$38="Endemic", IF($H23>0, IF($H23=4,"Unknown", IF($H23=99,"Stopped", $D23)), 0),"Not required") -> 282463.4555 | M23: 107540.9244 | N23: =IF(INTRO!$E$42="Endemic", IF(AND($J23>1,$J23<5), IF($J23=4, "Unknown", E23+F23), 0),"Not required") -> 135583 | O23: =IF(INTRO!$E$44="Endemic", IF(AND($K23>0,$K23<5), IF($K23=4,"Unknown", IF($K23=1, $F23*0.33, IF($K23=2, $F23*0.5+$G23*0.2, SUM(F23:G23)))), 0),"Not required") -> 26099.7 | P23: 1 | Q23: 1 | R23: 1 | S23: 0 | T23: MDA1 (IVM+ALB) | X23: 36352 | Y23: Umuahia North | AA23: TRUE
A24: =IF(INTRO!$E$34<>0,INTRO!$E$34,"") -> Nigeria | B24: Abia | C24: Umuahia South | D24: 177381.3153 | E24: =IF(INTRO!$E$48="","",ROUND($D24*INTRO!$E$48,0)) -> 35476 | F24: =IF(INTRO!$E$49="","",ROUND($D24*INTRO!$E$49,0)) -> 49667 | G24: =IF(INTRO!$E$50="","",ROUND($D24*INTRO!$E$50,0)) -> 92238 | H24: 1 | I24: 1 | J24: 2 | K24: 1 | L24: =IF(INTRO!$E$38="Endemic", IF($H24>0, IF($H24=4,"Unknown", IF($H24=99,"Stopped", $D24)), 0),"Not required") -> 177381.3153 | M24: 67533.12437 | N24: =IF(INTRO!$E$42="Endemic", IF(AND($J24>1,$J24<5), IF($J24=4, "Unknown", E24+F24), 0),"Not required") -> 85143 | O24: =IF(INTRO!$E$44="Endemic", IF(AND($K24>0,$K24<5), IF($K24=4,"Unknown", IF($K24=1, $F24*0.33, IF($K24=2, $F24*0.5+$G24*0.2, SUM(F24:G24)))), 0),"Not required") -> 16390.11 | P24: 1 | Q24: 1 | R24: 1 | S24: 0 | T24: MDA1 (IVM+ALB) | U24: T2 (PZQ) | X24: 36353 | Y24: Umuahia South | AA24: TRUE
A25: =IF(INTRO!$E$34<>0,INTRO!$E$34,"") -> Nigeria | B25: Abia | C25: Umu-Nneochi | D25: 209841.6992 | E25: =IF(INTRO!$E$48="","",ROUND($D25*INTRO!$E$48,0)) -> 41968 | F25: =IF(INTRO!$E$49="","",ROUND($D25*INTRO!$E$49,0)) -> 58756 | G25: =IF(INTRO!$E$50="","",ROUND($D25*INTRO!$E$50,0)) -> 109118 | H25: 1 | I25: 1 | J25: 2 | K25: 1 | L25: =IF(INTRO!$E$38="Endemic", IF($H25>0, IF($H25=4,"Unknown", IF($H25=99,"Stopped", $D25)), 0),"Not required") -> 209841.6992 | M25: 95017.47437 | N25: =IF(INTRO!$E$42="Endemic", IF(AND($J25>1,$J25<5), IF($J25=4, "Unknown", E25+F25), 0),"Not required") -> 100724 | O25: =IF(INTRO!$E$44="Endemic", IF(AND($K25>0,$K25<5), IF($K25=4,"Unknown", IF($K25=1, $F25*0.33, IF($K25=2, $F25*0.5+$G25*0.2, SUM(F25:G25)))), 0),"Not required") -> 19389.48 | P25: 1 | Q25: 1 | R25: 1 | S25: 0 | T25: MDA1 (IVM+ALB) | X25: 36351 | Y25: Umu-Nneochi | AA25: TRUE
A26: =IF(INTRO!$E$34<>0,INTRO!$E$34,"") -> Nigeria | B26: Adamawa | C26: Demsa | D26: 230736.5192 | E26: =IF(INTRO!$E$48="","",ROUND($D26*INTRO!$E$48,0)) -> 46147 | F26: =IF(INTRO!$E$49="","",ROUND($D26*INTRO!$E$49,0)) -> 64606 | G26: =IF(INTRO!$E$50="","",ROUND($D26*INTRO!$E$50,0)) -> 119983 | H26: 1 | I26: 1 | J26: 4 | K26: 4 | L26: =IF(INTRO!$E$38="Endemic", IF($H26>0, IF($H26=4,"Unknown", IF($H26=99,"Stopped", $D26)), 0),"Not required") -> 230736.5192 | M26: 96553.48812 | N26: =IF(INTRO!$E$42="Endemic", IF(AND($J26>1,$J26<5), IF($J26=4, "Unknown", E26+F26), 0),"Not required") -> Unknown | O26: =IF(INTRO!$E$44="Endemic", IF(AND($K26>0,$K26<5), IF($K26=4,"Unknown", IF($K26=1, $F26*0.33, IF($K26=2, $F26*0.5+$G26*0.2, SUM(F26:G26)))), 0),"Not required") -> Unknown | P26: 1 | Q26: 1 | R26: 0 | S26: 0 | X26: 36354 | Y26: Demsa | AA26: TRUE
A27: =IF(INTRO!$E$34<>0,INTRO!$E$34,"") -> Nigeria | B27: Adamawa | C27: Fufore | D27: 265344.8849 | E27: =IF(INTRO!$E$48="","",ROUND($D27*INTRO!$E$48,0)) -> 53069 | F27: =IF(INTRO!$E$49="","",ROUND($D27*INTRO!$E$49,0)) -> 74297 | G27: =IF(INTRO!$E$50="","",ROUND($D27*INTRO!$E$50,0)) -> 137979 | H27: 1 | I27: 1 | J27: 4 | K27: 4 | L27: =IF(INTRO!$E$38="Endemic", IF($H27>0, IF($H27=4,"Unknown", IF($H27=99,"Stopped", $D27)), 0),"Not required") -> 265344.8849 | M27: 72323.97437 | N27: =IF(INTRO!$E$42="Endemic", IF(AND($J27>1,$J27<5), IF($J27=4, "Unknown", E27+F27), 0),"Not required") -> Unknown | O27: =IF(INTRO!$E$44="Endemic", IF(AND($K27>0,$K27<5), IF($K27=4,"Unknown", IF($K27=1, $F27*0.33, IF($K27=2, $F27*0.5+$G27*0.2, SUM(F27:G27)))), 0),"Not required") -> Unknown | P27: 1 | Q27: 1 | R27: 0 | S27: 0 | X27: 36355 | Y27: Fufore | AA27: TRUE
A28: =IF(INTRO!$E$34<>0,INTRO!$E$34,"") -> Nigeria | B28: Adamawa | C28: Ganye | D28: 210045.2326 | E28: =IF(INTRO!$E$48="","",ROUND($D28*INTRO!$E$48,0)) -> 42009 | F28: =IF(INTRO!$E$49="","",ROUND($D28*INTRO!$E$49,0)) -> 58813 | G28: =IF(INTRO!$E$50="","",ROUND($D28*INTRO!$E$50,0)) -> 109224 | H28: 1 | I28: 1 | J28: 4 | K28: 4 | L28: =IF(INTRO!$E$38="Endemic", IF($H28>0, IF($H28=4,"Unknown", IF($H28=99,"Stopped", $D28)), 0),"Not required") -> 210045.2326 | M28: 103843.775 | N28: =IF(INTRO!$E$42="Endemic", IF(AND($J28>1,$J28<5), IF($J28=4, "Unknown", E28+F28), 0),"Not required") -> Unknown | O28: =IF(INTRO!$E$44="Endemic", IF(AND($K28>0,$K28<5), IF($K28=4,"Unknown", IF($K28=1, $F28*0.33, IF($K28=2, $F28*0.5+$G28*0.2, SUM(F28:G28)))), 0),"Not required") -> Unknown | P28: 1 | Q28: 1 | R28: 0 | S28: 0 | X28: 36356 | Y28: Ganye | AA28: TRUE
A29: =IF(INTRO!$E$34<>0,INTRO!$E$34,"") -> Nigeria | B29: Adamawa | C29: Girei | D29: 166404.5903 | E29: =IF(INTRO!$E$48="","",ROUND($D29*INTRO!$E$48,0)) -> 33281 | F29: =IF(INTRO!$E$49="","",ROUND($D29*INTRO!$E$49,0)) -> 46593 | G29: =IF(INTRO!$E$50="","",ROUND($D29*INTRO!$E$50,0)) -> 86530 | H29: 1 | I29: 1 | J29: 4 | K29: 4 | L29: =IF(INTRO!$E$38="Endemic", IF($H29>0, IF($H29=4,"Unknown", IF($H29=99,"Stopped", $D29)), 0),"Not required") -> 166404.5903 | M29: 166404.5903 | N29: =IF(INTRO!$E$42="Endemic", IF(AND($J29>1,$J29<5), IF($J29=4, "Unknown", E29+F29), 0),"Not required") -> Unknown | O29: =IF(INTRO!$E$44="Endemic", IF(AND($K29>0,$K29<5), IF($K29=4,"Unknown", IF($K29=1, $F29*0.33, IF($K29=2, $F29*0.5+$G29*0.2, SUM(F29:G29)))), 0),"Not required") -> Unknown | P29: 1 | Q29: 1 | R29: 0 | S29: 0 | X29: 36357 | Y29: Girei | AA29: TRUE
A30: =IF(INTRO!$E$34<>0,INTRO!$E$34,"") -> Nigeria | B30: Adamawa | C30: Gombi | D30: 187441.4997 | E30: =IF(INTRO!$E$48="","",ROUND($D30*INTRO!$E$48,0)) -> 37488 | F30: =IF(INTRO!$E$49="","",ROUND($D30*INTRO!$E$49,0)) -> 52484 | G30: =IF(INTRO!$E$50="","",ROUND($D30*INTRO!$E$50,0)) -> 97470 | H30: 1 | I30: 1 | J30: 4 | K30: 4 | L30: =IF(INTRO!$E$38="Endemic", IF($H30>0, IF($H30=4,"Unknown", IF($H30=99,"Stopped", $D30)), 0),"Not required") -> 187441.4997 | M30: 84997.66375 | N30: =IF(INTRO!$E$42="Endemic", IF(AND($J30>1,$J30<5), IF($J30=4, "Unknown", E30+F30), 0),"Not required") -> Unknown | O30: =IF(INTRO!$E$44="Endemic", IF(AND($K30>0,$K30<5), IF($K30=4,"Unknown", IF($K30=1, $F30*0.33, IF($K30=2, $F30*0.5+$G30*0.2, SUM(F30:G30)))), 0),"Not required") -> Unknown | P30: 1 | Q30: 1 | R30: 0 | S30: 0 | X30: 36358 | Y30: Gombi | AA30: TRUE
A31: =IF(INTRO!$E$34<>0,INTRO!$E$34,"") -> Nigeria | B31: Adamawa | C31: Guyuk | D31: 227579.8307 | E31: =IF(INTRO!$E$48="","",ROUND($D31*INTRO!$E$48,0)) -> 45516 | F31: =IF(INTRO!$E$49="","",ROUND($D31*INTRO!$E$49,0)) -> 63722 | G31: =IF(INTRO!$E$50="","",ROUND($D31*INTRO!$E$50,0)) -> 118342 | H31: 1 | I31: 1 | J31: 4 | K31: 4 | L31: =IF(INTRO!$E$38="Endemic", IF($H31>0, IF($H31=4,"Unknown", IF($H31=99,"Stopped", $D31)), 0),"Not required") -> 227579.8307 | M31: 112215.155 | N31: =IF(INTRO!$E$42="Endemic", IF(AND($J31>1,$J31<5), IF($J31=4, "Unknown", E31+F31), 0),"Not required") -> Unknown | O31: =IF(INTRO!$E$44="Endemic", IF(AND($K31>0,$K31<5), IF($K31=4,"Unknown", IF($K31=1, $F31*0.33, IF($K31=2, $F31*0.5+$G31*0.2, SUM(F31:G31)))), 0),"Not required") -> Unknown | P31: 1 | Q31: 1 | R31: 0 | S31: 0 | X31: 36359 | Y31: Guyuk | AA31: TRUE
A32: =IF(INTRO!$E$34<>0,INTRO!$E$34,"") -> Nigeria | B32: Adamawa | C32: Hong | D32: 216495.5786 | E32: =IF(INTRO!$E$48="","",ROUND($D32*INTRO!$E$48,0)) -> 43299 | F32: =IF(INTRO!$E$49="","",ROUND($D32*INTRO!$E$49,0)) -> 60619 | G32: =IF(INTRO!$E$50="","",ROUND($D32*INTRO!$E$50,0)) -> 112578 | H32: 0 | I32: 1 | J32: 4 | K32: 4 | L32: =IF(INTRO!$E$38="Endemic", IF($H32>0, IF($H32=4,"Unknown", IF($H32=99,"Stopped", $D32)), 0),"Not required") -> 0 | M32: 122782.3412 | N32: =IF(INTRO!$E$42="Endemic", IF(AND($J32>1,$J32<5), IF($J32=4, "Unknown", E32+F32), 0),"Not required") -> Unknown | O32: =IF(INTRO!$E$44="Endemic", IF(AND($K32>0,$K32<5), IF($K32=4,"Unknown", IF($K32=1, $F32*0.33, IF($K32=2, $F32*0.5+$G32*0.2, SUM(F32:G32)))), 0),"Not required") -> Unknown | P32: 0 | Q32: 1 | R32: 0 | S32: 0 | X32: 36360 | Y32: Hong | AA32: TRUE
A33: =IF(INTRO!$E$34<>0,INTRO!$E$34,"") -> Nigeria | B33: Adamawa | C33: Jada | D33: 215659.6834 | E33: =IF(INTRO!$E$48="","",ROUND($D33*INTRO!$E$48,0)) -> 43132 | F33: =IF(INTRO!$E$49="","",ROUND($D33*INTRO!$E$49,0)) -> 60385 | G33: =IF(INTRO!$E$50="","",ROUND($D33*INTRO!$E$50,0)) -> 112143 | H33: 1 | I33: 1 | J33: 4 | K33: 4 | L33: =IF(INTRO!$E$38="Endemic", IF($H33>0, IF($H33=4,"Unknown", IF($H33=99,"Stopped", $D33)), 0),"Not required") -> 215659.6834 | M33: 208524.8981 | N33: =IF(INTRO!$E$42="Endemic", IF(AND($J33>1,$J33<5), IF($J33=4, "Unknown", E33+F33), 0),"Not required") -> Unknown | O33: =IF(INTRO!$E$44="Endemic", IF(AND($K33>0,$K33<5), IF($K33=4,"Unknown", IF($K33=1, $F33*0.33, IF($K33=2, $F33*0.5+$G33*0.2, SUM(F33:G33)))), 0),"Not required") -> Unknown | P33: 1 | Q33: 1 | R33: 0 | S33: 0 | X33: 36361 | Y33: Jada | AA33: TRUE
A34: =IF(INTRO!$E$34<>0,INTRO!$E$34,"") -> Nigeria | B34: Adamawa | C34: Lamurde | D34: 144397.3768 | E34: =IF(INTRO!$E$48="","",ROUND($D34*INTRO!$E$48,0)) -> 28879 | F34: =IF(INTRO!$E$49="","",ROUND($D34*INTRO!$E$49,0)) -> 40431 | G34: =IF(INTRO!$E$50="","",ROUND($D34*INTRO!$E$50,0)) -> 75087 | H34: 1 | I34: 1 | J34: 4 | K34: 4 | L34: =IF(INTRO!$E$38="Endemic", IF($H34>0, IF($H34=4,"Unknown", IF($H34=99,"Stopped", $D34)), 0),"Not required") -> 144397.3768 | M34: 90087.94187 | N34: =IF(INTRO!$E$42="Endemic", IF(AND($J34>1,$J34<5), IF($J34=4, "Unknown", E34+F34), 0),"Not required") -> Unknown | O34: =IF(INTRO!$E$44="Endemic", IF(AND($K34>0,$K34<5), IF($K34=4,"Unknown", IF($K34=1, $F34*0.33, IF($K34=2, $F34*0.5+$G34*0.2, SUM(F34:G34)))), 0),"Not required") -> Unknown | P34: 1 | Q34: 1 | R34: 0 | S34: 0 | X34: 36362 | Y34: Lamurde | AA34: TRUE
A35: =IF(INTRO!$E$34<>0,INTRO!$E$34,"") -> Nigeria | B35: Adamawa | C35: Madagali | D35: 172589.9588 | E35: =IF(INTRO!$E$48="","",ROUND($D35*INTRO!$E$48,0)) -> 34518 | F35: =IF(INTRO!$E$49="","",ROUND($D35*INTRO!$E$49,0)) -> 48325 | G35: =IF(INTRO!$E$50="","",ROUND($D35*INTRO!$E$50,0)) -> 89747 | H35: 0 | I35: 1 | J35: 4 | K35: 4 | L35: =IF(INTRO!$E$38="Endemic", IF($H35>0, IF($H35=4,"Unknown", IF($H35=99,"Stopped", $D35)), 0),"Not required") -> 0 | M35: 85260.32 | N35: =IF(INTRO!$E$42="Endemic", IF(AND($J35>1,$J35<5), IF($J35=4, "Unknown", E35+F35), 0),"Not required") -> Unknown | O35: =IF(INTRO!$E$44="Endemic", IF(AND($K35>0,$K35<5), IF($K35=4,"Unknown", IF($K35=1, $F35*0.33, IF($K35=2, $F35*0.5+$G35*0.2, SUM(F35:G35)))), 0),"Not required") -> Unknown | P35: 0 | Q35: 1 | R35: 0 | S35: 0 | X35: 36363 | Y35: Madagali | AA35: TRUE
A36: =IF(INTRO!$E$34<>0,INTRO!$E$34,"") -> Nigeria | B36: Adamawa | C36: Maiha | D36: 142364.6026 | E36: =IF(INTRO!$E$48="","",ROUND($D36*INTRO!$E$48,0)) -> 28473 | F36: =IF(INTRO!$E$49="","",ROUND($D36*INTRO!$E$49,0)) -> 39862 | G36: =IF(INTRO!$E$50="","",ROUND($D36*INTRO!$E$50,0)) -> 74030 | H36: 1 | I36: 1 | J36: 4 | K36: 4 | L36: =IF(INTRO!$E$38="Endemic", IF($H36>0, IF($H36=4,"Unknown", IF($H36=99,"Stopped", $D36)), 0),"Not required") -> 142364.6026 | M36: 105704.4319 | N36: =IF(INTRO!$E$42="Endemic", IF(AND($J36>1,$J36<5), IF($J36=4, "Unknown", E36+F36), 0),"Not required") -> Unknown | O36: =IF(INTRO!$E$44="Endemic", IF(AND($K36>0,$K36<5), IF($K36=4,"Unknown", IF($K36=1, $F36*0.33, IF($K36=2, $F36*0.5+$G36*0.2, SUM(F36:G36)))), 0),"Not required") -> Unknown | P36: 1 | Q36: 1 | R36: 0 | S36: 0 | X36: 36364 | Y36: Maiha | AA36: TRUE
A37: =IF(INTRO!$E$34<>0,INTRO!$E$34,"") -> Nigeria | B37: Adamawa | C37: Mayo-belwa | D37: 196018.0662 | E37: =IF(INTRO!$E$48="","",ROUND($D37*INTRO!$E$48,0)) -> 39204 | F37: =IF(INTRO!$E$49="","",ROUND($D37*INTRO!$E$49,0)) -> 54885 | G37: =IF(INTRO!$E$50="","",ROUND($D37*INTRO!$E$50,0)) -> 101929 | H37: 1 | I37: 1 | J37: 4 | K37: 4 | L37: =IF(INTRO!$E$38="Endemic", IF($H37>0, IF($H37=4,"Unknown", IF($H37=99,"Stopped", $D37)), 0),"Not required") -> 196018.0662 | M37: 104501.4662 | N37: =IF(INTRO!$E$42="Endemic", IF(AND($J37>1,$J37<5), IF($J37=4, "Unknown", E37+F37), 0),"Not required") -> Unknown | O37: =IF(INTRO!$E$44="Endemic", IF(AND($K37>0,$K37<5), IF($K37=4,"Unknown", IF($K37=1, $F37*0.33, IF($K37=2, $F37*0.5+$G37*0.2, SUM(F37:G37)))), 0),"Not required") -> Unknown | P37: 1 | Q37: 1 | R37: 0 | S37: 0 | X37: 36365 | Y37: Mayo-belwa | AA37: TRUE
A38: =IF(INTRO!$E$34<>0,INTRO!$E$34,"") -> Nigeria | B38: Adamawa | C38: Michika | D38: 198799.6899 | E38: =IF(INTRO!$E$48="","",ROUND($D38*INTRO!$E$48,0)) -> 39760 | F38: =IF(INTRO!$E$49="","",ROUND($D38*INTRO!$E$49,0)) -> 55664 | G38: =IF(INTRO!$E$50="","",ROUND($D38*INTRO!$E$50,0)) -> 103376 | H38: 1 | I38: 1 | J38: 4 | K38: 4 | L38: =IF(INTRO!$E$38="Endemic", IF($H38>0, IF($H38=4,"Unknown", IF($H38=99,"Stopped", $D38)), 0),"Not required") -> 198799.6899 | M38: 141229.215 | N38: =IF(INTRO!$E$42="Endemic", IF(AND($J38>1,$J38<5), IF($J38=4, "Unknown", E38+F38), 0),"Not required") -> Unknown | O38: =IF(INTRO!$E$44="Endemic", IF(AND($K38>0,$K38<5), IF($K38=4,"Unknown", IF($K38=1, $F38*0.33, IF($K38=2, $F38*0.5+$G38*0.2, SUM(F38:G38)))), 0),"Not required") -> Unknown | P38: 1 | Q38: 1 | R38: 0 | S38: 0 | X38: 36366 | Y38: Michika | AA38: TRUE
A39: =IF(INTRO!$E$34<>0,INTRO!$E$34,"") -> Nigeria | B39: Adamawa | C39: Mubi North | D39: 193384.9323 | E39: =IF(INTRO!$E$48="","",ROUND($D39*INTRO!$E$48,0)) -> 38677 | F39: =IF(INTRO!$E$49="","",ROUND($D39*INTRO!$E$49,0)) -> 54148 | G39: =IF(INTRO!$E$50="","",ROUND($D39*INTRO!$E$50,0)) -> 100560 | H39: 1 | I39: 0 | J39: 4 | K39: 4 | L39: =IF(INTRO!$E$38="Endemic", IF($H39>0, IF($H39=4,"Unknown", IF($H39=99,"Stopped", $D39)), 0),"Not required") -> 193384.9323 | M39: 0 | N39: =IF(INTRO!$E$42="Endemic", IF(AND($J39>1,$J39<5), IF($J39=4, "Unknown", E39+F39), 0),"Not required") -> Unknown | O39: =IF(INTRO!$E$44="Endemic", IF(AND($K39>0,$K39<5), IF($K39=4,"Unknown", IF($K39=1, $F39*0.33, IF($K39=2, $F39*0.5+$G39*0.2, SUM(F39:G39)))), 0),"Not required") -> Unknown | P39: 1 | Q39: 0 | R39: 0 | S39: 0 | X39: 36367 | Y39: Mubi North | AA39: TRUE
A40: =IF(INTRO!$E$34<>0,INTRO!$E$34,"") -> Nigeria | B40: Adamawa | C40: Mubi South | D40: 165050.2609 | E40: =IF(INTRO!$E$48="","",ROUND($D40*INTRO!$E$48,0)) -> 33010 | F40: =IF(INTRO!$E$49="","",ROUND($D40*INTRO!$E$49,0)) -> 46214 | G40: =IF(INTRO!$E$50="","",ROUND($D40*INTRO!$E$50,0)) -> 85826 | H40: 1 | I40: 0 | J40: 4 | K40: 4 | L40: =IF(INTRO!$E$38="Endemic", IF($H40>0, IF($H40=4,"Unknown", IF($H40=99,"Stopped", $D40)), 0),"Not required") -> 165050.2609 | M40: 0 | N40: =IF(INTRO!$E$42="Endemic", IF(AND($J40>1,$J40<5), IF($J40=4, "Unknown", E40+F40), 0),"Not required") -> Unknown | O40: =IF(INTRO!$E$44="Endemic", IF(AND($K40>0,$K40<5), IF($K40=4,"Unknown", IF($K40=1, $F40*0.33, IF($K40=2, $F40*0.5+$G40*0.2, SUM(F40:G40)))), 0),"Not required") -> Unknown | P40: 1 | Q40: 0 | R40: 0 | S40: 0 | X40: 36368 | Y40: Mubi South | AA40: TRUE
A41: =IF(INTRO!$E$34<>0,INTRO!$E$34,"") -> Nigeria | B41: Adamawa | C41: Numan | D41: 116133.1101 | E41: =IF(INTRO!$E$48="","",ROUND($D41*INTRO!$E$48,0)) -> 23227 | F41: =IF(INTRO!$E$49="","",ROUND($D41*INTRO!$E$49,0)) -> 32517 | G41: =IF(INTRO!$E$50="","",ROUND($D41*INTRO!$E$50,0)) -> 60389 | H41: 1 | I41: 0 | J41: 4 | K41: 4 | L41: =IF(INTRO!$E$38="Endemic", IF($H41>0, IF($H41=4,"Unknown", IF($H41=99,"Stopped", $D41)), 0),"Not required") -> 116133.1101 | M41: 0 | N41: =IF(INTRO!$E$42="Endemic", IF(AND($J41>1,$J41<5), IF($J41=4, "Unknown", E41+F41), 0),"Not required") -> Unknown | O41: =IF(INTRO!$E$44="Endemic", IF(AND($K41>0,$K41<5), IF($K41=4,"Unknown", IF($K41=1, $F41*0.33, IF($K41=2, $F41*0.5+$G41*0.2, SUM(F41:G41)))), 0),"Not required") -> Unknown | P41: 1 | Q41: 0 | R41: 0 | S41: 0 | X41: 36369 | Y41: Numan | AA41: TRUE
A42: =IF(INTRO!$E$34<>0,INTRO!$E$34,"") -> Nigeria | B42: Adamawa | C42: Shelleng | D42: 190820.9229 | E42: =IF(INTRO!$E$48="","",ROUND($D42*INTRO!$E$48,0)) -> 38164 | F42: =IF(INTRO!$E$49="","",ROUND($D42*INTRO!$E$49,0)) -> 53430 | G42: =IF(INTRO!$E$50="","",ROUND($D42*INTRO!$E$50,0)) -> 99227 | H42: 1 | I42: 1 | J42: 4 | K42: 4 | L42: =IF(INTRO!$E$38="Endemic", IF($H42>0, IF($H42=4,"Unknown", IF($H42=99,"Stopped", $D42)), 0),"Not required") -> 190820.9229 | M42: 59669.19625 | N42: =IF(INTRO!$E$42="Endemic", IF(AND($J42>1,$J42<5), IF($J42=4, "Unknown", E42+F42), 0),"Not required") -> Unknown | O42: =IF(INTRO!$E$44="Endemic", IF(AND($K42>0,$K42<5), IF($K42=4,"Unknown", IF($K42=1, $F42*0.33, IF($K42=2, $F42*0.5+$G42*0.2, SUM(F42:G42)))), 0),"Not required") -> Unknown | P42: 1 | Q42: 1 | R42: 0 | S42: 0 | X42: 36370 | Y42: Shelleng | AA42: TRUE
A43: =IF(INTRO!$E$34<>0,INTRO!$E$34,"") -> Nigeria | B43: Adamawa | C43: Song | D43: 246668.4514 | E43: =IF(INTRO!$E$48="","",ROUND($D43*INTRO!$E$48,0)) -> 49334 | F43: =IF(INTRO!$E$49="","",ROUND($D43*INTRO!$E$49,0)) -> 69067 | G43: =IF(INTRO!$E$50="","",ROUND($D43*INTRO!$E$50,0)) -> 128268 | H43: 1 | I43: 1 | J43: 4 | K43: 4 | L43: =IF(INTRO!$E$38="Endemic", IF($H43>0, IF($H43=4,"Unknown", IF($H43=99,"Stopped", $D43)), 0),"Not required") -> 246668.4514 | M43: 246668.4514 | N43: =IF(INTRO!$E$42="Endemic", IF(AND($J43>1,$J43<5), IF($J43=4, "Unknown", E43+F43), 0),"Not required") -> Unknown | O43: =IF(INTRO!$E$44="Endemic", IF(AND($K43>0,$K43<5), IF($K43=4,"Unknown", IF($K43=1, $F43*0.33, IF($K43=2, $F43*0.5+$G43*0.2, SUM(F43:G43)))), 0),"Not required") -> Unknown | P43: 1 | Q43: 1 | R43: 0 | S43: 0 | X43: 36371 | Y43: Song | AA43: TRUE
A44: =IF(INTRO!$E$34<>0,INTRO!$E$34,"") -> Nigeria | B44: Adamawa | C44: Toungo | D44: 66615.59968 | E44: =IF(INTRO!$E$48="","",ROUND($D44*INTRO!$E$48,0)) -> 13323 | F44: =IF(INTRO!$E$49="","",ROUND($D44*INTRO!$E$49,0)) -> 18652 | G44: =IF(INTRO!$E$50="","",ROUND($D44*INTRO!$E$50,0)) -> 34640 | H44: 1 | I44: 1 | J44: 4 | K44: 4 | L44: =IF(INTRO!$E$38="Endemic", IF($H44>0, IF($H44=4,"Unknown", IF($H44=99,"Stopped", $D44)), 0),"Not required") -> 66615.59968 | M44: 66615.59968 | N44: =IF(INTRO!$E$42="Endemic", IF(AND($J44>1,$J44<5), IF($J44=4, "Unknown", E44+F44), 0),"Not required") -> Unknown | O44: =IF(INTRO!$E$44="Endemic", IF(AND($K44>0,$K44<5), IF($K44=4,"Unknown", IF($K44=1, $F44*0.33, IF($K44=2, $F44*0.5+$G44*0.2, SUM(F44:G44)))), 0),"Not required") -> Unknown | P44: 1 | Q44: 1 | R44: 0 | S44: 0 | X44: 36372 | Y44: Toungo | AA44: TRUE
A45: =IF(INTRO!$E$34<>0,INTRO!$E$34,"") -> Nigeria | B45: Adamawa | C45: Yola North | D45: 253772.9206 | E45: =IF(INTRO!$E$48="","",ROUND($D45*INTRO!$E$48,0)) -> 50755 | F45: =IF(INTRO!$E$49="","",ROUND($D45*INTRO!$E$49,0)) -> 71056 | G45: =IF(INTRO!$E$50="","",ROUND($D45*INTRO!$E$50,0)) -> 131962 | H45: 0 | I45: 1 | J45: 4 | K45: 4 | L45: =IF(INTRO!$E$38="Endemic", IF($H45>0, IF($H45=4,"Unknown", IF($H45=99,"Stopped", $D45)), 0),"Not required") -> 0 | M45: 39097.95875 | N45: =IF(INTRO!$E$42="Endemic", IF(AND($J45>1,$J45<5), IF($J45=4, "Unknown", E45+F45), 0),"Not required") -> Unknown | O45: =IF(INTRO!$E$44="Endemic", IF(AND($K45>0,$K45<5), IF($K45=4,"Unknown", IF($K45=1, $F45*0.33, IF($K45=2, $F45*0.5+$G45*0.2, SUM(F45:G45)))), 0),"Not required") -> Unknown | P45: 0 | Q45: 1 | R45: 0 | S45: 0 | X45: 36373 | Y45: Yola North | AA45: TRUE
A46: =IF(INTRO!$E$34<>0,INTRO!$E$34,"") -> Nigeria | B46: Adamawa | C46: Yola South | D46: 249113.4129 | E46: =IF(INTRO!$E$48="","",ROUND($D46*INTRO!$E$48,0)) -> 49823 | F46: =IF(INTRO!$E$49="","",ROUND($D46*INTRO!$E$49,0)) -> 69752 | G46: =IF(INTRO!$E$50="","",ROUND($D46*INTRO!$E$50,0)) -> 129539 | H46: 1 | I46: 1 | J46: 4 | K46: 4 | L46: =IF(INTRO!$E$38="Endemic", IF($H46>0, IF($H46=4,"Unknown", IF($H46=99,"Stopped", $D46)), 0),"Not required") -> 249113.4129 | M46: 47102.67062 | N46: =IF(INTRO!$E$42="Endemic", IF(AND($J46>1,$J46<5), IF($J46=4, "Unknown", E46+F46), 0),"Not required") -> Unknown | O46: =IF(INTRO!$E$44="Endemic", IF(AND($K46>0,$K46<5), IF($K46=4,"Unknown", IF($K46=1, $F46*0.33, IF($K46=2, $F46*0.5+$G46*0.2, SUM(F46:G46)))), 0),"Not required") -> Unknown | P46: 1 | Q46: 1 | R46: 0 | S46: 0 | X46: 36374 | Y46: Yola South | AA46: TRUE
A47: =IF(INTRO!$E$34<>0,INTRO!$E$34,"") -> Nigeria | B47: Akwa Ibom | C47: Abak | D47: 178046.9593 | E47: =IF(INTRO!$E$48="","",ROUND($D47*INTRO!$E$48,0)) -> 35609 | F47: =IF(INTRO!$E$49="","",ROUND($D47*INTRO!$E$49,0)) -> 49853 | G47: =IF(INTRO!$E$50="","",ROUND($D47*INTRO!$E$50,0)) -> 92584 | H47: 0 | I47: 0 | J47: 3 | K47: 0 | L47: =IF(INTRO!$E$38="Endemic", IF($H47>0, IF($H47=4,"Unknown", IF($H47=99,"Stopped", $D47)), 0),"Not required") -> 0 | M47: 0 | N47: =IF(INTRO!$E$42="Endemic", IF(AND($J47>1,$J47<5), IF($J47=4, "Unknown", E47+F47), 0),"Not required") -> 85462 | O47: =IF(INTRO!$E$44="Endemic", IF(AND($K47>0,$K47<5), IF($K47=4,"Unknown", IF($K47=1, $F47*0.33, IF($K47=2, $F47*0.5+$G47*0.2, SUM(F47:G47)))), 0),"Not required") -> 0 | P47: 0 | Q47: 0 | R47: 2 | S47: 0 | X47: 36375 | Y47: Abak | AA47: TRUE
A48: =IF(INTRO!$E$34<>0,INTRO!$E$34,"") -> Nigeria | B48: Akwa Ibom | C48: Eastern Obolo | D48: 77500.15856 | E48: =IF(INTRO!$E$48="","",ROUND($D48*INTRO!$E$48,0)) -> 15500 | F48: =IF(INTRO!$E$49="","",ROUND($D48*INTRO!$E$49,0)) -> 21700 | G48: =IF(INTRO!$E$50="","",ROUND($D48*INTRO!$E$50,0)) -> 40300 | H48: 1 | I48: 0 | J48: 3 | K48: 0 | L48: =IF(INTRO!$E$38="Endemic", IF($H48>0, IF($H48=4,"Unknown", IF($H48=99,"Stopped", $D48)), 0),"Not required") -> 77500.15856 | M48: 0 | N48: =IF(INTRO!$E$42="Endemic", IF(AND($J48>1,$J48<5), IF($J48=4, "Unknown", E48+F48), 0),"Not required") -> 37200 | O48: =IF(INTRO!$E$44="Endemic", IF(AND($K48>0,$K48<5), IF($K48=4,"Unknown", IF($K48=1, $F48*0.33, IF($K48=2, $F48*0.5+$G48*0.2, SUM(F48:G48)))), 0),"Not required") -> 0 | P48: 1 | Q48: 0 | R48: 2 | S48: 0 | T48: MDA1 (IVM+ALB) | X48: 36376 | Y48: Eastern Obolo | AA48: TRUE
A49: =IF(INTRO!$E$34<>0,INTRO!$E$34,"") -> Nigeria | B49: Akwa Ibom | C49: Eket | D49: 220887.5487 | E49: =IF(INTRO!$E$48="","",ROUND($D49*INTRO!$E$48,0)) -> 44178 | F49: =IF(INTRO!$E$49="","",ROUND($D49*INTRO!$E$49,0)) -> 61849 | G49: =IF(INTRO!$E$50="","",ROUND($D49*INTRO!$E$50,0)) -> 114862 | H49: 0 | I49: 0 | J49: 3 | K49: 0 | L49: =IF(INTRO!$E$38="Endemic", IF($H49>0, IF($H49=4,"Unknown", IF($H49=99,"Stopped", $D49)), 0),"Not required") -> 0 | M49: 0 | N49: =IF(INTRO!$E$42="Endemic", IF(AND($J49>1,$J49<5), IF($J49=4, "Unknown", E49+F49), 0),"Not required") -> 106027 | O49: =IF(INTRO!$E$44="Endemic", IF(AND($K49>0,$K49<5), IF($K49=4,"Unknown", IF($K49=1, $F49*0.33, IF($K49=2, $F49*0.5+$G49*0.2, SUM(F49:G49)))), 0),"Not required") -> 0 | P49: 0 | Q49: 0 | R49: 2 | S49: 0 | X49: 36377 | Y49: Eket | AA49: TRUE
A50: =IF(INTRO!$E$34<>0,INTRO!$E$34,"") -> Nigeria | B50: Akwa Ibom | C50: Esit Eket | D50: 81542.66555 | E50: =IF(INTRO!$E$48="","",ROUND($D50*INTRO!$E$48,0)) -> 16309 | F50: =IF(INTRO!$E$49="","",ROUND($D50*INTRO!$E$49,0)) -> 22832 | G50: =IF(INTRO!$E$50="","",ROUND($D50*INTRO!$E$50,0)) -> 42402 | H50: 1 | I50: 0 | J50: 3 | K50: 0 | L50: =IF(INTRO!$E$38="Endemic", IF($H50>0, IF($H50=4,"Unknown", IF($H50=99,"Stopped", $D50)), 0),"Not required") -> 81542.66555 | M50: 0 | N50: =IF(INTRO!$E$42="Endemic", IF(AND($J50>1,$J50<5), IF($J50=4, "Unknown", E50+F50), 0),"Not required") -> 39141 | O50: =IF(INTRO!$E$44="Endemic", IF(AND($K50>0,$K50<5), IF($K50=4,"Unknown", IF($K50=1, $F50*0.33, IF($K50=2, $F50*0.5+$G50*0.2, SUM(F50:G50)))), 0),"Not required") -> 0 | P50: 1 | Q50: 0 | R50: 2 | S50: 0 | X50: 36378 | Y50: Esit Eket | AA50: TRUE
A51: =IF(INTRO!$E$34<>0,INTRO!$E$34,"") -> Nigeria | B51: Akwa Ibom | C51: Essien Udim | D51: 246631.329 | E51: =IF(INTRO!$E$48="","",ROUND($D51*INTRO!$E$48,0)) -> 49326 | F51: =IF(INTRO!$E$49="","",ROUND($D51*INTRO!$E$49,0)) -> 69057 | G51: =IF(INTRO!$E$50="","",ROUND($D51*INTRO!$E$50,0)) -> 128248 | H51: 0 | I51: 0 | J51: 2 | K51: 0 | L51: =IF(INTRO!$E$38="Endemic", IF($H51>0, IF($H51=4,"Unknown", IF($H51=99,"Stopped", $D51)), 0),"Not required") -> 0 | M51: 0 | N51: =IF(INTRO!$E$42="Endemic", IF(AND($J51>1,$J51<5), IF($J51=4, "Unknown", E51+F51), 0),"Not required") -> 118383 | O51: =IF(INTRO!$E$44="Endemic", IF(AND($K51>0,$K51<5), IF($K51=4,"Unknown", IF($K51=1, $F51*0.33, IF($K51=2, $F51*0.5+$G51*0.2, SUM(F51:G51)))), 0),"Not required") -> 0 | P51: 0 | Q51: 0 | R51: 2 | S51: 0 | X51: 36379 | Y51: Essien Udim | AA51: TRUE
A52: =IF(INTRO!$E$34<>0,INTRO!$E$34,"") -> Nigeria | B52: Akwa Ibom | C52: Etim Ekpo | D52: 134943.9525 | E52: =IF(INTRO!$E$48="","",ROUND($D52*INTRO!$E$48,0)) -> 26989 | F52: =IF(INTRO!$E$49="","",ROUND($D52*INTRO!$E$49,0)) -> 37784 | G52: =IF(INTRO!$E$50="","",ROUND($D52*INTRO!$E$50,0)) -> 70171 | H52: 1 | I52: 0 | J52: 2 | K52: 0 | L52: =IF(INTRO!$E$38="Endemic", IF($H52>0, IF($H52=4,"Unknown", IF($H52=99,"Stopped", $D52)), 0),"Not required") -> 134943.9525 | M52: 0 | N52: =IF(INTRO!$E$42="Endemic", IF(AND($J52>1,$J52<5), IF($J52=4, "Unknown", E52+F52), 0),"Not required") -> 64773 | O52: =IF(INTRO!$E$44="Endemic", IF(AND($K52>0,$K52<5), IF($K52=4,"Unknown", IF($K52=1, $F52*0.33, IF($K52=2, $F52*0.5+$G52*0.2, SUM(F52:G52)))), 0),"Not required") -> 0 | P52: 1 | Q52: 0 | R52: 1 | S52: 0 | T52: MDA1 (IVM+ALB) | X52: 36380 | Y52: Etim Ekpo | AA52: TRUE
A53: =IF(INTRO!$E$34<>0,INTRO!$E$34,"") -> Nigeria | B53: Akwa Ibom | C53: Etinan | D53: 216697.832 | E53: =IF(INTRO!$E$48="","",ROUND($D53*INTRO!$E$48,0)) -> 43340 | F53: =IF(INTRO!$E$49="","",ROUND($D53*INTRO!$E$49,0)) -> 60675 | G53: =IF(INTRO!$E$50="","",ROUND($D53*INTRO!$E$50,0)) -> 112683 | H53: 0 | I53: 0 | J53: 2 | K53: 0 | L53: =IF(INTRO!$E$38="Endemic", IF($H53>0, IF($H53=4,"Unknown", IF($H53=99,"Stopped", $D53)), 0),"Not required") -> 0 | M53: 0 | N53: =IF(INTRO!$E$42="Endemic", IF(AND($J53>1,$J53<5), IF($J53=4, "Unknown", E53+F53), 0),"Not required") -> 104015 | O53: =IF(INTRO!$E$44="Endemic", IF(AND($K53>0,$K53<5), IF($K53=4,"Unknown", IF($K53=1, $F53*0.33, IF($K53=2, $F53*0.5+$G53*0.2, SUM(F53:G53)))), 0),"Not required") -> 0 | P53: 0 | Q53: 0 | R53: 1 | S53: 0 | X53: 36381 | Y53: Etinan | AA53: TRUE
A54: =IF(INTRO!$E$34<>0,INTRO!$E$34,"") -> Nigeria | B54: Akwa Ibom | C54: Ibeno | D54: 96492.77294 | E54: =IF(INTRO!$E$48="","",ROUND($D54*INTRO!$E$48,0)) -> 19299 | F54: =IF(INTRO!$E$49="","",ROUND($D54*INTRO!$E$49,0)) -> 27018 | G54: =IF(INTRO!$E$50="","",ROUND($D54*INTRO!$E$50,0)) -> 50176 | H54: 1 | I54: 0 | J54: 3 | K54: 0 | L54: =IF(INTRO!$E$38="Endemic", IF($H54>0, IF($H54=4,"Unknown", IF($H54=99,"Stopped", $D54)), 0),"Not required") -> 96492.77294 | M54: 0 | N54: =IF(INTRO!$E$42="Endemic", IF(AND($J54>1,$J54<5), IF($J54=4, "Unknown", E54+F54), 0),"Not required") -> 46317 | O54: =IF(INTRO!$E$44="Endemic", IF(AND($K54>0,$K54<5), IF($K54=4,"Unknown", IF($K54=1, $F54*0.33, IF($K54=2, $F54*0.5+$G54*0.2, SUM(F54:G54)))), 0),"Not required") -> 0 | P54: 1 | Q54: 0 | R54: 2 | S54: 0 | X54: 36382 | Y54: Ibeno | AA54: TRUE
A55: =IF(INTRO!$E$34<>0,INTRO!$E$34,"") -> Nigeria | B55: Akwa Ibom | C55: Ibesikpo Asutan | D55: 175500.8711 | E55: =IF(INTRO!$E$48="","",ROUND($D55*INTRO!$E$48,0)) -> 35100 | F55: =IF(INTRO!$E$49="","",ROUND($D55*INTRO!$E$49,0)) -> 49140 | G55: =IF(INTRO!$E$50="","",ROUND($D55*INTRO!$E$50,0)) -> 91260 | H55: 0 | I55: 0 | J55: 3 | K55: 0 | L55: =IF(INTRO!$E$38="Endemic", IF($H55>0, IF($H55=4,"Unknown", IF($H55=99,"Stopped", $D55)), 0),"Not required") -> 0 | M55: 0 | N55: =IF(INTRO!$E$42="Endemic", IF(AND($J55>1,$J55<5), IF($J55=4, "Unknown", E55+F55), 0),"Not required") -> 84240 | O55: =IF(INTRO!$E$44="Endemic", IF(AND($K55>0,$K55<5), IF($K55=4,"Unknown", IF($K55=1, $F55*0.33, IF($K55=2, $F55*0.5+$G55*0.2, SUM(F55:G55)))), 0),"Not required") -> 0 | P55: 0 | Q55: 0 | R55: 2 | S55: 0 | X55: 36383 | Y55: Ibesikpo Asutan | AA55: TRUE
A56: =IF(INTRO!$E$34<>0,INTRO!$E$34,"") -> Nigeria | B56: Akwa Ibom | C56: Ibiono Ibom | D56: 242755.233 | E56: =IF(INTRO!$E$48="","",ROUND($D56*INTRO!$E$48,0)) -> 48551 | F56: =IF(INTRO!$E$49="","",ROUND($D56*INTRO!$E$49,0)) -> 67971 | G56: =IF(INTRO!$E$50="","",ROUND($D56*INTRO!$E$50,0)) -> 126233 | H56: 0 | I56: 1 | J56: 3 | K56: 0 | L56: =IF(INTRO!$E$38="Endemic", IF($H56>0, IF($H56=4,"Unknown", IF($H56=99,"Stopped", $D56)), 0),"Not required") -> 0 | M56: 121149.67 | N56: =IF(INTRO!$E$42="Endemic", IF(AND($J56>1,$J56<5), IF($J56=4, "Unknown", E56+F56), 0),"Not required") -> 116522 | O56: =IF(INTRO!$E$44="Endemic", IF(AND($K56>0,$K56<5), IF($K56=4,"Unknown", IF($K56=1, $F56*0.33, IF($K56=2, $F56*0.5+$G56*0.2, SUM(F56:G56)))), 0),"Not required") -> 0 | P56: 0 | Q56: 1 | R56: 2 | S56: 0 | T56: MDA3 (IVM) | X56: 36384 | Y56: Ibiono Ibom | AA56: TRUE
A57: =IF(INTRO!$E$34<>0,INTRO!$E$34,"") -> Nigeria | B57: Akwa Ibom | C57: Ika | D57: 93368.08657 | E57: =IF(INTRO!$E$48="","",ROUND($D57*INTRO!$E$48,0)) -> 18674 | F57: =IF(INTRO!$E$49="","",ROUND($D57*INTRO!$E$49,0)) -> 26143 | G57: =IF(INTRO!$E$50="","",ROUND($D57*INTRO!$E$50,0)) -> 48551 | H57: 0 | I57: 1 | J57: 2 | K57: 0 | L57: =IF(INTRO!$E$38="Endemic", IF($H57>0, IF($H57=4,"Unknown", IF($H57=99,"Stopped", $D57)), 0),"Not required") -> 0 | M57: 93368.08657 | N57: =IF(INTRO!$E$42="Endemic", IF(AND($J57>1,$J57<5), IF($J57=4, "Unknown", E57+F57), 0),"Not required") -> 44817 | O57: =IF(INTRO!$E$44="Endemic", IF(AND($K57>0,$K57<5), IF($K57=4,"Unknown", IF($K57=1, $F57*0.33, IF($K57=2, $F57*0.5+$G57*0.2, SUM(F57:G57)))), 0),"Not required") -> 0 | P57: 0 | Q57: 1 | R57: 1 | S57: 0 | T57: MDA3 (IVM) | X57: 36385 | Y57: Ika | AA57: TRUE
A58: =IF(INTRO!$E$34<>0,INTRO!$E$34,"") -> Nigeria | B58: Akwa Ibom | C58: Ikono | D58: 168848.2717 | E58: =IF(INTRO!$E$48="","",ROUND($D58*INTRO!$E$48,0)) -> 33770 | F58: =IF(INTRO!$E$49="","",ROUND($D58*INTRO!$E$49,0)) -> 47278 | G58: =IF(INTRO!$E$50="","",ROUND($D58*INTRO!$E$50,0)) -> 87801 | H58: 0 | I58: 1 | J58: 2 | K58: 0 | L58: =IF(INTRO!$E$38="Endemic", IF($H58>0, IF($H58=4,"Unknown", IF($H58=99,"Stopped", $D58)), 0),"Not required") -> 0 | M58: 168848.2717 | N58: =IF(INTRO!$E$42="Endemic", IF(AND($J58>1,$J58<5), IF($J58=4, "Unknown", E58+F58), 0),"Not required") -> 81048 | O58: =IF(INTRO!$E$44="Endemic", IF(AND($K58>0,$K58<5), IF($K58=4,"Unknown", IF($K58=1, $F58*0.33, IF($K58=2, $F58*0.5+$G58*0.2, SUM(F58:G58)))), 0),"Not required") -> 0 | P58: 0 | Q58: 0 | R58: 1 | S58: 0 | X58: 36386 | Y58: Ikono | AA58: TRUE
A59: =IF(INTRO!$E$34<>0,INTRO!$E$34,"") -> Nigeria | B59: Akwa Ibom | C59: Ikot Abasi | D59: 169000.6018 | E59: =IF(INTRO!$E$48="","",ROUND($D59*INTRO!$E$48,0)) -> 33800 | F59: =IF(INTRO!$E$49="","",ROUND($D59*INTRO!$E$49,0)) -> 47320 | G59: =IF(INTRO!$E$50="","",ROUND($D59*INTRO!$E$50,0)) -> 87880 | H59: 1 | I59: 0 | J59: 3 | K59: 1 | L59: =IF(INTRO!$E$38="Endemic", IF($H59>0, IF($H59=4,"Unknown", IF($H59=99,"Stopped", $D59)), 0),"Not required") -> 169000.6018 | M59: 0 | N59: =IF(INTRO!$E$42="Endemic", IF(AND($J59>1,$J59<5), IF($J59=4, "Unknown", E59+F59), 0),"Not required") -> 81120 | O59: =IF(INTRO!$E$44="Endemic", IF(AND($K59>0,$K59<5), IF($K59=4,"Unknown", IF($K59=1, $F59*0.33, IF($K59=2, $F59*0.5+$G59*0.2, SUM(F59:G59)))), 0),"Not required") -> 15615.6 | P59: 1 | Q59: 0 | R59: 2 | S59: 1 | T59: MDA1 (IVM+ALB) | U59: T2 (PZQ) | X59: 36387 | Y59: Ikot Abasi | AA59: TRUE
A60: =IF(INTRO!$E$34<>0,INTRO!$E$34,"") -> Nigeria | B60: Akwa Ibom | C60: Ikot Ekpene | D60: 183150.6563 | E60: =IF(INTRO!$E$48="","",ROUND($D60*INTRO!$E$48,0)) -> 36630 | F60: =IF(INTRO!$E$49="","",ROUND($D60*INTRO!$E$49,0)) -> 51282 | G60: =IF(INTRO!$E$50="","",ROUND($D60*INTRO!$E$50,0)) -> 95238 | H60: 1 | I60: 0 | J60: 2 | K60: 0 | L60: =IF(INTRO!$E$38="Endemic", IF($H60>0, IF($H60=4,"Unknown", IF($H60=99,"Stopped", $D60)), 0),"Not required") -> 183150.6563 | M60: 0 | N60: =IF(INTRO!$E$42="Endemic", IF(AND($J60>1,$J60<5), IF($J60=4, "Unknown", E60+F60), 0),"Not required") -> 87912 | O60: =IF(INTRO!$E$44="Endemic", IF(AND($K60>0,$K60<5), IF($K60=4,"Unknown", IF($K60=1, $F60*0.33, IF($K60=2, $F60*0.5+$G60*0.2, SUM(F60:G60)))), 0),"Not required") -> 0 | P60: 1 | Q60: 0 | R60: 1 | S60: 0 | X60: 36388 | Y60: Ikot Ekpene | AA60: TRUE
A61: =IF(INTRO!$E$34<>0,INTRO!$E$34,"") -> Nigeria | B61: Akwa Ibom | C61: Ini | D61: 126979.2664 | E61: =IF(INTRO!$E$48="","",ROUND($D61*INTRO!$E$48,0)) -> 25396 | F61: =IF(INTRO!$E$49="","",ROUND($D61*INTRO!$E$49,0)) -> 35554 | G61: =IF(INTRO!$E$50="","",ROUND($D61*INTRO!$E$50,0)) -> 66029 | H61: 0 | I61: 1 | J61: 3 | K61: 0 | L61: =IF(INTRO!$E$38="Endemic", IF($H61>0, IF($H61=4,"Unknown", IF($H61=99,"Stopped", $D61)), 0),"Not required") -> 0 | M61: 126979.2664 | N61: =IF(INTRO!$E$42="Endemic", IF(AND($J61>1,$J61<5), IF($J61=4, "Unknown", E61+F61), 0),"Not required") -> 60950 | O61: =IF(INTRO!$E$44="Endemic", IF(AND($K61>0,$K61<5), IF($K61=4,"Unknown", IF($K61=1, $F61*0.33, IF($K61=2, $F61*0.5+$G61*0.2, SUM(F61:G61)))), 0),"Not required") -> 0 | P61: 0 | Q61: 1 | R61: 2 | S61: 0 | T61: MDA3 (IVM) | X61: 36389 | Y61: Ini | AA61: TRUE
A62: =IF(INTRO!$E$34<>0,INTRO!$E$34,"") -> Nigeria | B62: Akwa Ibom | C62: Itu | D62: 162612.9799 | E62: =IF(INTRO!$E$48="","",ROUND($D62*INTRO!$E$48,0)) -> 32523 | F62: =IF(INTRO!$E$49="","",ROUND($D62*INTRO!$E$49,0)) -> 45532 | G62: =IF(INTRO!$E$50="","",ROUND($D62*INTRO!$E$50,0)) -> 84559 | H62: 0 | I62: 0 | J62: 3 | K62: 0 | L62: =IF(INTRO!$E$38="Endemic", IF($H62>0, IF($H62=4,"Unknown", IF($H62=99,"Stopped", $D62)), 0),"Not required") -> 0 | M62: 0 | N62: =IF(INTRO!$E$42="Endemic", IF(AND($J62>1,$J62<5), IF($J62=4, "Unknown", E62+F62), 0),"Not required") -> 78055 | O62: =IF(INTRO!$E$44="Endemic", IF(AND($K62>0,$K62<5), IF($K62=4,"Unknown", IF($K62=1, $F62*0.33, IF($K62=2, $F62*0.5+$G62*0.2, SUM(F62:G62)))), 0),"Not required") -> 0 | P62: 0 | Q62: 0 | R62: 2 | S62: 0 | X62: 36390 | Y62: Itu | AA62: TRUE
A63: =IF(INTRO!$E$34<>0,INTRO!$E$34,"") -> Nigeria | B63: Akwa Ibom | C63: Mbo | D63: 133144.1536 | E63: =IF(INTRO!$E$48="","",ROUND($D63*INTRO!$E$48,0)) -> 26629 | F63: =IF(INTRO!$E$49="","",ROUND($D63*INTRO!$E$49,0)) -> 37280 | G63: =IF(INTRO!$E$50="","",ROUND($D63*INTRO!$E$50,0)) -> 69235 | H63: 0 | I63: 0 | J63: 3 | K63: 1 | L63: =IF(INTRO!$E$38="Endemic", IF($H63>0, IF($H63=4,"Unknown", IF($H63=99,"Stopped", $D63)), 0),"Not required") -> 0 | M63: 0 | N63: =IF(INTRO!$E$42="Endemic", IF(AND($J63>1,$J63<5), IF($J63=4, "Unknown", E63+F63), 0),"Not required") -> 63909 | O63: =IF(INTRO!$E$44="Endemic", IF(AND($K63>0,$K63<5), IF($K63=4,"Unknown", IF($K63=1, $F63*0.33, IF($K63=2, $F63*0.5+$G63*0.2, SUM(F63:G63)))), 0),"Not required") -> 12302.4 | P63: 0 | Q63: 0 | R63: 2 | S63: 1 | X63: 36391 | Y63: Mbo | AA63: TRUE
A64: =IF(INTRO!$E$34<>0,INTRO!$E$34,"") -> Nigeria | B64: Akwa Ibom | C64: Mkpat Enin | D64: 227901.1319 | E64: =IF(INTRO!$E$48="","",ROUND($D64*INTRO!$E$48,0)) -> 45580 | F64: =IF(INTRO!$E$49="","",ROUND($D64*INTRO!$E$49,0)) -> 63812 | G64: =IF(INTRO!$E$50="","",ROUND($D64*INTRO!$E$50,0)) -> 118509 | H64: 0 | I64: 0 | J64: 3 | K64: 1 | L64: =IF(INTRO!$E$38="Endemic", IF($H64>0, IF($H64=4,"Unknown", IF($H64=99,"Stopped", $D64)), 0),"Not required") -> 0 | M64: 0 | N64: =IF(INTRO!$E$42="Endemic", IF(AND($J64>1,$J64<5), IF($J64=4, "Unknown", E64+F64), 0),"Not required") -> 109392 | O64: =IF(INTRO!$E$44="Endemic", IF(AND($K64>0,$K64<5), IF($K64=4,"Unknown", IF($K64=1, $F64*0.33, IF($K64=2, $F64*0.5+$G64*0.2, SUM(F64:G64)))), 0),"Not required") -> 21057.96 | P64: 0 | Q64: 0 | R64: 2 | S64: 1 | X64: 36392 | Y64: Mkpat Enin | AA64: TRUE
A65: =IF(INTRO!$E$34<>0,INTRO!$E$34,"") -> Nigeria | B65: Akwa Ibom | C65: Nsit Atai | D65: 95487.90657 | E65: =IF(INTRO!$E$48="","",ROUND($D65*INTRO!$E$48,0)) -> 19098 | F65: =IF(INTRO!$E$49="","",ROUND($D65*INTRO!$E$49,0)) -> 26737 | G65: =IF(INTRO!$E$50="","",ROUND($D65*INTRO!$E$50,0)) -> 49654 | H65: 0 | I65: 0 | J65: 3 | K65: 0 | L65: =IF(INTRO!$E$38="Endemic", IF($H65>0, IF($H65=4,"Unknown", IF($H65=99,"Stopped", $D65)), 0),"Not required") -> 0 | M65: 0 | N65: =IF(INTRO!$E$42="Endemic", IF(AND($J65>1,$J65<5), IF($J65=4, "Unknown", E65+F65), 0),"Not required") -> 45835 | O65: =IF(INTRO!$E$44="Endemic", IF(AND($K65>0,$K65<5), IF($K65=4,"Unknown", IF($K65=1, $F65*0.33, IF($K65=2, $F65*0.5+$G65*0.2, SUM(F65:G65)))), 0),"Not required") -> 0 | P65: 0 | Q65: 0 | R65: 2 | S65: 0 | X65: 36393 | Y65: Nsit Atai | AA65: TRUE
A66: =IF(INTRO!$E$34<>0,INTRO!$E$34,"") -> Nigeria | B66: Akwa Ibom | C66: Nsit Ibom | D66: 139031.2624 | E66: =IF(INTRO!$E$48="","",ROUND($D66*INTRO!$E$48,0)) -> 27806 | F66: =IF(INTRO!$E$49="","",ROUND($D66*INTRO!$E$49,0)) -> 38929 | G66: =IF(INTRO!$E$50="","",ROUND($D66*INTRO!$E$50,0)) -> 72296 | H66: 0 | I66: 0 | J66: 2 | K66: 0 | L66: =IF(INTRO!$E$38="Endemic", IF($H66>0, IF($H66=4,"Unknown", IF($H66=99,"Stopped", $D66)), 0),"Not required") -> 0 | M66: 0 | N66: =IF(INTRO!$E$42="Endemic", IF(AND($J66>1,$J66<5), IF($J66=4, "Unknown", E66+F66), 0),"Not required") -> 66735 | O66: =IF(INTRO!$E$44="Endemic", IF(AND($K66>0,$K66<5), IF($K66=4,"Unknown", IF($K66=1, $F66*0.33, IF($K66=2, $F66*0.5+$G66*0.2, SUM(F66:G66)))), 0),"Not required") -> 0 | P66: 0 | Q66: 0 | R66: 1 | S66: 0 | X66: 36394 | Y66: Nsit Ibom | AA66: TRUE
A67: =IF(INTRO!$E$34<>0,INTRO!$E$34,"") -> Nigeria | B67: Akwa Ibom | C67: Nsit Ubiom | D67: 164146.5212 | E67: =IF(INTRO!$E$48="","",ROUND($D67*INTRO!$E$48,0)) -> 32829 | F67: =IF(INTRO!$E$49="","",ROUND($D67*INTRO!$E$49,0)) -> 45961 | G67: =IF(INTRO!$E$50="","",ROUND($D67*INTRO!$E$50,0)) -> 85356 | H67: 0 | I67: 0 | J67: 3 | K67: 0 | L67: =IF(INTRO!$E$38="Endemic", IF($H67>0, IF($H67=4,"Unknown", IF($H67=99,"Stopped", $D67)), 0),"Not required") -> 0 | M67: 0 | N67: =IF(INTRO!$E$42="Endemic", IF(AND($J67>1,$J67<5), IF($J67=4, "Unknown", E67+F67), 0),"Not required") -> 78790 | O67: =IF(INTRO!$E$44="Endemic", IF(AND($K67>0,$K67<5), IF($K67=4,"Unknown", IF($K67=1, $F67*0.33, IF($K67=2, $F67*0.5+$G67*0.2, SUM(F67:G67)))), 0),"Not required") -> 0 | P67: 0 | Q67: 0 | R67: 2 | S67: 0 | X67: 36395 | Y67: Nsit Ubiom | AA67: TRUE
A68: =IF(INTRO!$E$34<>0,INTRO!$E$34,"") -> Nigeria | B68: Akwa Ibom | C68: Obot Akara | D68: 189812.2163 | E68: =IF(INTRO!$E$48="","",ROUND($D68*INTRO!$E$48,0)) -> 37962 | F68: =IF(INTRO!$E$49="","",ROUND($D68*INTRO!$E$49,0)) -> 53147 | G68: =IF(INTRO!$E$50="","",ROUND($D68*INTRO!$E$50,0)) -> 98702 | H68: 0 | I68: 0 | J68: 3 | K68: 0 | L68: =IF(INTRO!$E$38="Endemic", IF($H68>0, IF($H68=4,"Unknown", IF($H68=99,"Stopped", $D68)), 0),"Not required") -> 0 | M68: 0 | N68: =IF(INTRO!$E$42="Endemic", IF(AND($J68>1,$J68<5), IF($J68=4, "Unknown", E68+F68), 0),"Not required") -> 91109 | O68: =IF(INTRO!$E$44="Endemic", IF(AND($K68>0,$K68<5), IF($K68=4,"Unknown", IF($K68=1, $F68*0.33, IF($K68=2, $F68*0.5+$G68*0.2, SUM(F68:G68)))), 0),"Not required") -> 0 | P68: 0 | Q68: 0 | R68: 2 | S68: 0 | X68: 36396 | Y68: Obot Akara | AA68: TRUE
A69: =IF(INTRO!$E$34<>0,INTRO!$E$34,"") -> Nigeria | B69: Akwa Ibom | C69: Okobo | D69: 133201.7574 | E69: =IF(INTRO!$E$48="","",ROUND($D69*INTRO!$E$48,0)) -> 26640 | F69: =IF(INTRO!$E$49="","",ROUND($D69*INTRO!$E$49,0)) -> 37296 | G69: =IF(INTRO!$E$50="","",ROUND($D69*INTRO!$E$50,0)) -> 69265 | H69: 1 | I69: 0 | J69: 3 | K69: 0 | L69: =IF(INTRO!$E$38="Endemic", IF($H69>0, IF($H69=4,"Unknown", IF($H69=99,"Stopped", $D69)), 0),"Not required") -> 133201.7574 | M69: 0 | N69: =IF(INTRO!$E$42="Endemic", IF(AND($J69>1,$J69<5), IF($J69=4, "Unknown", E69+F69), 0),"Not required") -> 63936 | O69: =IF(INTRO!$E$44="Endemic", IF(AND($K69>0,$K69<5), IF($K69=4,"Unknown", IF($K69=1, $F69*0.33, IF($K69=2, $F69*0.5+$G69*0.2, SUM(F69:G69)))), 0),"Not required") -> 0 | P69: 1 | Q69: 0 | R69: 2 | S69: 0 | X69: 36397 | Y69: Okobo | AA69: TRUE
A70: =IF(INTRO!$E$34<>0,INTRO!$E$34,"") -> Nigeria | B70: Akwa Ibom | C70: Onna | D70: 157927.8705 | E70: =IF(INTRO!$E$48="","",ROUND($D70*INTRO!$E$48,0)) -> 31586 | F70: =IF(INTRO!$E$49="","",ROUND($D70*INTRO!$E$49,0)) -> 44220 | G70: =IF(INTRO!$E$50="","",ROUND($D70*INTRO!$E$50,0)) -> 82122 | H70: 1 | I70: 0 | J70: 3 | K70: 0 | L70: =IF(INTRO!$E$38="Endemic", IF($H70>0, IF($H70=4,"Unknown", IF($H70=99,"Stopped", $D70)), 0),"Not required") -> 157927.8705 | M70: 0 | N70: =IF(INTRO!$E$42="Endemic", IF(AND($J70>1,$J70<5), IF($J70=4, "Unknown", E70+F70), 0),"Not required") -> 75806 | O70: =IF(INTRO!$E$44="Endemic", IF(AND($K70>0,$K70<5), IF($K70=4,"Unknown", IF($K70=1, $F70*0.33, IF($K70=2, $F70*0.5+$G70*0.2, SUM(F70:G70)))), 0),"Not required") -> 0 | P70: 1 | Q70: 0 | R70: 2 | S70: 0 | X70: 36398 | Y70: Onna | AA70: TRUE
A71: =IF(INTRO!$E$34<>0,INTRO!$E$34,"") -> Nigeria | B71: Akwa Ibom | C71: Oron | D71: 111957.4743 | E71: =IF(INTRO!$E$48="","",ROUND($D71*INTRO!$E$48,0)) -> 22391 | F71: =IF(INTRO!$E$49="","",ROUND($D71*INTRO!$E$49,0)) -> 31348 | G71: =IF(INTRO!$E$50="","",ROUND($D71*INTRO!$E$50,0)) -> 58218 | H71: 1 | I71: 0 | J71: 3 | K71: 0 | L71: =IF(INTRO!$E$38="Endemic", IF($H71>0, IF($H71=4,"Unknown", IF($H71=99,"Stopped", $D71)), 0),"Not required") -> 111957.4743 | M71: 0 | N71: =IF(INTRO!$E$42="Endemic", IF(AND($J71>1,$J71<5), IF($J71=4, "Unknown", E71+F71), 0),"Not required") -> 53739 | O71: =IF(INTRO!$E$44="Endemic", IF(AND($K71>0,$K71<5), IF($K71=4,"Unknown", IF($K71=1, $F71*0.33, IF($K71=2, $F71*0.5+$G71*0.2, SUM(F71:G71)))), 0),"Not required") -> 0 | P71: 1 | Q71: 0 | R71: 2 | S71: 0 | X71: 36399 | Y71: Oron | AA71: TRUE
A72: =IF(INTRO!$E$34<>0,INTRO!$E$34,"") -> Nigeria | B72: Akwa Ibom | C72: Oruk Anam | D72: 221011.7169 | E72: =IF(INTRO!$E$48="","",ROUND($D72*INTRO!$E$48,0)) -> 44202 | F72: =IF(INTRO!$E$49="","",ROUND($D72*INTRO!$E$49,0)) -> 61883 | G72: =IF(INTRO!$E$50="","",ROUND($D72*INTRO!$E$50,0)) -> 114926 | H72: 0 | I72: 0 | J72: 3 | K72: 0 | L72: =IF(INTRO!$E$38="Endemic", IF($H72>0, IF($H72=4,"Unknown", IF($H72=99,"Stopped", $D72)), 0),"Not required") -> 0 | M72: 0 | N72: =IF(INTRO!$E$42="Endemic", IF(AND($J72>1,$J72<5), IF($J72=4, "Unknown", E72+F72), 0),"Not required") -> 106085 | O72: =IF(INTRO!$E$44="Endemic", IF(AND($K72>0,$K72<5), IF($K72=4,"Unknown", IF($K72=1, $F72*0.33, IF($K72=2, $F72*0.5+$G72*0.2, SUM(F72:G72)))), 0),"Not required") -> 0 | P72: 0 | Q72: 0 | R72: 2 | S72: 0 | X72: 36400 | Y72: Oruk Anam | AA72: TRUE
A73: =IF(INTRO!$E$34<>0,INTRO!$E$34,"") -> Nigeria | B73: Akwa Ibom | C73: Udung Uko | D73: 68200.34435 | E73: =IF(INTRO!$E$48="","",ROUND($D73*INTRO!$E$48,0)) -> 13640 | F73: =IF(INTRO!$E$49="","",ROUND($D73*INTRO!$E$49,0)) -> 19096 | G73: =IF(INTRO!$E$50="","",ROUND($D73*INTRO!$E$50,0)) -> 35464 | H73: 1 | I73: 0 | J73: 3 | K73: 0 | L73: =IF(INTRO!$E$38="Endemic", IF($H73>0, IF($H73=4,"Unknown", IF($H73=99,"Stopped", $D73)), 0),"Not required") -> 68200.34435 | M73: 0 | N73: =IF(INTRO!$E$42="Endemic", IF(AND($J73>1,$J73<5), IF($J73=4, "Unknown", E73+F73), 0),"Not required") -> 32736 | O73: =IF(INTRO!$E$44="Endemic", IF(AND($K73>0,$K73<5), IF($K73=4,"Unknown", IF($K73=1, $F73*0.33, IF($K73=2, $F73*0.5+$G73*0.2, SUM(F73:G73)))), 0),"Not required") -> 0 | P73: 1 | Q73: 0 | R73: 2 | S73: 0 | X73: 36401 | Y73: Udung Uko | AA73: TRUE
A74: =IF(INTRO!$E$34<>0,INTRO!$E$34,"") -> Nigeria | B74: Akwa Ibom | C74: Ukanafun | D74: 162612.9799 | E74: =IF(INTRO!$E$48="","",ROUND($D74*INTRO!$E$48,0)) -> 32523 | F74: =IF(INTRO!$E$49="","",ROUND($D74*INTRO!$E$49,0)) -> 45532 | G74: =IF(INTRO!$E$50="","",ROUND($D74*INTRO!$E$50,0)) -> 84559 | H74: 0 | I74: 0 | J74: 2 | K74: 1 | L74: =IF(INTRO!$E$38="Endemic", IF($H74>0, IF($H74=4,"Unknown", IF($H74=99,"Stopped", $D74)), 0),"Not required") -> 0 | M74: 0 | N74: =IF(INTRO!$E$42="Endemic", IF(AND($J74>1,$J74<5), IF($J74=4, "Unknown", E74+F74), 0),"Not required") -> 78055 | O74: =IF(INTRO!$E$44="Endemic", IF(AND($K74>0,$K74<5), IF($K74=4,"Unknown", IF($K74=1, $F74*0.33, IF($K74=2, $F74*0.5+$G74*0.2, SUM(F74:G74)))), 0),"Not required") -> 15025.56 | P74: 0 | Q74: 0 | R74: 1 | S74: 1 | U74: T1 (PZQ+MBD) | X74: 36402 | Y74: Ukanafun | AA74: =Y74=C74 -> TRUE
A75: =IF(INTRO!$E$34<>0,INTRO!$E$34,"") -> Nigeria | B75: Akwa Ibom | C75: Uruan | D75: 151434.0016 | E75: =IF(INTRO!$E$48="","",ROUND($D75*INTRO!$E$48,0)) -> 30287 | F75: =IF(INTRO!$E$49="","",ROUND($D75*INTRO!$E$49,0)) -> 42402 | G75: =IF(INTRO!$E$50="","",ROUND($D75*INTRO!$E$50,0)) -> 78746 | H75: 1 | I75: 0 | J75: 3 | K75: 0 | L75: =IF(INTRO!$E$38="Endemic", IF($H75>0, IF($H75=4,"Unknown", IF($H75=99,"Stopped", $D75)), 0),"Not required") -> 151434.0016 | M75: 0 | N75: =IF(INTRO!$E$42="Endemic", IF(AND($J75>1,$J75<5), IF($J75=4, "Unknown", E75+F75), 0),"Not required") -> 72689 | O75: =IF(INTRO!$E$44="Endemic", IF(AND($K75>0,$K75<5), IF($K75=4,"Unknown", IF($K75=1, $F75*0.33, IF($K75=2, $F75*0.5+$G75*0.2, SUM(F75:G75)))), 0),"Not required") -> 0 | P75: 1 | Q75: 0 | R75: 2 | S75: 0 | T75: MDA1 (IVM+ALB) | X75: 36403 | Y75: Uruan | AA75: TRUE
A76: =IF(INTRO!$E$34<>0,INTRO!$E$34,"") -> Nigeria | B76: Akwa Ibom | C76: Urue-Offong/Oruko | D76: 91089.53608 | E76: =IF(INTRO!$E$48="","",ROUND($D76*INTRO!$E$48,0)) -> 18218 | F76: =IF(INTRO!$E$49="","",ROUND($D76*INTRO!$E$49,0)) -> 25505 | G76: =IF(INTRO!$E$50="","",ROUND($D76*INTRO!$E$50,0)) -> 47367 | H76: 0 | I76: 0 | J76: 3 | K76: 1 | L76: =IF(INTRO!$E$38="Endemic", IF($H76>0, IF($H76=4,"Unknown", IF($H76=99,"Stopped", $D76)), 0),"Not required") -> 0 | M76: 0 | N76: =IF(INTRO!$E$42="Endemic", IF(AND($J76>1,$J76<5), IF($J76=4, "Unknown", E76+F76), 0),"Not required") -> 43723 | O76: =IF(INTRO!$E$44="Endemic", IF(AND($K76>0,$K76<5), IF($K76=4,"Unknown", IF($K76=1, $F76*0.33, IF($K76=2, $F76*0.5+$G76*0.2, SUM(F76:G76)))), 0),"Not required") -> 8416.65 | P76: 0 | Q76: 0 | R76: 2 | S76: 1 | X76: 36404 | Y76: Urue-Offong/Oruko | AA76: TRUE
A77: =IF(INTRO!$E$34<>0,INTRO!$E$34,"") -> Nigeria | B77: Akwa Ibom | C77: Uyo | D77: 396279.6126 | E77: =IF(INTRO!$E$48="","",ROUND($D77*INTRO!$E$48,0)) -> 79256 | F77: =IF(INTRO!$E$49="","",ROUND($D77*INTRO!$E$49,0)) -> 110958 | G77: =IF(INTRO!$E$50="","",ROUND($D77*INTRO!$E$50,0)) -> 206065 | H77: 0 | I77: 0 | J77: 2 | K77: 0 | L77: =IF(INTRO!$E$38="Endemic", IF($H77>0, IF($H77=4,"Unknown", IF($H77=99,"Stopped", $D77)), 0),"Not required") -> 0 | M77: 0 | N77: =IF(INTRO!$E$42="Endemic", IF(AND($J77>1,$J77<5), IF($J77=4, "Unknown", E77+F77), 0),"Not required") -> 190214 | O77: =IF(INTRO!$E$44="Endemic", IF(AND($K77>0,$K77<5), IF($K77=4,"Unknown", IF($K77=1, $F77*0.33, IF($K77=2, $F77*0.5+$G77*0.2, SUM(F77:G77)))), 0),"Not required") -> 0 | P77: 0 | Q77: 0 | R77: 1 | S77: 0 | X77: 36405 | Y77: Uyo | AA77: TRUE
A78: =IF(INTRO!$E$34<>0,INTRO!$E$34,"") -> Nigeria | B78: Anambra | C78: Aguata | D78: 473851.4559 | E78: =IF(INTRO!$E$48="","",ROUND($D78*INTRO!$E$48,0)) -> 94770 | F78: =IF(INTRO!$E$49="","",ROUND($D78*INTRO!$E$49,0)) -> 132678 | G78: =IF(INTRO!$E$50="","",ROUND($D78*INTRO!$E$50,0)) -> 246403 | H78: 1 | I78: 1 | J78: 2 | K78: 0 | L78: =IF(INTRO!$E$38="Endemic", IF($H78>0, IF($H78=4,"Unknown", IF($H78=99,"Stopped", $D78)), 0),"Not required") -> 473851.4559 | M78: 65763.87187 | N78: =IF(INTRO!$E$42="Endemic", IF(AND($J78>1,$J78<5), IF($J78=4, "Unknown", E78+F78), 0),"Not required") -> 227448 | O78: =IF(INTRO!$E$44="Endemic", IF(AND($K78>0,$K78<5), IF($K78=4,"Unknown", IF($K78=1, $F78*0.33, IF($K78=2, $F78*0.5+$G78*0.2, SUM(F78:G78)))), 0),"Not required") -> 0 | P78: 1 | Q78: 1 | R78: 1 | S78: 0 | T78: MDA1 (IVM+ALB) | X78: 36406 | Y78: Aguata | AA78: TRUE
A79: =IF(INTRO!$E$34<>0,INTRO!$E$34,"") -> Nigeria | B79: Anambra | C79: Anambra East | D79: 196276.6432 | E79: =IF(INTRO!$E$48="","",ROUND($D79*INTRO!$E$48,0)) -> 39255 | F79: =IF(INTRO!$E$49="","",ROUND($D79*INTRO!$E$49,0)) -> 54957 | G79: =IF(INTRO!$E$50="","",ROUND($D79*INTRO!$E$50,0)) -> 102064 | H79: 1 | I79: 0 | J79: 1 | K79: 0 | L79: =IF(INTRO!$E$38="Endemic", IF($H79>0, IF($H79=4,"Unknown", IF($H79=99,"Stopped", $D79)), 0),"Not required") -> 196276.6432 | M79: 0 | N79: =IF(INTRO!$E$42="Endemic", IF(AND($J79>1,$J79<5), IF($J79=4, "Unknown", E79+F79), 0),"Not required") -> 0 | O79: =IF(INTRO!$E$44="Endemic", IF(AND($K79>0,$K79<5), IF($K79=4,"Unknown", IF($K79=1, $F79*0.33, IF($K79=2, $F79*0.5+$G79*0.2, SUM(F79:G79)))), 0),"Not required") -> 0 | P79: 1 | Q79: 0 | R79: 0 | S79: 0 | X79: 36407 | Y79: Anambra East | AA79: TRUE
A80: =IF(INTRO!$E$34<>0,INTRO!$E$34,"") -> Nigeria | B80: Anambra | C80: Anambra West | D80: 214306.6341 | E80: =IF(INTRO!$E$48="","",ROUND($D80*INTRO!$E$48,0)) -> 42861 | F80: =IF(INTRO!$E$49="","",ROUND($D80*INTRO!$E$49,0)) -> 60006 | G80: =IF(INTRO!$E$50="","",ROUND($D80*INTRO!$E$50,0)) -> 111439 | H80: 1 | I80: 0 | J80: 1 | K80: 1 | L80: =IF(INTRO!$E$38="Endemic", IF($H80>0, IF($H80=4,"Unknown", IF($H80=99,"Stopped", $D80)), 0),"Not required") -> 214306.6341 | M80: 0 | N80: =IF(INTRO!$E$42="Endemic", IF(AND($J80>1,$J80<5), IF($J80=4, "Unknown", E80+F80), 0),"Not required") -> 0 | O80: =IF(INTRO!$E$44="Endemic", IF(AND($K80>0,$K80<5), IF($K80=4,"Unknown", IF($K80=1, $F80*0.33, IF($K80=2, $F80*0.5+$G80*0.2, SUM(F80:G80)))), 0),"Not required") -> 19801.98 | P80: 1 | Q80: 0 | R80: 0 | S80: 0 | X80: 36408 | Y80: Anambra West | AA80: TRUE
A81: =IF(INTRO!$E$34<>0,INTRO!$E$34,"") -> Nigeria | B81: Anambra | C81: Anaocha | D81: 364826.6553 | E81: =IF(INTRO!$E$48="","",ROUND($D81*INTRO!$E$48,0)) -> 72965 | F81: =IF(INTRO!$E$49="","",ROUND($D81*INTRO!$E$49,0)) -> 102151 | G81: =IF(INTRO!$E$50="","",ROUND($D81*INTRO!$E$50,0)) -> 189710 | H81: 1 | I81: 1 | J81: 1 | K81: 0 | L81: =IF(INTRO!$E$38="Endemic", IF($H81>0, IF($H81=4,"Unknown", IF($H81=99,"Stopped", $D81)), 0),"Not required") -> 364826.6553 | M81: 55802.89625 | N81: =IF(INTRO!$E$42="Endemic", IF(AND($J81>1,$J81<5), IF($J81=4, "Unknown", E81+F81), 0),"Not required") -> 0 | O81: =IF(INTRO!$E$44="Endemic", IF(AND($K81>0,$K81<5), IF($K81=4,"Unknown", IF($K81=1, $F81*0.33, IF($K81=2, $F81*0.5+$G81*0.2, SUM(F81:G81)))), 0),"Not required") -> 0 | P81: 1 | Q81: 1 | R81: 0 | S81: 0 | T81: MDA1 (IVM+ALB) | X81: 36409 | Y81: Anaocha | AA81: TRUE
A82: =IF(INTRO!$E$34<>0,INTRO!$E$34,"") -> Nigeria | B82: Anambra | C82: Awka North | D82: 144147.7604 | E82: =IF(INTRO!$E$48="","",ROUND($D82*INTRO!$E$48,0)) -> 28830 | F82: =IF(INTRO!$E$49="","",ROUND($D82*INTRO!$E$49,0)) -> 40361 | G82: =IF(INTRO!$E$50="","",ROUND($D82*INTRO!$E$50,0)) -> 74957 | H82: 1 | I82: 1 | J82: 2 | K82: 0 | L82: =IF(INTRO!$E$38="Endemic", IF($H82>0, IF($H82=4,"Unknown", IF($H82=99,"Stopped", $D82)), 0),"Not required") -> 144147.7604 | M82: 43779.54375 | N82: =IF(INTRO!$E$42="Endemic", IF(AND($J82>1,$J82<5), IF($J82=4, "Unknown", E82+F82), 0),"Not required") -> 69191 | O82: =IF(INTRO!$E$44="Endemic", IF(AND($K82>0,$K82<5), IF($K82=4,"Unknown", IF($K82=1, $F82*0.33, IF($K82=2, $F82*0.5+$G82*0.2, SUM(F82:G82)))), 0),"Not required") -> 0 | P82: 1 | Q82: 1 | R82: 1 | S82: 0 | T82: MDA1 (IVM+ALB) | X82: 36410 | Y82: Awka North | AA82: TRUE
A83: =IF(INTRO!$E$34<>0,INTRO!$E$34,"") -> Nigeria | B83: Anambra | C83: Awka south | D83: 241998.703 | E83: =IF(INTRO!$E$48="","",ROUND($D83*INTRO!$E$48,0)) -> 48400 | F83: =IF(INTRO!$E$49="","",ROUND($D83*INTRO!$E$49,0)) -> 67760 | G83: =IF(INTRO!$E$50="","",ROUND($D83*INTRO!$E$50,0)) -> 125839 | H83: 1 | I83: 1 | J83: 2 | K83: 1 | L83: =IF(INTRO!$E$38="Endemic", IF($H83>0, IF($H83=4,"Unknown", IF($H83=99,"Stopped", $D83)), 0),"Not required") -> 241998.703 | M83: 41584.78812 | N83: =IF(INTRO!$E$42="Endemic", IF(AND($J83>1,$J83<5), IF($J83=4, "Unknown", E83+F83), 0),"Not required") -> 116160 | O83: =IF(INTRO!$E$44="Endemic", IF(AND($K83>0,$K83<5), IF($K83=4,"Unknown", IF($K83=1, $F83*0.33, IF($K83=2, $F83*0.5+$G83*0.2, SUM(F83:G83)))), 0),"Not required") -> 22360.8 | P83: 1 | Q83: 1 | R83: 1 | S83: 0 | T83: MDA1 (IVM+ALB) | U83: T2 (PZQ) | X83: 36411 | Y83: Awka south | AA83: TRUE
A84: =IF(INTRO!$E$34<>0,INTRO!$E$34,"") -> Nigeria | B84: Anambra | C84: Ayamelum | D84: 202778.1926 | E84: =IF(INTRO!$E$48="","",ROUND($D84*INTRO!$E$48,0)) -> 40556 | F84: =IF(INTRO!$E$49="","",ROUND($D84*INTRO!$E$49,0)) -> 56778 | G84: =IF(INTRO!$E$50="","",ROUND($D84*INTRO!$E$50,0)) -> 105445 | H84: 1 | I84: 1 | J84: 2 | K84: 0 | L84: =IF(INTRO!$E$38="Endemic", IF($H84>0, IF($H84=4,"Unknown", IF($H84=99,"Stopped", $D84)), 0),"Not required") -> 202778.1926 | M84: 50955.3125 | N84: =IF(INTRO!$E$42="Endemic", IF(AND($J84>1,$J84<5), IF($J84=4, "Unknown", E84+F84), 0),"Not required") -> 97334 | O84: =IF(INTRO!$E$44="Endemic", IF(AND($K84>0,$K84<5), IF($K84=4,"Unknown", IF($K84=1, $F84*0.33, IF($K84=2, $F84*0.5+$G84*0.2, SUM(F84:G84)))), 0),"Not required") -> 0 | P84: 1 | Q84: 1 | R84: 1 | S84: 0 | T84: MDA1 (IVM+ALB) | X84: 36412 | Y84: Ayamelum | AA84: TRUE
A85: =IF(INTRO!$E$34<>0,INTRO!$E$34,"") -> Nigeria | B85: Anambra | C85: Dunukofia | D85: 123377.1085 | E85: =IF(INTRO!$E$48="","",ROUND($D85*INTRO!$E$48,0)) -> 24675 | F85: =IF(INTRO!$E$49="","",ROUND($D85*INTRO!$E$49,0)) -> 34546 | G85: =IF(INTRO!$E$50="","",ROUND($D85*INTRO!$E$50,0)) -> 64156 | H85: 1 | I85: 1 | J85: 2 | K85: 1 | L85: =IF(INTRO!$E$38="Endemic", IF($H85>0, IF($H85=4,"Unknown", IF($H85=99,"Stopped", $D85)), 0),"Not required") -> 123377.1085 | M85: 42255.08687 | N85: =IF(INTRO!$E$42="Endemic", IF(AND($J85>1,$J85<5), IF($J85=4, "Unknown", E85+F85), 0),"Not required") -> 59221 | O85: =IF(INTRO!$E$44="Endemic", IF(AND($K85>0,$K85<5), IF($K85=4,"Unknown", IF($K85=1, $F85*0.33, IF($K85=2, $F85*0.5+$G85*0.2, SUM(F85:G85)))), 0),"Not required") -> 11400.18 | P85: 1 | Q85: 1 | R85: 1 | S85: 0 | T85: MDA1 (IVM+ALB) | U85: T2 (PZQ) | X85: 36413 | Y85: Dunukofia | AA85: TRUE
A86: =IF(INTRO!$E$34<>0,INTRO!$E$34,"") -> Nigeria | B86: Anambra | C86: Ekwusiko | D86: 202549.0575 | E86: =IF(INTRO!$E$48="","",ROUND($D86*INTRO!$E$48,0)) -> 40510 | F86: =IF(INTRO!$E$49="","",ROUND($D86*INTRO!$E$49,0)) -> 56714 | G86: =IF(INTRO!$E$50="","",ROUND($D86*INTRO!$E$50,0)) -> 105326 | H86: 1 | I86: 1 | J86: 2 | K86: 0 | L86: =IF(INTRO!$E$38="Endemic", IF($H86>0, IF($H86=4,"Unknown", IF($H86=99,"Stopped", $D86)), 0),"Not required") -> 202549.0575 | M86: 48356.06625 | N86: =IF(INTRO!$E$42="Endemic", IF(AND($J86>1,$J86<5), IF($J86=4, "Unknown", E86+F86), 0),"Not required") -> 97224 | O86: =IF(INTRO!$E$44="Endemic", IF(AND($K86>0,$K86<5), IF($K86=4,"Unknown", IF($K86=1, $F86*0.33, IF($K86=2, $F86*0.5+$G86*0.2, SUM(F86:G86)))), 0),"Not required") -> 0 | P86: 1 | Q86: 1 | R86: 1 | S86: 0 | T86: MDA1 (IVM+ALB) | X86: 36414 | Y86: Ekwusiko | AA86: TRUE
A87: =IF(INTRO!$E$34<>0,INTRO!$E$34,"") -> Nigeria | B87: Anambra | C87: Idimili North | D87: 551438.6602 | E87: =IF(INTRO!$E$48="","",ROUND($D87*INTRO!$E$48,0)) -> 110288 | F87: =IF(INTRO!$E$49="","",ROUND($D87*INTRO!$E$49,0)) -> 154403 | G87: =IF(INTRO!$E$50="","",ROUND($D87*INTRO!$E$50,0)) -> 286748 | H87: 1 | I87: 1 | J87: 1 | K87: 1 | L87: =IF(INTRO!$E$38="Endemic", IF($H87>0, IF($H87=4,"Unknown", IF($H87=99,"Stopped", $D87)), 0),"Not required") -> 551438.6602 | M87: 70180.69937 | N87: =IF(INTRO!$E$42="Endemic", IF(AND($J87>1,$J87<5), IF($J87=4, "Unknown", E87+F87), 0),"Not required") -> 0 | O87: =IF(INTRO!$E$44="Endemic", IF(AND($K87>0,$K87<5), IF($K87=4,"Unknown", IF($K87=1, $F87*0.33, IF($K87=2, $F87*0.5+$G87*0.2, SUM(F87:G87)))), 0),"Not required") -> 50952.99 | P87: 1 | Q87: 1 | R87: 0 | S87: 0 | T87: MDA1 (IVM+ALB) | U87: T2 (PZQ) | X87: 36415 | Y87: Idimili North | AA87: TRUE
A88: =IF(INTRO!$E$34<>0,INTRO!$E$34,"") -> Nigeria | B88: Anambra | C88: Idimili South | D88: 265851.7984 | E88: =IF(INTRO!$E$48="","",ROUND($D88*INTRO!$E$48,0)) -> 53170 | F88: =IF(INTRO!$E$49="","",ROUND($D88*INTRO!$E$49,0)) -> 74439 | G88: =IF(INTRO!$E$50="","",ROUND($D88*INTRO!$E$50,0)) -> 138243 | H88: 1 | I88: 1 | J88: 1 | K88: 0 | L88: =IF(INTRO!$E$38="Endemic", IF($H88>0, IF($H88=4,"Unknown", IF($H88=99,"Stopped", $D88)), 0),"Not required") -> 265851.7984 | M88: 47945.27187 | N88: =IF(INTRO!$E$42="Endemic", IF(AND($J88>1,$J88<5), IF($J88=4, "Unknown", E88+F88), 0),"Not required") -> 0 | O88: =IF(INTRO!$E$44="Endemic", IF(AND($K88>0,$K88<5), IF($K88=4,"Unknown", IF($K88=1, $F88*0.33, IF($K88=2, $F88*0.5+$G88*0.2, SUM(F88:G88)))), 0),"Not required") -> 0 | P88: 1 | Q88: 1 | R88: 0 | S88: 0 | T88: MDA1 (IVM+ALB) | X88: 36416 | Y88: Idimili South | AA88: TRUE
A89: =IF(INTRO!$E$34<>0,INTRO!$E$34,"") -> Nigeria | B89: Anambra | C89: Ihiala | D89: 386787.7857 | E89: =IF(INTRO!$E$48="","",ROUND($D89*INTRO!$E$48,0)) -> 77358 | F89: =IF(INTRO!$E$49="","",ROUND($D89*INTRO!$E$49,0)) -> 108301 | G89: =IF(INTRO!$E$50="","",ROUND($D89*INTRO!$E$50,0)) -> 201130 | H89: 1 | I89: 1 | J89: 2 | K89: 0 | L89: =IF(INTRO!$E$38="Endemic", IF($H89>0, IF($H89=4,"Unknown", IF($H89=99,"Stopped", $D89)), 0),"Not required") -> 386787.7857 | M89: 51867.255 | N89: =IF(INTRO!$E$42="Endemic", IF(AND($J89>1,$J89<5), IF($J89=4, "Unknown", E89+F89), 0),"Not required") -> 185659 | O89: =IF(INTRO!$E$44="Endemic", IF(AND($K89>0,$K89<5), IF($K89=4,"Unknown", IF($K89=1, $F89*0.33, IF($K89=2, $F89*0.5+$G89*0.2, SUM(F89:G89)))), 0),"Not required") -> 0 | P89: 1 | Q89: 1 | R89: 1 | S89: 0 | T89: MDA1 (IVM+ALB) | X89: 36417 | Y89: Ihiala | AA89: TRUE
A90: =IF(INTRO!$E$34<>0,INTRO!$E$34,"") -> Nigeria | B90: Anambra | C90: Njikoka | D90: 190047.7519 | E90: =IF(INTRO!$E$48="","",ROUND($D90*INTRO!$E$48,0)) -> 38010 | F90: =IF(INTRO!$E$49="","",ROUND($D90*INTRO!$E$49,0)) -> 53213 | G90: =IF(INTRO!$E$50="","",ROUND($D90*INTRO!$E$50,0)) -> 98825 | H90: 1 | I90: 1 | J90: 2 | K90: 1 | L90: =IF(INTRO!$E$38="Endemic", IF($H90>0, IF($H90=4,"Unknown", IF($H90=99,"Stopped", $D90)), 0),"Not required") -> 190047.7519 | M90: 42767.79187 | N90: =IF(INTRO!$E$42="Endemic", IF(AND($J90>1,$J90<5), IF($J90=4, "Unknown", E90+F90), 0),"Not required") -> 91223 | O90: =IF(INTRO!$E$44="Endemic", IF(AND($K90>0,$K90<5), IF($K90=4,"Unknown", IF($K90=1, $F90*0.33, IF($K90=2, $F90*0.5+$G90*0.2, SUM(F90:G90)))), 0),"Not required") -> 17560.29 | P90: 1 | Q90: 1 | R90: 1 | S90: 0 | T90: MDA1 (IVM+ALB) | U90: T2 (PZQ) | X90: 36418 | Y90: Njikoka | AA90: TRUE
A91: =IF(INTRO!$E$34<>0,INTRO!$E$34,"") -> Nigeria | B91: Anambra | C91: Nnewi North | D91: 201701.6415 | E91: =IF(INTRO!$E$48="","",ROUND($D91*INTRO!$E$48,0)) -> 40340 | F91: =IF(INTRO!$E$49="","",ROUND($D91*INTRO!$E$49,0)) -> 56476 | G91: =IF(INTRO!$E$50="","",ROUND($D91*INTRO!$E$50,0)) -> 104885 | H91: 1 | I91: 1 | J91: 2 | K91: 1 | L91: =IF(INTRO!$E$38="Endemic", IF($H91>0, IF($H91=4,"Unknown", IF($H91=99,"Stopped", $D91)), 0),"Not required") -> 201701.6415 | M91: 84035.29125 | N91: =IF(INTRO!$E$42="Endemic", IF(AND($J91>1,$J91<5), IF($J91=4, "Unknown", E91+F91), 0),"Not required") -> 96816 | O91: =IF(INTRO!$E$44="Endemic", IF(AND($K91>0,$K91<5), IF($K91=4,"Unknown", IF($K91=1, $F91*0.33, IF($K91=2, $F91*0.5+$G91*0.2, SUM(F91:G91)))), 0),"Not required") -> 18637.08 | P91: 1 | Q91: 1 | R91: 1 | S91: 0 | T91: MDA1 (IVM+ALB) | U91: T2 (PZQ) | X91: 36419 | Y91: Nnewi North | AA91: TRUE
A92: =IF(INTRO!$E$34<>0,INTRO!$E$34,"") -> Nigeria | B92: Anambra | C92: Nnewi South | D92: 299101.9944 | E92: =IF(INTRO!$E$48="","",ROUND($D92*INTRO!$E$48,0)) -> 59820 | F92: =IF(INTRO!$E$49="","",ROUND($D92*INTRO!$E$49,0)) -> 83749 | G92: =IF(INTRO!$E$50="","",ROUND($D92*INTRO!$E$50,0)) -> 155533 | H92: 1 | I92: 1 | J92: 2 | K92: 1 | L92: =IF(INTRO!$E$38="Endemic", IF($H92>0, IF($H92=4,"Unknown", IF($H92=99,"Stopped", $D92)), 0),"Not required") -> 299101.9944 | M92: 48283.57312 | N92: =IF(INTRO!$E$42="Endemic", IF(AND($J92>1,$J92<5), IF($J92=4, "Unknown", E92+F92), 0),"Not required") -> 143569 | O92: =IF(INTRO!$E$44="Endemic", IF(AND($K92>0,$K92<5), IF($K92=4,"Unknown", IF($K92=1, $F92*0.33, IF($K92=2, $F92*0.5+$G92*0.2, SUM(F92:G92)))), 0),"Not required") -> 27637.17 | P92: 1 | Q92: 1 | R92: 1 | S92: 0 | T92: MDA1 (IVM+ALB) | U92: T2 (PZQ) | X92: 36420 | Y92: Nnewi South | AA92: TRUE
A93: =IF(INTRO!$E$34<>0,INTRO!$E$34,"") -> Nigeria | B93: Anambra | C93: Ogbaru | D93: 284023.8786 | E93: =IF(INTRO!$E$48="","",ROUND($D93*INTRO!$E$48,0)) -> 56805 | F93: =IF(INTRO!$E$49="","",ROUND($D93*INTRO!$E$49,0)) -> 79527 | G93: =IF(INTRO!$E$50="","",ROUND($D93*INTRO!$E$50,0)) -> 147692 | H93: 1 | I93: 0 | J93: 1 | K93: 1 | L93: =IF(INTRO!$E$38="Endemic", IF($H93>0, IF($H93=4,"Unknown", IF($H93=99,"Stopped", $D93)), 0),"Not required") -> 284023.8786 | M93: 0 | N93: =IF(INTRO!$E$42="Endemic", IF(AND($J93>1,$J93<5), IF($J93=4, "Unknown", E93+F93), 0),"Not required") -> 0 | O93: =IF(INTRO!$E$44="Endemic", IF(AND($K93>0,$K93<5), IF($K93=4,"Unknown", IF($K93=1, $F93*0.33, IF($K93=2, $F93*0.5+$G93*0.2, SUM(F93:G93)))), 0),"Not required") -> 26243.91 | P93: 1 | Q93: 0 | R93: 0 | S93: 0 | U93: T2 (PZQ) | X93: 36421 | Y93: Ogbaru | AA93: TRUE
A94: =IF(INTRO!$E$34<>0,INTRO!$E$34,"") -> Nigeria | B94: Anambra | C94: Onitsha North | D94: 159936.3231 | E94: =IF(INTRO!$E$48="","",ROUND($D94*INTRO!$E$48,0)) -> 31987 | F94: =IF(INTRO!$E$49="","",ROUND($D94*INTRO!$E$49,0)) -> 44782 | G94: =IF(INTRO!$E$50="","",ROUND($D94*INTRO!$E$50,0)) -> 83167 | H94: 1 | I94: 0 | J94: 1 | K94: 0 | L94: =IF(INTRO!$E$38="Endemic", IF($H94>0, IF($H94=4,"Unknown", IF($H94=99,"Stopped", $D94)), 0),"Not required") -> 159936.3231 | M94: 0 | N94: =IF(INTRO!$E$42="Endemic", IF(AND($J94>1,$J94<5), IF($J94=4, "Unknown", E94+F94), 0),"Not required") -> 0 | O94: =IF(INTRO!$E$44="Endemic", IF(AND($K94>0,$K94<5), IF($K94=4,"Unknown", IF($K94=1, $F94*0.33, IF($K94=2, $F94*0.5+$G94*0.2, SUM(F94:G94)))), 0),"Not required") -> 0 | P94: 1 | Q94: 0 | R94: 0 | S94: 0 | X94: 36422 | Y94: Onitsha North | AA94: TRUE
A95: =IF(INTRO!$E$34<>0,INTRO!$E$34,"") -> Nigeria | B95: Anambra | C95: Onitsha South | D95: 174938.914 | E95: =IF(INTRO!$E$48="","",ROUND($D95*INTRO!$E$48,0)) -> 34988 | F95: =IF(INTRO!$E$49="","",ROUND($D95*INTRO!$E$49,0)) -> 48983 | G95: =IF(INTRO!$E$50="","",ROUND($D95*INTRO!$E$50,0)) -> 90968 | H95: 1 | I95: 0 | J95: 1 | K95: 1 | L95: =IF(INTRO!$E$38="Endemic", IF($H95>0, IF($H95=4,"Unknown", IF($H95=99,"Stopped", $D95)), 0),"Not required") -> 174938.914 | M95: 0 | N95: =IF(INTRO!$E$42="Endemic", IF(AND($J95>1,$J95<5), IF($J95=4, "Unknown", E95+F95), 0),"Not required") -> 0 | O95: =IF(INTRO!$E$44="Endemic", IF(AND($K95>0,$K95<5), IF($K95=4,"Unknown", IF($K95=1, $F95*0.33, IF($K95=2, $F95*0.5+$G95*0.2, SUM(F95:G95)))), 0),"Not required") -> 16164.39 | P95: 1 | Q95: 0 | R95: 0 | S95: 0 | U95: T2 (PZQ) | X95: 36423 | Y95: Onitsha South | AA95: TRUE
A96: =IF(INTRO!$E$34<>0,INTRO!$E$34,"") -> Nigeria | B96: Anambra | C96: Orumba North | D96: 220692.9758 | E96: =IF(INTRO!$E$48="","",ROUND($D96*INTRO!$E$48,0)) -> 44139 | F96: =IF(INTRO!$E$49="","",ROUND($D96*INTRO!$E$49,0)) -> 61794 | G96: =IF(INTRO!$E$50="","",ROUND($D96*INTRO!$E$50,0)) -> 114760 | H96: 1 | I96: 1 | J96: 1 | K96: 1 | L96: =IF(INTRO!$E$38="Endemic", IF($H96>0, IF($H96=4,"Unknown", IF($H96=99,"Stopped", $D96)), 0),"Not required") -> 220692.9758 | M96: 56999.55812 | N96: =IF(INTRO!$E$42="Endemic", IF(AND($J96>1,$J96<5), IF($J96=4, "Unknown", E96+F96), 0),"Not required") -> 0 | O96: =IF(INTRO!$E$44="Endemic", IF(AND($K96>0,$K96<5), IF($K96=4,"Unknown", IF($K96=1, $F96*0.33, IF($K96=2, $F96*0.5+$G96*0.2, SUM(F96:G96)))), 0),"Not required") -> 20392.02 | P96: 1 | Q96: 1 | R96: 0 | S96: 0 | T96: MDA1 (IVM+ALB) | U96: T2 (PZQ) | X96: 36424 | Y96: Orumba North | AA96: TRUE
A97: =IF(INTRO!$E$34<>0,INTRO!$E$34,"") -> Nigeria | B97: Anambra | C97: Orumba South | D97: 239629.2665 | E97: =IF(INTRO!$E$48="","",ROUND($D97*INTRO!$E$48,0)) -> 47926 | F97: =IF(INTRO!$E$49="","",ROUND($D97*INTRO!$E$49,0)) -> 67096 | G97: =IF(INTRO!$E$50="","",ROUND($D97*INTRO!$E$50,0)) -> 124607 | H97: 1 | I97: 1 | J97: 2 | K97: 1 | L97: =IF(INTRO!$E$38="Endemic", IF($H97>0, IF($H97=4,"Unknown", IF($H97=99,"Stopped", $D97)), 0),"Not required") -> 239629.2665 | M97: 56576.15625 | N97: =IF(INTRO!$E$42="Endemic", IF(AND($J97>1,$J97<5), IF($J97=4, "Unknown", E97+F97), 0),"Not required") -> 115022 | O97: =IF(INTRO!$E$44="Endemic", IF(AND($K97>0,$K97<5), IF($K97=4,"Unknown", IF($K97=1, $F97*0.33, IF($K97=2, $F97*0.5+$G97*0.2, SUM(F97:G97)))), 0),"Not required") -> 22141.68 | P97: 1 | Q97: 1 | R97: 1 | S97: 0 | T97: MDA1 (IVM+ALB) | U97: T2 (PZQ) | X97: 36425 | Y97: Orumba South | AA97: TRUE
A98: =IF(INTRO!$E$34<>0,INTRO!$E$34,"") -> Nigeria | B98: Anambra | C98: Oyi | D98: 215091.3259 | E98: =IF(INTRO!$E$48="","",ROUND($D98*INTRO!$E$48,0)) -> 43018 | F98: =IF(INTRO!$E$49="","",ROUND($D98*INTRO!$E$49,0)) -> 60226 | G98: =IF(INTRO!$E$50="","",ROUND($D98*INTRO!$E$50,0)) -> 111847 | H98: 1 | I98: 1 | J98: 2 | K98: 0 | L98: =IF(INTRO!$E$38="Endemic", IF($H98>0, IF($H98=4,"Unknown", IF($H98=99,"Stopped", $D98)), 0),"Not required") -> 215091.3259 | M98: 38676.65812 | N98: =IF(INTRO!$E$42="Endemic", IF(AND($J98>1,$J98<5), IF($J98=4, "Unknown", E98+F98), 0),"Not required") -> 103244 | O98: =IF(INTRO!$E$44="Endemic", IF(AND($K98>0,$K98<5), IF($K98=4,"Unknown", IF($K98=1, $F98*0.33, IF($K98=2, $F98*0.5+$G98*0.2, SUM(F98:G98)))), 0),"Not required") -> 0 | P98: 1 | Q98: 1 | R98: 1 | S98: 0 | T98: MDA1 (IVM+ALB) | X98: 36426 | Y98: Oyi | AA98: TRUE
A99: =IF(INTRO!$E$34<>0,INTRO!$E$34,"") -> Nigeria | B99: Bauchi | C99: Alkaleri | D99: 421674.1273 | E99: =IF(INTRO!$E$48="","",ROUND($D99*INTRO!$E$48,0)) -> 84335 | F99: =IF(INTRO!$E$49="","",ROUND($D99*INTRO!$E$49,0)) -> 118069 | G99: =IF(INTRO!$E$50="","",ROUND($D99*INTRO!$E$50,0)) -> 219271 | H99: 1 | I99: 1 | J99: 1 | K99: 2 | L99: =IF(INTRO!$E$38="Endemic", IF($H99>0, IF($H99=4,"Unknown", IF($H99=99,"Stopped", $D99)), 0),"Not required") -> 421674.1273 | M99: 266142.2237 | N99: =IF(INTRO!$E$42="Endemic", IF(AND($J99>1,$J99<5), IF($J99=4, "Unknown", E99+F99), 0),"Not required") -> 0 | O99: =IF(INTRO!$E$44="Endemic", IF(AND($K99>0,$K99<5), IF($K99=4,"Unknown", IF($K99=1, $F99*0.33, IF($K99=2, $F99*0.5+$G99*0.2, SUM(F99:G99)))), 0),"Not required") -> 102888.7 | P99: 1 | Q99: 1 | R99: 1 | S99: 1 | T99: MDA1 (IVM+ALB) | X99: 36427 | Y99: Alkaleri | AA99: TRUE
A100: =IF(INTRO!$E$34<>0,INTRO!$E$34,"") -> Nigeria | B100: Bauchi | C100: Bauchi | D100: 632093.8997 | E100: =IF(INTRO!$E$48="","",ROUND($D100*INTRO!$E$48,0)) -> 126419 | F100: =IF(INTRO!$E$49="","",ROUND($D100*INTRO!$E$49,0)) -> 176986 | G100: =IF(INTRO!$E$50="","",ROUND($D100*INTRO!$E$50,0)) -> 328689 | H100: 0 | I100: 1 | J100: 1 | K100: 2 | L100: =IF(INTRO!$E$38="Endemic", IF($H100>0, IF($H100=4,"Unknown", IF($H100=99,"Stopped", $D100)), 0),"Not required") -> 0 | M100: 132669.1478 | N100: =IF(INTRO!$E$42="Endemic", IF(AND($J100>1,$J100<5), IF($J100=4, "Unknown", E100+F100), 0),"Not required") -> 0 | O100: =IF(INTRO!$E$44="Endemic", IF(AND($K100>0,$K100<5), IF($K100=4,"Unknown", IF($K100=1, $F100*0.33, IF($K100=2, $F100*0.5+$G100*0.2, SUM(F100:G100)))), 0),"Not required") -> 154230.8 | P100: 0 | Q100: 1 | R100: 1 | S100: 1 | T100: MDA3 (IVM) | X100: 36428 | Y100: Bauchi | AA100: TRUE
A101: =IF(INTRO!$E$34<>0,INTRO!$E$34,"") -> Nigeria | B101: Bauchi | C101: Bogoro | D101: 107798.1162 | E101: =IF(INTRO!$E$48="","",ROUND($D101*INTRO!$E$48,0)) -> 21560 | F101: =IF(INTRO!$E$49="","",ROUND($D101*INTRO!$E$49,0)) -> 30183 | G101: =IF(INTRO!$E$50="","",ROUND($D101*INTRO!$E$50,0)) -> 56055 | H101: 1 | I101: 1 | J101: 1 | K101: 2 | L101: =IF(INTRO!$E$38="Endemic", IF($H101>0, IF($H101=4,"Unknown", IF($H101=99,"Stopped", $D101)), 0),"Not required") -> 107798.1162 | M101: 191031 | N101: =IF(INTRO!$E$42="Endemic", IF(AND($J101>1,$J101<5), IF($J101=4, "Unknown", E101+F101), 0),"Not required") -> 0 | O101: =IF(INTRO!$E$44="Endemic", IF(AND($K101>0,$K101<5), IF($K101=4,"Unknown", IF($K101=1, $F101*0.33, IF($K101=2, $F101*0.5+$G101*0.2, SUM(F101:G101)))), 0),"Not required") -> 26302.5 | P101: 1 | Q101: 1 | R101: 0 | S101: 1 | T101: MDA1 (IVM+ALB) | X101: 36429 | Y101: Bogoro | AA101: TRUE
A102: =IF(INTRO!$E$34<>0,INTRO!$E$34,"") -> Nigeria | B102: Bauchi | C102: Damban | D102: 193185.3861 | E102: =IF(INTRO!$E$48="","",ROUND($D102*INTRO!$E$48,0)) -> 38637 | F102: =IF(INTRO!$E$49="","",ROUND($D102*INTRO!$E$49,0)) -> 54092 | G102: =IF(INTRO!$E$50="","",ROUND($D102*INTRO!$E$50,0)) -> 100456 | H102: 0 | I102: 0 | J102: 1 | K102: 1 | L102: =IF(INTRO!$E$38="Endemic", IF($H102>0, IF($H102=4,"Unknown", IF($H102=99,"Stopped", $D102)), 0),"Not required") -> 0 | M102: 0 | N102: =IF(INTRO!$E$42="Endemic", IF(AND($J102>1,$J102<5), IF($J102=4, "Unknown", E102+F102), 0),"Not required") -> 0 | O102: =IF(INTRO!$E$44="Endemic", IF(AND($K102>0,$K102<5), IF($K102=4,"Unknown", IF($K102=1, $F102*0.33, IF($K102=2, $F102*0.5+$G102*0.2, SUM(F102:G102)))), 0),"Not required") -> 17850.36 | P102: 0 | Q102: 0 | R102: 1 | S102: 1 | X102: 36430 | Y102: Damban | AA102: TRUE
A103: =IF(INTRO!$E$34<>0,INTRO!$E$34,"") -> Nigeria | B103: Bauchi | C103: Darazo | D103: 322052.8723 | E103: =IF(INTRO!$E$48="","",ROUND($D103*INTRO!$E$48,0)) -> 64411 | F103: =IF(INTRO!$E$49="","",ROUND($D103*INTRO!$E$49,0)) -> 90175 | G103: =IF(INTRO!$E$50="","",ROUND($D103*INTRO!$E$50,0)) -> 167467 | H103: 1 | I103: 1 | J103: 1 | K103: 1 | L103: =IF(INTRO!$E$38="Endemic", IF($H103>0, IF($H103=4,"Unknown", IF($H103=99,"Stopped", $D103)), 0),"Not required") -> 322052.8723 | M103: 99286.53455 | N103: =IF(INTRO!$E$42="Endemic", IF(AND($J103>1,$J103<5), IF($J103=4, "Unknown", E103+F103), 0),"Not required") -> 0 | O103: =IF(INTRO!$E$44="Endemic", IF(AND($K103>0,$K103<5), IF($K103=4,"Unknown", IF($K103=1, $F103*0.33, IF($K103=2, $F103*0.5+$G103*0.2, SUM(F103:G103)))), 0),"Not required") -> 29757.75 | P103: 1 | Q103: 1 | R103: 1 | S103: 1 | T103: MDA1 (IVM+ALB) | X103: 36431 | Y103: Darazo | AA103: TRUE
A104: =IF(INTRO!$E$34<>0,INTRO!$E$34,"") -> Nigeria | B104: Bauchi | C104: Dass | D104: 115130.1546 | E104: =IF(INTRO!$E$48="","",ROUND($D104*INTRO!$E$48,0)) -> 23026 | F104: =IF(INTRO!$E$49="","",ROUND($D104*INTRO!$E$49,0)) -> 32236 | G104: =IF(INTRO!$E$50="","",ROUND($D104*INTRO!$E$50,0)) -> 59868 | H104: 0 | I104: 0 | J104: 1 | K104: 2 | L104: =IF(INTRO!$E$38="Endemic", IF($H104>0, IF($H104=4,"Unknown", IF($H104=99,"Stopped", $D104)), 0),"Not required") -> 0 | M104: 0 | N104: =IF(INTRO!$E$42="Endemic", IF(AND($J104>1,$J104<5), IF($J104=4, "Unknown", E104+F104), 0),"Not required") -> 0 | O104: =IF(INTRO!$E$44="Endemic", IF(AND($K104>0,$K104<5), IF($K104=4,"Unknown", IF($K104=1, $F104*0.33, IF($K104=2, $F104*0.5+$G104*0.2, SUM(F104:G104)))), 0),"Not required") -> 28091.6 | P104: 0 | Q104: 0 | R104: 1 | S104: 1 | X104: 36432 | Y104: Dass | AA104: TRUE
A105: =IF(INTRO!$E$34<>0,INTRO!$E$34,"") -> Nigeria | B105: Bauchi | C105: Gamawa | D105: 366586.5571 | E105: =IF(INTRO!$E$48="","",ROUND($D105*INTRO!$E$48,0)) -> 73317 | F105: =IF(INTRO!$E$49="","",ROUND($D105*INTRO!$E$49,0)) -> 102644 | G105: =IF(INTRO!$E$50="","",ROUND($D105*INTRO!$E$50,0)) -> 190625 | H105: 0 | I105: 0 | J105: 1 | K105: 2 | L105: =IF(INTRO!$E$38="Endemic", IF($H105>0, IF($H105=4,"Unknown", IF($H105=99,"Stopped", $D105)), 0),"Not required") -> 0 | M105: 0 | N105: =IF(INTRO!$E$42="Endemic", IF(AND($J105>1,$J105<5), IF($J105=4, "Unknown", E105+F105), 0),"Not required") -> 0 | O105: =IF(INTRO!$E$44="Endemic", IF(AND($K105>0,$K105<5), IF($K105=4,"Unknown", IF($K105=1, $F105*0.33, IF($K105=2, $F105*0.5+$G105*0.2, SUM(F105:G105)))), 0),"Not required") -> 89447 | P105: 0 | Q105: 0 | R105: 1 | S105: 1 | X105: 36433 | Y105: Gamawa | AA105: TRUE
A106: =IF(INTRO!$E$34<>0,INTRO!$E$34,"") -> Nigeria | B106: Bauchi | C106: Ganjuwa | D106: 359136.7555 | E106: =IF(INTRO!$E$48="","",ROUND($D106*INTRO!$E$48,0)) -> 71827 | F106: =IF(INTRO!$E$49="","",ROUND($D106*INTRO!$E$49,0)) -> 100558 | G106: =IF(INTRO!$E$50="","",ROUND($D106*INTRO!$E$50,0)) -> 186751 | H106: 1 | I106: 1 | J106: 1 | K106: 2 | L106: =IF(INTRO!$E$38="Endemic", IF($H106>0, IF($H106=4,"Unknown", IF($H106=99,"Stopped", $D106)), 0),"Not required") -> 359136.7555 | M106: 151545.8053 | N106: =IF(INTRO!$E$42="Endemic", IF(AND($J106>1,$J106<5), IF($J106=4, "Unknown", E106+F106), 0),"Not required") -> 0 | O106: =IF(INTRO!$E$44="Endemic", IF(AND($K106>0,$K106<5), IF($K106=4,"Unknown", IF($K106=1, $F106*0.33, IF($K106=2, $F106*0.5+$G106*0.2, SUM(F106:G106)))), 0),"Not required") -> 87629.2 | P106: 1 | Q106: 1 | R106: 0 | S106: 1 | T106: MDA1 (IVM+ALB) | X106: 36434 | Y106: Ganjuwa | AA106: TRUE
A107: =IF(INTRO!$E$34<>0,INTRO!$E$34,"") -> Nigeria | B107: Bauchi | C107: Giade | D107: 200925.7555 | E107: =IF(INTRO!$E$48="","",ROUND($D107*INTRO!$E$48,0)) -> 40185 | F107: =IF(INTRO!$E$49="","",ROUND($D107*INTRO!$E$49,0)) -> 56259 | G107: =IF(INTRO!$E$50="","",ROUND($D107*INTRO!$E$50,0)) -> 104481 | H107: 1 | I107: 1 | J107: 1 | K107: 1 | L107: =IF(INTRO!$E$38="Endemic", IF($H107>0, IF($H107=4,"Unknown", IF($H107=99,"Stopped", $D107)), 0),"Not required") -> 200925.7555 | M107: 200933.5908 | N107: =IF(INTRO!$E$42="Endemic", IF(AND($J107>1,$J107<5), IF($J107=4, "Unknown", E107+F107), 0),"Not required") -> 0 | O107: =IF(INTRO!$E$44="Endemic", IF(AND($K107>0,$K107<5), IF($K107=4,"Unknown", IF($K107=1, $F107*0.33, IF($K107=2, $F107*0.5+$G107*0.2, SUM(F107:G107)))), 0),"Not required") -> 18565.47 | P107: 1 | Q107: 1 | R107: 1 | S107: 1 | T107: MDA1 (IVM+ALB) | X107: 36435 | Y107: Giade | AA107: TRUE
A108: =IF(INTRO!$E$34<>0,INTRO!$E$34,"") -> Nigeria | B108: Bauchi | C108: Itas/Gadua | D108: 294402.8443 | E108: =IF(INTRO!$E$48="","",ROUND($D108*INTRO!$E$48,0)) -> 58881 | F108: =IF(INTRO!$E$49="","",ROUND($D108*INTRO!$E$49,0)) -> 82433 | G108: =IF(INTRO!$E$50="","",ROUND($D108*INTRO!$E$50,0)) -> 153089 | H108: 1 | I108: 0 | J108: 1 | K108: 2 | L108: =IF(INTRO!$E$38="Endemic", IF($H108>0, IF($H108=4,"Unknown", IF($H108=99,"Stopped", $D108)), 0),"Not required") -> 294402.8443 | M108: 0 | N108: =IF(INTRO!$E$42="Endemic", IF(AND($J108>1,$J108<5), IF($J108=4, "Unknown", E108+F108), 0),"Not required") -> 0 | O108: =IF(INTRO!$E$44="Endemic", IF(AND($K108>0,$K108<5), IF($K108=4,"Unknown", IF($K108=1, $F108*0.33, IF($K108=2, $F108*0.5+$G108*0.2, SUM(F108:G108)))), 0),"Not required") -> 71834.3 | P108: 1 | Q108: 0 | R108: 1 | S108: 1 | T108: MDA1 (IVM+ALB) | X108: 36436 | Y108: Itas/Gadua | AA108: TRUE
A109: =IF(INTRO!$E$34<>0,INTRO!$E$34,"") -> Nigeria | B109: Bauchi | C109: Jama'are | D109: 150894.3221 | E109: =IF(INTRO!$E$48="","",ROUND($D109*INTRO!$E$48,0)) -> 30179 | F109: =IF(INTRO!$E$49="","",ROUND($D109*INTRO!$E$49,0)) -> 42250 | G109: =IF(INTRO!$E$50="","",ROUND($D109*INTRO!$E$50,0)) -> 78465 | H109: 0 | I109: 0 | J109: 1 | K109: 1 | L109: =IF(INTRO!$E$38="Endemic", IF($H109>0, IF($H109=4,"Unknown", IF($H109=99,"Stopped", $D109)), 0),"Not required") -> 0 | M109: 0 | N109: =IF(INTRO!$E$42="Endemic", IF(AND($J109>1,$J109<5), IF($J109=4, "Unknown", E109+F109), 0),"Not required") -> 0 | O109: =IF(INTRO!$E$44="Endemic", IF(AND($K109>0,$K109<5), IF($K109=4,"Unknown", IF($K109=1, $F109*0.33, IF($K109=2, $F109*0.5+$G109*0.2, SUM(F109:G109)))), 0),"Not required") -> 13942.5 | P109: 0 | Q109: 0 | R109: 1 | S109: 1 | X109: 36437 | Y109: Jama'are | AA109: TRUE
A110: =IF(INTRO!$E$34<>0,INTRO!$E$34,"") -> Nigeria | B110: Bauchi | C110: Katagun | D110: 378851.8489 | E110: =IF(INTRO!$E$48="","",ROUND($D110*INTRO!$E$48,0)) -> 75770 | F110: =IF(INTRO!$E$49="","",ROUND($D110*INTRO!$E$49,0)) -> 106079 | G110: =IF(INTRO!$E$50="","",ROUND($D110*INTRO!$E$50,0)) -> 197003 | H110: 0 | I110: 0 | J110: 1 | K110: 1 | L110: =IF(INTRO!$E$38="Endemic", IF($H110>0, IF($H110=4,"Unknown", IF($H110=99,"Stopped", $D110)), 0),"Not required") -> 0 | M110: 0 | N110: =IF(INTRO!$E$42="Endemic", IF(AND($J110>1,$J110<5), IF($J110=4, "Unknown", E110+F110), 0),"Not required") -> 0 | O110: =IF(INTRO!$E$44="Endemic", IF(AND($K110>0,$K110<5), IF($K110=4,"Unknown", IF($K110=1, $F110*0.33, IF($K110=2, $F110*0.5+$G110*0.2, SUM(F110:G110)))), 0),"Not required") -> 35006.07 | P110: 0 | Q110: 0 | R110: 1 | S110: 1 | X110: 36438 | Y110: Katagun | AA110: TRUE
A111: =IF(INTRO!$E$34<>0,INTRO!$E$34,"") -> Nigeria | B111: Bauchi | C111: Kirfi | D111: 188956.1517 | E111: =IF(INTRO!$E$48="","",ROUND($D111*INTRO!$E$48,0)) -> 37791 | F111: =IF(INTRO!$E$49="","",ROUND($D111*INTRO!$E$49,0)) -> 52908 | G111: =IF(INTRO!$E$50="","",ROUND($D111*INTRO!$E$50,0)) -> 98257 | H111: 0 | I111: 1 | J111: 1 | K111: 1 | L111: =IF(INTRO!$E$38="Endemic", IF($H111>0, IF($H111=4,"Unknown", IF($H111=99,"Stopped", $D111)), 0),"Not required") -> 0 | M111: 125900.5962 | N111: =IF(INTRO!$E$42="Endemic", IF(AND($J111>1,$J111<5), IF($J111=4, "Unknown", E111+F111), 0),"Not required") -> 0 | O111: =IF(INTRO!$E$44="Endemic", IF(AND($K111>0,$K111<5), IF($K111=4,"Unknown", IF($K111=1, $F111*0.33, IF($K111=2, $F111*0.5+$G111*0.2, SUM(F111:G111)))), 0),"Not required") -> 17459.64 | P111: 0 | Q111: 1 | R111: 1 | S111: 1 | X111: 36439 | Y111: Kirfi | AA111: TRUE
A112: =IF(INTRO!$E$34<>0,INTRO!$E$34,"") -> Nigeria | B112: Bauchi | C112: Misau | D112: 337272.484 | E112: =IF(INTRO!$E$48="","",ROUND($D112*INTRO!$E$48,0)) -> 67454 | F112: =IF(INTRO!$E$49="","",ROUND($D112*INTRO!$E$49,0)) -> 94436 | G112: =IF(INTRO!$E$50="","",ROUND($D112*INTRO!$E$50,0)) -> 175382 | H112: 1 | I112: 1 | J112: 1 | K112: 0 | L112: =IF(INTRO!$E$38="Endemic", IF($H112>0, IF($H112=4,"Unknown", IF($H112=99,"Stopped", $D112)), 0),"Not required") -> 337272.484 | M112: 177752.0011 | N112: =IF(INTRO!$E$42="Endemic", IF(AND($J112>1,$J112<5), IF($J112=4, "Unknown", E112+F112), 0),"Not required") -> 0 | O112: =IF(INTRO!$E$44="Endemic", IF(AND($K112>0,$K112<5), IF($K112=4,"Unknown", IF($K112=1, $F112*0.33, IF($K112=2, $F112*0.5+$G112*0.2, SUM(F112:G112)))), 0),"Not required") -> 0 | P112: 1 | Q112: 1 | R112: 1 | S112: 0 | T112: MDA1 (IVM+ALB) | X112: 36440 | Y112: Misau | AA112: TRUE
A113: =IF(INTRO!$E$34<>0,INTRO!$E$34,"") -> Nigeria | B113: Bauchi | C113: Ningi | D113: 495619.1677 | E113: =IF(INTRO!$E$48="","",ROUND($D113*INTRO!$E$48,0)) -> 99124 | F113: =IF(INTRO!$E$49="","",ROUND($D113*INTRO!$E$49,0)) -> 138773 | G113: =IF(INTRO!$E$50="","",ROUND($D113*INTRO!$E$50,0)) -> 257722 | H113: 1 | I113: 1 | J113: 1 | K113: 2 | L113: =IF(INTRO!$E$38="Endemic", IF($H113>0, IF($H113=4,"Unknown", IF($H113=99,"Stopped", $D113)), 0),"Not required") -> 495619.1677 | M113: 133496.6763 | N113: =IF(INTRO!$E$42="Endemic", IF(AND($J113>1,$J113<5), IF($J113=4, "Unknown", E113+F113), 0),"Not required") -> 0 | O113: =IF(INTRO!$E$44="Endemic", IF(AND($K113>0,$K113<5), IF($K113=4,"Unknown", IF($K113=1, $F113*0.33, IF($K113=2, $F113*0.5+$G113*0.2, SUM(F113:G113)))), 0),"Not required") -> 120930.9 | P113: 1 | Q113: 1 | R113: 1 | S113: 1 | T113: MDA1 (IVM+ALB) | X113: 36441 | Y113: Ningi | AA113: TRUE
A114: =IF(INTRO!$E$34<>0,INTRO!$E$34,"") -> Nigeria | B114: Bauchi | C114: Shira | D114: 299546.0235 | E114: =IF(INTRO!$E$48="","",ROUND($D114*INTRO!$E$48,0)) -> 59909 | F114: =IF(INTRO!$E$49="","",ROUND($D114*INTRO!$E$49,0)) -> 83873 | G114: =IF(INTRO!$E$50="","",ROUND($D114*INTRO!$E$50,0)) -> 155764 | H114: 0 | I114: 0 | J114: 1 | K114: 2 | L114: =IF(INTRO!$E$38="Endemic", IF($H114>0, IF($H114=4,"Unknown", IF($H114=99,"Stopped", $D114)), 0),"Not required") -> 0 | M114: 0 | N114: =IF(INTRO!$E$42="Endemic", IF(AND($J114>1,$J114<5), IF($J114=4, "Unknown", E114+F114), 0),"Not required") -> 0 | O114: =IF(INTRO!$E$44="Endemic", IF(AND($K114>0,$K114<5), IF($K114=4,"Unknown", IF($K114=1, $F114*0.33, IF($K114=2, $F114*0.5+$G114*0.2, SUM(F114:G114)))), 0),"Not required") -> 73089.3 | P114: 0 | Q114: 0 | R114: 1 | S114: 1 | X114: 36442 | Y114: Shira | AA114: TRUE
A115: =IF(INTRO!$E$34<>0,INTRO!$E$34,"") -> Nigeria | B115: Bauchi | C115: Tafawa-Balewa | D115: 281592.2578 | E115: =IF(INTRO!$E$48="","",ROUND($D115*INTRO!$E$48,0)) -> 56318 | F115: =IF(INTRO!$E$49="","",ROUND($D115*INTRO!$E$49,0)) -> 78846 | G115: =IF(INTRO!$E$50="","",ROUND($D115*INTRO!$E$50,0)) -> 146428 | H115: 1 | I115: 1 | J115: 1 | K115: 2 | L115: =IF(INTRO!$E$38="Endemic", IF($H115>0, IF($H115=4,"Unknown", IF($H115=99,"Stopped", $D115)), 0),"Not required") -> 281592.2578 | M115: 185683.8901 | N115: =IF(INTRO!$E$42="Endemic", IF(AND($J115>1,$J115<5), IF($J115=4, "Unknown", E115+F115), 0),"Not required") -> 0 | O115: =IF(INTRO!$E$44="Endemic", IF(AND($K115>0,$K115<5), IF($K115=4,"Unknown", IF($K115=1, $F115*0.33, IF($K115=2, $F115*0.5+$G115*0.2, SUM(F115:G115)))), 0),"Not required") -> 68708.6 | P115: 1 | Q115: 1 | R115: 1 | S115: 1 | T115: MDA1 (IVM+ALB) | X115: 36443 | Y115: Tafawa-Balewa | AA115: TRUE
A116: =IF(INTRO!$E$34<>0,INTRO!$E$34,"") -> Nigeria | B116: Bauchi | C116: Toro | D116: 448529.2538 | E116: =IF(INTRO!$E$48="","",ROUND($D116*INTRO!$E$48,0)) -> 89706 | F116: =IF(INTRO!$E$49="","",ROUND($D116*INTRO!$E$49,0)) -> 125588 | G116: =IF(INTRO!$E$50="","",ROUND($D116*INTRO!$E$50,0)) -> 233235 | H116: 1 | I116: 1 | J116: 1 | K116: 1 | L116: =IF(INTRO!$E$38="Endemic", IF($H116>0, IF($H116=4,"Unknown", IF($H116=99,"Stopped", $D116)), 0),"Not required") -> 448529.2538 | M116: 262967.1731 | N116: =IF(INTRO!$E$42="Endemic", IF(AND($J116>1,$J116<5), IF($J116=4, "Unknown", E116+F116), 0),"Not required") -> 0 | O116: =IF(INTRO!$E$44="Endemic", IF(AND($K116>0,$K116<5), IF($K116=4,"Unknown", IF($K116=1, $F116*0.33, IF($K116=2, $F116*0.5+$G116*0.2, SUM(F116:G116)))), 0),"Not required") -> 41444.04 | P116: 1 | Q116: 1 | R116: 1 | S116: 1 | T116: MDA1 (IVM+ALB) | X116: 36444 | Y116: Toro | AA116: TRUE
A117: =IF(INTRO!$E$34<>0,INTRO!$E$34,"") -> Nigeria | B117: Bauchi | C117: Warji | D117: 146845.5725 | E117: =IF(INTRO!$E$48="","",ROUND($D117*INTRO!$E$48,0)) -> 29369 | F117: =IF(INTRO!$E$49="","",ROUND($D117*INTRO!$E$49,0)) -> 41117 | G117: =IF(INTRO!$E$50="","",ROUND($D117*INTRO!$E$50,0)) -> 76360 | H117: 1 | I117: 1 | J117: 1 | K117: 2 | L117: =IF(INTRO!$E$38="Endemic", IF($H117>0, IF($H117=4,"Unknown", IF($H117=99,"Stopped", $D117)), 0),"Not required") -> 146845.5725 | M117: 408646 | N117: =IF(INTRO!$E$42="Endemic", IF(AND($J117>1,$J117<5), IF($J117=4, "Unknown", E117+F117), 0),"Not required") -> 0 | O117: =IF(INTRO!$E$44="Endemic", IF(AND($K117>0,$K117<5), IF($K117=4,"Unknown", IF($K117=1, $F117*0.33, IF($K117=2, $F117*0.5+$G117*0.2, SUM(F117:G117)))), 0),"Not required") -> 35830.5 | P117: 1 | Q117: 1 | R117: 1 | S117: 1 | T117: MDA1 (IVM+ALB) | X117: 36445 | Y117: Warji | AA117: TRUE
A118: =IF(INTRO!$E$34<>0,INTRO!$E$34,"") -> Nigeria | B118: Bauchi | C118: Zaki | D118: 245071.5898 | E118: =IF(INTRO!$E$48="","",ROUND($D118*INTRO!$E$48,0)) -> 49014 | F118: =IF(INTRO!$E$49="","",ROUND($D118*INTRO!$E$49,0)) -> 68620 | G118: =IF(INTRO!$E$50="","",ROUND($D118*INTRO!$E$50,0)) -> 127437 | H118: 0 | I118: 0 | J118: 1 | K118: 2 | L118: =IF(INTRO!$E$38="Endemic", IF($H118>0, IF($H118=4,"Unknown", IF($H118=99,"Stopped", $D118)), 0),"Not required") -> 0 | M118: 0 | N118: =IF(INTRO!$E$42="Endemic", IF(AND($J118>1,$J118<5), IF($J118=4, "Unknown", E118+F118), 0),"Not required") -> 0 | O118: =IF(INTRO!$E$44="Endemic", IF(AND($K118>0,$K118<5), IF($K118=4,"Unknown", IF($K118=1, $F118*0.33, IF($K118=2, $F118*0.5+$G118*0.2, SUM(F118:G118)))), 0),"Not required") -> 59797.4 | P118: 0 | Q118: 0 | R118: 0 | S118: 1 | X118: 36446 | Y118: Zaki | AA118: TRUE
A119: =IF(INTRO!$E$34<>0,INTRO!$E$34,"") -> Nigeria | B119: Bayelsa | C119: Brass | D119: 236878.3648 | E119: =IF(INTRO!$E$48="","",ROUND($D119*INTRO!$E$48,0)) -> 47376 | F119: =IF(INTRO!$E$49="","",ROUND($D119*INTRO!$E$49,0)) -> 66326 | G119: =IF(INTRO!$E$50="","",ROUND($D119*INTRO!$E$50,0)) -> 123177 | H119: 1 | I119: 0 | J119: 3 | K119: 0 | L119: =IF(INTRO!$E$38="Endemic", IF($H119>0, IF($H119=4,"Unknown", IF($H119=99,"Stopped", $D119)), 0),"Not required") -> 236878.3648 | M119: 0 | N119: =IF(INTRO!$E$42="Endemic", IF(AND($J119>1,$J119<5), IF($J119=4, "Unknown", E119+F119), 0),"Not required") -> 113702 | O119: =IF(INTRO!$E$44="Endemic", IF(AND($K119>0,$K119<5), IF($K119=4,"Unknown", IF($K119=1, $F119*0.33, IF($K119=2, $F119*0.5+$G119*0.2, SUM(F119:G119)))), 0),"Not required") -> 0 | P119: 1 | Q119: 0 | R119: 2 | S119: 0 | X119: 36447 | Y119: Brass | AA119: TRUE
A120: =IF(INTRO!$E$34<>0,INTRO!$E$34,"") -> Nigeria | B120: Bayelsa | C120: Ekeremo | D120: 345951.8087 | E120: =IF(INTRO!$E$48="","",ROUND($D120*INTRO!$E$48,0)) -> 69190 | F120: =IF(INTRO!$E$49="","",ROUND($D120*INTRO!$E$49,0)) -> 96867 | G120: =IF(INTRO!$E$50="","",ROUND($D120*INTRO!$E$50,0)) -> 179895 | H120: 0 | I120: 0 | J120: 2 | K120: 1 | L120: =IF(INTRO!$E$38="Endemic", IF($H120>0, IF($H120=4,"Unknown", IF($H120=99,"Stopped", $D120)), 0),"Not required") -> 0 | M120: 0 | N120: =IF(INTRO!$E$42="Endemic", IF(AND($J120>1,$J120<5), IF($J120=4, "Unknown", E120+F120), 0),"Not required") -> 166057 | O120: =IF(INTRO!$E$44="Endemic", IF(AND($K120>0,$K120<5), IF($K120=4,"Unknown", IF($K120=1, $F120*0.33, IF($K120=2, $F120*0.5+$G120*0.2, SUM(F120:G120)))), 0),"Not required") -> 31966.11 | P120: 0 | Q120: 0 | R120: 1 | S120: 1 | X120: 36448 | Y120: Ekeremo | AA120: TRUE
A121: =IF(INTRO!$E$34<>0,INTRO!$E$34,"") -> Nigeria | B121: Bayelsa | C121: Kolokuma/Opokuma | D121: 98940.29459 | E121: =IF(INTRO!$E$48="","",ROUND($D121*INTRO!$E$48,0)) -> 19788 | F121: =IF(INTRO!$E$49="","",ROUND($D121*INTRO!$E$49,0)) -> 27703 | G121: =IF(INTRO!$E$50="","",ROUND($D121*INTRO!$E$50,0)) -> 51449 | H121: 1 | I121: 0 | J121: 1 | K121: 1 | L121: =IF(INTRO!$E$38="Endemic", IF($H121>0, IF($H121=4,"Unknown", IF($H121=99,"Stopped", $D121)), 0),"Not required") -> 98940.29459 | M121: 0 | N121: =IF(INTRO!$E$42="Endemic", IF(AND($J121>1,$J121<5), IF($J121=4, "Unknown", E121+F121), 0),"Not required") -> 0 | O121: =IF(INTRO!$E$44="Endemic", IF(AND($K121>0,$K121<5), IF($K121=4,"Unknown", IF($K121=1, $F121*0.33, IF($K121=2, $F121*0.5+$G121*0.2, SUM(F121:G121)))), 0),"Not required") -> 9141.99 | P121: 1 | Q121: 0 | R121: 0 | S121: 1 | T121: MDA1 (IVM+ALB) | X121: 36449 | Y121: Kolokuma/Opokuma | AA121: TRUE
A122: =IF(INTRO!$E$34<>0,INTRO!$E$34,"") -> Nigeria | B122: Bayelsa | C122: Nembe | D122: 167602.7495 | E122: =IF(INTRO!$E$48="","",ROUND($D122*INTRO!$E$48,0)) -> 33521 | F122: =IF(INTRO!$E$49="","",ROUND($D122*INTRO!$E$49,0)) -> 46929 | G122: =IF(INTRO!$E$50="","",ROUND($D122*INTRO!$E$50,0)) -> 87153 | H122: 1 | I122: 0 | J122: 1 | K122: 0 | L122: =IF(INTRO!$E$38="Endemic", IF($H122>0, IF($H122=4,"Unknown", IF($H122=99,"Stopped", $D122)), 0),"Not required") -> 167602.7495 | M122: 0 | N122: =IF(INTRO!$E$42="Endemic", IF(AND($J122>1,$J122<5), IF($J122=4, "Unknown", E122+F122), 0),"Not required") -> 0 | O122: =IF(INTRO!$E$44="Endemic", IF(AND($K122>0,$K122<5), IF($K122=4,"Unknown", IF($K122=1, $F122*0.33, IF($K122=2, $F122*0.5+$G122*0.2, SUM(F122:G122)))), 0),"Not required") -> 0 | P122: 1 | Q122: 0 | R122: 0 | S122: 0 | X122: 36450 | Y122: Nembe | AA122: TRUE
A123: =IF(INTRO!$E$34<>0,INTRO!$E$34,"") -> Nigeria | B123: Bayelsa | C123: Ogbia | D123: 230320.4917 | E123: =IF(INTRO!$E$48="","",ROUND($D123*INTRO!$E$48,0)) -> 46064 | F123: =IF(INTRO!$E$49="","",ROUND($D123*INTRO!$E$49,0)) -> 64490 | G123: =IF(INTRO!$E$50="","",ROUND($D123*INTRO!$E$50,0)) -> 119767 | H123: 1 | I123: 0 | J123: 2 | K123: 1 | L123: =IF(INTRO!$E$38="Endemic", IF($H123>0, IF($H123=4,"Unknown", IF($H123=99,"Stopped", $D123)), 0),"Not required") -> 230320.4917 | M123: 0 | N123: =IF(INTRO!$E$42="Endemic", IF(AND($J123>1,$J123<5), IF($J123=4, "Unknown", E123+F123), 0),"Not required") -> 110554 | O123: =IF(INTRO!$E$44="Endemic", IF(AND($K123>0,$K123<5), IF($K123=4,"Unknown", IF($K123=1, $F123*0.33, IF($K123=2, $F123*0.5+$G123*0.2, SUM(F123:G123)))), 0),"Not required") -> 21281.7 | P123: 1 | Q123: 0 | R123: 1 | S123: 1 | T123: MDA1 (IVM+ALB) | X123: 36451 | Y123: Ogbia | AA123: TRUE
A124: =IF(INTRO!$E$34<>0,INTRO!$E$34,"") -> Nigeria | B124: Bayelsa | C124: Sagbama | D124: 239562.7021 | E124: =IF(INTRO!$E$48="","",ROUND($D124*INTRO!$E$48,0)) -> 47913 | F124: =IF(INTRO!$E$49="","",ROUND($D124*INTRO!$E$49,0)) -> 67078 | G124: =IF(INTRO!$E$50="","",ROUND($D124*INTRO!$E$50,0)) -> 124573 | H124: 1 | I124: 0 | J124: 2 | K124: 1 | L124: =IF(INTRO!$E$38="Endemic", IF($H124>0, IF($H124=4,"Unknown", IF($H124=99,"Stopped", $D124)), 0),"Not required") -> 239562.7021 | M124: 0 | N124: =IF(INTRO!$E$42="Endemic", IF(AND($J124>1,$J124<5), IF($J124=4, "Unknown", E124+F124), 0),"Not required") -> 114991 | O124: =IF(INTRO!$E$44="Endemic", IF(AND($K124>0,$K124<5), IF($K124=4,"Unknown", IF($K124=1, $F124*0.33, IF($K124=2, $F124*0.5+$G124*0.2, SUM(F124:G124)))), 0),"Not required") -> 22135.74 | P124: 1 | Q124: 0 | R124: 1 | S124: 1 | X124: 36452 | Y124: Sagbama | AA124: TRUE
A125: =IF(INTRO!$E$34<>0,INTRO!$E$34,"") -> Nigeria | B125: Bayelsa | C125: Southern Ijaw | D125: 408875.6445 | E125: =IF(INTRO!$E$48="","",ROUND($D125*INTRO!$E$48,0)) -> 81775 | F125: =IF(INTRO!$E$49="","",ROUND($D125*INTRO!$E$49,0)) -> 114485 | G125: =IF(INTRO!$E$50="","",ROUND($D125*INTRO!$E$50,0)) -> 212615 | H125: 1 | I125: 0 | J125: 3 | K125: 1 | L125: =IF(INTRO!$E$38="Endemic", IF($H125>0, IF($H125=4,"Unknown", IF($H125=99,"Stopped", $D125)), 0),"Not required") -> 408875.6445 | M125: 0 | N125: =IF(INTRO!$E$42="Endemic", IF(AND($J125>1,$J125<5), IF($J125=4, "Unknown", E125+F125), 0),"Not required") -> 196260 | O125: =IF(INTRO!$E$44="Endemic", IF(AND($K125>0,$K125<5), IF($K125=4,"Unknown", IF($K125=1, $F125*0.33, IF($K125=2, $F125*0.5+$G125*0.2, SUM(F125:G125)))), 0),"Not required") -> 37780.05 | P125: 1 | Q125: 0 | R125: 2 | S125: 1 | X125: 36453 | Y125: Southern Ijaw | AA125: TRUE
A126: =IF(INTRO!$E$34<>0,INTRO!$E$34,"") -> Nigeria | B126: Bayelsa | C126: Yenegoa | D126: 452310.1932 | E126: =IF(INTRO!$E$48="","",ROUND($D126*INTRO!$E$48,0)) -> 90462 | F126: =IF(INTRO!$E$49="","",ROUND($D126*INTRO!$E$49,0)) -> 126647 | G126: =IF(INTRO!$E$50="","",ROUND($D126*INTRO!$E$50,0)) -> 235201 | H126: 1 | I126: 0 | J126: 2 | K126: 1 | L126: =IF(INTRO!$E$38="Endemic", IF($H126>0, IF($H126=4,"Unknown", IF($H126=99,"Stopped", $D126)), 0),"Not required") -> 452310.1932 | M126: 0 | N126: =IF(INTRO!$E$42="Endemic", IF(AND($J126>1,$J126<5), IF($J126=4, "Unknown", E126+F126), 0),"Not required") -> 217109 | O126: =IF(INTRO!$E$44="Endemic", IF(AND($K126>0,$K126<5), IF($K126=4,"Unknown", IF($K126=1, $F126*0.33, IF($K126=2, $F126*0.5+$G126*0.2, SUM(F126:G126)))), 0),"Not required") -> 41793.51 | P126: 1 | Q126: 0 | R126: 1 | S126: 1 | T126: MDA1 (IVM+ALB) | X126: 36454 | Y126: Yenegoa | AA126: TRUE
A127: =IF(INTRO!$E$34<>0,INTRO!$E$34,"") -> Nigeria | B127: Benue | C127: Ado | D127: 228984.0834 | E127: =IF(INTRO!$E$48="","",ROUND($D127*INTRO!$E$48,0)) -> 45797 | F127: =IF(INTRO!$E$49="","",ROUND($D127*INTRO!$E$49,0)) -> 64116 | G127: =IF(INTRO!$E$50="","",ROUND($D127*INTRO!$E$50,0)) -> 119072 | H127: 1 | I127: 1 | J127: 2 | K127: 1 | L127: =IF(INTRO!$E$38="Endemic", IF($H127>0, IF($H127=4,"Unknown", IF($H127=99,"Stopped", $D127)), 0),"Not required") -> 228984.0834 | M127: 153236.8081 | N127: =IF(INTRO!$E$42="Endemic", IF(AND($J127>1,$J127<5), IF($J127=4, "Unknown", E127+F127), 0),"Not required") -> 109913 | O127: =IF(INTRO!$E$44="Endemic", IF(AND($K127>0,$K127<5), IF($K127=4,"Unknown", IF($K127=1, $F127*0.33, IF($K127=2, $F127*0.5+$G127*0.2, SUM(F127:G127)))), 0),"Not required") -> 21158.28 | P127: 1 | Q127: 1 | R127: 1 | S127: 1 | X127: 36455 | Y127: Ado | AA127: TRUE
A128: =IF(INTRO!$E$34<>0,INTRO!$E$34,"") -> Nigeria | B128: Benue | C128: Agatu | D128: 147879.2068 | E128: =IF(INTRO!$E$48="","",ROUND($D128*INTRO!$E$48,0)) -> 29576 | F128: =IF(INTRO!$E$49="","",ROUND($D128*INTRO!$E$49,0)) -> 41406 | G128: =IF(INTRO!$E$50="","",ROUND($D128*INTRO!$E$50,0)) -> 76897 | H128: 0 | I128: 1 | J128: 2 | K128: 1 | L128: =IF(INTRO!$E$38="Endemic", IF($H128>0, IF($H128=4,"Unknown", IF($H128=99,"Stopped", $D128)), 0),"Not required") -> 0 | M128: 117266.56 | N128: =IF(INTRO!$E$42="Endemic", IF(AND($J128>1,$J128<5), IF($J128=4, "Unknown", E128+F128), 0),"Not required") -> 70982 | O128: =IF(INTRO!$E$44="Endemic", IF(AND($K128>0,$K128<5), IF($K128=4,"Unknown", IF($K128=1, $F128*0.33, IF($K128=2, $F128*0.5+$G128*0.2, SUM(F128:G128)))), 0),"Not required") -> 13663.98 | P128: 0 | Q128: 1 | R128: 1 | S128: 1 | T128: MDA3 (IVM) | X128: 36456 | Y128: Agatu | AA128: TRUE
A129: =IF(INTRO!$E$34<>0,INTRO!$E$34,"") -> Nigeria | B129: Benue | C129: Apa | D129: 123867.3809 | E129: =IF(INTRO!$E$48="","",ROUND($D129*INTRO!$E$48,0)) -> 24773 | F129: =IF(INTRO!$E$49="","",ROUND($D129*INTRO!$E$49,0)) -> 34683 | G129: =IF(INTRO!$E$50="","",ROUND($D129*INTRO!$E$50,0)) -> 64411 | H129: 1 | I129: 1 | J129: 2 | K129: 2 | L129: =IF(INTRO!$E$38="Endemic", IF($H129>0, IF($H129=4,"Unknown", IF($H129=99,"Stopped", $D129)), 0),"Not required") -> 123867.3809 | M129: 92718.70687 | N129: =IF(INTRO!$E$42="Endemic", IF(AND($J129>1,$J129<5), IF($J129=4, "Unknown", E129+F129), 0),"Not required") -> 59456 | O129: =IF(INTRO!$E$44="Endemic", IF(AND($K129>0,$K129<5), IF($K129=4,"Unknown", IF($K129=1, $F129*0.33, IF($K129=2, $F129*0.5+$G129*0.2, SUM(F129:G129)))), 0),"Not required") -> 30223.7 | P129: 1 | Q129: 1 | R129: 1 | S129: 1 | X129: 36457 | Y129: Apa | AA129: TRUE
A130: =IF(INTRO!$E$34<>0,INTRO!$E$34,"") -> Nigeria | B130: Benue | C130: Buruku | D130: 260780.1034 | E130: =IF(INTRO!$E$48="","",ROUND($D130*INTRO!$E$48,0)) -> 52156 | F130: =IF(INTRO!$E$49="","",ROUND($D130*INTRO!$E$49,0)) -> 73018 | G130: =IF(INTRO!$E$50="","",ROUND($D130*INTRO!$E$50,0)) -> 135606 | H130: 0 | I130: 1 | J130: 2 | K130: 2 | L130: =IF(INTRO!$E$38="Endemic", IF($H130>0, IF($H130=4,"Unknown", IF($H130=99,"Stopped", $D130)), 0),"Not required") -> 0 | M130: 212422.7169 | N130: =IF(INTRO!$E$42="Endemic", IF(AND($J130>1,$J130<5), IF($J130=4, "Unknown", E130+F130), 0),"Not required") -> 125174 | O130: =IF(INTRO!$E$44="Endemic", IF(AND($K130>0,$K130<5), IF($K130=4,"Unknown", IF($K130=1, $F130*0.33, IF($K130=2, $F130*0.5+$G130*0.2, SUM(F130:G130)))), 0),"Not required") -> 63630.2 | P130: 0 | Q130: 1 | R130: 1 | S130: 1 | T130: MDA3 (IVM) | X130: 36458 | Y130: Buruku | AA130: TRUE
A131: =IF(INTRO!$E$34<>0,INTRO!$E$34,"") -> Nigeria | B131: Benue | C131: Gboko | D131: 459468.426 | E131: =IF(INTRO!$E$48="","",ROUND($D131*INTRO!$E$48,0)) -> 91894 | F131: =IF(INTRO!$E$49="","",ROUND($D131*INTRO!$E$49,0)) -> 128651 | G131: =IF(INTRO!$E$50="","",ROUND($D131*INTRO!$E$50,0)) -> 238924 | H131: 1 | I131: 1 | J131: 2 | K131: 2 | L131: =IF(INTRO!$E$38="Endemic", IF($H131>0, IF($H131=4,"Unknown", IF($H131=99,"Stopped", $D131)), 0),"Not required") -> 459468.426 | M131: 338862.2837 | N131: =IF(INTRO!$E$42="Endemic", IF(AND($J131>1,$J131<5), IF($J131=4, "Unknown", E131+F131), 0),"Not required") -> 220545 | O131: =IF(INTRO!$E$44="Endemic", IF(AND($K131>0,$K131<5), IF($K131=4,"Unknown", IF($K131=1, $F131*0.33, IF($K131=2, $F131*0.5+$G131*0.2, SUM(F131:G131)))), 0),"Not required") -> 112110.3 | P131: 1 | Q131: 1 | R131: 1 | S131: 1 | X131: 36459 | Y131: Gboko | AA131: TRUE
A132: =IF(INTRO!$E$34<>0,INTRO!$E$34,"") -> Nigeria | B132: Benue | C132: Guma | D132: 245262.9186 | E132: =IF(INTRO!$E$48="","",ROUND($D132*INTRO!$E$48,0)) -> 49053 | F132: =IF(INTRO!$E$49="","",ROUND($D132*INTRO!$E$49,0)) -> 68674 | G132: =IF(INTRO!$E$50="","",ROUND($D132*INTRO!$E$50,0)) -> 127537 | H132: 1 | I132: 1 | J132: 2 | K132: 2 | L132: =IF(INTRO!$E$38="Endemic", IF($H132>0, IF($H132=4,"Unknown", IF($H132=99,"Stopped", $D132)), 0),"Not required") -> 245262.9186 | M132: 146151.3931 | N132: =IF(INTRO!$E$42="Endemic", IF(AND($J132>1,$J132<5), IF($J132=4, "Unknown", E132+F132), 0),"Not required") -> 117727 | O132: =IF(INTRO!$E$44="Endemic", IF(AND($K132>0,$K132<5), IF($K132=4,"Unknown", IF($K132=1, $F132*0.33, IF($K132=2, $F132*0.5+$G132*0.2, SUM(F132:G132)))), 0),"Not required") -> 59844.4 | P132: 1 | Q132: 1 | R132: 1 | S132: 1 | X132: 36460 | Y132: Guma | AA132: TRUE
A133: =IF(INTRO!$E$34<>0,INTRO!$E$34,"") -> Nigeria | B133: Benue | C133: Gwer East | D133: 209481.9954 | E133: =IF(INTRO!$E$48="","",ROUND($D133*INTRO!$E$48,0)) -> 41896 | F133: =IF(INTRO!$E$49="","",ROUND($D133*INTRO!$E$49,0)) -> 58655 | G133: =IF(INTRO!$E$50="","",ROUND($D133*INTRO!$E$50,0)) -> 108931 | H133: 1 | I133: 1 | J133: 2 | K133: 2 | L133: =IF(INTRO!$E$38="Endemic", IF($H133>0, IF($H133=4,"Unknown", IF($H133=99,"Stopped", $D133)), 0),"Not required") -> 209481.9954 | M133: 92775.44062 | N133: =IF(INTRO!$E$42="Endemic", IF(AND($J133>1,$J133<5), IF($J133=4, "Unknown", E133+F133), 0),"Not required") -> 100551 | O133: =IF(INTRO!$E$44="Endemic", IF(AND($K133>0,$K133<5), IF($K133=4,"Unknown", IF($K133=1, $F133*0.33, IF($K133=2, $F133*0.5+$G133*0.2, SUM(F133:G133)))), 0),"Not required") -> 51113.7 | P133: 1 | Q133: 1 | R133: 1 | S133: 1 | X133: 36461 | Y133: Gwer East | AA133: TRUE
A134: =IF(INTRO!$E$34<>0,INTRO!$E$34,"") -> Nigeria | B134: Benue | C134: Gwer West | D134: 156355.9267 | E134: =IF(INTRO!$E$48="","",ROUND($D134*INTRO!$E$48,0)) -> 31271 | F134: =IF(INTRO!$E$49="","",ROUND($D134*INTRO!$E$49,0)) -> 43780 | G134: =IF(INTRO!$E$50="","",ROUND($D134*INTRO!$E$50,0)) -> 81305 | H134: 0 | I134: 1 | J134: 2 | K134: 2 | L134: =IF(INTRO!$E$38="Endemic", IF($H134>0, IF($H134=4,"Unknown", IF($H134=99,"Stopped", $D134)), 0),"Not required") -> 0 | M134: 104963.7412 | N134: =IF(INTRO!$E$42="Endemic", IF(AND($J134>1,$J134<5), IF($J134=4, "Unknown", E134+F134), 0),"Not required") -> 75051 | O134: =IF(INTRO!$E$44="Endemic", IF(AND($K134>0,$K134<5), IF($K134=4,"Unknown", IF($K134=1, $F134*0.33, IF($K134=2, $F134*0.5+$G134*0.2, SUM(F134:G134)))), 0),"Not required") -> 38151 | P134: 0 | Q134: 1 | R134: 1 | S134: 1 | T134: MDA3 (IVM) | X134: 36462 | Y134: Gwer West | AA134: TRUE
A135: =IF(INTRO!$E$34<>0,INTRO!$E$34,"") -> Nigeria | B135: Benue | C135: Katsina-Ala | D135: 287658.0386 | E135: =IF(INTRO!$E$48="","",ROUND($D135*INTRO!$E$48,0)) -> 57532 | F135: =IF(INTRO!$E$49="","",ROUND($D135*INTRO!$E$49,0)) -> 80544 | G135: =IF(INTRO!$E$50="","",ROUND($D135*INTRO!$E$50,0)) -> 149582 | H135: 1 | I135: 1 | J135: 1 | K135: 2 | L135: =IF(INTRO!$E$38="Endemic", IF($H135>0, IF($H135=4,"Unknown", IF($H135=99,"Stopped", $D135)), 0),"Not required") -> 287658.0386 | M135: 278193.9431 | N135: =IF(INTRO!$E$42="Endemic", IF(AND($J135>1,$J135<5), IF($J135=4, "Unknown", E135+F135), 0),"Not required") -> 0 | O135: =IF(INTRO!$E$44="Endemic", IF(AND($K135>0,$K135<5), IF($K135=4,"Unknown", IF($K135=1, $F135*0.33, IF($K135=2, $F135*0.5+$G135*0.2, SUM(F135:G135)))), 0),"Not required") -> 70188.4 | P135: 1 | Q135: 1 | R135: 0 | S135: 1 | T135: MDA1 (IVM+ALB) | X135: 36463 | Y135: Katsina-Ala | AA135: TRUE
A136: =IF(INTRO!$E$34<>0,INTRO!$E$34,"") -> Nigeria | B136: Benue | C136: Konshisha | D136: 288879.2393 | E136: =IF(INTRO!$E$48="","",ROUND($D136*INTRO!$E$48,0)) -> 57776 | F136: =IF(INTRO!$E$49="","",ROUND($D136*INTRO!$E$49,0)) -> 80886 | G136: =IF(INTRO!$E$50="","",ROUND($D136*INTRO!$E$50,0)) -> 150217 | H136: 1 | I136: 1 | J136: 2 | K136: 1 | L136: =IF(INTRO!$E$38="Endemic", IF($H136>0, IF($H136=4,"Unknown", IF($H136=99,"Stopped", $D136)), 0),"Not required") -> 288879.2393 | M136: 221859.4306 | N136: =IF(INTRO!$E$42="Endemic", IF(AND($J136>1,$J136<5), IF($J136=4, "Unknown", E136+F136), 0),"Not required") -> 138662 | O136: =IF(INTRO!$E$44="Endemic", IF(AND($K136>0,$K136<5), IF($K136=4,"Unknown", IF($K136=1, $F136*0.33, IF($K136=2, $F136*0.5+$G136*0.2, SUM(F136:G136)))), 0),"Not required") -> 26692.38 | P136: 1 | Q136: 1 | R136: 1 | S136: 1 | T136: MDA1 (IVM+ALB) | X136: 36464 | Y136: Konshisha | AA136: TRUE
A137: =IF(INTRO!$E$34<>0,INTRO!$E$34,"") -> Nigeria | B137: Benue | C137: Kwande | D137: 318353.1859 | E137: =IF(INTRO!$E$48="","",ROUND($D137*INTRO!$E$48,0)) -> 63671 | F137: =IF(INTRO!$E$49="","",ROUND($D137*INTRO!$E$49,0)) -> 89139 | G137: =IF(INTRO!$E$50="","",ROUND($D137*INTRO!$E$50,0)) -> 165544 | H137: 1 | I137: 1 | J137: 2 | K137: 2 | L137: =IF(INTRO!$E$38="Endemic", IF($H137>0, IF($H137=4,"Unknown", IF($H137=99,"Stopped", $D137)), 0),"Not required") -> 318353.1859 | M137: 318353.1859 | N137: =IF(INTRO!$E$42="Endemic", IF(AND($J137>1,$J137<5), IF($J137=4, "Unknown", E137+F137), 0),"Not required") -> 152810 | O137: =IF(INTRO!$E$44="Endemic", IF(AND($K137>0,$K137<5), IF($K137=4,"Unknown", IF($K137=1, $F137*0.33, IF($K137=2, $F137*0.5+$G137*0.2, SUM(F137:G137)))), 0),"Not required") -> 77678.3 | P137: 1 | Q137: 1 | R137: 1 | S137: 1 | T137: MDA1 (IVM+ALB) | X137: 36465 | Y137: Kwande | AA137: TRUE
A138: =IF(INTRO!$E$34<>0,INTRO!$E$34,"") -> Nigeria | B138: Benue | C138: Logo | D138: 216414.9333 | E138: =IF(INTRO!$E$48="","",ROUND($D138*INTRO!$E$48,0)) -> 43283 | F138: =IF(INTRO!$E$49="","",ROUND($D138*INTRO!$E$49,0)) -> 60596 | G138: =IF(INTRO!$E$50="","",ROUND($D138*INTRO!$E$50,0)) -> 112536 | H138: 1 | I138: 1 | J138: 1 | K138: 2 | L138: =IF(INTRO!$E$38="Endemic", IF($H138>0, IF($H138=4,"Unknown", IF($H138=99,"Stopped", $D138)), 0),"Not required") -> 216414.9333 | M138: 147805.0769 | N138: =IF(INTRO!$E$42="Endemic", IF(AND($J138>1,$J138<5), IF($J138=4, "Unknown", E138+F138), 0),"Not required") -> 0 | O138: =IF(INTRO!$E$44="Endemic", IF(AND($K138>0,$K138<5), IF($K138=4,"Unknown", IF($K138=1, $F138*0.33, IF($K138=2, $F138*0.5+$G138*0.2, SUM(F138:G138)))), 0),"Not required") -> 52805.2 | P138: 1 | Q138: 1 | R138: 0 | S138: 1 | T138: MDA1 (IVM+ALB) | X138: 36466 | Y138: Logo | AA138: =Y138=C138 -> TRUE
A139: =IF(INTRO!$E$34<>0,INTRO!$E$34,"") -> Nigeria | B139: Benue | C139: Makurdi | D139: 380694.5833 | E139: =IF(INTRO!$E$48="","",ROUND($D139*INTRO!$E$48,0)) -> 76139 | F139: =IF(INTRO!$E$49="","",ROUND($D139*INTRO!$E$49,0)) -> 106594 | G139: =IF(INTRO!$E$50="","",ROUND($D139*INTRO!$E$50,0)) -> 197961 | H139: 1 | I139: 1 | J139: 2 | K139: 2 | L139: =IF(INTRO!$E$38="Endemic", IF($H139>0, IF($H139=4,"Unknown", IF($H139=99,"Stopped", $D139)), 0),"Not required") -> 380694.5833 | M139: 37997.95437 | N139: =IF(INTRO!$E$42="Endemic", IF(AND($J139>1,$J139<5), IF($J139=4, "Unknown", E139+F139), 0),"Not required") -> 182733 | O139: =IF(INTRO!$E$44="Endemic", IF(AND($K139>0,$K139<5), IF($K139=4,"Unknown", IF($K139=1, $F139*0.33, IF($K139=2, $F139*0.5+$G139*0.2, SUM(F139:G139)))), 0),"Not required") -> 92889.2 | P139: 1 | Q139: 0 | R139: 1 | S139: 1 | X139: 36467 | Y139: Makurdi | AA139: TRUE
A140: =IF(INTRO!$E$34<>0,INTRO!$E$34,"") -> Nigeria | B140: Benue | C140: Obi | D140: 126542.7576 | E140: =IF(INTRO!$E$48="","",ROUND($D140*INTRO!$E$48,0)) -> 25309 | F140: =IF(INTRO!$E$49="","",ROUND($D140*INTRO!$E$49,0)) -> 35432 | G140: =IF(INTRO!$E$50="","",ROUND($D140*INTRO!$E$50,0)) -> 65802 | H140: 1 | I140: 1 | J140: 2 | K140: 2 | L140: =IF(INTRO!$E$38="Endemic", IF($H140>0, IF($H140=4,"Unknown", IF($H140=99,"Stopped", $D140)), 0),"Not required") -> 126542.7576 | M140: 102599.835 | N140: =IF(INTRO!$E$42="Endemic", IF(AND($J140>1,$J140<5), IF($J140=4, "Unknown", E140+F140), 0),"Not required") -> 60741 | O140: =IF(INTRO!$E$44="Endemic", IF(AND($K140>0,$K140<5), IF($K140=4,"Unknown", IF($K140=1, $F140*0.33, IF($K140=2, $F140*0.5+$G140*0.2, SUM(F140:G140)))), 0),"Not required") -> 30876.4 | P140: 1 | Q140: 1 | R140: 1 | S140: 1 | X140: 36468 | Y140: Obi | AA140: TRUE
A141: =IF(INTRO!$E$34<>0,INTRO!$E$34,"") -> Nigeria | B141: Benue | C141: Ogbadibo | D141: 164755.8414 | E141: =IF(INTRO!$E$48="","",ROUND($D141*INTRO!$E$48,0)) -> 32951 | F141: =IF(INTRO!$E$49="","",ROUND($D141*INTRO!$E$49,0)) -> 46132 | G141: =IF(INTRO!$E$50="","",ROUND($D141*INTRO!$E$50,0)) -> 85673 | H141: 0 | I141: 1 | J141: 2 | K141: 1 | L141: =IF(INTRO!$E$38="Endemic", IF($H141>0, IF($H141=4,"Unknown", IF($H141=99,"Stopped", $D141)), 0),"Not required") -> 0 | M141: 164755.8414 | N141: =IF(INTRO!$E$42="Endemic", IF(AND($J141>1,$J141<5), IF($J141=4, "Unknown", E141+F141), 0),"Not required") -> 79083 | O141: =IF(INTRO!$E$44="Endemic", IF(AND($K141>0,$K141<5), IF($K141=4,"Unknown", IF($K141=1, $F141*0.33, IF($K141=2, $F141*0.5+$G141*0.2, SUM(F141:G141)))), 0),"Not required") -> 15223.56 | P141: 0 | Q141: 1 | R141: 1 | S141: 1 | T141: MDA3 (IVM) | X141: 36469 | Y141: Ogbadibo | AA141: TRUE
A142: =IF(INTRO!$E$34<>0,INTRO!$E$34,"") -> Nigeria | B142: Benue | C142: Ohimini | D142: 91503.00339 | E142: =IF(INTRO!$E$48="","",ROUND($D142*INTRO!$E$48,0)) -> 18301 | F142: =IF(INTRO!$E$49="","",ROUND($D142*INTRO!$E$49,0)) -> 25621 | G142: =IF(INTRO!$E$50="","",ROUND($D142*INTRO!$E$50,0)) -> 47582 | H142: 1 | I142: 1 | J142: 2 | K142: 1 | L142: =IF(INTRO!$E$38="Endemic", IF($H142>0, IF($H142=4,"Unknown", IF($H142=99,"Stopped", $D142)), 0),"Not required") -> 91503.00339 | M142: 91503.00339 | N142: =IF(INTRO!$E$42="Endemic", IF(AND($J142>1,$J142<5), IF($J142=4, "Unknown", E142+F142), 0),"Not required") -> 43922 | O142: =IF(INTRO!$E$44="Endemic", IF(AND($K142>0,$K142<5), IF($K142=4,"Unknown", IF($K142=1, $F142*0.33, IF($K142=2, $F142*0.5+$G142*0.2, SUM(F142:G142)))), 0),"Not required") -> 8454.93 | P142: 1 | Q142: 1 | R142: 1 | S142: 1 | X142: 36470 | Y142: Ohimini | AA142: TRUE
A143: =IF(INTRO!$E$34<>0,INTRO!$E$34,"") -> Nigeria | B143: Benue | C143: Oju | D143: 217916.4725 | E143: =IF(INTRO!$E$48="","",ROUND($D143*INTRO!$E$48,0)) -> 43583 | F143: =IF(INTRO!$E$49="","",ROUND($D143*INTRO!$E$49,0)) -> 61017 | G143: =IF(INTRO!$E$50="","",ROUND($D143*INTRO!$E$50,0)) -> 113317 | H143: 1 | I143: 1 | J143: 2 | K143: 2 | L143: =IF(INTRO!$E$38="Endemic", IF($H143>0, IF($H143=4,"Unknown", IF($H143=99,"Stopped", $D143)), 0),"Not required") -> 217916.4725 | M143: 111982.9669 | N143: =IF(INTRO!$E$42="Endemic", IF(AND($J143>1,$J143<5), IF($J143=4, "Unknown", E143+F143), 0),"Not required") -> 104600 | O143: =IF(INTRO!$E$44="Endemic", IF(AND($K143>0,$K143<5), IF($K143=4,"Unknown", IF($K143=1, $F143*0.33, IF($K143=2, $F143*0.5+$G143*0.2, SUM(F143:G143)))), 0),"Not required") -> 53171.9 | P143: 1 | Q143: 1 | R143: 1 | S143: 1 | X143: 36471 | Y143: Oju | AA143: TRUE
A144: =IF(INTRO!$E$34<>0,INTRO!$E$34,"") -> Nigeria | B144: Benue | C144: Okpokwu | D144: 226123.0945 | E144: =IF(INTRO!$E$48="","",ROUND($D144*INTRO!$E$48,0)) -> 45225 | F144: =IF(INTRO!$E$49="","",ROUND($D144*INTRO!$E$49,0)) -> 63314 | G144: =IF(INTRO!$E$50="","",ROUND($D144*INTRO!$E$50,0)) -> 117584 | H144: 0 | I144: 1 | J144: 1 | K144: 0 | L144: =IF(INTRO!$E$38="Endemic", IF($H144>0, IF($H144=4,"Unknown", IF($H144=99,"Stopped", $D144)), 0),"Not required") -> 0 | M144: 153438.5281 | N144: =IF(INTRO!$E$42="Endemic", IF(AND($J144>1,$J144<5), IF($J144=4, "Unknown", E144+F144), 0),"Not required") -> 0 | O144: =IF(INTRO!$E$44="Endemic", IF(AND($K144>0,$K144<5), IF($K144=4,"Unknown", IF($K144=1, $F144*0.33, IF($K144=2, $F144*0.5+$G144*0.2, SUM(F144:G144)))), 0),"Not required") -> 0 | P144: 0 | Q144: 1 | R144: 0 | S144: 0 | T144: MDA3 (IVM) | X144: 36472 | Y144: Okpokwu | AA144: TRUE
A145: =IF(INTRO!$E$34<>0,INTRO!$E$34,"") -> Nigeria | B145: Benue | C145: Otorkpo | D145: 334954.6023 | E145: =IF(INTRO!$E$48="","",ROUND($D145*INTRO!$E$48,0)) -> 66991 | F145: =IF(INTRO!$E$49="","",ROUND($D145*INTRO!$E$49,0)) -> 93787 | G145: =IF(INTRO!$E$50="","",ROUND($D145*INTRO!$E$50,0)) -> 174176 | H145: 1 | I145: 1 | J145: 1 | K145: 2 | L145: =IF(INTRO!$E$38="Endemic", IF($H145>0, IF($H145=4,"Unknown", IF($H145=99,"Stopped", $D145)), 0),"Not required") -> 334954.6023 | M145: 173826.9569 | N145: =IF(INTRO!$E$42="Endemic", IF(AND($J145>1,$J145<5), IF($J145=4, "Unknown", E145+F145), 0),"Not required") -> 0 | O145: =IF(INTRO!$E$44="Endemic", IF(AND($K145>0,$K145<5), IF($K145=4,"Unknown", IF($K145=1, $F145*0.33, IF($K145=2, $F145*0.5+$G145*0.2, SUM(F145:G145)))), 0),"Not required") -> 81728.7 | P145: 1 | Q145: 1 | R145: 0 | S145: 1 | X145: 36473 | Y145: Otorkpo | AA145: TRUE
A146: =IF(INTRO!$E$34<>0,INTRO!$E$34,"") -> Nigeria | B146: Benue | C146: Tarka | D146: 101759.0408 | E146: =IF(INTRO!$E$48="","",ROUND($D146*INTRO!$E$48,0)) -> 20352 | F146: =IF(INTRO!$E$49="","",ROUND($D146*INTRO!$E$49,0)) -> 28493 | G146: =IF(INTRO!$E$50="","",ROUND($D146*INTRO!$E$50,0)) -> 52915 | H146: 1 | I146: 1 | J146: 2 | K146: 2 | L146: =IF(INTRO!$E$38="Endemic", IF($H146>0, IF($H146=4,"Unknown", IF($H146=99,"Stopped", $D146)), 0),"Not required") -> 101759.0408 | M146: 76983.49625 | N146: =IF(INTRO!$E$42="Endemic", IF(AND($J146>1,$J146<5), IF($J146=4, "Unknown", E146+F146), 0),"Not required") -> 48845 | O146: =IF(INTRO!$E$44="Endemic", IF(AND($K146>0,$K146<5), IF($K146=4,"Unknown", IF($K146=1, $F146*0.33, IF($K146=2, $F146*0.5+$G146*0.2, SUM(F146:G146)))), 0),"Not required") -> 24829.5 | P146: 1 | Q146: 1 | R146: 1 | S146: 1 | X146: 36474 | Y146: Tarka | AA146: TRUE
A147: =IF(INTRO!$E$34<>0,INTRO!$E$34,"") -> Nigeria | B147: Benue | C147: Ukum | D147: 277688.7402 | E147: =IF(INTRO!$E$48="","",ROUND($D147*INTRO!$E$48,0)) -> 55538 | F147: =IF(INTRO!$E$49="","",ROUND($D147*INTRO!$E$49,0)) -> 77753 | G147: =IF(INTRO!$E$50="","",ROUND($D147*INTRO!$E$50,0)) -> 144398 | H147: 1 | I147: 1 | J147: 2 | K147: 2 | L147: =IF(INTRO!$E$38="Endemic", IF($H147>0, IF($H147=4,"Unknown", IF($H147=99,"Stopped", $D147)), 0),"Not required") -> 277688.7402 | M147: 203054.2937 | N147: =IF(INTRO!$E$42="Endemic", IF(AND($J147>1,$J147<5), IF($J147=4, "Unknown", E147+F147), 0),"Not required") -> 133291 | O147: =IF(INTRO!$E$44="Endemic", IF(AND($K147>0,$K147<5), IF($K147=4,"Unknown", IF($K147=1, $F147*0.33, IF($K147=2, $F147*0.5+$G147*0.2, SUM(F147:G147)))), 0),"Not required") -> 67756.1 | P147: 1 | Q147: 1 | R147: 1 | S147: 1 | T147: MDA1 (IVM+ALB) | X147: 36475 | Y147: Ukum | AA147: TRUE
A148: =IF(INTRO!$E$34<>0,INTRO!$E$34,"") -> Nigeria | B148: Benue | C148: Ushongo | D148: 241092.4031 | E148: =IF(INTRO!$E$48="","",ROUND($D148*INTRO!$E$48,0)) -> 48218 | F148: =IF(INTRO!$E$49="","",ROUND($D148*INTRO!$E$49,0)) -> 67506 | G148: =IF(INTRO!$E$50="","",ROUND($D148*INTRO!$E$50,0)) -> 125368 | H148: 0 | I148: 1 | J148: 1 | K148: 2 | L148: =IF(INTRO!$E$38="Endemic", IF($H148>0, IF($H148=4,"Unknown", IF($H148=99,"Stopped", $D148)), 0),"Not required") -> 0 | M148: 195896.3856 | N148: =IF(INTRO!$E$42="Endemic", IF(AND($J148>1,$J148<5), IF($J148=4, "Unknown", E148+F148), 0),"Not required") -> 0 | O148: =IF(INTRO!$E$44="Endemic", IF(AND($K148>0,$K148<5), IF($K148=4,"Unknown", IF($K148=1, $F148*0.33, IF($K148=2, $F148*0.5+$G148*0.2, SUM(F148:G148)))), 0),"Not required") -> 58826.6 | P148: 0 | Q148: 1 | R148: 0 | S148: 1 | T148: MDA3 (IVM) | X148: 36476 | Y148: Ushongo | AA148: TRUE
A149: =IF(INTRO!$E$34<>0,INTRO!$E$34,"") -> Nigeria | B149: Benue | C149: Vandeikya | D149: 294573.0553 | E149: =IF(INTRO!$E$48="","",ROUND($D149*INTRO!$E$48,0)) -> 58915 | F149: =IF(INTRO!$E$49="","",ROUND($D149*INTRO!$E$49,0)) -> 82480 | G149: =IF(INTRO!$E$50="","",ROUND($D149*INTRO!$E$50,0)) -> 153178 | H149: 0 | I149: 1 | J149: 2 | K149: 2 | L149: =IF(INTRO!$E$38="Endemic", IF($H149>0, IF($H149=4,"Unknown", IF($H149=99,"Stopped", $D149)), 0),"Not required") -> 0 | M149: 98493.9925 | N149: =IF(INTRO!$E$42="Endemic", IF(AND($J149>1,$J149<5), IF($J149=4, "Unknown", E149+F149), 0),"Not required") -> 141395 | O149: =IF(INTRO!$E$44="Endemic", IF(AND($K149>0,$K149<5), IF($K149=4,"Unknown", IF($K149=1, $F149*0.33, IF($K149=2, $F149*0.5+$G149*0.2, SUM(F149:G149)))), 0),"Not required") -> 71875.6 | P149: 0 | Q149: 1 | R149: 1 | S149: 1 | T149: MDA3 (IVM) | X149: 36477 | Y149: Vandeikya | AA149: TRUE
A150: =IF(INTRO!$E$34<>0,INTRO!$E$34,"") -> Nigeria | B150: Borno | C150: Adadara | D150: 128238.8696 | E150: =IF(INTRO!$E$48="","",ROUND($D150*INTRO!$E$48,0)) -> 25648 | F150: =IF(INTRO!$E$49="","",ROUND($D150*INTRO!$E$49,0)) -> 35907 | G150: =IF(INTRO!$E$50="","",ROUND($D150*INTRO!$E$50,0)) -> 66684 | H150: 4 | I150: 0 | J150: 4 | K150: 4 | L150: =IF(INTRO!$E$38="Endemic", IF($H150>0, IF($H150=4,"Unknown", IF($H150=99,"Stopped", $D150)), 0),"Not required") -> Unknown | M150: 0 | N150: =IF(INTRO!$E$42="Endemic", IF(AND($J150>1,$J150<5), IF($J150=4, "Unknown", E150+F150), 0),"Not required") -> Unknown | O150: =IF(INTRO!$E$44="Endemic", IF(AND($K150>0,$K150<5), IF($K150=4,"Unknown", IF($K150=1, $F150*0.33, IF($K150=2, $F150*0.5+$G150*0.2, SUM(F150:G150)))), 0),"Not required") -> Unknown | P150: 0 | Q150: 0 | R150: 0 | S150: 0 | X150: 36478 | Y150: Adadara | AA150: TRUE
A151: =IF(INTRO!$E$34<>0,INTRO!$E$34,"") -> Nigeria | B151: Borno | C151: Askir/Uba | D151: 176768.1548 | E151: =IF(INTRO!$E$48="","",ROUND($D151*INTRO!$E$48,0)) -> 35354 | F151: =IF(INTRO!$E$49="","",ROUND($D151*INTRO!$E$49,0)) -> 49495 | G151: =IF(INTRO!$E$50="","",ROUND($D151*INTRO!$E$50,0)) -> 91919 | H151: 4 | I151: 1 | J151: 4 | K151: 4 | L151: =IF(INTRO!$E$38="Endemic", IF($H151>0, IF($H151=4,"Unknown", IF($H151=99,"Stopped", $D151)), 0),"Not required") -> Unknown | M151: 176768.1548 | N151: =IF(INTRO!$E$42="Endemic", IF(AND($J151>1,$J151<5), IF($J151=4, "Unknown", E151+F151), 0),"Not required") -> Unknown | O151: =IF(INTRO!$E$44="Endemic", IF(AND($K151>0,$K151<5), IF($K151=4,"Unknown", IF($K151=1, $F151*0.33, IF($K151=2, $F151*0.5+$G151*0.2, SUM(F151:G151)))), 0),"Not required") -> Unknown | P151: 0 | Q151: 1 | R151: 0 | S151: 0 | X151: 36479 | Y151: Askir/Uba | AA151: TRUE
A152: =IF(INTRO!$E$34<>0,INTRO!$E$34,"") -> Nigeria | B152: Borno | C152: Bama | D152: 345604.9057 | E152: =IF(INTRO!$E$48="","",ROUND($D152*INTRO!$E$48,0)) -> 69121 | F152: =IF(INTRO!$E$49="","",ROUND($D152*INTRO!$E$49,0)) -> 96769 | G152: =IF(INTRO!$E$50="","",ROUND($D152*INTRO!$E$50,0)) -> 179715 | H152: 0 | I152: 1 | J152: 4 | K152: 4 | L152: =IF(INTRO!$E$38="Endemic", IF($H152>0, IF($H152=4,"Unknown", IF($H152=99,"Stopped", $D152)), 0),"Not required") -> 0 | M152: 117283.8726 | N152: =IF(INTRO!$E$42="Endemic", IF(AND($J152>1,$J152<5), IF($J152=4, "Unknown", E152+F152), 0),"Not required") -> Unknown | O152: =IF(INTRO!$E$44="Endemic", IF(AND($K152>0,$K152<5), IF($K152=4,"Unknown", IF($K152=1, $F152*0.33, IF($K152=2, $F152*0.5+$G152*0.2, SUM(F152:G152)))), 0),"Not required") -> Unknown | P152: 0 | Q152: 1 | R152: 0 | S152: 0 | X152: 36480 | Y152: Bama | AA152: TRUE
A153: =IF(INTRO!$E$34<>0,INTRO!$E$34,"") -> Nigeria | B153: Borno | C153: Bayo | D153: 101098.5171 | E153: =IF(INTRO!$E$48="","",ROUND($D153*INTRO!$E$48,0)) -> 20220 | F153: =IF(INTRO!$E$49="","",ROUND($D153*INTRO!$E$49,0)) -> 28308 | G153: =IF(INTRO!$E$50="","",ROUND($D153*INTRO!$E$50,0)) -> 52571 | H153: 4 | I153: 1 | J153: 4 | K153: 4 | L153: =IF(INTRO!$E$38="Endemic", IF($H153>0, IF($H153=4,"Unknown", IF($H153=99,"Stopped", $D153)), 0),"Not required") -> Unknown | M153: 101098.5171 | N153: =IF(INTRO!$E$42="Endemic", IF(AND($J153>1,$J153<5), IF($J153=4, "Unknown", E153+F153), 0),"Not required") -> Unknown | O153: =IF(INTRO!$E$44="Endemic", IF(AND($K153>0,$K153<5), IF($K153=4,"Unknown", IF($K153=1, $F153*0.33, IF($K153=2, $F153*0.5+$G153*0.2, SUM(F153:G153)))), 0),"Not required") -> Unknown | P153: 0 | Q153: 1 | R153: 0 | S153: 0 | X153: 36481 | Y153: Bayo | AA153: TRUE
A154: =IF(INTRO!$E$34<>0,INTRO!$E$34,"") -> Nigeria | B154: Borno | C154: Biu | D154: 225387.0459 | E154: =IF(INTRO!$E$48="","",ROUND($D154*INTRO!$E$48,0)) -> 45077 | F154: =IF(INTRO!$E$49="","",ROUND($D154*INTRO!$E$49,0)) -> 63108 | G154: =IF(INTRO!$E$50="","",ROUND($D154*INTRO!$E$50,0)) -> 117201 | H154: 4 | I154: 1 | J154: 4 | K154: 4 | L154: =IF(INTRO!$E$38="Endemic", IF($H154>0, IF($H154=4,"Unknown", IF($H154=99,"Stopped", $D154)), 0),"Not required") -> Unknown | M154: 206129.4731 | N154: =IF(INTRO!$E$42="Endemic", IF(AND($J154>1,$J154<5), IF($J154=4, "Unknown", E154+F154), 0),"Not required") -> Unknown | O154: =IF(INTRO!$E$44="Endemic", IF(AND($K154>0,$K154<5), IF($K154=4,"Unknown", IF($K154=1, $F154*0.33, IF($K154=2, $F154*0.5+$G154*0.2, SUM(F154:G154)))), 0),"Not required") -> Unknown | P154: 0 | Q154: 1 | R154: 0 | S154: 0 | X154: 36482 | Y154: Biu | AA154: TRUE
A155: =IF(INTRO!$E$34<>0,INTRO!$E$34,"") -> Nigeria | B155: Borno | C155: Chibok | D155: 84619.98879 | E155: =IF(INTRO!$E$48="","",ROUND($D155*INTRO!$E$48,0)) -> 16924 | F155: =IF(INTRO!$E$49="","",ROUND($D155*INTRO!$E$49,0)) -> 23694 | G155: =IF(INTRO!$E$50="","",ROUND($D155*INTRO!$E$50,0)) -> 44002 | H155: 0 | I155: 1 | J155: 4 | K155: 4 | L155: =IF(INTRO!$E$38="Endemic", IF($H155>0, IF($H155=4,"Unknown", IF($H155=99,"Stopped", $D155)), 0),"Not required") -> 0 | M155: 84619.98879 | N155: =IF(INTRO!$E$42="Endemic", IF(AND($J155>1,$J155<5), IF($J155=4, "Unknown", E155+F155), 0),"Not required") -> Unknown | O155: =IF(INTRO!$E$44="Endemic", IF(AND($K155>0,$K155<5), IF($K155=4,"Unknown", IF($K155=1, $F155*0.33, IF($K155=2, $F155*0.5+$G155*0.2, SUM(F155:G155)))), 0),"Not required") -> Unknown | P155: 0 | Q155: 1 | R155: 0 | S155: 0 | X155: 36483 | Y155: Chibok | AA155: TRUE
A156: =IF(INTRO!$E$34<>0,INTRO!$E$34,"") -> Nigeria | B156: Borno | C156: Damboa | D156: 296433.0182 | E156: =IF(INTRO!$E$48="","",ROUND($D156*INTRO!$E$48,0)) -> 59287 | F156: =IF(INTRO!$E$49="","",ROUND($D156*INTRO!$E$49,0)) -> 83001 | G156: =IF(INTRO!$E$50="","",ROUND($D156*INTRO!$E$50,0)) -> 154145 | H156: 1 | I156: 1 | J156: 4 | K156: 4 | L156: =IF(INTRO!$E$38="Endemic", IF($H156>0, IF($H156=4,"Unknown", IF($H156=99,"Stopped", $D156)), 0),"Not required") -> 296433.0182 | M156: 103363.6394 | N156: =IF(INTRO!$E$42="Endemic", IF(AND($J156>1,$J156<5), IF($J156=4, "Unknown", E156+F156), 0),"Not required") -> Unknown | O156: =IF(INTRO!$E$44="Endemic", IF(AND($K156>0,$K156<5), IF($K156=4,"Unknown", IF($K156=1, $F156*0.33, IF($K156=2, $F156*0.5+$G156*0.2, SUM(F156:G156)))), 0),"Not required") -> Unknown | P156: 0 | Q156: 1 | R156: 0 | S156: 0 | X156: 36484 | Y156: Damboa | AA156: TRUE
A157: =IF(INTRO!$E$34<>0,INTRO!$E$34,"") -> Nigeria | B157: Borno | C157: Dikwa | D157: 135572.474 | E157: =IF(INTRO!$E$48="","",ROUND($D157*INTRO!$E$48,0)) -> 27114 | F157: =IF(INTRO!$E$49="","",ROUND($D157*INTRO!$E$49,0)) -> 37960 | G157: =IF(INTRO!$E$50="","",ROUND($D157*INTRO!$E$50,0)) -> 70498 | H157: 0 | I157: 1 | J157: 4 | K157: 4 | L157: =IF(INTRO!$E$38="Endemic", IF($H157>0, IF($H157=4,"Unknown", IF($H157=99,"Stopped", $D157)), 0),"Not required") -> 0 | M157: 65990.61477 | N157: =IF(INTRO!$E$42="Endemic", IF(AND($J157>1,$J157<5), IF($J157=4, "Unknown", E157+F157), 0),"Not required") -> Unknown | O157: =IF(INTRO!$E$44="Endemic", IF(AND($K157>0,$K157<5), IF($K157=4,"Unknown", IF($K157=1, $F157*0.33, IF($K157=2, $F157*0.5+$G157*0.2, SUM(F157:G157)))), 0),"Not required") -> Unknown | P157: 0 | Q157: 1 | R157: 0 | S157: 0 | X157: 36485 | Y157: Dikwa | AA157: TRUE
A158: =IF(INTRO!$E$34<>0,INTRO!$E$34,"") -> Nigeria | B158: Borno | C158: Gubio | D158: 195568.7565 | E158: =IF(INTRO!$E$48="","",ROUND($D158*INTRO!$E$48,0)) -> 39114 | F158: =IF(INTRO!$E$49="","",ROUND($D158*INTRO!$E$49,0)) -> 54759 | G158: =IF(INTRO!$E$50="","",ROUND($D158*INTRO!$E$50,0)) -> 101696 | H158: 4 | I158: 0 | J158: 4 | K158: 4 | L158: =IF(INTRO!$E$38="Endemic", IF($H158>0, IF($H158=4,"Unknown", IF($H158=99,"Stopped", $D158)), 0),"Not required") -> Unknown | M158: 0 | N158: =IF(INTRO!$E$42="Endemic", IF(AND($J158>1,$J158<5), IF($J158=4, "Unknown", E158+F158), 0),"Not required") -> Unknown | O158: =IF(INTRO!$E$44="Endemic", IF(AND($K158>0,$K158<5), IF($K158=4,"Unknown", IF($K158=1, $F158*0.33, IF($K158=2, $F158*0.5+$G158*0.2, SUM(F158:G158)))), 0),"Not required") -> Unknown | P158: 0 | Q158: 0 | R158: 0 | S158: 0 | X158: 36486 | Y158: Gubio | AA158: TRUE
A159: =IF(INTRO!$E$34<>0,INTRO!$E$34,"") -> Nigeria | B159: Borno | C159: Guzamala | D159: 122437.5265 | E159: =IF(INTRO!$E$48="","",ROUND($D159*INTRO!$E$48,0)) -> 24488 | F159: =IF(INTRO!$E$49="","",ROUND($D159*INTRO!$E$49,0)) -> 34283 | G159: =IF(INTRO!$E$50="","",ROUND($D159*INTRO!$E$50,0)) -> 63668 | H159: 4 | I159: 0 | J159: 4 | K159: 4 | L159: =IF(INTRO!$E$38="Endemic", IF($H159>0, IF($H159=4,"Unknown", IF($H159=99,"Stopped", $D159)), 0),"Not required") -> Unknown | M159: 0 | N159: =IF(INTRO!$E$42="Endemic", IF(AND($J159>1,$J159<5), IF($J159=4, "Unknown", E159+F159), 0),"Not required") -> Unknown | O159: =IF(INTRO!$E$44="Endemic", IF(AND($K159>0,$K159<5), IF($K159=4,"Unknown", IF($K159=1, $F159*0.33, IF($K159=2, $F159*0.5+$G159*0.2, SUM(F159:G159)))), 0),"Not required") -> Unknown | P159: 0 | Q159: 0 | R159: 0 | S159: 0 | X159: 36487 | Y159: Guzamala | AA159: TRUE
A160: =IF(INTRO!$E$34<>0,INTRO!$E$34,"") -> Nigeria | B160: Borno | C160: Gwoza | D160: 353702.7206 | E160: =IF(INTRO!$E$48="","",ROUND($D160*INTRO!$E$48,0)) -> 70741 | F160: =IF(INTRO!$E$49="","",ROUND($D160*INTRO!$E$49,0)) -> 99037 | G160: =IF(INTRO!$E$50="","",ROUND($D160*INTRO!$E$50,0)) -> 183925 | H160: 0 | I160: 1 | J160: 4 | K160: 4 | L160: =IF(INTRO!$E$38="Endemic", IF($H160>0, IF($H160=4,"Unknown", IF($H160=99,"Stopped", $D160)), 0),"Not required") -> 0 | M160: 179560.1791 | N160: =IF(INTRO!$E$42="Endemic", IF(AND($J160>1,$J160<5), IF($J160=4, "Unknown", E160+F160), 0),"Not required") -> Unknown | O160: =IF(INTRO!$E$44="Endemic", IF(AND($K160>0,$K160<5), IF($K160=4,"Unknown", IF($K160=1, $F160*0.33, IF($K160=2, $F160*0.5+$G160*0.2, SUM(F160:G160)))), 0),"Not required") -> Unknown | P160: 0 | Q160: 1 | R160: 0 | S160: 0 | X160: 36488 | Y160: Gwoza | AA160: TRUE
A161: =IF(INTRO!$E$34<>0,INTRO!$E$34,"") -> Nigeria | B161: Borno | C161: Hawul | D161: 154012.0919 | E161: =IF(INTRO!$E$48="","",ROUND($D161*INTRO!$E$48,0)) -> 30802 | F161: =IF(INTRO!$E$49="","",ROUND($D161*INTRO!$E$49,0)) -> 43123 | G161: =IF(INTRO!$E$50="","",ROUND($D161*INTRO!$E$50,0)) -> 80086 | H161: 1 | I161: 1 | J161: 4 | K161: 4 | L161: =IF(INTRO!$E$38="Endemic", IF($H161>0, IF($H161=4,"Unknown", IF($H161=99,"Stopped", $D161)), 0),"Not required") -> 154012.0919 | M161: 90721.46875 | N161: =IF(INTRO!$E$42="Endemic", IF(AND($J161>1,$J161<5), IF($J161=4, "Unknown", E161+F161), 0),"Not required") -> Unknown | O161: =IF(INTRO!$E$44="Endemic", IF(AND($K161>0,$K161<5), IF($K161=4,"Unknown", IF($K161=1, $F161*0.33, IF($K161=2, $F161*0.5+$G161*0.2, SUM(F161:G161)))), 0),"Not required") -> Unknown | P161: 0 | Q161: 1 | R161: 0 | S161: 0 | X161: 36489 | Y161: Hawul | AA161: TRUE
A162: =IF(INTRO!$E$34<>0,INTRO!$E$34,"") -> Nigeria | B162: Borno | C162: Jere | D162: 270358.9761 | E162: =IF(INTRO!$E$48="","",ROUND($D162*INTRO!$E$48,0)) -> 54072 | F162: =IF(INTRO!$E$49="","",ROUND($D162*INTRO!$E$49,0)) -> 75701 | G162: =IF(INTRO!$E$50="","",ROUND($D162*INTRO!$E$50,0)) -> 140587 | H162: 4 | I162: 0 | J162: 4 | K162: 4 | L162: =IF(INTRO!$E$38="Endemic", IF($H162>0, IF($H162=4,"Unknown", IF($H162=99,"Stopped", $D162)), 0),"Not required") -> Unknown | M162: 0 | N162: =IF(INTRO!$E$42="Endemic", IF(AND($J162>1,$J162<5), IF($J162=4, "Unknown", E162+F162), 0),"Not required") -> Unknown | O162: =IF(INTRO!$E$44="Endemic", IF(AND($K162>0,$K162<5), IF($K162=4,"Unknown", IF($K162=1, $F162*0.33, IF($K162=2, $F162*0.5+$G162*0.2, SUM(F162:G162)))), 0),"Not required") -> Unknown | P162: 0 | Q162: 0 | R162: 0 | S162: 0 | X162: 36490 | Y162: Jere | AA162: TRUE
A163: =IF(INTRO!$E$34<>0,INTRO!$E$34,"") -> Nigeria | B163: Borno | C163: Kaga | D163: 115226.8102 | E163: =IF(INTRO!$E$48="","",ROUND($D163*INTRO!$E$48,0)) -> 23045 | F163: =IF(INTRO!$E$49="","",ROUND($D163*INTRO!$E$49,0)) -> 32264 | G163: =IF(INTRO!$E$50="","",ROUND($D163*INTRO!$E$50,0)) -> 59918 | H163: 0 | I163: 0 | J163: 4 | K163: 4 | L163: =IF(INTRO!$E$38="Endemic", IF($H163>0, IF($H163=4,"Unknown", IF($H163=99,"Stopped", $D163)), 0),"Not required") -> 0 | M163: 0 | N163: =IF(INTRO!$E$42="Endemic", IF(AND($J163>1,$J163<5), IF($J163=4, "Unknown", E163+F163), 0),"Not required") -> Unknown | O163: =IF(INTRO!$E$44="Endemic", IF(AND($K163>0,$K163<5), IF($K163=4,"Unknown", IF($K163=1, $F163*0.33, IF($K163=2, $F163*0.5+$G163*0.2, SUM(F163:G163)))), 0),"Not required") -> Unknown | P163: 0 | Q163: 0 | R163: 0 | S163: 0 | X163: 36491 | Y163: Kaga | AA163: TRUE
A164: =IF(INTRO!$E$34<>0,INTRO!$E$34,"") -> Nigeria | B164: Borno | C164: Kala Balge | D164: 77825.30003 | E164: =IF(INTRO!$E$48="","",ROUND($D164*INTRO!$E$48,0)) -> 15565 | F164: =IF(INTRO!$E$49="","",ROUND($D164*INTRO!$E$49,0)) -> 21791 | G164: =IF(INTRO!$E$50="","",ROUND($D164*INTRO!$E$50,0)) -> 40469 | H164: 0 | I164: 1 | J164: 4 | K164: 4 | L164: =IF(INTRO!$E$38="Endemic", IF($H164>0, IF($H164=4,"Unknown", IF($H164=99,"Stopped", $D164)), 0),"Not required") -> 0 | M164: 77825.30003 | N164: =IF(INTRO!$E$42="Endemic", IF(AND($J164>1,$J164<5), IF($J164=4, "Unknown", E164+F164), 0),"Not required") -> Unknown | O164: =IF(INTRO!$E$44="Endemic", IF(AND($K164>0,$K164<5), IF($K164=4,"Unknown", IF($K164=1, $F164*0.33, IF($K164=2, $F164*0.5+$G164*0.2, SUM(F164:G164)))), 0),"Not required") -> Unknown | P164: 0 | Q164: 1 | R164: 0 | S164: 0 | X164: 36492 | Y164: Kala Balge | AA164: TRUE
A165: =IF(INTRO!$E$34<>0,INTRO!$E$34,"") -> Nigeria | B165: Borno | C165: Konduga | D165: 200415.1566 | E165: =IF(INTRO!$E$48="","",ROUND($D165*INTRO!$E$48,0)) -> 40083 | F165: =IF(INTRO!$E$49="","",ROUND($D165*INTRO!$E$49,0)) -> 56116 | G165: =IF(INTRO!$E$50="","",ROUND($D165*INTRO!$E$50,0)) -> 104216 | H165: 4 | I165: 0 | J165: 4 | K165: 4 | L165: =IF(INTRO!$E$38="Endemic", IF($H165>0, IF($H165=4,"Unknown", IF($H165=99,"Stopped", $D165)), 0),"Not required") -> Unknown | M165: 0 | N165: =IF(INTRO!$E$42="Endemic", IF(AND($J165>1,$J165<5), IF($J165=4, "Unknown", E165+F165), 0),"Not required") -> Unknown | O165: =IF(INTRO!$E$44="Endemic", IF(AND($K165>0,$K165<5), IF($K165=4,"Unknown", IF($K165=1, $F165*0.33, IF($K165=2, $F165*0.5+$G165*0.2, SUM(F165:G165)))), 0),"Not required") -> Unknown | P165: 0 | Q165: 0 | R165: 0 | S165: 0 | X165: 36493 | Y165: Konduga | AA165: TRUE
A166: =IF(INTRO!$E$34<>0,INTRO!$E$34,"") -> Nigeria | B166: Borno | C166: Kukawa | D166: 260963.1555 | E166: =IF(INTRO!$E$48="","",ROUND($D166*INTRO!$E$48,0)) -> 52193 | F166: =IF(INTRO!$E$49="","",ROUND($D166*INTRO!$E$49,0)) -> 73070 | G166: =IF(INTRO!$E$50="","",ROUND($D166*INTRO!$E$50,0)) -> 135701 | H166: 0 | I166: 0 | J166: 4 | K166: 4 | L166: =IF(INTRO!$E$38="Endemic", IF($H166>0, IF($H166=4,"Unknown", IF($H166=99,"Stopped", $D166)), 0),"Not required") -> 0 | M166: 0 | N166: =IF(INTRO!$E$42="Endemic", IF(AND($J166>1,$J166<5), IF($J166=4, "Unknown", E166+F166), 0),"Not required") -> Unknown | O166: =IF(INTRO!$E$44="Endemic", IF(AND($K166>0,$K166<5), IF($K166=4,"Unknown", IF($K166=1, $F166*0.33, IF($K166=2, $F166*0.5+$G166*0.2, SUM(F166:G166)))), 0),"Not required") -> Unknown | P166: 0 | Q166: 0 | R166: 0 | S166: 0 | X166: 36494 | Y166: Kukawa | AA166: TRUE
A167: =IF(INTRO!$E$34<>0,INTRO!$E$34,"") -> Nigeria | B167: Borno | C167: Kwaya Kusar | D167: 72324.77675 | E167: =IF(INTRO!$E$48="","",ROUND($D167*INTRO!$E$48,0)) -> 14465 | F167: =IF(INTRO!$E$49="","",ROUND($D167*INTRO!$E$49,0)) -> 20251 | G167: =IF(INTRO!$E$50="","",ROUND($D167*INTRO!$E$50,0)) -> 37609 | H167: 4 | I167: 1 | J167: 4 | K167: 4 | L167: =IF(INTRO!$E$38="Endemic", IF($H167>0, IF($H167=4,"Unknown", IF($H167=99,"Stopped", $D167)), 0),"Not required") -> Unknown | M167: 72324.77675 | N167: =IF(INTRO!$E$42="Endemic", IF(AND($J167>1,$J167<5), IF($J167=4, "Unknown", E167+F167), 0),"Not required") -> Unknown | O167: =IF(INTRO!$E$44="Endemic", IF(AND($K167>0,$K167<5), IF($K167=4,"Unknown", IF($K167=1, $F167*0.33, IF($K167=2, $F167*0.5+$G167*0.2, SUM(F167:G167)))), 0),"Not required") -> Unknown | P167: 0 | Q167: 1 | R167: 0 | S167: 0 | X167: 36495 | Y167: Kwaya Kusar | AA167: TRUE
A168: =IF(INTRO!$E$34<>0,INTRO!$E$34,"") -> Nigeria | B168: Borno | C168: Mafa | D168: 132511.7918 | E168: =IF(INTRO!$E$48="","",ROUND($D168*INTRO!$E$48,0)) -> 26502 | F168: =IF(INTRO!$E$49="","",ROUND($D168*INTRO!$E$49,0)) -> 37103 | G168: =IF(INTRO!$E$50="","",ROUND($D168*INTRO!$E$50,0)) -> 68906 | H168: 4 | I168: 0 | J168: 4 | K168: 4 | L168: =IF(INTRO!$E$38="Endemic", IF($H168>0, IF($H168=4,"Unknown", IF($H168=99,"Stopped", $D168)), 0),"Not required") -> Unknown | M168: 0 | N168: =IF(INTRO!$E$42="Endemic", IF(AND($J168>1,$J168<5), IF($J168=4, "Unknown", E168+F168), 0),"Not required") -> Unknown | O168: =IF(INTRO!$E$44="Endemic", IF(AND($K168>0,$K168<5), IF($K168=4,"Unknown", IF($K168=1, $F168*0.33, IF($K168=2, $F168*0.5+$G168*0.2, SUM(F168:G168)))), 0),"Not required") -> Unknown | P168: 0 | Q168: 0 | R168: 0 | S168: 0 | X168: 36496 | Y168: Mafa | AA168: TRUE
A169: =IF(INTRO!$E$34<>0,INTRO!$E$34,"") -> Nigeria | B169: Borno | C169: Magumeri | D169: 179507.5357 | E169: =IF(INTRO!$E$48="","",ROUND($D169*INTRO!$E$48,0)) -> 35902 | F169: =IF(INTRO!$E$49="","",ROUND($D169*INTRO!$E$49,0)) -> 50262 | G169: =IF(INTRO!$E$50="","",ROUND($D169*INTRO!$E$50,0)) -> 93344 | H169: 1 | I169: 0 | J169: 4 | K169: 4 | L169: =IF(INTRO!$E$38="Endemic", IF($H169>0, IF($H169=4,"Unknown", IF($H169=99,"Stopped", $D169)), 0),"Not required") -> 179507.5357 | M169: 0 | N169: =IF(INTRO!$E$42="Endemic", IF(AND($J169>1,$J169<5), IF($J169=4, "Unknown", E169+F169), 0),"Not required") -> Unknown | O169: =IF(INTRO!$E$44="Endemic", IF(AND($K169>0,$K169<5), IF($K169=4,"Unknown", IF($K169=1, $F169*0.33, IF($K169=2, $F169*0.5+$G169*0.2, SUM(F169:G169)))), 0),"Not required") -> Unknown | P169: 0 | Q169: 0 | R169: 0 | S169: 0 | X169: 36497 | Y169: Magumeri | AA169: TRUE
A170: =IF(INTRO!$E$34<>0,INTRO!$E$34,"") -> Nigeria | B170: Borno | C170: Maiduguri | D170: 667553.8491 | E170: =IF(INTRO!$E$48="","",ROUND($D170*INTRO!$E$48,0)) -> 133511 | F170: =IF(INTRO!$E$49="","",ROUND($D170*INTRO!$E$49,0)) -> 186915 | G170: =IF(INTRO!$E$50="","",ROUND($D170*INTRO!$E$50,0)) -> 347128 | H170: 4 | I170: 0 | J170: 4 | K170: 4 | L170: =IF(INTRO!$E$38="Endemic", IF($H170>0, IF($H170=4,"Unknown", IF($H170=99,"Stopped", $D170)), 0),"Not required") -> Unknown | M170: 0 | N170: =IF(INTRO!$E$42="Endemic", IF(AND($J170>1,$J170<5), IF($J170=4, "Unknown", E170+F170), 0),"Not required") -> Unknown | O170: =IF(INTRO!$E$44="Endemic", IF(AND($K170>0,$K170<5), IF($K170=4,"Unknown", IF($K170=1, $F170*0.33, IF($K170=2, $F170*0.5+$G170*0.2, SUM(F170:G170)))), 0),"Not required") -> Unknown | P170: 0 | Q170: 0 | R170: 0 | S170: 0 | X170: 36498 | Y170: Maiduguri | AA170: TRUE
A171: =IF(INTRO!$E$34<>0,INTRO!$E$34,"") -> Nigeria | B171: Borno | C171: Marte | D171: 165604.5375 | E171: =IF(INTRO!$E$48="","",ROUND($D171*INTRO!$E$48,0)) -> 33121 | F171: =IF(INTRO!$E$49="","",ROUND($D171*INTRO!$E$49,0)) -> 46369 | G171: =IF(INTRO!$E$50="","",ROUND($D171*INTRO!$E$50,0)) -> 86114 | H171: 0 | I171: 0 | J171: 4 | K171: 4 | L171: =IF(INTRO!$E$38="Endemic", IF($H171>0, IF($H171=4,"Unknown", IF($H171=99,"Stopped", $D171)), 0),"Not required") -> 0 | M171: 0 | N171: =IF(INTRO!$E$42="Endemic", IF(AND($J171>1,$J171<5), IF($J171=4, "Unknown", E171+F171), 0),"Not required") -> Unknown | O171: =IF(INTRO!$E$44="Endemic", IF(AND($K171>0,$K171<5), IF($K171=4,"Unknown", IF($K171=1, $F171*0.33, IF($K171=2, $F171*0.5+$G171*0.2, SUM(F171:G171)))), 0),"Not required") -> Unknown | P171: 0 | Q171: 0 | R171: 0 | S171: 0 | X171: 36499 | Y171: Marte | AA171: TRUE
A172: =IF(INTRO!$E$34<>0,INTRO!$E$34,"") -> Nigeria | B172: Borno | C172: Mobbar | D172: 149326.9824 | E172: =IF(INTRO!$E$48="","",ROUND($D172*INTRO!$E$48,0)) -> 29865 | F172: =IF(INTRO!$E$49="","",ROUND($D172*INTRO!$E$49,0)) -> 41812 | G172: =IF(INTRO!$E$50="","",ROUND($D172*INTRO!$E$50,0)) -> 77650 | H172: 1 | I172: 1 | J172: 4 | K172: 4 | L172: =IF(INTRO!$E$38="Endemic", IF($H172>0, IF($H172=4,"Unknown", IF($H172=99,"Stopped", $D172)), 0),"Not required") -> 149326.9824 | M172: 69332.845 | N172: =IF(INTRO!$E$42="Endemic", IF(AND($J172>1,$J172<5), IF($J172=4, "Unknown", E172+F172), 0),"Not required") -> Unknown | O172: =IF(INTRO!$E$44="Endemic", IF(AND($K172>0,$K172<5), IF($K172=4,"Unknown", IF($K172=1, $F172*0.33, IF($K172=2, $F172*0.5+$G172*0.2, SUM(F172:G172)))), 0),"Not required") -> Unknown | P172: 0 | Q172: 0 | R172: 0 | S172: 0 | X172: 36500 | Y172: Mobbar | AA172: TRUE
A173: =IF(INTRO!$E$34<>0,INTRO!$E$34,"") -> Nigeria | B173: Borno | C173: Monguno | D173: 140618.5673 | E173: =IF(INTRO!$E$48="","",ROUND($D173*INTRO!$E$48,0)) -> 28124 | F173: =IF(INTRO!$E$49="","",ROUND($D173*INTRO!$E$49,0)) -> 39373 | G173: =IF(INTRO!$E$50="","",ROUND($D173*INTRO!$E$50,0)) -> 73122 | H173: 1 | I173: 0 | J173: 4 | K173: 4 | L173: =IF(INTRO!$E$38="Endemic", IF($H173>0, IF($H173=4,"Unknown", IF($H173=99,"Stopped", $D173)), 0),"Not required") -> 140618.5673 | M173: 0 | N173: =IF(INTRO!$E$42="Endemic", IF(AND($J173>1,$J173<5), IF($J173=4, "Unknown", E173+F173), 0),"Not required") -> Unknown | O173: =IF(INTRO!$E$44="Endemic", IF(AND($K173>0,$K173<5), IF($K173=4,"Unknown", IF($K173=1, $F173*0.33, IF($K173=2, $F173*0.5+$G173*0.2, SUM(F173:G173)))), 0),"Not required") -> Unknown | P173: 0 | Q173: 0 | R173: 0 | S173: 0 | X173: 36501 | Y173: Monguno | AA173: TRUE
A174: =IF(INTRO!$E$34<>0,INTRO!$E$34,"") -> Nigeria | B174: Borno | C174: Ngala | D174: 303470.923 | E174: =IF(INTRO!$E$48="","",ROUND($D174*INTRO!$E$48,0)) -> 60694 | F174: =IF(INTRO!$E$49="","",ROUND($D174*INTRO!$E$49,0)) -> 84972 | G174: =IF(INTRO!$E$50="","",ROUND($D174*INTRO!$E$50,0)) -> 157805 | H174: 4 | I174: 0 | J174: 4 | K174: 4 | L174: =IF(INTRO!$E$38="Endemic", IF($H174>0, IF($H174=4,"Unknown", IF($H174=99,"Stopped", $D174)), 0),"Not required") -> Unknown | M174: 0 | N174: =IF(INTRO!$E$42="Endemic", IF(AND($J174>1,$J174<5), IF($J174=4, "Unknown", E174+F174), 0),"Not required") -> Unknown | O174: =IF(INTRO!$E$44="Endemic", IF(AND($K174>0,$K174<5), IF($K174=4,"Unknown", IF($K174=1, $F174*0.33, IF($K174=2, $F174*0.5+$G174*0.2, SUM(F174:G174)))), 0),"Not required") -> Unknown | P174: 0 | Q174: 0 | R174: 0 | S174: 0 | X174: 36502 | Y174: Ngala | AA174: TRUE
A175: =IF(INTRO!$E$34<>0,INTRO!$E$34,"") -> Nigeria | B175: Borno | C175: Nganzai | D175: 127751.1574 | E175: =IF(INTRO!$E$48="","",ROUND($D175*INTRO!$E$48,0)) -> 25550 | F175: =IF(INTRO!$E$49="","",ROUND($D175*INTRO!$E$49,0)) -> 35770 | G175: =IF(INTRO!$E$50="","",ROUND($D175*INTRO!$E$50,0)) -> 66431 | H175: 4 | I175: 0 | J175: 4 | K175: 4 | L175: =IF(INTRO!$E$38="Endemic", IF($H175>0, IF($H175=4,"Unknown", IF($H175=99,"Stopped", $D175)), 0),"Not required") -> Unknown | M175: 0 | N175: =IF(INTRO!$E$42="Endemic", IF(AND($J175>1,$J175<5), IF($J175=4, "Unknown", E175+F175), 0),"Not required") -> Unknown | O175: =IF(INTRO!$E$44="Endemic", IF(AND($K175>0,$K175<5), IF($K175=4,"Unknown", IF($K175=1, $F175*0.33, IF($K175=2, $F175*0.5+$G175*0.2, SUM(F175:G175)))), 0),"Not required") -> Unknown | P175: 0 | Q175: 0 | R175: 0 | S175: 0 | X175: 36503 | Y175: Nganzai | AA175: TRUE
A176: =IF(INTRO!$E$34<>0,INTRO!$E$34,"") -> Nigeria | B176: Borno | C176: Shani | D176: 130974.4103 | E176: =IF(INTRO!$E$48="","",ROUND($D176*INTRO!$E$48,0)) -> 26195 | F176: =IF(INTRO!$E$49="","",ROUND($D176*INTRO!$E$49,0)) -> 36673 | G176: =IF(INTRO!$E$50="","",ROUND($D176*INTRO!$E$50,0)) -> 68107 | H176: 1 | I176: 1 | J176: 4 | K176: 4 | L176: =IF(INTRO!$E$38="Endemic", IF($H176>0, IF($H176=4,"Unknown", IF($H176=99,"Stopped", $D176)), 0),"Not required") -> 130974.4103 | M176: 130974.4103 | N176: =IF(INTRO!$E$42="Endemic", IF(AND($J176>1,$J176<5), IF($J176=4, "Unknown", E176+F176), 0),"Not required") -> Unknown | O176: =IF(INTRO!$E$44="Endemic", IF(AND($K176>0,$K176<5), IF($K176=4,"Unknown", IF($K176=1, $F176*0.33, IF($K176=2, $F176*0.5+$G176*0.2, SUM(F176:G176)))), 0),"Not required") -> Unknown | P176: 0 | Q176: 1 | R176: 0 | S176: 0 | X176: 36504 | Y176: Shani | AA176: TRUE
A177: =IF(INTRO!$E$34<>0,INTRO!$E$34,"") -> Nigeria | B177: Cross River | C177: Abi | D177: 185358.8022 | E177: =IF(INTRO!$E$48="","",ROUND($D177*INTRO!$E$48,0)) -> 37072 | F177: =IF(INTRO!$E$49="","",ROUND($D177*INTRO!$E$49,0)) -> 51900 | G177: =IF(INTRO!$E$50="","",ROUND($D177*INTRO!$E$50,0)) -> 96387 | H177: 1 | I177: 0 | J177: 1 | K177: 0 | L177: =IF(INTRO!$E$38="Endemic", IF($H177>0, IF($H177=4,"Unknown", IF($H177=99,"Stopped", $D177)), 0),"Not required") -> 185358.8022 | M177: 0 | N177: =IF(INTRO!$E$42="Endemic", IF(AND($J177>1,$J177<5), IF($J177=4, "Unknown", E177+F177), 0),"Not required") -> 0 | O177: =IF(INTRO!$E$44="Endemic", IF(AND($K177>0,$K177<5), IF($K177=4,"Unknown", IF($K177=1, $F177*0.33, IF($K177=2, $F177*0.5+$G177*0.2, SUM(F177:G177)))), 0),"Not required") -> 0 | P177: 1 | Q177: 0 | R177: 0 | S177: 0 | T177: MDA1 (IVM+ALB) | X177: 36505 | Y177: Abi | AA177: TRUE
A178: =IF(INTRO!$E$34<>0,INTRO!$E$34,"") -> Nigeria | B178: Cross River | C178: Akamkpa | D178: 193452.7767 | E178: =IF(INTRO!$E$48="","",ROUND($D178*INTRO!$E$48,0)) -> 38691 | F178: =IF(INTRO!$E$49="","",ROUND($D178*INTRO!$E$49,0)) -> 54167 | G178: =IF(INTRO!$E$50="","",ROUND($D178*INTRO!$E$50,0)) -> 100595 | H178: 1 | I178: 1 | J178: 2 | K178: 0 | L178: =IF(INTRO!$E$38="Endemic", IF($H178>0, IF($H178=4,"Unknown", IF($H178=99,"Stopped", $D178)), 0),"Not required") -> 193452.7767 | M178: 156985.4381 | N178: =IF(INTRO!$E$42="Endemic", IF(AND($J178>1,$J178<5), IF($J178=4, "Unknown", E178+F178), 0),"Not required") -> 92858 | O178: =IF(INTRO!$E$44="Endemic", IF(AND($K178>0,$K178<5), IF($K178=4,"Unknown", IF($K178=1, $F178*0.33, IF($K178=2, $F178*0.5+$G178*0.2, SUM(F178:G178)))), 0),"Not required") -> 0 | P178: 1 | Q178: 1 | R178: 1 | S178: 0 | T178: MDA1 (IVM+ALB) | X178: 36506 | Y178: Akamkpa | AA178: TRUE
A179: =IF(INTRO!$E$34<>0,INTRO!$E$34,"") -> Nigeria | B179: Cross River | C179: Akpabuyo | D179: 347408.5449 | E179: =IF(INTRO!$E$48="","",ROUND($D179*INTRO!$E$48,0)) -> 69482 | F179: =IF(INTRO!$E$49="","",ROUND($D179*INTRO!$E$49,0)) -> 97274 | G179: =IF(INTRO!$E$50="","",ROUND($D179*INTRO!$E$50,0)) -> 180652 | H179: 0 | I179: 1 | J179: 2 | K179: 0 | L179: =IF(INTRO!$E$38="Endemic", IF($H179>0, IF($H179=4,"Unknown", IF($H179=99,"Stopped", $D179)), 0),"Not required") -> 0 | M179: 66840.7625 | N179: =IF(INTRO!$E$42="Endemic", IF(AND($J179>1,$J179<5), IF($J179=4, "Unknown", E179+F179), 0),"Not required") -> 166756 | O179: =IF(INTRO!$E$44="Endemic", IF(AND($K179>0,$K179<5), IF($K179=4,"Unknown", IF($K179=1, $F179*0.33, IF($K179=2, $F179*0.5+$G179*0.2, SUM(F179:G179)))), 0),"Not required") -> 0 | P179: 0 | Q179: 1 | R179: 1 | S179: 0 | T179: MDA3 (IVM) | X179: 36507 | Y179: Akpabuyo | AA179: TRUE
A180: =IF(INTRO!$E$34<>0,INTRO!$E$34,"") -> Nigeria | B180: Cross River | C180: Bakasi | D180: 41455.53796 | E180: =IF(INTRO!$E$48="","",ROUND($D180*INTRO!$E$48,0)) -> 8291 | F180: =IF(INTRO!$E$49="","",ROUND($D180*INTRO!$E$49,0)) -> 11608 | G180: =IF(INTRO!$E$50="","",ROUND($D180*INTRO!$E$50,0)) -> 21557 | H180: 0 | I180: 1 | J180: 2 | K180: 0 | L180: =IF(INTRO!$E$38="Endemic", IF($H180>0, IF($H180=4,"Unknown", IF($H180=99,"Stopped", $D180)), 0),"Not required") -> 0 | M180: 41455.53796 | N180: =IF(INTRO!$E$42="Endemic", IF(AND($J180>1,$J180<5), IF($J180=4, "Unknown", E180+F180), 0),"Not required") -> 19899 | O180: =IF(INTRO!$E$44="Endemic", IF(AND($K180>0,$K180<5), IF($K180=4,"Unknown", IF($K180=1, $F180*0.33, IF($K180=2, $F180*0.5+$G180*0.2, SUM(F180:G180)))), 0),"Not required") -> 0 | P180: 0 | Q180: 1 | R180: 1 | S180: 0 | T180: MDA3 (IVM) | X180: 36508 | Y180: Bakasi | AA180: TRUE
A181: =IF(INTRO!$E$34<>0,INTRO!$E$34,"") -> Nigeria | B181: Cross River | C181: Bekwara | D181: 135461.1066 | E181: =IF(INTRO!$E$48="","",ROUND($D181*INTRO!$E$48,0)) -> 27092 | F181: =IF(INTRO!$E$49="","",ROUND($D181*INTRO!$E$49,0)) -> 37929 | G181: =IF(INTRO!$E$50="","",ROUND($D181*INTRO!$E$50,0)) -> 70440 | H181: 1 | I181: 1 | J181: 1 | K181: 2 | L181: =IF(INTRO!$E$38="Endemic", IF($H181>0, IF($H181=4,"Unknown", IF($H181=99,"Stopped", $D181)), 0),"Not required") -> 135461.1066 | M181: 99966.96875 | N181: =IF(INTRO!$E$42="Endemic", IF(AND($J181>1,$J181<5), IF($J181=4, "Unknown", E181+F181), 0),"Not required") -> 0 | O181: =IF(INTRO!$E$44="Endemic", IF(AND($K181>0,$K181<5), IF($K181=4,"Unknown", IF($K181=1, $F181*0.33, IF($K181=2, $F181*0.5+$G181*0.2, SUM(F181:G181)))), 0),"Not required") -> 33052.5 | P181: 1 | Q181: 1 | R181: 0 | S181: 1 | T181: MDA1 (IVM+ALB) | U181: T2 (PZQ) | X181: 36509 | Y181: Bekwara | AA181: TRUE
A182: =IF(INTRO!$E$34<>0,INTRO!$E$34,"") -> Nigeria | B182: Cross River | C182: Biase | D182: 216568.5434 | E182: =IF(INTRO!$E$48="","",ROUND($D182*INTRO!$E$48,0)) -> 43314 | F182: =IF(INTRO!$E$49="","",ROUND($D182*INTRO!$E$49,0)) -> 60639 | G182: =IF(INTRO!$E$50="","",ROUND($D182*INTRO!$E$50,0)) -> 112616 | H182: 1 | I182: 1 | J182: 2 | K182: 3 | L182: =IF(INTRO!$E$38="Endemic", IF($H182>0, IF($H182=4,"Unknown", IF($H182=99,"Stopped", $D182)), 0),"Not required") -> 216568.5434 | M182: 96549.28562 | N182: =IF(INTRO!$E$42="Endemic", IF(AND($J182>1,$J182<5), IF($J182=4, "Unknown", E182+F182), 0),"Not required") -> 103953 | O182: =IF(INTRO!$E$44="Endemic", IF(AND($K182>0,$K182<5), IF($K182=4,"Unknown", IF($K182=1, $F182*0.33, IF($K182=2, $F182*0.5+$G182*0.2, SUM(F182:G182)))), 0),"Not required") -> 173255 | P182: 1 | Q182: 1 | R182: 1 | S182: 1 | T182: MDA1 (IVM+ALB) | U182: T2 (PZQ) | X182: 36510 | Y182: Biase | AA182: TRUE
A183: =IF(INTRO!$E$34<>0,INTRO!$E$34,"") -> Nigeria | B183: Cross River | C183: Boki | D183: 238276.2171 | E183: =IF(INTRO!$E$48="","",ROUND($D183*INTRO!$E$48,0)) -> 47655 | F183: =IF(INTRO!$E$49="","",ROUND($D183*INTRO!$E$49,0)) -> 66717 | G183: =IF(INTRO!$E$50="","",ROUND($D183*INTRO!$E$50,0)) -> 123904 | H183: 1 | I183: 1 | J183: 1 | K183: 1 | L183: =IF(INTRO!$E$38="Endemic", IF($H183>0, IF($H183=4,"Unknown", IF($H183=99,"Stopped", $D183)), 0),"Not required") -> 238276.2171 | M183: 238276.2171 | N183: =IF(INTRO!$E$42="Endemic", IF(AND($J183>1,$J183<5), IF($J183=4, "Unknown", E183+F183), 0),"Not required") -> 0 | O183: =IF(INTRO!$E$44="Endemic", IF(AND($K183>0,$K183<5), IF($K183=4,"Unknown", IF($K183=1, $F183*0.33, IF($K183=2, $F183*0.5+$G183*0.2, SUM(F183:G183)))), 0),"Not required") -> 22016.61 | P183: 1 | Q183: 1 | R183: 0 | S183: 1 | T183: MDA1 (IVM+ALB) | X183: 36511 | Y183: Boki | AA183: TRUE
A184: =IF(INTRO!$E$34<>0,INTRO!$E$34,"") -> Nigeria | B184: Cross River | C184: Caabar South | D184: 245302.6012 | E184: =IF(INTRO!$E$48="","",ROUND($D184*INTRO!$E$48,0)) -> 49061 | F184: =IF(INTRO!$E$49="","",ROUND($D184*INTRO!$E$49,0)) -> 68685 | G184: =IF(INTRO!$E$50="","",ROUND($D184*INTRO!$E$50,0)) -> 127557 | H184: 1 | I184: 0 | J184: 2 | K184: 0 | L184: =IF(INTRO!$E$38="Endemic", IF($H184>0, IF($H184=4,"Unknown", IF($H184=99,"Stopped", $D184)), 0),"Not required") -> 245302.6012 | M184: 0 | N184: =IF(INTRO!$E$42="Endemic", IF(AND($J184>1,$J184<5), IF($J184=4, "Unknown", E184+F184), 0),"Not required") -> 117746 | O184: =IF(INTRO!$E$44="Endemic", IF(AND($K184>0,$K184<5), IF($K184=4,"Unknown", IF($K184=1, $F184*0.33, IF($K184=2, $F184*0.5+$G184*0.2, SUM(F184:G184)))), 0),"Not required") -> 0 | P184: 1 | Q184: 0 | R184: 1 | S184: 0 | T184: MDA1 (IVM+ALB) | X184: 36512 | Y184: Caabar South | AA184: TRUE
A185: =IF(INTRO!$E$34<>0,INTRO!$E$34,"") -> Nigeria | B185: Cross River | C185: Calabar Municipal | D185: 229636.9266 | E185: =IF(INTRO!$E$48="","",ROUND($D185*INTRO!$E$48,0)) -> 45927 | F185: =IF(INTRO!$E$49="","",ROUND($D185*INTRO!$E$49,0)) -> 64298 | G185: =IF(INTRO!$E$50="","",ROUND($D185*INTRO!$E$50,0)) -> 119411 | H185: 0 | I185: 0 | J185: 2 | K185: 0 | L185: =IF(INTRO!$E$38="Endemic", IF($H185>0, IF($H185=4,"Unknown", IF($H185=99,"Stopped", $D185)), 0),"Not required") -> 0 | M185: 0 | N185: =IF(INTRO!$E$42="Endemic", IF(AND($J185>1,$J185<5), IF($J185=4, "Unknown", E185+F185), 0),"Not required") -> 110225 | O185: =IF(INTRO!$E$44="Endemic", IF(AND($K185>0,$K185<5), IF($K185=4,"Unknown", IF($K185=1, $F185*0.33, IF($K185=2, $F185*0.5+$G185*0.2, SUM(F185:G185)))), 0),"Not required") -> 0 | P185: 0 | Q185: 0 | R185: 1 | S185: 0 | X185: 36513 | Y185: Calabar Municipal | AA185: TRUE
A186: =IF(INTRO!$E$34<>0,INTRO!$E$34,"") -> Nigeria | B186: Cross River | C186: Etung | D186: 102657.6601 | E186: =IF(INTRO!$E$48="","",ROUND($D186*INTRO!$E$48,0)) -> 20532 | F186: =IF(INTRO!$E$49="","",ROUND($D186*INTRO!$E$49,0)) -> 28744 | G186: =IF(INTRO!$E$50="","",ROUND($D186*INTRO!$E$50,0)) -> 53382 | H186: 0 | I186: 1 | J186: 2 | K186: 1 | L186: =IF(INTRO!$E$38="Endemic", IF($H186>0, IF($H186=4,"Unknown", IF($H186=99,"Stopped", $D186)), 0),"Not required") -> 0 | M186: 102657.6601 | N186: =IF(INTRO!$E$42="Endemic", IF(AND($J186>1,$J186<5), IF($J186=4, "Unknown", E186+F186), 0),"Not required") -> 49276 | O186: =IF(INTRO!$E$44="Endemic", IF(AND($K186>0,$K186<5), IF($K186=4,"Unknown", IF($K186=1, $F186*0.33, IF($K186=2, $F186*0.5+$G186*0.2, SUM(F186:G186)))), 0),"Not required") -> 9485.52 | P186: 0 | Q186: 1 | R186: 1 | S186: 0 | T186: MDA3 (IVM) | X186: 36514 | Y186: Etung | AA186: TRUE
A187: =IF(INTRO!$E$34<>0,INTRO!$E$34,"") -> Nigeria | B187: Cross River | C187: Ikom | D187: 207863.9685 | E187: =IF(INTRO!$E$48="","",ROUND($D187*INTRO!$E$48,0)) -> 41573 | F187: =IF(INTRO!$E$49="","",ROUND($D187*INTRO!$E$49,0)) -> 58202 | G187: =IF(INTRO!$E$50="","",ROUND($D187*INTRO!$E$50,0)) -> 108089 | H187: 1 | I187: 1 | J187: 1 | K187: 1 | L187: =IF(INTRO!$E$38="Endemic", IF($H187>0, IF($H187=4,"Unknown", IF($H187=99,"Stopped", $D187)), 0),"Not required") -> 207863.9685 | M187: 118448.5131 | N187: =IF(INTRO!$E$42="Endemic", IF(AND($J187>1,$J187<5), IF($J187=4, "Unknown", E187+F187), 0),"Not required") -> 0 | O187: =IF(INTRO!$E$44="Endemic", IF(AND($K187>0,$K187<5), IF($K187=4,"Unknown", IF($K187=1, $F187*0.33, IF($K187=2, $F187*0.5+$G187*0.2, SUM(F187:G187)))), 0),"Not required") -> 19206.66 | P187: 1 | Q187: 1 | R187: 0 | S187: 0 | T187: MDA1 (IVM+ALB) | X187: 36515 | Y187: Ikom | AA187: TRUE
A188: =IF(INTRO!$E$34<>0,INTRO!$E$34,"") -> Nigeria | B188: Cross River | C188: Obanliku | D188: 141224.0473 | E188: =IF(INTRO!$E$48="","",ROUND($D188*INTRO!$E$48,0)) -> 28245 | F188: =IF(INTRO!$E$49="","",ROUND($D188*INTRO!$E$49,0)) -> 39543 | G188: =IF(INTRO!$E$50="","",ROUND($D188*INTRO!$E$50,0)) -> 73437 | H188: 0 | I188: 1 | J188: 1 | K188: 2 | L188: =IF(INTRO!$E$38="Endemic", IF($H188>0, IF($H188=4,"Unknown", IF($H188=99,"Stopped", $D188)), 0),"Not required") -> 0 | M188: 56518.37187 | N188: =IF(INTRO!$E$42="Endemic", IF(AND($J188>1,$J188<5), IF($J188=4, "Unknown", E188+F188), 0),"Not required") -> 0 | O188: =IF(INTRO!$E$44="Endemic", IF(AND($K188>0,$K188<5), IF($K188=4,"Unknown", IF($K188=1, $F188*0.33, IF($K188=2, $F188*0.5+$G188*0.2, SUM(F188:G188)))), 0),"Not required") -> 34458.9 | P188: 0 | Q188: 1 | R188: 0 | S188: 1 | T188: MDA3 (IVM) | U188: T2 (PZQ) | X188: 36516 | Y188: Obanliku | AA188: TRUE
A189: =IF(INTRO!$E$34<>0,INTRO!$E$34,"") -> Nigeria | B189: Cross River | C189: Obubra | D189: 220742.8991 | E189: =IF(INTRO!$E$48="","",ROUND($D189*INTRO!$E$48,0)) -> 44149 | F189: =IF(INTRO!$E$49="","",ROUND($D189*INTRO!$E$49,0)) -> 61808 | G189: =IF(INTRO!$E$50="","",ROUND($D189*INTRO!$E$50,0)) -> 114786 | H189: 1 | I189: 1 | J189: 1 | K189: 1 | L189: =IF(INTRO!$E$38="Endemic", IF($H189>0, IF($H189=4,"Unknown", IF($H189=99,"Stopped", $D189)), 0),"Not required") -> 220742.8991 | M189: 71214.51437 | N189: =IF(INTRO!$E$42="Endemic", IF(AND($J189>1,$J189<5), IF($J189=4, "Unknown", E189+F189), 0),"Not required") -> 0 | O189: =IF(INTRO!$E$44="Endemic", IF(AND($K189>0,$K189<5), IF($K189=4,"Unknown", IF($K189=1, $F189*0.33, IF($K189=2, $F189*0.5+$G189*0.2, SUM(F189:G189)))), 0),"Not required") -> 20396.64 | P189: 1 | Q189: 1 | R189: 0 | S189: 1 | T189: MDA1 (IVM+ALB) | X189: 36517 | Y189: Obubra | AA189: TRUE
A190: =IF(INTRO!$E$34<>0,INTRO!$E$34,"") -> Nigeria | B190: Cross River | C190: Obudu | D190: 204949.216 | E190: =IF(INTRO!$E$48="","",ROUND($D190*INTRO!$E$48,0)) -> 40990 | F190: =IF(INTRO!$E$49="","",ROUND($D190*INTRO!$E$49,0)) -> 57386 | G190: =IF(INTRO!$E$50="","",ROUND($D190*INTRO!$E$50,0)) -> 106574 | H190: 0 | I190: 1 | J190: 1 | K190: 2 | L190: =IF(INTRO!$E$38="Endemic", IF($H190>0, IF($H190=4,"Unknown", IF($H190=99,"Stopped", $D190)), 0),"Not required") -> 0 | M190: 56306.14562 | N190: =IF(INTRO!$E$42="Endemic", IF(AND($J190>1,$J190<5), IF($J190=4, "Unknown", E190+F190), 0),"Not required") -> 0 | O190: =IF(INTRO!$E$44="Endemic", IF(AND($K190>0,$K190<5), IF($K190=4,"Unknown", IF($K190=1, $F190*0.33, IF($K190=2, $F190*0.5+$G190*0.2, SUM(F190:G190)))), 0),"Not required") -> 50007.8 | P190: 0 | Q190: 1 | R190: 0 | S190: 1 | T190: MDA3 (IVM) | U190: T2 (PZQ) | X190: 36518 | Y190: Obudu | AA190: TRUE
A191: =IF(INTRO!$E$34<>0,INTRO!$E$34,"") -> Nigeria | B191: Cross River | C191: Odukpani | D191: 246344.59 | E191: =IF(INTRO!$E$48="","",ROUND($D191*INTRO!$E$48,0)) -> 49269 | F191: =IF(INTRO!$E$49="","",ROUND($D191*INTRO!$E$49,0)) -> 68976 | G191: =IF(INTRO!$E$50="","",ROUND($D191*INTRO!$E$50,0)) -> 128099 | H191: 0 | I191: 1 | J191: 3 | K191: 1 | L191: =IF(INTRO!$E$38="Endemic", IF($H191>0, IF($H191=4,"Unknown", IF($H191=99,"Stopped", $D191)), 0),"Not required") -> 0 | M191: 111521.7425 | N191: =IF(INTRO!$E$42="Endemic", IF(AND($J191>1,$J191<5), IF($J191=4, "Unknown", E191+F191), 0),"Not required") -> 118245 | O191: =IF(INTRO!$E$44="Endemic", IF(AND($K191>0,$K191<5), IF($K191=4,"Unknown", IF($K191=1, $F191*0.33, IF($K191=2, $F191*0.5+$G191*0.2, SUM(F191:G191)))), 0),"Not required") -> 22762.08 | P191: 0 | Q191: 1 | R191: 1 | S191: 0 | T191: MDA3 (IVM) | X191: 36519 | Y191: Odukpani | AA191: TRUE
A192: =IF(INTRO!$E$34<>0,INTRO!$E$34,"") -> Nigeria | B192: Cross River | C192: Ogoja | D192: 220047.8132 | E192: =IF(INTRO!$E$48="","",ROUND($D192*INTRO!$E$48,0)) -> 44010 | F192: =IF(INTRO!$E$49="","",ROUND($D192*INTRO!$E$49,0)) -> 61613 | G192: =IF(INTRO!$E$50="","",ROUND($D192*INTRO!$E$50,0)) -> 114425 | H192: 1 | I192: 1 | J192: 1 | K192: 2 | L192: =IF(INTRO!$E$38="Endemic", IF($H192>0, IF($H192=4,"Unknown", IF($H192=99,"Stopped", $D192)), 0),"Not required") -> 220047.8132 | M192: 113388.7031 | N192: =IF(INTRO!$E$42="Endemic", IF(AND($J192>1,$J192<5), IF($J192=4, "Unknown", E192+F192), 0),"Not required") -> 0 | O192: =IF(INTRO!$E$44="Endemic", IF(AND($K192>0,$K192<5), IF($K192=4,"Unknown", IF($K192=1, $F192*0.33, IF($K192=2, $F192*0.5+$G192*0.2, SUM(F192:G192)))), 0),"Not required") -> 53691.5 | P192: 1 | Q192: 1 | R192: 0 | S192: 1 | T192: MDA1 (IVM+ALB) | U192: T2 (PZQ) | X192: 36520 | Y192: Ogoja | AA192: TRUE
A193: =IF(INTRO!$E$34<>0,INTRO!$E$34,"") -> Nigeria | B193: Cross River | C193: Yakur | D193: 251472.6087 | E193: =IF(INTRO!$E$48="","",ROUND($D193*INTRO!$E$48,0)) -> 50295 | F193: =IF(INTRO!$E$49="","",ROUND($D193*INTRO!$E$49,0)) -> 70412 | G193: =IF(INTRO!$E$50="","",ROUND($D193*INTRO!$E$50,0)) -> 130766 | H193: 0 | I193: 1 | J193: 2 | K193: 2 | L193: =IF(INTRO!$E$38="Endemic", IF($H193>0, IF($H193=4,"Unknown", IF($H193=99,"Stopped", $D193)), 0),"Not required") -> 0 | M193: 70839.44125 | N193: =IF(INTRO!$E$42="Endemic", IF(AND($J193>1,$J193<5), IF($J193=4, "Unknown", E193+F193), 0),"Not required") -> 120707 | O193: =IF(INTRO!$E$44="Endemic", IF(AND($K193>0,$K193<5), IF($K193=4,"Unknown", IF($K193=1, $F193*0.33, IF($K193=2, $F193*0.5+$G193*0.2, SUM(F193:G193)))), 0),"Not required") -> 61359.2 | P193: 0 | Q193: 1 | R193: 1 | S193: 1 | T193: MDA3 (IVM) | U193: T2 (PZQ) | X193: 36521 | Y193: Yakur | AA193: TRUE
A194: =IF(INTRO!$E$34<>0,INTRO!$E$34,"") -> Nigeria | B194: Cross River | C194: Yala | D194: 269896.8656 | E194: =IF(INTRO!$E$48="","",ROUND($D194*INTRO!$E$48,0)) -> 53979 | F194: =IF(INTRO!$E$49="","",ROUND($D194*INTRO!$E$49,0)) -> 75571 | G194: =IF(INTRO!$E$50="","",ROUND($D194*INTRO!$E$50,0)) -> 140346 | H194: 1 | I194: 1 | J194: 1 | K194: 2 | L194: =IF(INTRO!$E$38="Endemic", IF($H194>0, IF($H194=4,"Unknown", IF($H194=99,"Stopped", $D194)), 0),"Not required") -> 269896.8656 | M194: 202335.6662 | N194: =IF(INTRO!$E$42="Endemic", IF(AND($J194>1,$J194<5), IF($J194=4, "Unknown", E194+F194), 0),"Not required") -> 0 | O194: =IF(INTRO!$E$44="Endemic", IF(AND($K194>0,$K194<5), IF($K194=4,"Unknown", IF($K194=1, $F194*0.33, IF($K194=2, $F194*0.5+$G194*0.2, SUM(F194:G194)))), 0),"Not required") -> 65854.7 | P194: 1 | Q194: 1 | R194: 0 | S194: 1 | T194: MDA1 (IVM+ALB) | U194: T2 (PZQ) | X194: 36522 | Y194: Yala | AA194: TRUE
A195: =IF(INTRO!$E$34<>0,INTRO!$E$34,"") -> Nigeria | B195: Delta | C195: Aniocha North | D195: 134038.9327 | E195: =IF(INTRO!$E$48="","",ROUND($D195*INTRO!$E$48,0)) -> 26808 | F195: =IF(INTRO!$E$49="","",ROUND($D195*INTRO!$E$49,0)) -> 37531 | G195: =IF(INTRO!$E$50="","",ROUND($D195*INTRO!$E$50,0)) -> 69700 | H195: 1 | I195: 1 | J195: 2 | K195: 0 | L195: =IF(INTRO!$E$38="Endemic", IF($H195>0, IF($H195=4,"Unknown", IF($H195=99,"Stopped", $D195)), 0),"Not required") -> 134038.9327 | M195: 76969.83812 | N195: =IF(INTRO!$E$42="Endemic", IF(AND($J195>1,$J195<5), IF($J195=4, "Unknown", E195+F195), 0),"Not required") -> 64339 | O195: =IF(INTRO!$E$44="Endemic", IF(AND($K195>0,$K195<5), IF($K195=4,"Unknown", IF($K195=1, $F195*0.33, IF($K195=2, $F195*0.5+$G195*0.2, SUM(F195:G195)))), 0),"Not required") -> 0 | P195: 1 | Q195: 1 | R195: 1 | S195: 0 | T195: MDA1 (IVM+ALB) | X195: 36523 | Y195: Aniocha North | AA195: TRUE
A196: =IF(INTRO!$E$34<>0,INTRO!$E$34,"") -> Nigeria | B196: Delta | C196: Aniocha South | D196: 179985.0073 | E196: =IF(INTRO!$E$48="","",ROUND($D196*INTRO!$E$48,0)) -> 35997 | F196: =IF(INTRO!$E$49="","",ROUND($D196*INTRO!$E$49,0)) -> 50396 | G196: =IF(INTRO!$E$50="","",ROUND($D196*INTRO!$E$50,0)) -> 93592 | H196: 1 | I196: 1 | J196: 2 | K196: 0 | L196: =IF(INTRO!$E$38="Endemic", IF($H196>0, IF($H196=4,"Unknown", IF($H196=99,"Stopped", $D196)), 0),"Not required") -> 179985.0073 | M196: 75024.08062 | N196: =IF(INTRO!$E$42="Endemic", IF(AND($J196>1,$J196<5), IF($J196=4, "Unknown", E196+F196), 0),"Not required") -> 86393 | O196: =IF(INTRO!$E$44="Endemic", IF(AND($K196>0,$K196<5), IF($K196=4,"Unknown", IF($K196=1, $F196*0.33, IF($K196=2, $F196*0.5+$G196*0.2, SUM(F196:G196)))), 0),"Not required") -> 0 | P196: 1 | Q196: 1 | R196: 1 | S196: 0 | T196: MDA1 (IVM+ALB) | X196: 36524 | Y196: Aniocha South | AA196: TRUE
A197: =IF(INTRO!$E$34<>0,INTRO!$E$34,"") -> Nigeria | B197: Delta | C197: Bomadi | D197: 110911.6452 | E197: =IF(INTRO!$E$48="","",ROUND($D197*INTRO!$E$48,0)) -> 22182 | F197: =IF(INTRO!$E$49="","",ROUND($D197*INTRO!$E$49,0)) -> 31055 | G197: =IF(INTRO!$E$50="","",ROUND($D197*INTRO!$E$50,0)) -> 57674 | H197: 1 | I197: 0 | J197: 3 | K197: 1 | L197: =IF(INTRO!$E$38="Endemic", IF($H197>0, IF($H197=4,"Unknown", IF($H197=99,"Stopped", $D197)), 0),"Not required") -> 110911.6452 | M197: 0 | N197: =IF(INTRO!$E$42="Endemic", IF(AND($J197>1,$J197<5), IF($J197=4, "Unknown", E197+F197), 0),"Not required") -> 53237 | O197: =IF(INTRO!$E$44="Endemic", IF(AND($K197>0,$K197<5), IF($K197=4,"Unknown", IF($K197=1, $F197*0.33, IF($K197=2, $F197*0.5+$G197*0.2, SUM(F197:G197)))), 0),"Not required") -> 10248.15 | P197: 1 | Q197: 0 | R197: 2 | S197: 0 | X197: 36525 | Y197: Bomadi | AA197: TRUE
A198: =IF(INTRO!$E$34<>0,INTRO!$E$34,"") -> Nigeria | B198: Delta | C198: Burutu | D198: 268390.206 | E198: =IF(INTRO!$E$48="","",ROUND($D198*INTRO!$E$48,0)) -> 53678 | F198: =IF(INTRO!$E$49="","",ROUND($D198*INTRO!$E$49,0)) -> 75149 | G198: =IF(INTRO!$E$50="","",ROUND($D198*INTRO!$E$50,0)) -> 139563 | H198: 0 | I198: 0 | J198: 3 | K198: 1 | L198: =IF(INTRO!$E$38="Endemic", IF($H198>0, IF($H198=4,"Unknown", IF($H198=99,"Stopped", $D198)), 0),"Not required") -> 0 | M198: 0 | N198: =IF(INTRO!$E$42="Endemic", IF(AND($J198>1,$J198<5), IF($J198=4, "Unknown", E198+F198), 0),"Not required") -> 128827 | O198: =IF(INTRO!$E$44="Endemic", IF(AND($K198>0,$K198<5), IF($K198=4,"Unknown", IF($K198=1, $F198*0.33, IF($K198=2, $F198*0.5+$G198*0.2, SUM(F198:G198)))), 0),"Not required") -> 24799.17 | P198: 0 | Q198: 0 | R198: 2 | S198: 0 | X198: 36526 | Y198: Burutu | AA198: TRUE
A199: =IF(INTRO!$E$34<>0,INTRO!$E$34,"") -> Nigeria | B199: Delta | C199: Ethiope East | D199: 257030.7358 | E199: =IF(INTRO!$E$48="","",ROUND($D199*INTRO!$E$48,0)) -> 51406 | F199: =IF(INTRO!$E$49="","",ROUND($D199*INTRO!$E$49,0)) -> 71969 | G199: =IF(INTRO!$E$50="","",ROUND($D199*INTRO!$E$50,0)) -> 133656 | H199: 1 | I199: 1 | J199: 3 | K199: 1 | L199: =IF(INTRO!$E$38="Endemic", IF($H199>0, IF($H199=4,"Unknown", IF($H199=99,"Stopped", $D199)), 0),"Not required") -> 257030.7358 | M199: 122322.1675 | N199: =IF(INTRO!$E$42="Endemic", IF(AND($J199>1,$J199<5), IF($J199=4, "Unknown", E199+F199), 0),"Not required") -> 123375 | O199: =IF(INTRO!$E$44="Endemic", IF(AND($K199>0,$K199<5), IF($K199=4,"Unknown", IF($K199=1, $F199*0.33, IF($K199=2, $F199*0.5+$G199*0.2, SUM(F199:G199)))), 0),"Not required") -> 23749.77 | P199: 1 | Q199: 1 | R199: 2 | S199: 0 | X199: 36527 | Y199: Ethiope East | AA199: TRUE
A200: =IF(INTRO!$E$34<>0,INTRO!$E$34,"") -> Nigeria | B200: Delta | C200: Ethiope West | D200: 260614.9725 | E200: =IF(INTRO!$E$48="","",ROUND($D200*INTRO!$E$48,0)) -> 52123 | F200: =IF(INTRO!$E$49="","",ROUND($D200*INTRO!$E$49,0)) -> 72972 | G200: =IF(INTRO!$E$50="","",ROUND($D200*INTRO!$E$50,0)) -> 135520 | H200: 0 | I200: 1 | J200: 3 | K200: 0 | L200: =IF(INTRO!$E$38="Endemic", IF($H200>0, IF($H200=4,"Unknown", IF($H200=99,"Stopped", $D200)), 0),"Not required") -> 0 | M200: 260614.9725 | N200: =IF(INTRO!$E$42="Endemic", IF(AND($J200>1,$J200<5), IF($J200=4, "Unknown", E200+F200), 0),"Not required") -> 125095 | O200: =IF(INTRO!$E$44="Endemic", IF(AND($K200>0,$K200<5), IF($K200=4,"Unknown", IF($K200=1, $F200*0.33, IF($K200=2, $F200*0.5+$G200*0.2, SUM(F200:G200)))), 0),"Not required") -> 0 | P200: 0 | Q200: 1 | R200: 2 | S200: 0 | X200: 36528 | Y200: Ethiope West | AA200: TRUE
A201: =IF(INTRO!$E$34<>0,INTRO!$E$34,"") -> Nigeria | B201: Delta | C201: Ika North East | D201: 235096.4871 | E201: =IF(INTRO!$E$48="","",ROUND($D201*INTRO!$E$48,0)) -> 47019 | F201: =IF(INTRO!$E$49="","",ROUND($D201*INTRO!$E$49,0)) -> 65827 | G201: =IF(INTRO!$E$50="","",ROUND($D201*INTRO!$E$50,0)) -> 122250 | H201: 1 | I201: 1 | J201: 3 | K201: 1 | L201: =IF(INTRO!$E$38="Endemic", IF($H201>0, IF($H201=4,"Unknown", IF($H201=99,"Stopped", $D201)), 0),"Not required") -> 235096.4871 | M201: 79030.11375 | N201: =IF(INTRO!$E$42="Endemic", IF(AND($J201>1,$J201<5), IF($J201=4, "Unknown", E201+F201), 0),"Not required") -> 112846 | O201: =IF(INTRO!$E$44="Endemic", IF(AND($K201>0,$K201<5), IF($K201=4,"Unknown", IF($K201=1, $F201*0.33, IF($K201=2, $F201*0.5+$G201*0.2, SUM(F201:G201)))), 0),"Not required") -> 21722.91 | P201: 1 | Q201: 1 | R201: 2 | S201: 0 | T201: MDA1 (IVM+ALB) | X201: 36529 | Y201: Ika North East | AA201: TRUE
A202: =IF(INTRO!$E$34<>0,INTRO!$E$34,"") -> Nigeria | B202: Delta | C202: Ika South | D202: 208134.0664 | E202: =IF(INTRO!$E$48="","",ROUND($D202*INTRO!$E$48,0)) -> 41627 | F202: =IF(INTRO!$E$49="","",ROUND($D202*INTRO!$E$49,0)) -> 58278 | G202: =IF(INTRO!$E$50="","",ROUND($D202*INTRO!$E$50,0)) -> 108230 | H202: 1 | I202: 1 | J202: 2 | K202: 0 | L202: =IF(INTRO!$E$38="Endemic", IF($H202>0, IF($H202=4,"Unknown", IF($H202=99,"Stopped", $D202)), 0),"Not required") -> 208134.0664 | M202: 76339.46312 | N202: =IF(INTRO!$E$42="Endemic", IF(AND($J202>1,$J202<5), IF($J202=4, "Unknown", E202+F202), 0),"Not required") -> 99905 | O202: =IF(INTRO!$E$44="Endemic", IF(AND($K202>0,$K202<5), IF($K202=4,"Unknown", IF($K202=1, $F202*0.33, IF($K202=2, $F202*0.5+$G202*0.2, SUM(F202:G202)))), 0),"Not required") -> 0 | P202: 1 | Q202: 1 | R202: 1 | S202: 0 | T202: MDA1 (IVM+ALB) | X202: 36530 | Y202: Ika South | AA202: =Y202=C202 -> TRUE
A203: =IF(INTRO!$E$34<>0,INTRO!$E$34,"") -> Nigeria | B203: Delta | C203: Isoko North | D203: 184530.5875 | E203: =IF(INTRO!$E$48="","",ROUND($D203*INTRO!$E$48,0)) -> 36906 | F203: =IF(INTRO!$E$49="","",ROUND($D203*INTRO!$E$49,0)) -> 51669 | G203: =IF(INTRO!$E$50="","",ROUND($D203*INTRO!$E$50,0)) -> 95956 | H203: 1 | I203: 1 | J203: 3 | K203: 1 | L203: =IF(INTRO!$E$38="Endemic", IF($H203>0, IF($H203=4,"Unknown", IF($H203=99,"Stopped", $D203)), 0),"Not required") -> 184530.5875 | M203: 87818.59187 | N203: =IF(INTRO!$E$42="Endemic", IF(AND($J203>1,$J203<5), IF($J203=4, "Unknown", E203+F203), 0),"Not required") -> 88575 | O203: =IF(INTRO!$E$44="Endemic", IF(AND($K203>0,$K203<5), IF($K203=4,"Unknown", IF($K203=1, $F203*0.33, IF($K203=2, $F203*0.5+$G203*0.2, SUM(F203:G203)))), 0),"Not required") -> 17050.77 | P203: 1 | Q203: 1 | R203: 2 | S203: 0 | X203: 36531 | Y203: Isoko North | AA203: TRUE
... 579 more rows

Sheet MDA1
A1: MDA 1 - Ivermectin (IVM) and Albendazole (ALB)
A2: Administrative structure, population requiring PC by age group, population treated by age group and coverage
A4: TOTAL | G4: =SUM(G$9:G$1000) -> 27702642 | H4: =SUM(H$9:H$1000) -> 51447762 | I4: =SUM(I$9:I$1000) -> 79150404 | K4: =SUM(K$9:K$1000) -> 22934351.9 | L4: =SUM(L$9:L$1000) -> 43647514.1 | M4: =SUM(M$9:M$1000) -> 66581866 | O4: =IF(G4<>0, IF(K4/G4*100=0, "-", K4/G4*100), " ") -> 82.78759802 | P4: =IF(H4<>0, IF(L4/H4*100=0, "-", L4/H4*100), " ") -> 84.83850882 | Q4: =IF(I4<>0, IF(M4/I4*100=0, "-", M4/I4*100), " ") -> 84.12069002
D6: PC implemented | E6: Date | F6: Population targeted for MDA 1 | J6: Population treated | N6: Programme coverage (%)
A7: Country | B7: Province/State | C7: District | F7: PreSAC | G7: SAC | H7: Adults | I7: Total | J7: PreSAC | K7: SAC | L7: Adults | M7: Total | N7: PreSAC | O7: SAC | P7: Adults | Q7: Total
A9: =IF(COUNTRY_INFO!A9=0," ",COUNTRY_INFO!A9) -> Nigeria | B9: =IF(COUNTRY_INFO!B9=0," ",COUNTRY_INFO!B9) -> Abia | C9: =IF(COUNTRY_INFO!C9=0," ",COUNTRY_INFO!C9) -> Aba North | D9: =IF(COUNTRY_INFO!$T$9:$T$1000="MDA1 (IVM+ALB)", COUNTRY_INFO!$T$9:$T$1000, " ") ->  | I9: =SUM(F9:H9) -> 0 | M9: =SUM(J9:L9) -> 0 | O9: =IF(G9<>0, IF(K9/G9*100=0, "-", K9/G9*100), " ") ->  | P9: =IF(H9<>0, IF(L9/H9*100=0, "-", L9/H9*100), " ") -> 
A10: =IF(COUNTRY_INFO!A10=0," ",COUNTRY_INFO!A10) -> Nigeria | B10: =IF(COUNTRY_INFO!B10=0," ",COUNTRY_INFO!B10) -> Abia | C10: =IF(COUNTRY_INFO!C10=0," ",COUNTRY_INFO!C10) -> Aba South | D10: =IF(COUNTRY_INFO!$T$9:$T$1000="MDA1 (IVM+ALB)", COUNTRY_INFO!$T$9:$T$1000, " ") ->  | I10: =SUM(F10:H10) -> 0 | M10: =SUM(J10:L10) -> 0 | P10: =IF(H10<>0, IF(L10/H10*100=0, "-", L10/H10*100), " ") ->  | Q10: =IF(I10<>0, IF(M10/I10*100=0, "-", M10/I10*100), " ") -> 
A11: =IF(COUNTRY_INFO!A11=0," ",COUNTRY_INFO!A11) -> Nigeria | B11: =IF(COUNTRY_INFO!B11=0," ",COUNTRY_INFO!B11) -> Abia | C11: =IF(COUNTRY_INFO!C11=0," ",COUNTRY_INFO!C11) -> Arochukwu | D11: =IF(COUNTRY_INFO!$T$9:$T$1000="MDA1 (IVM+ALB)", COUNTRY_INFO!$T$9:$T$1000, " ") -> MDA1 (IVM+ALB) | E11: January | G11: 61006 | H11: 113297 | I11: 174303 | K11: 59448.55 | L11: 110404.45 | M11: 169853 | O11: 97.44705439 | P11: 97.44693152 | Q11: 97.44697452
A12: =IF(COUNTRY_INFO!A12=0," ",COUNTRY_INFO!A12) -> Nigeria | B12: =IF(COUNTRY_INFO!B12=0," ",COUNTRY_INFO!B12) -> Abia | C12: =IF(COUNTRY_INFO!C12=0," ",COUNTRY_INFO!C12) -> Bende | D12: =IF(COUNTRY_INFO!$T$9:$T$1000="MDA1 (IVM+ALB)", COUNTRY_INFO!$T$9:$T$1000, " ") -> MDA1 (IVM+ALB) | E12: January | G12: 68857 | H12: 127878 | I12: 196735 | K12: 67045.3 | L12: 124512.7 | M12: 191558 | O12: 97.36889496 | P12: 97.36835108 | Q12: 97.36854144
A13: =IF(COUNTRY_INFO!A13=0," ",COUNTRY_INFO!A13) -> Nigeria | B13: =IF(COUNTRY_INFO!B13=0," ",COUNTRY_INFO!B13) -> Abia | C13: =IF(COUNTRY_INFO!C13=0," ",COUNTRY_INFO!C13) -> Ikwuano | D13: =IF(COUNTRY_INFO!$T$9:$T$1000="MDA1 (IVM+ALB)", COUNTRY_INFO!$T$9:$T$1000, " ") -> MDA1 (IVM+ALB) | E13: January | G13: 49460 | H13: 91854 | I13: 141314 | K13: 47487.65 | L13: 88191.35 | M13: 135679 | O13: 96.01223211 | P13: 96.01253076 | Q13: 96.01242623
A14: =IF(COUNTRY_INFO!A14=0," ",COUNTRY_INFO!A14) -> Nigeria | B14: =IF(COUNTRY_INFO!B14=0," ",COUNTRY_INFO!B14) -> Abia | C14: =IF(COUNTRY_INFO!C14=0," ",COUNTRY_INFO!C14) -> Isiala-Ngwa North | D14: =IF(COUNTRY_INFO!$T$9:$T$1000="MDA1 (IVM+ALB)", COUNTRY_INFO!$T$9:$T$1000, " ") -> MDA1 (IVM+ALB) | E14: January | G14: 55102 | H14: 102332 | I14: 157434 | K14: 52049.55 | L14: 96663.45 | M14: 148713 | O14: 94.46036442 | P14: 94.46062815 | Q14: 94.46053584
A15: =IF(COUNTRY_INFO!A15=0," ",COUNTRY_INFO!A15) -> Nigeria | B15: =IF(COUNTRY_INFO!B15=0," ",COUNTRY_INFO!B15) -> Abia | C15: =IF(COUNTRY_INFO!C15=0," ",COUNTRY_INFO!C15) -> Isiala-Ngwa South | D15: =IF(COUNTRY_INFO!$T$9:$T$1000="MDA1 (IVM+ALB)", COUNTRY_INFO!$T$9:$T$1000, " ") -> MDA1 (IVM+ALB) | E15: January | G15: 48302 | H15: 89704 | I15: 138006 | K15: 47296.9 | L15: 87837.1 | M15: 135134 | O15: 97.91913378 | P15: 97.9188219 | Q15: 97.91893106
A16: =IF(COUNTRY_INFO!A16=0," ",COUNTRY_INFO!A16) -> Nigeria | B16: =IF(COUNTRY_INFO!B16=0," ",COUNTRY_INFO!B16) -> Abia | C16: =IF(COUNTRY_INFO!C16=0," ",COUNTRY_INFO!C16) -> Isiukwuato | D16: =IF(COUNTRY_INFO!$T$9:$T$1000="MDA1 (IVM+ALB)", COUNTRY_INFO!$T$9:$T$1000, " ") -> MDA1 (IVM+ALB) | E16: January | G16: 41019 | H16: 76178 | I16: 117197 | K16: 26560 | L16: 70530 | M16: 97090 | O16: 64.75048148 | P16: 92.58578592 | Q16: 82.84341749
A17: =IF(COUNTRY_INFO!A17=0," ",COUNTRY_INFO!A17) -> Nigeria | B17: =IF(COUNTRY_INFO!B17=0," ",COUNTRY_INFO!B17) -> Abia | C17: =IF(COUNTRY_INFO!C17=0," ",COUNTRY_INFO!C17) -> Obio-Ngwa | D17: =IF(COUNTRY_INFO!$T$9:$T$1000="MDA1 (IVM+ALB)", COUNTRY_INFO!$T$9:$T$1000, " ") ->  | I17: 0 | M17: 0
A18: =IF(COUNTRY_INFO!A18=0," ",COUNTRY_INFO!A18) -> Nigeria | B18: =IF(COUNTRY_INFO!B18=0," ",COUNTRY_INFO!B18) -> Abia | C18: =IF(COUNTRY_INFO!C18=0," ",COUNTRY_INFO!C18) -> Ohafia | D18: =IF(COUNTRY_INFO!$T$9:$T$1000="MDA1 (IVM+ALB)", COUNTRY_INFO!$T$9:$T$1000, " ") -> MDA1 (IVM+ALB) | E18: January | G18: 87865 | H18: 163179 | I18: 251044 | K18: 83529.6 | L18: 155126.4 | M18: 238656 | O18: 95.06583964 | P18: 95.06517383 | Q18: 95.06540686
A19: =IF(COUNTRY_INFO!A19=0," ",COUNTRY_INFO!A19) -> Nigeria | B19: =IF(COUNTRY_INFO!B19=0," ",COUNTRY_INFO!B19) -> Abia | C19: =IF(COUNTRY_INFO!C19=0," ",COUNTRY_INFO!C19) -> Osisioma Ngwa | D19: =IF(COUNTRY_INFO!$T$9:$T$1000="MDA1 (IVM+ALB)", COUNTRY_INFO!$T$9:$T$1000, " ") ->  | I19: 0 | M19: 0
A20: =IF(COUNTRY_INFO!A20=0," ",COUNTRY_INFO!A20) -> Nigeria | B20: =IF(COUNTRY_INFO!B20=0," ",COUNTRY_INFO!B20) -> Abia | C20: =IF(COUNTRY_INFO!C20=0," ",COUNTRY_INFO!C20) -> Ugwunagbo | D20: =IF(COUNTRY_INFO!$T$9:$T$1000="MDA1 (IVM+ALB)", COUNTRY_INFO!$T$9:$T$1000, " ") ->  | I20: 0 | M20: 0
A21: =IF(COUNTRY_INFO!A21=0," ",COUNTRY_INFO!A21) -> Nigeria | B21: =IF(COUNTRY_INFO!B21=0," ",COUNTRY_INFO!B21) -> Abia | C21: =IF(COUNTRY_INFO!C21=0," ",COUNTRY_INFO!C21) -> Ukwa East | D21: =IF(COUNTRY_INFO!$T$9:$T$1000="MDA1 (IVM+ALB)", COUNTRY_INFO!$T$9:$T$1000, " ") -> MDA1 (IVM+ALB) | E21: January | G21: 21099 | H21: 39183 | I21: 60282 | K21: 21001 | L21: 36110 | M21: 57111 | O21: 99.53552301 | P21: 92.15731312 | Q21: 94.7397233
A22: =IF(COUNTRY_INFO!A22=0," ",COUNTRY_INFO!A22) -> Nigeria | B22: =IF(COUNTRY_INFO!B22=0," ",COUNTRY_INFO!B22) -> Abia | C22: =IF(COUNTRY_INFO!C22=0," ",COUNTRY_INFO!C22) -> Ukwa West | D22: =IF(COUNTRY_INFO!$T$9:$T$1000="MDA1 (IVM+ALB)", COUNTRY_INFO!$T$9:$T$1000, " ") -> MDA1 (IVM+ALB) | E22: January | G22: 31740 | H22: 58946 | I22: 90686 | K22: 29386 | L22: 53204 | M22: 82590 | O22: 92.58349086 | P22: 90.25888101 | Q22: 91.0724919
A23: =IF(COUNTRY_INFO!A23=0," ",COUNTRY_INFO!A23) -> Nigeria | B23: =IF(COUNTRY_INFO!B23=0," ",COUNTRY_INFO!B23) -> Abia | C23: =IF(COUNTRY_INFO!C23=0," ",COUNTRY_INFO!C23) -> Umuahia North | D23: =IF(COUNTRY_INFO!$T$9:$T$1000="MDA1 (IVM+ALB)", COUNTRY_INFO!$T$9:$T$1000, " ") -> MDA1 (IVM+ALB) | E23: January | G23: 79090 | H23: 146881 | I23: 225971 | K23: 72564.8 | L23: 134763.2 | M23: 207328 | O23: 91.74965229 | P23: 91.74992 | Q23: 91.74982631
A24: =IF(COUNTRY_INFO!A24=0," ",COUNTRY_INFO!A24) -> Nigeria | B24: =IF(COUNTRY_INFO!B24=0," ",COUNTRY_INFO!B24) -> Abia | C24: =IF(COUNTRY_INFO!C24=0," ",COUNTRY_INFO!C24) -> Umuahia South | D24: =IF(COUNTRY_INFO!$T$9:$T$1000="MDA1 (IVM+ALB)", COUNTRY_INFO!$T$9:$T$1000, " ") -> MDA1 (IVM+ALB) | E24: January | G24: 49667 | H24: 92238 | I24: 141905 | K24: 49643 | L24: 76470 | M24: 126113 | O24: 99.95167818 | P24: 82.90509335 | Q24: 88.87142807
A25: =IF(COUNTRY_INFO!A25=0," ",COUNTRY_INFO!A25) -> Nigeria | B25: =IF(COUNTRY_INFO!B25=0," ",COUNTRY_INFO!B25) -> Abia | C25: =IF(COUNTRY_INFO!C25=0," ",COUNTRY_INFO!C25) -> Umu-Nneochi | D25: =IF(COUNTRY_INFO!$T$9:$T$1000="MDA1 (IVM+ALB)", COUNTRY_INFO!$T$9:$T$1000, " ") -> MDA1 (IVM+ALB) | E25: January | G25: 58756 | H25: 109118 | I25: 167874 | K25: 52218 | L25: 95275 | M25: 147493 | O25: 88.87262577 | P25: 87.31373376 | Q25: 87.85934689
A26: =IF(COUNTRY_INFO!A26=0," ",COUNTRY_INFO!A26) -> Nigeria | B26: =IF(COUNTRY_INFO!B26=0," ",COUNTRY_INFO!B26) -> Adamawa | C26: =IF(COUNTRY_INFO!C26=0," ",COUNTRY_INFO!C26) -> Demsa | D26: =IF(COUNTRY_INFO!$T$9:$T$1000="MDA1 (IVM+ALB)", COUNTRY_INFO!$T$9:$T$1000, " ") ->  | I26: 0 | M26: 0
A27: =IF(COUNTRY_INFO!A27=0," ",COUNTRY_INFO!A27) -> Nigeria | B27: =IF(COUNTRY_INFO!B27=0," ",COUNTRY_INFO!B27) -> Adamawa | C27: =IF(COUNTRY_INFO!C27=0," ",COUNTRY_INFO!C27) -> Fufore | D27: =IF(COUNTRY_INFO!$T$9:$T$1000="MDA1 (IVM+ALB)", COUNTRY_INFO!$T$9:$T$1000, " ") ->  | I27: 0 | M27: 0
A28: =IF(COUNTRY_INFO!A28=0," ",COUNTRY_INFO!A28) -> Nigeria | B28: =IF(COUNTRY_INFO!B28=0," ",COUNTRY_INFO!B28) -> Adamawa | C28: =IF(COUNTRY_INFO!C28=0," ",COUNTRY_INFO!C28) -> Ganye | D28: =IF(COUNTRY_INFO!$T$9:$T$1000="MDA1 (IVM+ALB)", COUNTRY_INFO!$T$9:$T$1000, " ") ->  | I28: 0 | M28: 0
A29: =IF(COUNTRY_INFO!A29=0," ",COUNTRY_INFO!A29) -> Nigeria | B29: =IF(COUNTRY_INFO!B29=0," ",COUNTRY_INFO!B29) -> Adamawa | C29: =IF(COUNTRY_INFO!C29=0," ",COUNTRY_INFO!C29) -> Girei | D29: =IF(COUNTRY_INFO!$T$9:$T$1000="MDA1 (IVM+ALB)", COUNTRY_INFO!$T$9:$T$1000, " ") ->  | I29: 0 | M29: 0
A30: =IF(COUNTRY_INFO!A30=0," ",COUNTRY_INFO!A30) -> Nigeria | B30: =IF(COUNTRY_INFO!B30=0," ",COUNTRY_INFO!B30) -> Adamawa | C30: =IF(COUNTRY_INFO!C30=0," ",COUNTRY_INFO!C30) -> Gombi | D30: =IF(COUNTRY_INFO!$T$9:$T$1000="MDA1 (IVM+ALB)", COUNTRY_INFO!$T$9:$T$1000, " ") ->  | I30: 0 | M30: 0
A31: =IF(COUNTRY_INFO!A31=0," ",COUNTRY_INFO!A31) -> Nigeria | B31: =IF(COUNTRY_INFO!B31=0," ",COUNTRY_INFO!B31) -> Adamawa | C31: =IF(COUNTRY_INFO!C31=0," ",COUNTRY_INFO!C31) -> Guyuk | D31: =IF(COUNTRY_INFO!$T$9:$T$1000="MDA1 (IVM+ALB)", COUNTRY_INFO!$T$9:$T$1000, " ") ->  | I31: 0 | M31: 0
A32: =IF(COUNTRY_INFO!A32=0," ",COUNTRY_INFO!A32) -> Nigeria | B32: =IF(COUNTRY_INFO!B32=0," ",COUNTRY_INFO!B32) -> Adamawa | C32: =IF(COUNTRY_INFO!C32=0," ",COUNTRY_INFO!C32) -> Hong | D32: =IF(COUNTRY_INFO!$T$9:$T$1000="MDA1 (IVM+ALB)", COUNTRY_INFO!$T$9:$T$1000, " ") ->  | I32: 0 | M32: 0
A33: =IF(COUNTRY_INFO!A33=0," ",COUNTRY_INFO!A33) -> Nigeria | B33: =IF(COUNTRY_INFO!B33=0," ",COUNTRY_INFO!B33) -> Adamawa | C33: =IF(COUNTRY_INFO!C33=0," ",COUNTRY_INFO!C33) -> Jada | D33: =IF(COUNTRY_INFO!$T$9:$T$1000="MDA1 (IVM+ALB)", COUNTRY_INFO!$T$9:$T$1000, " ") ->  | I33: 0 | M33: 0
A34: =IF(COUNTRY_INFO!A34=0," ",COUNTRY_INFO!A34) -> Nigeria | B34: =IF(COUNTRY_INFO!B34=0," ",COUNTRY_INFO!B34) -> Adamawa | C34: =IF(COUNTRY_INFO!C34=0," ",COUNTRY_INFO!C34) -> Lamurde | D34: =IF(COUNTRY_INFO!$T$9:$T$1000="MDA1 (IVM+ALB)", COUNTRY_INFO!$T$9:$T$1000, " ") ->  | I34: 0 | M34: 0
A35: =IF(COUNTRY_INFO!A35=0," ",COUNTRY_INFO!A35) -> Nigeria | B35: =IF(COUNTRY_INFO!B35=0," ",COUNTRY_INFO!B35) -> Adamawa | C35: =IF(COUNTRY_INFO!C35=0," ",COUNTRY_INFO!C35) -> Madagali | D35: =IF(COUNTRY_INFO!$T$9:$T$1000="MDA1 (IVM+ALB)", COUNTRY_INFO!$T$9:$T$1000, " ") ->  | I35: 0 | M35: 0
A36: =IF(COUNTRY_INFO!A36=0," ",COUNTRY_INFO!A36) -> Nigeria | B36: =IF(COUNTRY_INFO!B36=0," ",COUNTRY_INFO!B36) -> Adamawa | C36: =IF(COUNTRY_INFO!C36=0," ",COUNTRY_INFO!C36) -> Maiha | D36: =IF(COUNTRY_INFO!$T$9:$T$1000="MDA1 (IVM+ALB)", COUNTRY_INFO!$T$9:$T$1000, " ") ->  | I36: 0 | M36: 0
A37: =IF(COUNTRY_INFO!A37=0," ",COUNTRY_INFO!A37) -> Nigeria | B37: =IF(COUNTRY_INFO!B37=0," ",COUNTRY_INFO!B37) -> Adamawa | C37: =IF(COUNTRY_INFO!C37=0," ",COUNTRY_INFO!C37) -> Mayo-belwa | D37: =IF(COUNTRY_INFO!$T$9:$T$1000="MDA1 (IVM+ALB)", COUNTRY_INFO!$T$9:$T$1000, " ") ->  | I37: 0 | M37: 0
A38: =IF(COUNTRY_INFO!A38=0," ",COUNTRY_INFO!A38) -> Nigeria | B38: =IF(COUNTRY_INFO!B38=0," ",COUNTRY_INFO!B38) -> Adamawa | C38: =IF(COUNTRY_INFO!C38=0," ",COUNTRY_INFO!C38) -> Michika | D38: =IF(COUNTRY_INFO!$T$9:$T$1000="MDA1 (IVM+ALB)", COUNTRY_INFO!$T$9:$T$1000, " ") ->  | I38: 0 | M38: 0
A39: =IF(COUNTRY_INFO!A39=0," ",COUNTRY_INFO!A39) -> Nigeria | B39: =IF(COUNTRY_INFO!B39=0," ",COUNTRY_INFO!B39) -> Adamawa | C39: =IF(COUNTRY_INFO!C39=0," ",COUNTRY_INFO!C39) -> Mubi North | D39: =IF(COUNTRY_INFO!$T$9:$T$1000="MDA1 (IVM+ALB)", COUNTRY_INFO!$T$9:$T$1000, " ") ->  | I39: 0 | M39: 0
A40: =IF(COUNTRY_INFO!A40=0," ",COUNTRY_INFO!A40) -> Nigeria | B40: =IF(COUNTRY_INFO!B40=0," ",COUNTRY_INFO!B40) -> Adamawa | C40: =IF(COUNTRY_INFO!C40=0," ",COUNTRY_INFO!C40) -> Mubi South | D40: =IF(COUNTRY_INFO!$T$9:$T$1000="MDA1 (IVM+ALB)", COUNTRY_INFO!$T$9:$T$1000, " ") ->  | I40: 0 | M40: 0
A41: =IF(COUNTRY_INFO!A41=0," ",COUNTRY_INFO!A41) -> Nigeria | B41: =IF(COUNTRY_INFO!B41=0," ",COUNTRY_INFO!B41) -> Adamawa | C41: =IF(COUNTRY_INFO!C41=0," ",COUNTRY_INFO!C41) -> Numan | D41: =IF(COUNTRY_INFO!$T$9:$T$1000="MDA1 (IVM+ALB)", COUNTRY_INFO!$T$9:$T$1000, " ") ->  | I41: 0 | M41: 0
A42: =IF(COUNTRY_INFO!A42=0," ",COUNTRY_INFO!A42) -> Nigeria | B42: =IF(COUNTRY_INFO!B42=0," ",COUNTRY_INFO!B42) -> Adamawa | C42: =IF(COUNTRY_INFO!C42=0," ",COUNTRY_INFO!C42) -> Shelleng | D42: =IF(COUNTRY_INFO!$T$9:$T$1000="MDA1 (IVM+ALB)", COUNTRY_INFO!$T$9:$T$1000, " ") ->  | I42: 0 | M42: 0
A43: =IF(COUNTRY_INFO!A43=0," ",COUNTRY_INFO!A43) -> Nigeria | B43: =IF(COUNTRY_INFO!B43=0," ",COUNTRY_INFO!B43) -> Adamawa | C43: =IF(COUNTRY_INFO!C43=0," ",COUNTRY_INFO!C43) -> Song | D43: =IF(COUNTRY_INFO!$T$9:$T$1000="MDA1 (IVM+ALB)", COUNTRY_INFO!$T$9:$T$1000, " ") ->  | I43: 0 | M43: 0
A44: =IF(COUNTRY_INFO!A44=0," ",COUNTRY_INFO!A44) -> Nigeria | B44: =IF(COUNTRY_INFO!B44=0," ",COUNTRY_INFO!B44) -> Adamawa | C44: =IF(COUNTRY_INFO!C44=0," ",COUNTRY_INFO!C44) -> Toungo | D44: =IF(COUNTRY_INFO!$T$9:$T$1000="MDA1 (IVM+ALB)", COUNTRY_INFO!$T$9:$T$1000, " ") ->  | I44: 0 | M44: 0
A45: =IF(COUNTRY_INFO!A45=0," ",COUNTRY_INFO!A45) -> Nigeria | B45: =IF(COUNTRY_INFO!B45=0," ",COUNTRY_INFO!B45) -> Adamawa | C45: =IF(COUNTRY_INFO!C45=0," ",COUNTRY_INFO!C45) -> Yola North | D45: =IF(COUNTRY_INFO!$T$9:$T$1000="MDA1 (IVM+ALB)", COUNTRY_INFO!$T$9:$T$1000, " ") ->  | I45: 0 | M45: 0
A46: =IF(COUNTRY_INFO!A46=0," ",COUNTRY_INFO!A46) -> Nigeria | B46: =IF(COUNTRY_INFO!B46=0," ",COUNTRY_INFO!B46) -> Adamawa | C46: =IF(COUNTRY_INFO!C46=0," ",COUNTRY_INFO!C46) -> Yola South | D46: =IF(COUNTRY_INFO!$T$9:$T$1000="MDA1 (IVM+ALB)", COUNTRY_INFO!$T$9:$T$1000, " ") ->  | I46: 0 | M46: 0
A47: =IF(COUNTRY_INFO!A47=0," ",COUNTRY_INFO!A47) -> Nigeria | B47: =IF(COUNTRY_INFO!B47=0," ",COUNTRY_INFO!B47) -> Akwa Ibom | C47: =IF(COUNTRY_INFO!C47=0," ",COUNTRY_INFO!C47) -> Abak | D47: =IF(COUNTRY_INFO!$T$9:$T$1000="MDA1 (IVM+ALB)", COUNTRY_INFO!$T$9:$T$1000, " ") ->  | I47: 0 | M47: 0
A48: =IF(COUNTRY_INFO!A48=0," ",COUNTRY_INFO!A48) -> Nigeria | B48: =IF(COUNTRY_INFO!B48=0," ",COUNTRY_INFO!B48) -> Akwa Ibom | C48: =IF(COUNTRY_INFO!C48=0," ",COUNTRY_INFO!C48) -> Eastern Obolo | D48: =IF(COUNTRY_INFO!$T$9:$T$1000="MDA1 (IVM+ALB)", COUNTRY_INFO!$T$9:$T$1000, " ") -> MDA1 (IVM+ALB) | E48: January | G48: 21700 | H48: 40300 | I48: 62000 | K48: 16113 | L48: 34179 | M48: 50292 | O48: 74.25345622 | P48: 84.81141439 | Q48: 81.11612903
A49: =IF(COUNTRY_INFO!A49=0," ",COUNTRY_INFO!A49) -> Nigeria | B49: =IF(COUNTRY_INFO!B49=0," ",COUNTRY_INFO!B49) -> Akwa Ibom | C49: =IF(COUNTRY_INFO!C49=0," ",COUNTRY_INFO!C49) -> Eket | D49: =IF(COUNTRY_INFO!$T$9:$T$1000="MDA1 (IVM+ALB)", COUNTRY_INFO!$T$9:$T$1000, " ") ->  | I49: 0 | M49: 0
A50: =IF(COUNTRY_INFO!A50=0," ",COUNTRY_INFO!A50) -> Nigeria | B50: =IF(COUNTRY_INFO!B50=0," ",COUNTRY_INFO!B50) -> Akwa Ibom | C50: =IF(COUNTRY_INFO!C50=0," ",COUNTRY_INFO!C50) -> Esit Eket | D50: =IF(COUNTRY_INFO!$T$9:$T$1000="MDA1 (IVM+ALB)", COUNTRY_INFO!$T$9:$T$1000, " ") ->  | I50: 0 | M50: 0
A51: =IF(COUNTRY_INFO!A51=0," ",COUNTRY_INFO!A51) -> Nigeria | B51: =IF(COUNTRY_INFO!B51=0," ",COUNTRY_INFO!B51) -> Akwa Ibom | C51: =IF(COUNTRY_INFO!C51=0," ",COUNTRY_INFO!C51) -> Essien Udim | D51: =IF(COUNTRY_INFO!$T$9:$T$1000="MDA1 (IVM+ALB)", COUNTRY_INFO!$T$9:$T$1000, " ") ->  | I51: 0 | M51: 0
A52: =IF(COUNTRY_INFO!A52=0," ",COUNTRY_INFO!A52) -> Nigeria | B52: =IF(COUNTRY_INFO!B52=0," ",COUNTRY_INFO!B52) -> Akwa Ibom | C52: =IF(COUNTRY_INFO!C52=0," ",COUNTRY_INFO!C52) -> Etim Ekpo | D52: =IF(COUNTRY_INFO!$T$9:$T$1000="MDA1 (IVM+ALB)", COUNTRY_INFO!$T$9:$T$1000, " ") -> MDA1 (IVM+ALB) | E52: January | G52: 37784 | H52: 70171 | I52: 107955 | K52: 38097.85 | L52: 70753.15 | M52: 108851 | O52: 100.8306426 | P52: 100.8296162 | Q52: 100.8299755
A53: =IF(COUNTRY_INFO!A53=0," ",COUNTRY_INFO!A53) -> Nigeria | B53: =IF(COUNTRY_INFO!B53=0," ",COUNTRY_INFO!B53) -> Akwa Ibom | C53: =IF(COUNTRY_INFO!C53=0," ",COUNTRY_INFO!C53) -> Etinan | D53: =IF(COUNTRY_INFO!$T$9:$T$1000="MDA1 (IVM+ALB)", COUNTRY_INFO!$T$9:$T$1000, " ") ->  | I53: 0 | M53: 0
A54: =IF(COUNTRY_INFO!A54=0," ",COUNTRY_INFO!A54) -> Nigeria | B54: =IF(COUNTRY_INFO!B54=0," ",COUNTRY_INFO!B54) -> Akwa Ibom | C54: =IF(COUNTRY_INFO!C54=0," ",COUNTRY_INFO!C54) -> Ibeno | D54: =IF(COUNTRY_INFO!$T$9:$T$1000="MDA1 (IVM+ALB)", COUNTRY_INFO!$T$9:$T$1000, " ") ->  | I54: 0 | M54: 0
A55: =IF(COUNTRY_INFO!A55=0," ",COUNTRY_INFO!A55) -> Nigeria | B55: =IF(COUNTRY_INFO!B55=0," ",COUNTRY_INFO!B55) -> Akwa Ibom | C55: =IF(COUNTRY_INFO!C55=0," ",COUNTRY_INFO!C55) -> Ibesikpo Asutan | D55: =IF(COUNTRY_INFO!$T$9:$T$1000="MDA1 (IVM+ALB)", COUNTRY_INFO!$T$9:$T$1000, " ") ->  | I55: 0 | M55: 0
A56: =IF(COUNTRY_INFO!A56=0," ",COUNTRY_INFO!A56) -> Nigeria | B56: =IF(COUNTRY_INFO!B56=0," ",COUNTRY_INFO!B56) -> Akwa Ibom | C56: =IF(COUNTRY_INFO!C56=0," ",COUNTRY_INFO!C56) -> Ibiono Ibom | D56: =IF(COUNTRY_INFO!$T$9:$T$1000="MDA1 (IVM+ALB)", COUNTRY_INFO!$T$9:$T$1000, " ") ->  | I56: 0 | M56: 0
A57: =IF(COUNTRY_INFO!A57=0," ",COUNTRY_INFO!A57) -> Nigeria | B57: =IF(COUNTRY_INFO!B57=0," ",COUNTRY_INFO!B57) -> Akwa Ibom | C57: =IF(COUNTRY_INFO!C57=0," ",COUNTRY_INFO!C57) -> Ika | D57: =IF(COUNTRY_INFO!$T$9:$T$1000="MDA1 (IVM+ALB)", COUNTRY_INFO!$T$9:$T$1000, " ") ->  | I57: 0 | M57: 0
A58: =IF(COUNTRY_INFO!A58=0," ",COUNTRY_INFO!A58) -> Nigeria | B58: =IF(COUNTRY_INFO!B58=0," ",COUNTRY_INFO!B58) -> Akwa Ibom | C58: =IF(COUNTRY_INFO!C58=0," ",COUNTRY_INFO!C58) -> Ikono | D58: =IF(COUNTRY_INFO!$T$9:$T$1000="MDA1 (IVM+ALB)", COUNTRY_INFO!$T$9:$T$1000, " ") ->  | I58: 0 | M58: 0
A59: =IF(COUNTRY_INFO!A59=0," ",COUNTRY_INFO!A59) -> Nigeria | B59: =IF(COUNTRY_INFO!B59=0," ",COUNTRY_INFO!B59) -> Akwa Ibom | C59: =IF(COUNTRY_INFO!C59=0," ",COUNTRY_INFO!C59) -> Ikot Abasi | D59: =IF(COUNTRY_INFO!$T$9:$T$1000="MDA1 (IVM+ALB)", COUNTRY_INFO!$T$9:$T$1000, " ") -> MDA1 (IVM+ALB) | E59: January | G59: 47320 | H59: 87880 | I59: 135200 | K59: 19651 | L59: 48486 | M59: 68137 | O59: 41.52789518 | P59: 55.17296313 | Q59: 50.39718935
A60: =IF(COUNTRY_INFO!A60=0," ",COUNTRY_INFO!A60) -> Nigeria | B60: =IF(COUNTRY_INFO!B60=0," ",COUNTRY_INFO!B60) -> Akwa Ibom | C60: =IF(COUNTRY_INFO!C60=0," ",COUNTRY_INFO!C60) -> Ikot Ekpene | D60: =IF(COUNTRY_INFO!$T$9:$T$1000="MDA1 (IVM+ALB)", COUNTRY_INFO!$T$9:$T$1000, " ") ->  | I60: 0 | M60: 0
A61: =IF(COUNTRY_INFO!A61=0," ",COUNTRY_INFO!A61) -> Nigeria | B61: =IF(COUNTRY_INFO!B61=0," ",COUNTRY_INFO!B61) -> Akwa Ibom | C61: =IF(COUNTRY_INFO!C61=0," ",COUNTRY_INFO!C61) -> Ini | D61: =IF(COUNTRY_INFO!$T$9:$T$1000="MDA1 (IVM+ALB)", COUNTRY_INFO!$T$9:$T$1000, " ") ->  | I61: 0 | M61: 0
A62: =IF(COUNTRY_INFO!A62=0," ",COUNTRY_INFO!A62) -> Nigeria | B62: =IF(COUNTRY_INFO!B62=0," ",COUNTRY_INFO!B62) -> Akwa Ibom | C62: =IF(COUNTRY_INFO!C62=0," ",COUNTRY_INFO!C62) -> Itu | D62: =IF(COUNTRY_INFO!$T$9:$T$1000="MDA1 (IVM+ALB)", COUNTRY_INFO!$T$9:$T$1000, " ") ->  | I62: 0 | M62: 0
A63: =IF(COUNTRY_INFO!A63=0," ",COUNTRY_INFO!A63) -> Nigeria | B63: =IF(COUNTRY_INFO!B63=0," ",COUNTRY_INFO!B63) -> Akwa Ibom | C63: =IF(COUNTRY_INFO!C63=0," ",COUNTRY_INFO!C63) -> Mbo | D63: =IF(COUNTRY_INFO!$T$9:$T$1000="MDA1 (IVM+ALB)", COUNTRY_INFO!$T$9:$T$1000, " ") ->  | I63: 0 | M63: 0
A64: =IF(COUNTRY_INFO!A64=0," ",COUNTRY_INFO!A64) -> Nigeria | B64: =IF(COUNTRY_INFO!B64=0," ",COUNTRY_INFO!B64) -> Akwa Ibom | C64: =IF(COUNTRY_INFO!C64=0," ",COUNTRY_INFO!C64) -> Mkpat Enin | D64: =IF(COUNTRY_INFO!$T$9:$T$1000="MDA1 (IVM+ALB)", COUNTRY_INFO!$T$9:$T$1000, " ") ->  | I64: 0 | M64: 0
A65: =IF(COUNTRY_INFO!A65=0," ",COUNTRY_INFO!A65) -> Nigeria | B65: =IF(COUNTRY_INFO!B65=0," ",COUNTRY_INFO!B65) -> Akwa Ibom | C65: =IF(COUNTRY_INFO!C65=0," ",COUNTRY_INFO!C65) -> Nsit Atai | D65: =IF(COUNTRY_INFO!$T$9:$T$1000="MDA1 (IVM+ALB)", COUNTRY_INFO!$T$9:$T$1000, " ") ->  | I65: 0 | M65: 0
A66: =IF(COUNTRY_INFO!A66=0," ",COUNTRY_INFO!A66) -> Nigeria | B66: =IF(COUNTRY_INFO!B66=0," ",COUNTRY_INFO!B66) -> Akwa Ibom | C66: =IF(COUNTRY_INFO!C66=0," ",COUNTRY_INFO!C66) -> Nsit Ibom | D66: =IF(COUNTRY_INFO!$T$9:$T$1000="MDA1 (IVM+ALB)", COUNTRY_INFO!$T$9:$T$1000, " ") ->  | I66: 0 | M66: 0
A67: =IF(COUNTRY_INFO!A67=0," ",COUNTRY_INFO!A67) -> Nigeria | B67: =IF(COUNTRY_INFO!B67=0," ",COUNTRY_INFO!B67) -> Akwa Ibom | C67: =IF(COUNTRY_INFO!C67=0," ",COUNTRY_INFO!C67) -> Nsit Ubiom | D67: =IF(COUNTRY_INFO!$T$9:$T$1000="MDA1 (IVM+ALB)", COUNTRY_INFO!$T$9:$T$1000, " ") ->  | I67: 0 | M67: 0
A68: =IF(COUNTRY_INFO!A68=0," ",COUNTRY_INFO!A68) -> Nigeria | B68: =IF(COUNTRY_INFO!B68=0," ",COUNTRY_INFO!B68) -> Akwa Ibom | C68: =IF(COUNTRY_INFO!C68=0," ",COUNTRY_INFO!C68) -> Obot Akara | D68: =IF(COUNTRY_INFO!$T$9:$T$1000="MDA1 (IVM+ALB)", COUNTRY_INFO!$T$9:$T$1000, " ") ->  | I68: 0 | M68: 0
A69: =IF(COUNTRY_INFO!A69=0," ",COUNTRY_INFO!A69) -> Nigeria | B69: =IF(COUNTRY_INFO!B69=0," ",COUNTRY_INFO!B69) -> Akwa Ibom | C69: =IF(COUNTRY_INFO!C69=0," ",COUNTRY_INFO!C69) -> Okobo | D69: =IF(COUNTRY_INFO!$T$9:$T$1000="MDA1 (IVM+ALB)", COUNTRY_INFO!$T$9:$T$1000, " ") ->  | I69: 0 | M69: 0
A70: =IF(COUNTRY_INFO!A70=0," ",COUNTRY_INFO!A70) -> Nigeria | B70: =IF(COUNTRY_INFO!B70=0," ",COUNTRY_INFO!B70) -> Akwa Ibom | C70: =IF(COUNTRY_INFO!C70=0," ",COUNTRY_INFO!C70) -> Onna | D70: =IF(COUNTRY_INFO!$T$9:$T$1000="MDA1 (IVM+ALB)", COUNTRY_INFO!$T$9:$T$1000, " ") ->  | I70: 0 | M70: 0
A71: =IF(COUNTRY_INFO!A71=0," ",COUNTRY_INFO!A71) -> Nigeria | B71: =IF(COUNTRY_INFO!B71=0," ",COUNTRY_INFO!B71) -> Akwa Ibom | C71: =IF(COUNTRY_INFO!C71=0," ",COUNTRY_INFO!C71) -> Oron | D71: =IF(COUNTRY_INFO!$T$9:$T$1000="MDA1 (IVM+ALB)", COUNTRY_INFO!$T$9:$T$1000, " ") ->  | I71: 0 | M71: 0
A72: =IF(COUNTRY_INFO!A72=0," ",COUNTRY_INFO!A72) -> Nigeria | B72: =IF(COUNTRY_INFO!B72=0," ",COUNTRY_INFO!B72) -> Akwa Ibom | C72: =IF(COUNTRY_INFO!C72=0," ",COUNTRY_INFO!C72) -> Oruk Anam | D72: =IF(COUNTRY_INFO!$T$9:$T$1000="MDA1 (IVM+ALB)", COUNTRY_INFO!$T$9:$T$1000, " ") ->  | I72: 0 | M72: 0
A73: =IF(COUNTRY_INFO!A73=0," ",COUNTRY_INFO!A73) -> Nigeria | B73: =IF(COUNTRY_INFO!B73=0," ",COUNTRY_INFO!B73) -> Akwa Ibom | C73: =IF(COUNTRY_INFO!C73=0," ",COUNTRY_INFO!C73) -> Udung Uko | D73: =IF(COUNTRY_INFO!$T$9:$T$1000="MDA1 (IVM+ALB)", COUNTRY_INFO!$T$9:$T$1000, " ") ->  | I73: 0 | M73: 0 | O73: =IF(G73<>0, IF(K73/G73*100=0, "-", K73/G73*100), " ") -> 
A74: =IF(COUNTRY_INFO!A74=0," ",COUNTRY_INFO!A74) -> Nigeria | B74: =IF(COUNTRY_INFO!B74=0," ",COUNTRY_INFO!B74) -> Akwa Ibom | C74: =IF(COUNTRY_INFO!C74=0," ",COUNTRY_INFO!C74) -> Ukanafun | D74: =IF(COUNTRY_INFO!$T$9:$T$1000="MDA1 (IVM+ALB)", COUNTRY_INFO!$T$9:$T$1000, " ") ->  | I74: =SUM(F74:H74) -> 0 | M74: =SUM(J74:L74) -> 0 | P74: =IF(H74<>0, IF(L74/H74*100=0, "-", L74/H74*100), " ") ->  | Q74: =IF(I74<>0, IF(M74/I74*100=0, "-", M74/I74*100), " ") -> 
A75: =IF(COUNTRY_INFO!A75=0," ",COUNTRY_INFO!A75) -> Nigeria | B75: =IF(COUNTRY_INFO!B75=0," ",COUNTRY_INFO!B75) -> Akwa Ibom | C75: =IF(COUNTRY_INFO!C75=0," ",COUNTRY_INFO!C75) -> Uruan | D75: =IF(COUNTRY_INFO!$T$9:$T$1000="MDA1 (IVM+ALB)", COUNTRY_INFO!$T$9:$T$1000, " ") -> MDA1 (IVM+ALB) | E75: January | G75: 42402 | H75: 78746 | I75: 121148 | K75: 36598 | L75: 72913 | M75: 109511 | O75: 86.31196642 | P75: 92.59263963 | Q75: 90.39439363
A76: =IF(COUNTRY_INFO!A76=0," ",COUNTRY_INFO!A76) -> Nigeria | B76: =IF(COUNTRY_INFO!B76=0," ",COUNTRY_INFO!B76) -> Akwa Ibom | C76: =IF(COUNTRY_INFO!C76=0," ",COUNTRY_INFO!C76) -> Urue-Offong/Oruko | D76: =IF(COUNTRY_INFO!$T$9:$T$1000="MDA1 (IVM+ALB)", COUNTRY_INFO!$T$9:$T$1000, " ") ->  | I76: 0 | M76: 0
A77: =IF(COUNTRY_INFO!A77=0," ",COUNTRY_INFO!A77) -> Nigeria | B77: =IF(COUNTRY_INFO!B77=0," ",COUNTRY_INFO!B77) -> Akwa Ibom | C77: =IF(COUNTRY_INFO!C77=0," ",COUNTRY_INFO!C77) -> Uyo | D77: =IF(COUNTRY_INFO!$T$9:$T$1000="MDA1 (IVM+ALB)", COUNTRY_INFO!$T$9:$T$1000, " ") ->  | I77: 0 | M77: 0
A78: =IF(COUNTRY_INFO!A78=0," ",COUNTRY_INFO!A78) -> Nigeria | B78: =IF(COUNTRY_INFO!B78=0," ",COUNTRY_INFO!B78) -> Anambra | C78: =IF(COUNTRY_INFO!C78=0," ",COUNTRY_INFO!C78) -> Aguata | D78: =IF(COUNTRY_INFO!$T$9:$T$1000="MDA1 (IVM+ALB)", COUNTRY_INFO!$T$9:$T$1000, " ") -> MDA1 (IVM+ALB) | E78: January | G78: 132678 | H78: 246403 | I78: 379081 | K78: 130853.8 | L78: 243014.2 | M78: 373868 | O78: 98.62509233 | P78: 98.62469207 | Q78: 98.62483216
A79: =IF(COUNTRY_INFO!A79=0," ",COUNTRY_INFO!A79) -> Nigeria | B79: =IF(COUNTRY_INFO!B79=0," ",COUNTRY_INFO!B79) -> Anambra | C79: =IF(COUNTRY_INFO!C79=0," ",COUNTRY_INFO!C79) -> Anambra East | D79: =IF(COUNTRY_INFO!$T$9:$T$1000="MDA1 (IVM+ALB)", COUNTRY_INFO!$T$9:$T$1000, " ") ->  | I79: 0 | M79: 0
A80: =IF(COUNTRY_INFO!A80=0," ",COUNTRY_INFO!A80) -> Nigeria | B80: =IF(COUNTRY_INFO!B80=0," ",COUNTRY_INFO!B80) -> Anambra | C80: =IF(COUNTRY_INFO!C80=0," ",COUNTRY_INFO!C80) -> Anambra West | D80: =IF(COUNTRY_INFO!$T$9:$T$1000="MDA1 (IVM+ALB)", COUNTRY_INFO!$T$9:$T$1000, " ") ->  | I80: 0 | M80: 0
A81: =IF(COUNTRY_INFO!A81=0," ",COUNTRY_INFO!A81) -> Nigeria | B81: =IF(COUNTRY_INFO!B81=0," ",COUNTRY_INFO!B81) -> Anambra | C81: =IF(COUNTRY_INFO!C81=0," ",COUNTRY_INFO!C81) -> Anaocha | D81: =IF(COUNTRY_INFO!$T$9:$T$1000="MDA1 (IVM+ALB)", COUNTRY_INFO!$T$9:$T$1000, " ") -> MDA1 (IVM+ALB) | E81: January | G81: 102151 | H81: 189710 | I81: 291861 | K81: 100353.05 | L81: 186369.95 | M81: 286723 | O81: 98.23990955 | P81: 98.2393917 | Q81: 98.23957295
A82: =IF(COUNTRY_INFO!A82=0," ",COUNTRY_INFO!A82) -> Nigeria | B82: =IF(COUNTRY_INFO!B82=0," ",COUNTRY_INFO!B82) -> Anambra | C82: =IF(COUNTRY_INFO!C82=0," ",COUNTRY_INFO!C82) -> Awka North | D82: =IF(COUNTRY_INFO!$T$9:$T$1000="MDA1 (IVM+ALB)", COUNTRY_INFO!$T$9:$T$1000, " ") -> MDA1 (IVM+ALB) | E82: January | G82: 40361 | H82: 74957 | I82: 115318 | K82: 39615.8 | L82: 73572.2 | M82: 113188 | O82: 98.15366319 | P82: 98.15254079 | Q82: 98.15293363
A83: =IF(COUNTRY_INFO!A83=0," ",COUNTRY_INFO!A83) -> Nigeria | B83: =IF(COUNTRY_INFO!B83=0," ",COUNTRY_INFO!B83) -> Anambra | C83: =IF(COUNTRY_INFO!C83=0," ",COUNTRY_INFO!C83) -> Awka south | D83: =IF(COUNTRY_INFO!$T$9:$T$1000="MDA1 (IVM+ALB)", COUNTRY_INFO!$T$9:$T$1000, " ") -> MDA1 (IVM+ALB) | E83: January | G83: 67760 | H83: 125839 | I83: 193599 | K83: 66528 | L83: 123552 | M83: 190080 | O83: 98.18181818 | P83: 98.1825984 | Q83: 98.18232532
A84: =IF(COUNTRY_INFO!A84=0," ",COUNTRY_INFO!A84) -> Nigeria | B84: =IF(COUNTRY_INFO!B84=0," ",COUNTRY_INFO!B84) -> Anambra | C84: =IF(COUNTRY_INFO!C84=0," ",COUNTRY_INFO!C84) -> Ayamelum | D84: =IF(COUNTRY_INFO!$T$9:$T$1000="MDA1 (IVM+ALB)", COUNTRY_INFO!$T$9:$T$1000, " ") -> MDA1 (IVM+ALB) | E84: January | G84: 56778 | H84: 105445 | I84: 162223 | K84: 56765.8 | L84: 105422.2 | M84: 162188 | O84: 99.9785128 | P84: 99.97837735 | Q84: 99.97842476
A85: =IF(COUNTRY_INFO!A85=0," ",COUNTRY_INFO!A85) -> Nigeria | B85: =IF(COUNTRY_INFO!B85=0," ",COUNTRY_INFO!B85) -> Anambra | C85: =IF(COUNTRY_INFO!C85=0," ",COUNTRY_INFO!C85) -> Dunukofia | D85: =IF(COUNTRY_INFO!$T$9:$T$1000="MDA1 (IVM+ALB)", COUNTRY_INFO!$T$9:$T$1000, " ") -> MDA1 (IVM+ALB) | E85: January | G85: 34546 | H85: 64156 | I85: 98702 | K85: 33914.3 | L85: 62983.7 | M85: 96898 | O85: 98.17142361 | P85: 98.17273521 | Q85: 98.17227614
A86: =IF(COUNTRY_INFO!A86=0," ",COUNTRY_INFO!A86) -> Nigeria | B86: =IF(COUNTRY_INFO!B86=0," ",COUNTRY_INFO!B86) -> Anambra | C86: =IF(COUNTRY_INFO!C86=0," ",COUNTRY_INFO!C86) -> Ekwusiko | D86: =IF(COUNTRY_INFO!$T$9:$T$1000="MDA1 (IVM+ALB)", COUNTRY_INFO!$T$9:$T$1000, " ") -> MDA1 (IVM+ALB) | E86: January | G86: 56714 | H86: 105326 | I86: 162040 | K86: 56171.15 | L86: 104317.85 | M86: 160489 | O86: 99.04282893 | P86: 99.04282893 | Q86: 99.04282893
A87: =IF(COUNTRY_INFO!A87=0," ",COUNTRY_INFO!A87) -> Nigeria | B87: =IF(COUNTRY_INFO!B87=0," ",COUNTRY_INFO!B87) -> Anambra | C87: =IF(COUNTRY_INFO!C87=0," ",COUNTRY_INFO!C87) -> Idimili North | D87: =IF(COUNTRY_INFO!$T$9:$T$1000="MDA1 (IVM+ALB)", COUNTRY_INFO!$T$9:$T$1000, " ") -> MDA1 (IVM+ALB) | E87: January | G87: 154403 | H87: 286748 | I87: 441151 | K87: 153933.85 | L87: 285877.15 | M87: 439811 | O87: 99.69615228 | P87: 99.69630128 | Q87: 99.69624913
A88: =IF(COUNTRY_INFO!A88=0," ",COUNTRY_INFO!A88) -> Nigeria | B88: =IF(COUNTRY_INFO!B88=0," ",COUNTRY_INFO!B88) -> Anambra | C88: =IF(COUNTRY_INFO!C88=0," ",COUNTRY_INFO!C88) -> Idimili South | D88: =IF(COUNTRY_INFO!$T$9:$T$1000="MDA1 (IVM+ALB)", COUNTRY_INFO!$T$9:$T$1000, " ") -> MDA1 (IVM+ALB) | E88: January | G88: 74439 | H88: 138243 | I88: 212682 | K88: 74404.05 | L88: 138178.95 | M88: 212583 | O88: 99.95304881 | P88: 99.95366854 | Q88: 99.95345163
A89: =IF(COUNTRY_INFO!A89=0," ",COUNTRY_INFO!A89) -> Nigeria | B89: =IF(COUNTRY_INFO!B89=0," ",COUNTRY_INFO!B89) -> Anambra | C89: =IF(COUNTRY_INFO!C89=0," ",COUNTRY_INFO!C89) -> Ihiala | D89: =IF(COUNTRY_INFO!$T$9:$T$1000="MDA1 (IVM+ALB)", COUNTRY_INFO!$T$9:$T$1000, " ") -> MDA1 (IVM+ALB) | E89: January | G89: 108301 | H89: 201130 | I89: 309431 | K89: 105678.3 | L89: 196259.7 | M89: 301938 | O89: 97.57832338 | P89: 97.5785313 | Q89: 97.57845853
A90: =IF(COUNTRY_INFO!A90=0," ",COUNTRY_INFO!A90) -> Nigeria | B90: =IF(COUNTRY_INFO!B90=0," ",COUNTRY_INFO!B90) -> Anambra | C90: =IF(COUNTRY_INFO!C90=0," ",COUNTRY_INFO!C90) -> Njikoka | D90: =IF(COUNTRY_INFO!$T$9:$T$1000="MDA1 (IVM+ALB)", COUNTRY_INFO!$T$9:$T$1000, " ") -> MDA1 (IVM+ALB) | E90: January | G90: 53213 | H90: 98825 | I90: 152038 | K90: 53060.35 | L90: 98540.65 | M90: 151601 | O90: 99.71313401 | P90: 99.71226916 | Q90: 99.71257186
A91: =IF(COUNTRY_INFO!A91=0," ",COUNTRY_INFO!A91) -> Nigeria | B91: =IF(COUNTRY_INFO!B91=0," ",COUNTRY_INFO!B91) -> Anambra | C91: =IF(COUNTRY_INFO!C91=0," ",COUNTRY_INFO!C91) -> Nnewi North | D91: =IF(COUNTRY_INFO!$T$9:$T$1000="MDA1 (IVM+ALB)", COUNTRY_INFO!$T$9:$T$1000, " ") -> MDA1 (IVM+ALB) | E91: January | G91: 56476 | H91: 104885 | I91: 161361 | K91: 55795.95 | L91: 103621.05 | M91: 159417 | O91: 98.79586019 | P91: 98.79491824 | Q91: 98.79524792
A92: =IF(COUNTRY_INFO!A92=0," ",COUNTRY_INFO!A92) -> Nigeria | B92: =IF(COUNTRY_INFO!B92=0," ",COUNTRY_INFO!B92) -> Anambra | C92: =IF(COUNTRY_INFO!C92=0," ",COUNTRY_INFO!C92) -> Nnewi South | D92: =IF(COUNTRY_INFO!$T$9:$T$1000="MDA1 (IVM+ALB)", COUNTRY_INFO!$T$9:$T$1000, " ") -> MDA1 (IVM+ALB) | E92: January | G92: 83749 | H92: 155533 | I92: 239282 | K92: 82751.2 | L92: 153680.8 | M92: 236432 | O92: 98.80858279 | P92: 98.80912732 | Q92: 98.80893674
A93: =IF(COUNTRY_INFO!A93=0," ",COUNTRY_INFO!A93) -> Nigeria | B93: =IF(COUNTRY_INFO!B93=0," ",COUNTRY_INFO!B93) -> Anambra | C93: =IF(COUNTRY_INFO!C93=0," ",COUNTRY_INFO!C93) -> Ogbaru | D93: =IF(COUNTRY_INFO!$T$9:$T$1000="MDA1 (IVM+ALB)", COUNTRY_INFO!$T$9:$T$1000, " ") ->  | I93: 0 | M93: 0
A94: =IF(COUNTRY_INFO!A94=0," ",COUNTRY_INFO!A94) -> Nigeria | B94: =IF(COUNTRY_INFO!B94=0," ",COUNTRY_INFO!B94) -> Anambra | C94: =IF(COUNTRY_INFO!C94=0," ",COUNTRY_INFO!C94) -> Onitsha North | D94: =IF(COUNTRY_INFO!$T$9:$T$1000="MDA1 (IVM+ALB)", COUNTRY_INFO!$T$9:$T$1000, " ") ->  | I94: 0 | M94: 0
A95: =IF(COUNTRY_INFO!A95=0," ",COUNTRY_INFO!A95) -> Nigeria | B95: =IF(COUNTRY_INFO!B95=0," ",COUNTRY_INFO!B95) -> Anambra | C95: =IF(COUNTRY_INFO!C95=0," ",COUNTRY_INFO!C95) -> Onitsha South | D95: =IF(COUNTRY_INFO!$T$9:$T$1000="MDA1 (IVM+ALB)", COUNTRY_INFO!$T$9:$T$1000, " ") ->  | I95: 0 | M95: 0
A96: =IF(COUNTRY_INFO!A96=0," ",COUNTRY_INFO!A96) -> Nigeria | B96: =IF(COUNTRY_INFO!B96=0," ",COUNTRY_INFO!B96) -> Anambra | C96: =IF(COUNTRY_INFO!C96=0," ",COUNTRY_INFO!C96) -> Orumba North | D96: =IF(COUNTRY_INFO!$T$9:$T$1000="MDA1 (IVM+ALB)", COUNTRY_INFO!$T$9:$T$1000, " ") -> MDA1 (IVM+ALB) | E96: January | G96: 61794 | H96: 114760 | I96: 176554 | K96: 60490.15 | L96: 112338.85 | M96: 172829 | O96: 97.8900055 | P96: 97.89024922 | Q96: 97.89016392
A97: =IF(COUNTRY_INFO!A97=0," ",COUNTRY_INFO!A97) -> Nigeria | B97: =IF(COUNTRY_INFO!B97=0," ",COUNTRY_INFO!B97) -> Anambra | C97: =IF(COUNTRY_INFO!C97=0," ",COUNTRY_INFO!C97) -> Orumba South | D97: =IF(COUNTRY_INFO!$T$9:$T$1000="MDA1 (IVM+ALB)", COUNTRY_INFO!$T$9:$T$1000, " ") -> MDA1 (IVM+ALB) | E97: January | G97: 67096 | H97: 124607 | I97: 191703 | K97: 65874.55 | L97: 122338.45 | M97: 188213 | O97: 98.17954871 | P97: 98.17943615 | Q97: 98.17947554
A98: =IF(COUNTRY_INFO!A98=0," ",COUNTRY_INFO!A98) -> Nigeria | B98: =IF(COUNTRY_INFO!B98=0," ",COUNTRY_INFO!B98) -> Anambra | C98: =IF(COUNTRY_INFO!C98=0," ",COUNTRY_INFO!C98) -> Oyi | D98: =IF(COUNTRY_INFO!$T$9:$T$1000="MDA1 (IVM+ALB)", COUNTRY_INFO!$T$9:$T$1000, " ") -> MDA1 (IVM+ALB) | E98: January | G98: 60226 | H98: 111847 | I98: 172073 | K98: 58997.75 | L98: 109567.25 | M98: 168565 | O98: 97.96059841 | P98: 97.9617245 | Q98: 97.96133037
A99: =IF(COUNTRY_INFO!A99=0," ",COUNTRY_INFO!A99) -> Nigeria | B99: =IF(COUNTRY_INFO!B99=0," ",COUNTRY_INFO!B99) -> Bauchi | C99: =IF(COUNTRY_INFO!C99=0," ",COUNTRY_INFO!C99) -> Alkaleri | D99: =IF(COUNTRY_INFO!$T$9:$T$1000="MDA1 (IVM+ALB)", COUNTRY_INFO!$T$9:$T$1000, " ") -> MDA1 (IVM+ALB) | E99: January | G99: 118069 | H99: 219271 | I99: 337340 | K99: 58903 | L99: 158609 | M99: 217512 | O99: 49.88862445 | P99: 72.33469086 | Q99: 64.47856762
A100: =IF(COUNTRY_INFO!A100=0," ",COUNTRY_INFO!A100) -> Nigeria | B100: =IF(COUNTRY_INFO!B100=0," ",COUNTRY_INFO!B100) -> Bauchi | C100: =IF(COUNTRY_INFO!C100=0," ",COUNTRY_INFO!C100) -> Bauchi | D100: =IF(COUNTRY_INFO!$T$9:$T$1000="MDA1 (IVM+ALB)", COUNTRY_INFO!$T$9:$T$1000, " ") ->  | I100: 0 | M100: 0
A101: =IF(COUNTRY_INFO!A101=0," ",COUNTRY_INFO!A101) -> Nigeria | B101: =IF(COUNTRY_INFO!B101=0," ",COUNTRY_INFO!B101) -> Bauchi | C101: =IF(COUNTRY_INFO!C101=0," ",COUNTRY_INFO!C101) -> Bogoro | D101: =IF(COUNTRY_INFO!$T$9:$T$1000="MDA1 (IVM+ALB)", COUNTRY_INFO!$T$9:$T$1000, " ") -> MDA1 (IVM+ALB) | E101: January | G101: 30183 | H101: 56055 | I101: 86238 | K101: 56798 | L101: 101507 | M101: 158305 | O101: 188.1787761 | P101: 181.084649 | Q101: 183.5675688
A102: =IF(COUNTRY_INFO!A102=0," ",COUNTRY_INFO!A102) -> Nigeria | B102: =IF(COUNTRY_INFO!B102=0," ",COUNTRY_INFO!B102) -> Bauchi | C102: =IF(COUNTRY_INFO!C102=0," ",COUNTRY_INFO!C102) -> Damban | D102: =IF(COUNTRY_INFO!$T$9:$T$1000="MDA1 (IVM+ALB)", COUNTRY_INFO!$T$9:$T$1000, " ") ->  | I102: 0 | M102: 0
A103: =IF(COUNTRY_INFO!A103=0," ",COUNTRY_INFO!A103) -> Nigeria | B103: =IF(COUNTRY_INFO!B103=0," ",COUNTRY_INFO!B103) -> Bauchi | C103: =IF(COUNTRY_INFO!C103=0," ",COUNTRY_INFO!C103) -> Darazo | D103: =IF(COUNTRY_INFO!$T$9:$T$1000="MDA1 (IVM+ALB)", COUNTRY_INFO!$T$9:$T$1000, " ") -> MDA1 (IVM+ALB) | E103: January | G103: 90175 | H103: 167467 | I103: 257642 | K103: 57694 | L103: 144690 | M103: 202384 | O103: 63.98003881 | P103: 86.39911147 | Q103: 78.55240993
A104: =IF(COUNTRY_INFO!A104=0," ",COUNTRY_INFO!A104) -> Nigeria | B104: =IF(COUNTRY_INFO!B104=0," ",COUNTRY_INFO!B104) -> Bauchi | C104: =IF(COUNTRY_INFO!C104=0," ",COUNTRY_INFO!C104) -> Dass | D104: =IF(COUNTRY_INFO!$T$9:$T$1000="MDA1 (IVM+ALB)", COUNTRY_INFO!$T$9:$T$1000, " ") ->  | I104: 0 | M104: 0
A105: =IF(COUNTRY_INFO!A105=0," ",COUNTRY_INFO!A105) -> Nigeria | B105: =IF(COUNTRY_INFO!B105=0," ",COUNTRY_INFO!B105) -> Bauchi | C105: =IF(COUNTRY_INFO!C105=0," ",COUNTRY_INFO!C105) -> Gamawa | D105: =IF(COUNTRY_INFO!$T$9:$T$1000="MDA1 (IVM+ALB)", COUNTRY_INFO!$T$9:$T$1000, " ") ->  | I105: 0 | M105: 0
A106: =IF(COUNTRY_INFO!A106=0," ",COUNTRY_INFO!A106) -> Nigeria | B106: =IF(COUNTRY_INFO!B106=0," ",COUNTRY_INFO!B106) -> Bauchi | C106: =IF(COUNTRY_INFO!C106=0," ",COUNTRY_INFO!C106) -> Ganjuwa | D106: =IF(COUNTRY_INFO!$T$9:$T$1000="MDA1 (IVM+ALB)", COUNTRY_INFO!$T$9:$T$1000, " ") -> MDA1 (IVM+ALB) | E106: January | G106: 100558 | H106: 186751 | I106: 287309 | K106: 51483 | L106: 131715 | M106: 183198 | O106: 51.19731896 | P106: 70.52974281 | Q106: 63.76340456
A107: =IF(COUNTRY_INFO!A107=0," ",COUNTRY_INFO!A107) -> Nigeria | B107: =IF(COUNTRY_INFO!B107=0," ",COUNTRY_INFO!B107) -> Bauchi | C107: =IF(COUNTRY_INFO!C107=0," ",COUNTRY_INFO!C107) -> Giade | D107: =IF(COUNTRY_INFO!$T$9:$T$1000="MDA1 (IVM+ALB)", COUNTRY_INFO!$T$9:$T$1000, " ") -> MDA1 (IVM+ALB) | E107: January | G107: 56259 | H107: 104481 | I107: 160740 | K107: 53620 | L107: 99580 | M107: 153200 | O107: 95.30919497 | P107: 95.30919497 | Q107: 95.30919497
A108: =IF(COUNTRY_INFO!A108=0," ",COUNTRY_INFO!A108) -> Nigeria | B108: =IF(COUNTRY_INFO!B108=0," ",COUNTRY_INFO!B108) -> Bauchi | C108: =IF(COUNTRY_INFO!C108=0," ",COUNTRY_INFO!C108) -> Itas/Gadua | D108: =IF(COUNTRY_INFO!$T$9:$T$1000="MDA1 (IVM+ALB)", COUNTRY_INFO!$T$9:$T$1000, " ") -> MDA1 (IVM+ALB) | E108: January | G108: 82433 | H108: 153089 | I108: 235522 | K108: 80031.7 | L108: 148630.3 | M108: 228662 | O108: 97.0869676 | P108: 97.08751119 | Q108: 97.08732093
A109: =IF(COUNTRY_INFO!A109=0," ",COUNTRY_INFO!A109) -> Nigeria | B109: =IF(COUNTRY_INFO!B109=0," ",COUNTRY_INFO!B109) -> Bauchi | C109: =IF(COUNTRY_INFO!C109=0," ",COUNTRY_INFO!C109) -> Jama'are | D109: =IF(COUNTRY_INFO!$T$9:$T$1000="MDA1 (IVM+ALB)", COUNTRY_INFO!$T$9:$T$1000, " ") ->  | I109: 0 | M109: 0
A110: =IF(COUNTRY_INFO!A110=0," ",COUNTRY_INFO!A110) -> Nigeria | B110: =IF(COUNTRY_INFO!B110=0," ",COUNTRY_INFO!B110) -> Bauchi | C110: =IF(COUNTRY_INFO!C110=0," ",COUNTRY_INFO!C110) -> Katagun | D110: =IF(COUNTRY_INFO!$T$9:$T$1000="MDA1 (IVM+ALB)", COUNTRY_INFO!$T$9:$T$1000, " ") ->  | I110: 0 | M110: 0
A111: =IF(COUNTRY_INFO!A111=0," ",COUNTRY_INFO!A111) -> Nigeria | B111: =IF(COUNTRY_INFO!B111=0," ",COUNTRY_INFO!B111) -> Bauchi | C111: =IF(COUNTRY_INFO!C111=0," ",COUNTRY_INFO!C111) -> Kirfi | D111: =IF(COUNTRY_INFO!$T$9:$T$1000="MDA1 (IVM+ALB)", COUNTRY_INFO!$T$9:$T$1000, " ") ->  | I111: 0 | M111: 0
A112: =IF(COUNTRY_INFO!A112=0," ",COUNTRY_INFO!A112) -> Nigeria | B112: =IF(COUNTRY_INFO!B112=0," ",COUNTRY_INFO!B112) -> Bauchi | C112: =IF(COUNTRY_INFO!C112=0," ",COUNTRY_INFO!C112) -> Misau | D112: =IF(COUNTRY_INFO!$T$9:$T$1000="MDA1 (IVM+ALB)", COUNTRY_INFO!$T$9:$T$1000, " ") -> MDA1 (IVM+ALB) | E112: January | G112: 94436 | H112: 175382 | I112: 269818 | K112: 63913 | L112: 164366 | M112: 228279 | O112: 67.6786395 | P112: 93.7188537 | Q112: 84.60480769
A113: =IF(COUNTRY_INFO!A113=0," ",COUNTRY_INFO!A113) -> Nigeria | B113: =IF(COUNTRY_INFO!B113=0," ",COUNTRY_INFO!B113) -> Bauchi | C113: =IF(COUNTRY_INFO!C113=0," ",COUNTRY_INFO!C113) -> Ningi | D113: =IF(COUNTRY_INFO!$T$9:$T$1000="MDA1 (IVM+ALB)", COUNTRY_INFO!$T$9:$T$1000, " ") -> MDA1 (IVM+ALB) | E113: January | G113: 138773 | H113: 257722 | I113: 396495 | K113: 71305 | L113: 136526 | M113: 207831 | O113: 51.38247354 | P113: 52.97413492 | Q113: 52.41705444
A114: =IF(COUNTRY_INFO!A114=0," ",COUNTRY_INFO!A114) -> Nigeria | B114: =IF(COUNTRY_INFO!B114=0," ",COUNTRY_INFO!B114) -> Bauchi | C114: =IF(COUNTRY_INFO!C114=0," ",COUNTRY_INFO!C114) -> Shira | D114: =IF(COUNTRY_INFO!$T$9:$T$1000="MDA1 (IVM+ALB)", COUNTRY_INFO!$T$9:$T$1000, " ") ->  | I114: 0 | M114: 0
A115: =IF(COUNTRY_INFO!A115=0," ",COUNTRY_INFO!A115) -> Nigeria | B115: =IF(COUNTRY_INFO!B115=0," ",COUNTRY_INFO!B115) -> Bauchi | C115: =IF(COUNTRY_INFO!C115=0," ",COUNTRY_INFO!C115) -> Tafawa-Balewa | D115: =IF(COUNTRY_INFO!$T$9:$T$1000="MDA1 (IVM+ALB)", COUNTRY_INFO!$T$9:$T$1000, " ") -> MDA1 (IVM+ALB) | E115: January | G115: 78846 | H115: 146428 | I115: 225274 | K115: 94467 | L115: 149495 | M115: 243962 | O115: 119.8120387 | P115: 102.0945448 | Q115: 108.2956755
A116: =IF(COUNTRY_INFO!A116=0," ",COUNTRY_INFO!A116) -> Nigeria | B116: =IF(COUNTRY_INFO!B116=0," ",COUNTRY_INFO!B116) -> Bauchi | C116: =IF(COUNTRY_INFO!C116=0," ",COUNTRY_INFO!C116) -> Toro | D116: =IF(COUNTRY_INFO!$T$9:$T$1000="MDA1 (IVM+ALB)", COUNTRY_INFO!$T$9:$T$1000, " ") -> MDA1 (IVM+ALB) | E116: January | G116: 125588 | H116: 233235 | I116: 358823 | K116: 82564 | L116: 212309 | M116: 294873 | O116: 65.74194987 | P116: 91.0279332 | Q116: 82.17784256
A117: =IF(COUNTRY_INFO!A117=0," ",COUNTRY_INFO!A117) -> Nigeria | B117: =IF(COUNTRY_INFO!B117=0," ",COUNTRY_INFO!B117) -> Bauchi | C117: =IF(COUNTRY_INFO!C117=0," ",COUNTRY_INFO!C117) -> Warji | D117: =IF(COUNTRY_INFO!$T$9:$T$1000="MDA1 (IVM+ALB)", COUNTRY_INFO!$T$9:$T$1000, " ") -> MDA1 (IVM+ALB) | E117: January | G117: 41117 | H117: 76360 | I117: 117477 | K117: 95124 | L117: 193209 | M117: 288333 | O117: 231.3495634 | P117: 253.0238345 | Q117: 245.4378304
A118: =IF(COUNTRY_INFO!A118=0," ",COUNTRY_INFO!A118) -> Nigeria | B118: =IF(COUNTRY_INFO!B118=0," ",COUNTRY_INFO!B118) -> Bauchi | C118: =IF(COUNTRY_INFO!C118=0," ",COUNTRY_INFO!C118) -> Zaki | D118: =IF(COUNTRY_INFO!$T$9:$T$1000="MDA1 (IVM+ALB)", COUNTRY_INFO!$T$9:$T$1000, " ") ->  | I118: 0 | M118: 0
A119: =IF(COUNTRY_INFO!A119=0," ",COUNTRY_INFO!A119) -> Nigeria | B119: =IF(COUNTRY_INFO!B119=0," ",COUNTRY_INFO!B119) -> Bayelsa | C119: =IF(COUNTRY_INFO!C119=0," ",COUNTRY_INFO!C119) -> Brass | D119: =IF(COUNTRY_INFO!$T$9:$T$1000="MDA1 (IVM+ALB)", COUNTRY_INFO!$T$9:$T$1000, " ") ->  | I119: 0 | M119: 0
A120: =IF(COUNTRY_INFO!A120=0," ",COUNTRY_INFO!A120) -> Nigeria | B120: =IF(COUNTRY_INFO!B120=0," ",COUNTRY_INFO!B120) -> Bayelsa | C120: =IF(COUNTRY_INFO!C120=0," ",COUNTRY_INFO!C120) -> Ekeremo | D120: =IF(COUNTRY_INFO!$T$9:$T$1000="MDA1 (IVM+ALB)", COUNTRY_INFO!$T$9:$T$1000, " ") ->  | I120: 0 | M120: 0
A121: =IF(COUNTRY_INFO!A121=0," ",COUNTRY_INFO!A121) -> Nigeria | B121: =IF(COUNTRY_INFO!B121=0," ",COUNTRY_INFO!B121) -> Bayelsa | C121: =IF(COUNTRY_INFO!C121=0," ",COUNTRY_INFO!C121) -> Kolokuma/Opokuma | D121: =IF(COUNTRY_INFO!$T$9:$T$1000="MDA1 (IVM+ALB)", COUNTRY_INFO!$T$9:$T$1000, " ") -> MDA1 (IVM+ALB) | E121: January | G121: 27703 | H121: 51449 | I121: 79152 | K121: 27572.3 | L121: 51205.7 | M121: 78778 | O121: 99.52820994 | P121: 99.52710451 | Q121: 99.52749141
A122: =IF(COUNTRY_INFO!A122=0," ",COUNTRY_INFO!A122) -> Nigeria | B122: =IF(COUNTRY_INFO!B122=0," ",COUNTRY_INFO!B122) -> Bayelsa | C122: =IF(COUNTRY_INFO!C122=0," ",COUNTRY_INFO!C122) -> Nembe | D122: =IF(COUNTRY_INFO!$T$9:$T$1000="MDA1 (IVM+ALB)", COUNTRY_INFO!$T$9:$T$1000, " ") ->  | I122: 0 | M122: 0
A123: =IF(COUNTRY_INFO!A123=0," ",COUNTRY_INFO!A123) -> Nigeria | B123: =IF(COUNTRY_INFO!B123=0," ",COUNTRY_INFO!B123) -> Bayelsa | C123: =IF(COUNTRY_INFO!C123=0," ",COUNTRY_INFO!C123) -> Ogbia | D123: =IF(COUNTRY_INFO!$T$9:$T$1000="MDA1 (IVM+ALB)", COUNTRY_INFO!$T$9:$T$1000, " ") -> MDA1 (IVM+ALB) | E123: January | G123: 64490 | H123: 119767 | I123: 184257 | K123: 47683 | L123: 97508 | M123: 145191 | O123: 73.93859513 | P123: 81.41474697 | Q123: 78.7980918
A124: =IF(COUNTRY_INFO!A124=0," ",COUNTRY_INFO!A124) -> Nigeria | B124: =IF(COUNTRY_INFO!B124=0," ",COUNTRY_INFO!B124) -> Bayelsa | C124: =IF(COUNTRY_INFO!C124=0," ",COUNTRY_INFO!C124) -> Sagbama | D124: =IF(COUNTRY_INFO!$T$9:$T$1000="MDA1 (IVM+ALB)", COUNTRY_INFO!$T$9:$T$1000, " ") ->  | I124: 0 | M124: 0
A125: =IF(COUNTRY_INFO!A125=0," ",COUNTRY_INFO!A125) -> Nigeria | B125: =IF(COUNTRY_INFO!B125=0," ",COUNTRY_INFO!B125) -> Bayelsa | C125: =IF(COUNTRY_INFO!C125=0," ",COUNTRY_INFO!C125) -> Southern Ijaw | D125: =IF(COUNTRY_INFO!$T$9:$T$1000="MDA1 (IVM+ALB)", COUNTRY_INFO!$T$9:$T$1000, " ") ->  | I125: 0 | M125: 0
A126: =IF(COUNTRY_INFO!A126=0," ",COUNTRY_INFO!A126) -> Nigeria | B126: =IF(COUNTRY_INFO!B126=0," ",COUNTRY_INFO!B126) -> Bayelsa | C126: =IF(COUNTRY_INFO!C126=0," ",COUNTRY_INFO!C126) -> Yenegoa | D126: =IF(COUNTRY_INFO!$T$9:$T$1000="MDA1 (IVM+ALB)", COUNTRY_INFO!$T$9:$T$1000, " ") -> MDA1 (IVM+ALB) | E126: January | G126: 126647 | H126: 235201 | I126: 361848 | K126: 93698 | L126: 103106 | M126: 196804 | O126: 73.98359219 | P126: 43.83739865 | Q126: 54.38858305
A127: =IF(COUNTRY_INFO!A127=0," ",COUNTRY_INFO!A127) -> Nigeria | B127: =IF(COUNTRY_INFO!B127=0," ",COUNTRY_INFO!B127) -> Benue | C127: =IF(COUNTRY_INFO!C127=0," ",COUNTRY_INFO!C127) -> Ado | D127: =IF(COUNTRY_INFO!$T$9:$T$1000="MDA1 (IVM+ALB)", COUNTRY_INFO!$T$9:$T$1000, " ") ->  | I127: 0 | M127: 0
A128: =IF(COUNTRY_INFO!A128=0," ",COUNTRY_INFO!A128) -> Nigeria | B128: =IF(COUNTRY_INFO!B128=0," ",COUNTRY_INFO!B128) -> Benue | C128: =IF(COUNTRY_INFO!C128=0," ",COUNTRY_INFO!C128) -> Agatu | D128: =IF(COUNTRY_INFO!$T$9:$T$1000="MDA1 (IVM+ALB)", COUNTRY_INFO!$T$9:$T$1000, " ") ->  | I128: 0 | M128: 0
A129: =IF(COUNTRY_INFO!A129=0," ",COUNTRY_INFO!A129) -> Nigeria | B129: =IF(COUNTRY_INFO!B129=0," ",COUNTRY_INFO!B129) -> Benue | C129: =IF(COUNTRY_INFO!C129=0," ",COUNTRY_INFO!C129) -> Apa | D129: =IF(COUNTRY_INFO!$T$9:$T$1000="MDA1 (IVM+ALB)", COUNTRY_INFO!$T$9:$T$1000, " ") ->  | I129: 0 | M129: 0
A130: =IF(COUNTRY_INFO!A130=0," ",COUNTRY_INFO!A130) -> Nigeria | B130: =IF(COUNTRY_INFO!B130=0," ",COUNTRY_INFO!B130) -> Benue | C130: =IF(COUNTRY_INFO!C130=0," ",COUNTRY_INFO!C130) -> Buruku | D130: =IF(COUNTRY_INFO!$T$9:$T$1000="MDA1 (IVM+ALB)", COUNTRY_INFO!$T$9:$T$1000, " ") ->  | I130: 0 | M130: 0
A131: =IF(COUNTRY_INFO!A131=0," ",COUNTRY_INFO!A131) -> Nigeria | B131: =IF(COUNTRY_INFO!B131=0," ",COUNTRY_INFO!B131) -> Benue | C131: =IF(COUNTRY_INFO!C131=0," ",COUNTRY_INFO!C131) -> Gboko | D131: =IF(COUNTRY_INFO!$T$9:$T$1000="MDA1 (IVM+ALB)", COUNTRY_INFO!$T$9:$T$1000, " ") ->  | I131: 0 | M131: 0
A132: =IF(COUNTRY_INFO!A132=0," ",COUNTRY_INFO!A132) -> Nigeria | B132: =IF(COUNTRY_INFO!B132=0," ",COUNTRY_INFO!B132) -> Benue | C132: =IF(COUNTRY_INFO!C132=0," ",COUNTRY_INFO!C132) -> Guma | D132: =IF(COUNTRY_INFO!$T$9:$T$1000="MDA1 (IVM+ALB)", COUNTRY_INFO!$T$9:$T$1000, " ") ->  | I132: 0 | M132: 0
A133: =IF(COUNTRY_INFO!A133=0," ",COUNTRY_INFO!A133) -> Nigeria | B133: =IF(COUNTRY_INFO!B133=0," ",COUNTRY_INFO!B133) -> Benue | C133: =IF(COUNTRY_INFO!C133=0," ",COUNTRY_INFO!C133) -> Gwer East | D133: =IF(COUNTRY_INFO!$T$9:$T$1000="MDA1 (IVM+ALB)", COUNTRY_INFO!$T$9:$T$1000, " ") ->  | I133: 0 | M133: 0
A134: =IF(COUNTRY_INFO!A134=0," ",COUNTRY_INFO!A134) -> Nigeria | B134: =IF(COUNTRY_INFO!B134=0," ",COUNTRY_INFO!B134) -> Benue | C134: =IF(COUNTRY_INFO!C134=0," ",COUNTRY_INFO!C134) -> Gwer West | D134: =IF(COUNTRY_INFO!$T$9:$T$1000="MDA1 (IVM+ALB)", COUNTRY_INFO!$T$9:$T$1000, " ") ->  | I134: 0 | M134: 0
A135: =IF(COUNTRY_INFO!A135=0," ",COUNTRY_INFO!A135) -> Nigeria | B135: =IF(COUNTRY_INFO!B135=0," ",COUNTRY_INFO!B135) -> Benue | C135: =IF(COUNTRY_INFO!C135=0," ",COUNTRY_INFO!C135) -> Katsina-Ala | D135: =IF(COUNTRY_INFO!$T$9:$T$1000="MDA1 (IVM+ALB)", COUNTRY_INFO!$T$9:$T$1000, " ") -> MDA1 (IVM+ALB) | E135: January | G135: 80544 | H135: 149582 | I135: 230126 | K135: 64734 | L135: 107642 | M135: 172376 | O135: 80.37097735 | P135: 71.96186707 | Q135: 74.90505201
A136: =IF(COUNTRY_INFO!A136=0," ",COUNTRY_INFO!A136) -> Nigeria | B136: =IF(COUNTRY_INFO!B136=0," ",COUNTRY_INFO!B136) -> Benue | C136: =IF(COUNTRY_INFO!C136=0," ",COUNTRY_INFO!C136) -> Konshisha | D136: =IF(COUNTRY_INFO!$T$9:$T$1000="MDA1 (IVM+ALB)", COUNTRY_INFO!$T$9:$T$1000, " ") -> MDA1 (IVM+ALB) | E136: January | G136: 80886 | H136: 150217 | I136: 231103 | K136: 55878 | L136: 89302 | M136: 145180 | O136: 69.08241228 | P136: 59.44866427 | Q136: 62.82047399
A137: =IF(COUNTRY_INFO!A137=0," ",COUNTRY_INFO!A137) -> Nigeria | B137: =IF(COUNTRY_INFO!B137=0," ",COUNTRY_INFO!B137) -> Benue | C137: =IF(COUNTRY_INFO!C137=0," ",COUNTRY_INFO!C137) -> Kwande | D137: =IF(COUNTRY_INFO!$T$9:$T$1000="MDA1 (IVM+ALB)", COUNTRY_INFO!$T$9:$T$1000, " ") -> MDA1 (IVM+ALB) | E137: January | G137: 89139 | H137: 165544 | I137: 254683 | K137: 77769 | L137: 132223 | M137: 209992 | O137: =IF(G137<>0, IF(K137/G137*100=0, "-", K137/G137*100), " ") -> 87.24464039 | P137: 79.87181656 | Q137: 82.45230345
A138: =IF(COUNTRY_INFO!A138=0," ",COUNTRY_INFO!A138) -> Nigeria | B138: =IF(COUNTRY_INFO!B138=0," ",COUNTRY_INFO!B138) -> Benue | C138: =IF(COUNTRY_INFO!C138=0," ",COUNTRY_INFO!C138) -> Logo | D138: =IF(COUNTRY_INFO!$T$9:$T$1000="MDA1 (IVM+ALB)", COUNTRY_INFO!$T$9:$T$1000, " ") -> MDA1 (IVM+ALB) | E138: January | G138: 60596 | H138: 112536 | I138: =SUM(F138:H138) -> 173132 | K138: 33767 | L138: 54839 | M138: =SUM(J138:L138) -> 88606 | O138: 55.72480032 | P138: =IF(H138<>0, IF(L138/H138*100=0, "-", L138/H138*100), " ") -> 48.73018412 | Q138: =IF(I138<>0, IF(M138/I138*100=0, "-", M138/I138*100), " ") -> 51.17829171
A139: =IF(COUNTRY_INFO!A139=0," ",COUNTRY_INFO!A139) -> Nigeria | B139: =IF(COUNTRY_INFO!B139=0," ",COUNTRY_INFO!B139) -> Benue | C139: =IF(COUNTRY_INFO!C139=0," ",COUNTRY_INFO!C139) -> Makurdi | D139: =IF(COUNTRY_INFO!$T$9:$T$1000="MDA1 (IVM+ALB)", COUNTRY_INFO!$T$9:$T$1000, " ") ->  | I139: 0 | M139: 0
A140: =IF(COUNTRY_INFO!A140=0," ",COUNTRY_INFO!A140) -> Nigeria | B140: =IF(COUNTRY_INFO!B140=0," ",COUNTRY_INFO!B140) -> Benue | C140: =IF(COUNTRY_INFO!C140=0," ",COUNTRY_INFO!C140) -> Obi | D140: =IF(COUNTRY_INFO!$T$9:$T$1000="MDA1 (IVM+ALB)", COUNTRY_INFO!$T$9:$T$1000, " ") ->  | I140: 0 | M140: 0
A141: =IF(COUNTRY_INFO!A141=0," ",COUNTRY_INFO!A141) -> Nigeria | B141: =IF(COUNTRY_INFO!B141=0," ",COUNTRY_INFO!B141) -> Benue | C141: =IF(COUNTRY_INFO!C141=0," ",COUNTRY_INFO!C141) -> Ogbadibo | D141: =IF(COUNTRY_INFO!$T$9:$T$1000="MDA1 (IVM+ALB)", COUNTRY_INFO!$T$9:$T$1000, " ") ->  | I141: 0 | M141: 0
A142: =IF(COUNTRY_INFO!A142=0," ",COUNTRY_INFO!A142) -> Nigeria | B142: =IF(COUNTRY_INFO!B142=0," ",COUNTRY_INFO!B142) -> Benue | C142: =IF(COUNTRY_INFO!C142=0," ",COUNTRY_INFO!C142) -> Ohimini | D142: =IF(COUNTRY_INFO!$T$9:$T$1000="MDA1 (IVM+ALB)", COUNTRY_INFO!$T$9:$T$1000, " ") ->  | I142: 0 | M142: 0
A143: =IF(COUNTRY_INFO!A143=0," ",COUNTRY_INFO!A143) -> Nigeria | B143: =IF(COUNTRY_INFO!B143=0," ",COUNTRY_INFO!B143) -> Benue | C143: =IF(COUNTRY_INFO!C143=0," ",COUNTRY_INFO!C143) -> Oju | D143: =IF(COUNTRY_INFO!$T$9:$T$1000="MDA1 (IVM+ALB)", COUNTRY_INFO!$T$9:$T$1000, " ") ->  | I143: 0 | M143: 0
A144: =IF(COUNTRY_INFO!A144=0," ",COUNTRY_INFO!A144) -> Nigeria | B144: =IF(COUNTRY_INFO!B144=0," ",COUNTRY_INFO!B144) -> Benue | C144: =IF(COUNTRY_INFO!C144=0," ",COUNTRY_INFO!C144) -> Okpokwu | D144: =IF(COUNTRY_INFO!$T$9:$T$1000="MDA1 (IVM+ALB)", COUNTRY_INFO!$T$9:$T$1000, " ") ->  | I144: 0 | M144: 0
A145: =IF(COUNTRY_INFO!A145=0," ",COUNTRY_INFO!A145) -> Nigeria | B145: =IF(COUNTRY_INFO!B145=0," ",COUNTRY_INFO!B145) -> Benue | C145: =IF(COUNTRY_INFO!C145=0," ",COUNTRY_INFO!C145) -> Otorkpo | D145: =IF(COUNTRY_INFO!$T$9:$T$1000="MDA1 (IVM+ALB)", COUNTRY_INFO!$T$9:$T$1000, " ") ->  | I145: 0 | M145: 0
A146: =IF(COUNTRY_INFO!A146=0," ",COUNTRY_INFO!A146) -> Nigeria | B146: =IF(COUNTRY_INFO!B146=0," ",COUNTRY_INFO!B146) -> Benue | C146: =IF(COUNTRY_INFO!C146=0," ",COUNTRY_INFO!C146) -> Tarka | D146: =IF(COUNTRY_INFO!$T$9:$T$1000="MDA1 (IVM+ALB)", COUNTRY_INFO!$T$9:$T$1000, " ") ->  | I146: 0 | M146: 0
A147: =IF(COUNTRY_INFO!A147=0," ",COUNTRY_INFO!A147) -> Nigeria | B147: =IF(COUNTRY_INFO!B147=0," ",COUNTRY_INFO!B147) -> Benue | C147: =IF(COUNTRY_INFO!C147=0," ",COUNTRY_INFO!C147) -> Ukum | D147: =IF(COUNTRY_INFO!$T$9:$T$1000="MDA1 (IVM+ALB)", COUNTRY_INFO!$T$9:$T$1000, " ") -> MDA1 (IVM+ALB) | E147: January | G147: 77753 | H147: 144398 | I147: 222151 | K147: 36913 | L147: 64259 | M147: 101172 | O147: 47.47469551 | P147: 44.50130888 | Q147: 45.54199621
A148: =IF(COUNTRY_INFO!A148=0," ",COUNTRY_INFO!A148) -> Nigeria | B148: =IF(COUNTRY_INFO!B148=0," ",COUNTRY_INFO!B148) -> Benue | C148: =IF(COUNTRY_INFO!C148=0," ",COUNTRY_INFO!C148) -> Ushongo | D148: =IF(COUNTRY_INFO!$T$9:$T$1000="MDA1 (IVM+ALB)", COUNTRY_INFO!$T$9:$T$1000, " ") ->  | I148: 0 | M148: 0
A149: =IF(COUNTRY_INFO!A149=0," ",COUNTRY_INFO!A149) -> Nigeria | B149: =IF(COUNTRY_INFO!B149=0," ",COUNTRY_INFO!B149) -> Benue | C149: =IF(COUNTRY_INFO!C149=0," ",COUNTRY_INFO!C149) -> Vandeikya | D149: =IF(COUNTRY_INFO!$T$9:$T$1000="MDA1 (IVM+ALB)", COUNTRY_INFO!$T$9:$T$1000, " ") ->  | I149: 0 | M149: 0
A150: =IF(COUNTRY_INFO!A150=0," ",COUNTRY_INFO!A150) -> Nigeria | B150: =IF(COUNTRY_INFO!B150=0," ",COUNTRY_INFO!B150) -> Borno | C150: =IF(COUNTRY_INFO!C150=0," ",COUNTRY_INFO!C150) -> Adadara | D150: =IF(COUNTRY_INFO!$T$9:$T$1000="MDA1 (IVM+ALB)", COUNTRY_INFO!$T$9:$T$1000, " ") ->  | I150: 0 | M150: 0
A151: =IF(COUNTRY_INFO!A151=0," ",COUNTRY_INFO!A151) -> Nigeria | B151: =IF(COUNTRY_INFO!B151=0," ",COUNTRY_INFO!B151) -> Borno | C151: =IF(COUNTRY_INFO!C151=0," ",COUNTRY_INFO!C151) -> Askir/Uba | D151: =IF(COUNTRY_INFO!$T$9:$T$1000="MDA1 (IVM+ALB)", COUNTRY_INFO!$T$9:$T$1000, " ") ->  | I151: 0 | M151: 0
A152: =IF(COUNTRY_INFO!A152=0," ",COUNTRY_INFO!A152) -> Nigeria | B152: =IF(COUNTRY_INFO!B152=0," ",COUNTRY_INFO!B152) -> Borno | C152: =IF(COUNTRY_INFO!C152=0," ",COUNTRY_INFO!C152) -> Bama | D152: =IF(COUNTRY_INFO!$T$9:$T$1000="MDA1 (IVM+ALB)", COUNTRY_INFO!$T$9:$T$1000, " ") ->  | I152: 0 | M152: 0
A153: =IF(COUNTRY_INFO!A153=0," ",COUNTRY_INFO!A153) -> Nigeria | B153: =IF(COUNTRY_INFO!B153=0," ",COUNTRY_INFO!B153) -> Borno | C153: =IF(COUNTRY_INFO!C153=0," ",COUNTRY_INFO!C153) -> Bayo | D153: =IF(COUNTRY_INFO!$T$9:$T$1000="MDA1 (IVM+ALB)", COUNTRY_INFO!$T$9:$T$1000, " ") ->  | I153: 0 | M153: 0
A154: =IF(COUNTRY_INFO!A154=0," ",COUNTRY_INFO!A154) -> Nigeria | B154: =IF(COUNTRY_INFO!B154=0," ",COUNTRY_INFO!B154) -> Borno | C154: =IF(COUNTRY_INFO!C154=0," ",COUNTRY_INFO!C154) -> Biu | D154: =IF(COUNTRY_INFO!$T$9:$T$1000="MDA1 (IVM+ALB)", COUNTRY_INFO!$T$9:$T$1000, " ") ->  | I154: 0 | M154: 0
A155: =IF(COUNTRY_INFO!A155=0," ",COUNTRY_INFO!A155) -> Nigeria | B155: =IF(COUNTRY_INFO!B155=0," ",COUNTRY_INFO!B155) -> Borno | C155: =IF(COUNTRY_INFO!C155=0," ",COUNTRY_INFO!C155) -> Chibok | D155: =IF(COUNTRY_INFO!$T$9:$T$1000="MDA1 (IVM+ALB)", COUNTRY_INFO!$T$9:$T$1000, " ") ->  | I155: 0 | M155: 0
A156: =IF(COUNTRY_INFO!A156=0," ",COUNTRY_INFO!A156) -> Nigeria | B156: =IF(COUNTRY_INFO!B156=0," ",COUNTRY_INFO!B156) -> Borno | C156: =IF(COUNTRY_INFO!C156=0," ",COUNTRY_INFO!C156) -> Damboa | D156: =IF(COUNTRY_INFO!$T$9:$T$1000="MDA1 (IVM+ALB)", COUNTRY_INFO!$T$9:$T$1000, " ") ->  | I156: 0 | M156: 0
A157: =IF(COUNTRY_INFO!A157=0," ",COUNTRY_INFO!A157) -> Nigeria | B157: =IF(COUNTRY_INFO!B157=0," ",COUNTRY_INFO!B157) -> Borno | C157: =IF(COUNTRY_INFO!C157=0," ",COUNTRY_INFO!C157) -> Dikwa | D157: =IF(COUNTRY_INFO!$T$9:$T$1000="MDA1 (IVM+ALB)", COUNTRY_INFO!$T$9:$T$1000, " ") ->  | I157: 0 | M157: 0
A158: =IF(COUNTRY_INFO!A158=0," ",COUNTRY_INFO!A158) -> Nigeria | B158: =IF(COUNTRY_INFO!B158=0," ",COUNTRY_INFO!B158) -> Borno | C158: =IF(COUNTRY_INFO!C158=0," ",COUNTRY_INFO!C158) -> Gubio | D158: =IF(COUNTRY_INFO!$T$9:$T$1000="MDA1 (IVM+ALB)", COUNTRY_INFO!$T$9:$T$1000, " ") ->  | I158: 0 | M158: 0
A159: =IF(COUNTRY_INFO!A159=0," ",COUNTRY_INFO!A159) -> Nigeria | B159: =IF(COUNTRY_INFO!B159=0," ",COUNTRY_INFO!B159) -> Borno | C159: =IF(COUNTRY_INFO!C159=0," ",COUNTRY_INFO!C159) -> Guzamala | D159: =IF(COUNTRY_INFO!$T$9:$T$1000="MDA1 (IVM+ALB)", COUNTRY_INFO!$T$9:$T$1000, " ") ->  | I159: 0 | M159: 0
A160: =IF(COUNTRY_INFO!A160=0," ",COUNTRY_INFO!A160) -> Nigeria | B160: =IF(COUNTRY_INFO!B160=0," ",COUNTRY_INFO!B160) -> Borno | C160: =IF(COUNTRY_INFO!C160=0," ",COUNTRY_INFO!C160) -> Gwoza | D160: =IF(COUNTRY_INFO!$T$9:$T$1000="MDA1 (IVM+ALB)", COUNTRY_INFO!$T$9:$T$1000, " ") ->  | I160: 0 | M160: 0
A161: =IF(COUNTRY_INFO!A161=0," ",COUNTRY_INFO!A161) -> Nigeria | B161: =IF(COUNTRY_INFO!B161=0," ",COUNTRY_INFO!B161) -> Borno | C161: =IF(COUNTRY_INFO!C161=0," ",COUNTRY_INFO!C161) -> Hawul | D161: =IF(COUNTRY_INFO!$T$9:$T$1000="MDA1 (IVM+ALB)", COUNTRY_INFO!$T$9:$T$1000, " ") ->  | I161: 0 | M161: 0
A162: =IF(COUNTRY_INFO!A162=0," ",COUNTRY_INFO!A162) -> Nigeria | B162: =IF(COUNTRY_INFO!B162=0," ",COUNTRY_INFO!B162) -> Borno | C162: =IF(COUNTRY_INFO!C162=0," ",COUNTRY_INFO!C162) -> Jere | D162: =IF(COUNTRY_INFO!$T$9:$T$1000="MDA1 (IVM+ALB)", COUNTRY_INFO!$T$9:$T$1000, " ") ->  | I162: 0 | M162: 0
A163: =IF(COUNTRY_INFO!A163=0," ",COUNTRY_INFO!A163) -> Nigeria | B163: =IF(COUNTRY_INFO!B163=0," ",COUNTRY_INFO!B163) -> Borno | C163: =IF(COUNTRY_INFO!C163=0," ",COUNTRY_INFO!C163) -> Kaga | D163: =IF(COUNTRY_INFO!$T$9:$T$1000="MDA1 (IVM+ALB)", COUNTRY_INFO!$T$9:$T$1000, " ") ->  | I163: 0 | M163: 0
A164: =IF(COUNTRY_INFO!A164=0," ",COUNTRY_INFO!A164) -> Nigeria | B164: =IF(COUNTRY_INFO!B164=0," ",COUNTRY_INFO!B164) -> Borno | C164: =IF(COUNTRY_INFO!C164=0," ",COUNTRY_INFO!C164) -> Kala Balge | D164: =IF(COUNTRY_INFO!$T$9:$T$1000="MDA1 (IVM+ALB)", COUNTRY_INFO!$T$9:$T$1000, " ") ->  | I164: 0 | M164: 0
A165: =IF(COUNTRY_INFO!A165=0," ",COUNTRY_INFO!A165) -> Nigeria | B165: =IF(COUNTRY_INFO!B165=0," ",COUNTRY_INFO!B165) -> Borno | C165: =IF(COUNTRY_INFO!C165=0," ",COUNTRY_INFO!C165) -> Konduga | D165: =IF(COUNTRY_INFO!$T$9:$T$1000="MDA1 (IVM+ALB)", COUNTRY_INFO!$T$9:$T$1000, " ") ->  | I165: 0 | M165: 0
A166: =IF(COUNTRY_INFO!A166=0," ",COUNTRY_INFO!A166) -> Nigeria | B166: =IF(COUNTRY_INFO!B166=0," ",COUNTRY_INFO!B166) -> Borno | C166: =IF(COUNTRY_INFO!C166=0," ",COUNTRY_INFO!C166) -> Kukawa | D166: =IF(COUNTRY_INFO!$T$9:$T$1000="MDA1 (IVM+ALB)", COUNTRY_INFO!$T$9:$T$1000, " ") ->  | I166: 0 | M166: 0
A167: =IF(COUNTRY_INFO!A167=0," ",COUNTRY_INFO!A167) -> Nigeria | B167: =IF(COUNTRY_INFO!B167=0," ",COUNTRY_INFO!B167) -> Borno | C167: =IF(COUNTRY_INFO!C167=0," ",COUNTRY_INFO!C167) -> Kwaya Kusar | D167: =IF(COUNTRY_INFO!$T$9:$T$1000="MDA1 (IVM+ALB)", COUNTRY_INFO!$T$9:$T$1000, " ") ->  | I167: 0 | M167: 0
A168: =IF(COUNTRY_INFO!A168=0," ",COUNTRY_INFO!A168) -> Nigeria | B168: =IF(COUNTRY_INFO!B168=0," ",COUNTRY_INFO!B168) -> Borno | C168: =IF(COUNTRY_INFO!C168=0," ",COUNTRY_INFO!C168) -> Mafa | D168: =IF(COUNTRY_INFO!$T$9:$T$1000="MDA1 (IVM+ALB)", COUNTRY_INFO!$T$9:$T$1000, " ") ->  | I168: 0 | M168: 0
A169: =IF(COUNTRY_INFO!A169=0," ",COUNTRY_INFO!A169) -> Nigeria | B169: =IF(COUNTRY_INFO!B169=0," ",COUNTRY_INFO!B169) -> Borno | C169: =IF(COUNTRY_INFO!C169=0," ",COUNTRY_INFO!C169) -> Magumeri | D169: =IF(COUNTRY_INFO!$T$9:$T$1000="MDA1 (IVM+ALB)", COUNTRY_INFO!$T$9:$T$1000, " ") ->  | I169: 0 | M169: 0
A170: =IF(COUNTRY_INFO!A170=0," ",COUNTRY_INFO!A170) -> Nigeria | B170: =IF(COUNTRY_INFO!B170=0," ",COUNTRY_INFO!B170) -> Borno | C170: =IF(COUNTRY_INFO!C170=0," ",COUNTRY_INFO!C170) -> Maiduguri | D170: =IF(COUNTRY_INFO!$T$9:$T$1000="MDA1 (IVM+ALB)", COUNTRY_INFO!$T$9:$T$1000, " ") ->  | I170: 0 | M170: 0
A171: =IF(COUNTRY_INFO!A171=0," ",COUNTRY_INFO!A171) -> Nigeria | B171: =IF(COUNTRY_INFO!B171=0," ",COUNTRY_INFO!B171) -> Borno | C171: =IF(COUNTRY_INFO!C171=0," ",COUNTRY_INFO!C171) -> Marte | D171: =IF(COUNTRY_INFO!$T$9:$T$1000="MDA1 (IVM+ALB)", COUNTRY_INFO!$T$9:$T$1000, " ") ->  | I171: 0 | M171: 0
A172: =IF(COUNTRY_INFO!A172=0," ",COUNTRY_INFO!A172) -> Nigeria | B172: =IF(COUNTRY_INFO!B172=0," ",COUNTRY_INFO!B172) -> Borno | C172: =IF(COUNTRY_INFO!C172=0," ",COUNTRY_INFO!C172) -> Mobbar | D172: =IF(COUNTRY_INFO!$T$9:$T$1000="MDA1 (IVM+ALB)", COUNTRY_INFO!$T$9:$T$1000, " ") ->  | I172: 0 | M172: 0
A173: =IF(COUNTRY_INFO!A173=0," ",COUNTRY_INFO!A173) -> Nigeria | B173: =IF(COUNTRY_INFO!B173=0," ",COUNTRY_INFO!B173) -> Borno | C173: =IF(COUNTRY_INFO!C173=0," ",COUNTRY_INFO!C173) -> Monguno | D173: =IF(COUNTRY_INFO!$T$9:$T$1000="MDA1 (IVM+ALB)", COUNTRY_INFO!$T$9:$T$1000, " ") ->  | I173: 0 | M173: 0
A174: =IF(COUNTRY_INFO!A174=0," ",COUNTRY_INFO!A174) -> Nigeria | B174: =IF(COUNTRY_INFO!B174=0," ",COUNTRY_INFO!B174) -> Borno | C174: =IF(COUNTRY_INFO!C174=0," ",COUNTRY_INFO!C174) -> Ngala | D174: =IF(COUNTRY_INFO!$T$9:$T$1000="MDA1 (IVM+ALB)", COUNTRY_INFO!$T$9:$T$1000, " ") ->  | I174: 0 | M174: 0
A175: =IF(COUNTRY_INFO!A175=0," ",COUNTRY_INFO!A175) -> Nigeria | B175: =IF(COUNTRY_INFO!B175=0," ",COUNTRY_INFO!B175) -> Borno | C175: =IF(COUNTRY_INFO!C175=0," ",COUNTRY_INFO!C175) -> Nganzai | D175: =IF(COUNTRY_INFO!$T$9:$T$1000="MDA1 (IVM+ALB)", COUNTRY_INFO!$T$9:$T$1000, " ") ->  | I175: 0 | M175: 0
A176: =IF(COUNTRY_INFO!A176=0," ",COUNTRY_INFO!A176) -> Nigeria | B176: =IF(COUNTRY_INFO!B176=0," ",COUNTRY_INFO!B176) -> Borno | C176: =IF(COUNTRY_INFO!C176=0," ",COUNTRY_INFO!C176) -> Shani | D176: =IF(COUNTRY_INFO!$T$9:$T$1000="MDA1 (IVM+ALB)", COUNTRY_INFO!$T$9:$T$1000, " ") ->  | I176: 0 | M176: 0
A177: =IF(COUNTRY_INFO!A177=0," ",COUNTRY_INFO!A177) -> Nigeria | B177: =IF(COUNTRY_INFO!B177=0," ",COUNTRY_INFO!B177) -> Cross River | C177: =IF(COUNTRY_INFO!C177=0," ",COUNTRY_INFO!C177) -> Abi | D177: =IF(COUNTRY_INFO!$T$9:$T$1000="MDA1 (IVM+ALB)", COUNTRY_INFO!$T$9:$T$1000, " ") -> MDA1 (IVM+ALB) | E177: January | G177: 51900 | H177: 96387 | I177: 148287 | K177: 28579 | L177: 110554 | M177: 139133 | O177: 55.0655106 | P177: 114.6980402 | Q177: 93.8268358
A178: =IF(COUNTRY_INFO!A178=0," ",COUNTRY_INFO!A178) -> Nigeria | B178: =IF(COUNTRY_INFO!B178=0," ",COUNTRY_INFO!B178) -> Cross River | C178: =IF(COUNTRY_INFO!C178=0," ",COUNTRY_INFO!C178) -> Akamkpa | D178: =IF(COUNTRY_INFO!$T$9:$T$1000="MDA1 (IVM+ALB)", COUNTRY_INFO!$T$9:$T$1000, " ") -> MDA1 (IVM+ALB) | E178: January | G178: 54167 | H178: 100595 | I178: 154762 | K178: 46687 | L178: 132878 | M178: 179565 | O178: 86.19085421 | P178: 132.0920523 | Q178: 116.026544
A179: =IF(COUNTRY_INFO!A179=0," ",COUNTRY_INFO!A179) -> Nigeria | B179: =IF(COUNTRY_INFO!B179=0," ",COUNTRY_INFO!B179) -> Cross River | C179: =IF(COUNTRY_INFO!C179=0," ",COUNTRY_INFO!C179) -> Akpabuyo | D179: =IF(COUNTRY_INFO!$T$9:$T$1000="MDA1 (IVM+ALB)", COUNTRY_INFO!$T$9:$T$1000, " ") ->  | I179: 0 | M179: 0
A180: =IF(COUNTRY_INFO!A180=0," ",COUNTRY_INFO!A180) -> Nigeria | B180: =IF(COUNTRY_INFO!B180=0," ",COUNTRY_INFO!B180) -> Cross River | C180: =IF(COUNTRY_INFO!C180=0," ",COUNTRY_INFO!C180) -> Bakasi | D180: =IF(COUNTRY_INFO!$T$9:$T$1000="MDA1 (IVM+ALB)", COUNTRY_INFO!$T$9:$T$1000, " ") ->  | I180: 0 | M180: 0
A181: =IF(COUNTRY_INFO!A181=0," ",COUNTRY_INFO!A181) -> Nigeria | B181: =IF(COUNTRY_INFO!B181=0," ",COUNTRY_INFO!B181) -> Cross River | C181: =IF(COUNTRY_INFO!C181=0," ",COUNTRY_INFO!C181) -> Bekwara | D181: =IF(COUNTRY_INFO!$T$9:$T$1000="MDA1 (IVM+ALB)", COUNTRY_INFO!$T$9:$T$1000, " ") -> MDA1 (IVM+ALB) | E181: January | G181: 37929 | H181: 70440 | I181: 108369 | K181: 34715.8 | L181: 64472.2 | M181: 99188 | O181: 91.52838198 | P181: 91.5278251 | Q181: 91.52802001
A182: =IF(COUNTRY_INFO!A182=0," ",COUNTRY_INFO!A182) -> Nigeria | B182: =IF(COUNTRY_INFO!B182=0," ",COUNTRY_INFO!B182) -> Cross River | C182: =IF(COUNTRY_INFO!C182=0," ",COUNTRY_INFO!C182) -> Biase | D182: =IF(COUNTRY_INFO!$T$9:$T$1000="MDA1 (IVM+ALB)", COUNTRY_INFO!$T$9:$T$1000, " ") -> MDA1 (IVM+ALB) | E182: January | G182: 60639 | H182: 112616 | I182: 173255 | K182: 59472.7 | L182: 110449.3 | M182: 169922 | O182: 98.07665034 | P182: 98.07602827 | Q182: 98.076246
A183: =IF(COUNTRY_INFO!A183=0," ",COUNTRY_INFO!A183) -> Nigeria | B183: =IF(COUNTRY_INFO!B183=0," ",COUNTRY_INFO!B183) -> Cross River | C183: =IF(COUNTRY_INFO!C183=0," ",COUNTRY_INFO!C183) -> Boki | D183: =IF(COUNTRY_INFO!$T$9:$T$1000="MDA1 (IVM+ALB)", COUNTRY_INFO!$T$9:$T$1000, " ") -> MDA1 (IVM+ALB) | E183: January | G183: 66717 | H183: 123904 | I183: 190621 | K183: 53257 | L183: 145698 | M183: 198955 | O183: 79.82523195 | P183: 117.5894241 | Q183: 104.3720262
A184: =IF(COUNTRY_INFO!A184=0," ",COUNTRY_INFO!A184) -> Nigeria | B184: =IF(COUNTRY_INFO!B184=0," ",COUNTRY_INFO!B184) -> Cross River | C184: =IF(COUNTRY_INFO!C184=0," ",COUNTRY_INFO!C184) -> Caabar South | D184: =IF(COUNTRY_INFO!$T$9:$T$1000="MDA1 (IVM+ALB)", COUNTRY_INFO!$T$9:$T$1000, " ") -> MDA1 (IVM+ALB) | E184: January | G184: 68685 | H184: 127557 | I184: 196242 | K184: 32157 | L184: 68496 | M184: 100653 | O184: 46.81808255 | P184: 53.69834662 | Q184: 51.29024368
A185: =IF(COUNTRY_INFO!A185=0," ",COUNTRY_INFO!A185) -> Nigeria | B185: =IF(COUNTRY_INFO!B185=0," ",COUNTRY_INFO!B185) -> Cross River | C185: =IF(COUNTRY_INFO!C185=0," ",COUNTRY_INFO!C185) -> Calabar Municipal | D185: =IF(COUNTRY_INFO!$T$9:$T$1000="MDA1 (IVM+ALB)", COUNTRY_INFO!$T$9:$T$1000, " ") ->  | I185: 0 | M185: 0
A186: =IF(COUNTRY_INFO!A186=0," ",COUNTRY_INFO!A186) -> Nigeria | B186: =IF(COUNTRY_INFO!B186=0," ",COUNTRY_INFO!B186) -> Cross River | C186: =IF(COUNTRY_INFO!C186=0," ",COUNTRY_INFO!C186) -> Etung | D186: =IF(COUNTRY_INFO!$T$9:$T$1000="MDA1 (IVM+ALB)", COUNTRY_INFO!$T$9:$T$1000, " ") ->  | I186: 0 | M186: 0
A187: =IF(COUNTRY_INFO!A187=0," ",COUNTRY_INFO!A187) -> Nigeria | B187: =IF(COUNTRY_INFO!B187=0," ",COUNTRY_INFO!B187) -> Cross River | C187: =IF(COUNTRY_INFO!C187=0," ",COUNTRY_INFO!C187) -> Ikom | D187: =IF(COUNTRY_INFO!$T$9:$T$1000="MDA1 (IVM+ALB)", COUNTRY_INFO!$T$9:$T$1000, " ") -> MDA1 (IVM+ALB) | E187: January | G187: 58202 | H187: 108089 | I187: 166291 | K187: 50614.55 | L187: 93998.45 | M187: 144613 | O187: 86.96359232 | P187: 86.96393713 | Q187: 86.96381644
A188: =IF(COUNTRY_INFO!A188=0," ",COUNTRY_INFO!A188) -> Nigeria | B188: =IF(COUNTRY_INFO!B188=0," ",COUNTRY_INFO!B188) -> Cross River | C188: =IF(COUNTRY_INFO!C188=0," ",COUNTRY_INFO!C188) -> Obanliku | D188: =IF(COUNTRY_INFO!$T$9:$T$1000="MDA1 (IVM+ALB)", COUNTRY_INFO!$T$9:$T$1000, " ") ->  | I188: 0 | M188: 0
A189: =IF(COUNTRY_INFO!A189=0," ",COUNTRY_INFO!A189) -> Nigeria | B189: =IF(COUNTRY_INFO!B189=0," ",COUNTRY_INFO!B189) -> Cross River | C189: =IF(COUNTRY_INFO!C189=0," ",COUNTRY_INFO!C189) -> Obubra | D189: =IF(COUNTRY_INFO!$T$9:$T$1000="MDA1 (IVM+ALB)", COUNTRY_INFO!$T$9:$T$1000, " ") -> MDA1 (IVM+ALB) | E189: January | G189: 61808 | H189: 114786 | I189: 176594 | K189: 56223.3 | L189: 104414.7 | M189: 160638 | O189: 90.96443826 | P189: 90.96466468 | Q189: 90.96458543
A190: =IF(COUNTRY_INFO!A190=0," ",COUNTRY_INFO!A190) -> Nigeria | B190: =IF(COUNTRY_INFO!B190=0," ",COUNTRY_INFO!B190) -> Cross River | C190: =IF(COUNTRY_INFO!C190=0," ",COUNTRY_INFO!C190) -> Obudu | D190: =IF(COUNTRY_INFO!$T$9:$T$1000="MDA1 (IVM+ALB)", COUNTRY_INFO!$T$9:$T$1000, " ") ->  | I190: 0 | M190: 0
A191: =IF(COUNTRY_INFO!A191=0," ",COUNTRY_INFO!A191) -> Nigeria | B191: =IF(COUNTRY_INFO!B191=0," ",COUNTRY_INFO!B191) -> Cross River | C191: =IF(COUNTRY_INFO!C191=0," ",COUNTRY_INFO!C191) -> Odukpani | D191: =IF(COUNTRY_INFO!$T$9:$T$1000="MDA1 (IVM+ALB)", COUNTRY_INFO!$T$9:$T$1000, " ") ->  | I191: 0 | M191: 0
A192: =IF(COUNTRY_INFO!A192=0," ",COUNTRY_INFO!A192) -> Nigeria | B192: =IF(COUNTRY_INFO!B192=0," ",COUNTRY_INFO!B192) -> Cross River | C192: =IF(COUNTRY_INFO!C192=0," ",COUNTRY_INFO!C192) -> Ogoja | D192: =IF(COUNTRY_INFO!$T$9:$T$1000="MDA1 (IVM+ALB)", COUNTRY_INFO!$T$9:$T$1000, " ") -> MDA1 (IVM+ALB) | E192: January | G192: 61613 | H192: 114425 | I192: 176038 | K192: 56223.3 | L192: 104414.7 | M192: 160638 | O192: 91.25233311 | P192: 91.25164955 | Q192: 91.2518888
A193: =IF(COUNTRY_INFO!A193=0," ",COUNTRY_INFO!A193) -> Nigeria | B193: =IF(COUNTRY_INFO!B193=0," ",COUNTRY_INFO!B193) -> Cross River | C193: =IF(COUNTRY_INFO!C193=0," ",COUNTRY_INFO!C193) -> Yakur | D193: =IF(COUNTRY_INFO!$T$9:$T$1000="MDA1 (IVM+ALB)", COUNTRY_INFO!$T$9:$T$1000, " ") ->  | I193: 0 | M193: 0
A194: =IF(COUNTRY_INFO!A194=0," ",COUNTRY_INFO!A194) -> Nigeria | B194: =IF(COUNTRY_INFO!B194=0," ",COUNTRY_INFO!B194) -> Cross River | C194: =IF(COUNTRY_INFO!C194=0," ",COUNTRY_INFO!C194) -> Yala | D194: =IF(COUNTRY_INFO!$T$9:$T$1000="MDA1 (IVM+ALB)", COUNTRY_INFO!$T$9:$T$1000, " ") -> MDA1 (IVM+ALB) | E194: January | G194: 75571 | H194: 140346 | I194: 215917 | K194: 72818.2 | L194: 135233.8 | M194: 208052 | O194: 96.35733284 | P194: 96.35743092 | Q194: 96.35739659
A195: =IF(COUNTRY_INFO!A195=0," ",COUNTRY_INFO!A195) -> Nigeria | B195: =IF(COUNTRY_INFO!B195=0," ",COUNTRY_INFO!B195) -> Delta | C195: =IF(COUNTRY_INFO!C195=0," ",COUNTRY_INFO!C195) -> Aniocha North | D195: =IF(COUNTRY_INFO!$T$9:$T$1000="MDA1 (IVM+ALB)", COUNTRY_INFO!$T$9:$T$1000, " ") -> MDA1 (IVM+ALB) | E195: January | G195: 37531 | H195: 69700 | I195: 107231 | K195: 30134 | L195: 69336 | M195: 99470 | O195: 80.29095947 | P195: 99.47776184 | Q195: 92.76235417
A196: =IF(COUNTRY_INFO!A196=0," ",COUNTRY_INFO!A196) -> Nigeria | B196: =IF(COUNTRY_INFO!B196=0," ",COUNTRY_INFO!B196) -> Delta | C196: =IF(COUNTRY_INFO!C196=0," ",COUNTRY_INFO!C196) -> Aniocha South | D196: =IF(COUNTRY_INFO!$T$9:$T$1000="MDA1 (IVM+ALB)", COUNTRY_INFO!$T$9:$T$1000, " ") -> MDA1 (IVM+ALB) | E196: January | G196: 50396 | H196: 93592 | I196: 143988 | K196: 48813 | L196: 91846 | M196: 140659 | O196: 96.85887769 | P196: 98.13445594 | Q196: 97.68800178
A197: =IF(COUNTRY_INFO!A197=0," ",COUNTRY_INFO!A197) -> Nigeria | B197: =IF(COUNTRY_INFO!B197=0," ",COUNTRY_INFO!B197) -> Delta | C197: =IF(COUNTRY_INFO!C197=0," ",COUNTRY_INFO!C197) -> Bomadi | D197: =IF(COUNTRY_INFO!$T$9:$T$1000="MDA1 (IVM+ALB)", COUNTRY_INFO!$T$9:$T$1000, " ") ->  | I197: 0 | M197: 0
A198: =IF(COUNTRY_INFO!A198=0," ",COUNTRY_INFO!A198) -> Nigeria | B198: =IF(COUNTRY_INFO!B198=0," ",COUNTRY_INFO!B198) -> Delta | C198: =IF(COUNTRY_INFO!C198=0," ",COUNTRY_INFO!C198) -> Burutu | D198: =IF(COUNTRY_INFO!$T$9:$T$1000="MDA1 (IVM+ALB)", COUNTRY_INFO!$T$9:$T$1000, " ") ->  | I198: 0 | M198: 0
A199: =IF(COUNTRY_INFO!A199=0," ",COUNTRY_INFO!A199) -> Nigeria | B199: =IF(COUNTRY_INFO!B199=0," ",COUNTRY_INFO!B199) -> Delta | C199: =IF(COUNTRY_INFO!C199=0," ",COUNTRY_INFO!C199) -> Ethiope East | D199: =IF(COUNTRY_INFO!$T$9:$T$1000="MDA1 (IVM+ALB)", COUNTRY_INFO!$T$9:$T$1000, " ") ->  | I199: 0 | M199: 0
A200: =IF(COUNTRY_INFO!A200=0," ",COUNTRY_INFO!A200) -> Nigeria | B200: =IF(COUNTRY_INFO!B200=0," ",COUNTRY_INFO!B200) -> Delta | C200: =IF(COUNTRY_INFO!C200=0," ",COUNTRY_INFO!C200) -> Ethiope West | D200: =IF(COUNTRY_INFO!$T$9:$T$1000="MDA1 (IVM+ALB)", COUNTRY_INFO!$T$9:$T$1000, " ") ->  | I200: 0 | M200: 0
A201: =IF(COUNTRY_INFO!A201=0," ",COUNTRY_INFO!A201) -> Nigeria | B201: =IF(COUNTRY_INFO!B201=0," ",COUNTRY_INFO!B201) -> Delta | C201: =IF(COUNTRY_INFO!C201=0," ",COUNTRY_INFO!C201) -> Ika North East | D201: =IF(COUNTRY_INFO!$T$9:$T$1000="MDA1 (IVM+ALB)", COUNTRY_INFO!$T$9:$T$1000, " ") -> MDA1 (IVM+ALB) | E201: January | G201: 65827 | H201: 122250 | I201: 188077 | K201: 60907 | L201: 113113 | M201: 174020 | O201: =IF(G201<>0, IF(K201/G201*100=0, "-", K201/G201*100), " ") -> 92.52586325 | P201: 92.52597137 | Q201: 92.52593353
A202: =IF(COUNTRY_INFO!A202=0," ",COUNTRY_INFO!A202) -> Nigeria | B202: =IF(COUNTRY_INFO!B202=0," ",COUNTRY_INFO!B202) -> Delta | C202: =IF(COUNTRY_INFO!C202=0," ",COUNTRY_INFO!C202) -> Ika South | D202: =IF(COUNTRY_INFO!$T$9:$T$1000="MDA1 (IVM+ALB)", COUNTRY_INFO!$T$9:$T$1000, " ") -> MDA1 (IVM+ALB) | E202: January | G202: 58278 | H202: 108230 | I202: =SUM(F202:H202) -> 166508 | K202: 43496 | L202: 104382 | M202: =SUM(J202:L202) -> 147878 | O202: 74.63536841 | P202: =IF(H202<>0, IF(L202/H202*100=0, "-", L202/H202*100), " ") -> 96.4446087 | Q202: =IF(I202<>0, IF(M202/I202*100=0, "-", M202/I202*100), " ") -> 88.8113484
A203: =IF(COUNTRY_INFO!A203=0," ",COUNTRY_INFO!A203) -> Nigeria | B203: =IF(COUNTRY_INFO!B203=0," ",COUNTRY_INFO!B203) -> Delta | C203: =IF(COUNTRY_INFO!C203=0," ",COUNTRY_INFO!C203) -> Isoko North | D203: =IF(COUNTRY_INFO!$T$9:$T$1000="MDA1 (IVM+ALB)", COUNTRY_INFO!$T$9:$T$1000, " ") ->  | I203: 0 | M203: 0
... 579 more rows

Sheet MDA2 (hidden)
A1: MDA 2 - Diethylcarbamazine citrate (DEC) + Albendazole (ALB)
A2: Administrative structure, population requiring PC by age group, population treated by age group and coverage
A4: TOTAL | F4: =SUM(F$9:F$1000) -> 0 | G4: =SUM(G$9:G$1000) -> 0 | H4: 0 | I4: 0 | J4: 0 | K4: 0 | L4: 0 | M4: 0 | N4: =IF(F4<>0, IF(J4/F4*100=0, "-", J4/F4*100), " ") ->  | O4: =IF(G4<>0, IF(K4/G4*100=0, "-", K4/G4*100), " ") ->  | P4: =IF(H4<>0, IF(L4/H4*100=0, "-", L4/H4*100), " ") ->  | Q4: =IF(I4<>0, IF(M4/I4*100=0, "-", M4/I4*100), " ") -> 
D6: PC implemented | E6: Date | F6: Population targeted for MDA 2 | J6: Population treated | N6: Programme coverage (%)
A7: Country | B7: Province/State | C7: District | F7: PreSAC | G7: SAC | H7: Adults | I7: Total | J7: PreSAC | K7: SAC | L7: Adults | M7: Total | N7: PreSAC | O7: SAC | P7: Adults | Q7: Total
A9: =IF(COUNTRY_INFO!A9=0," ",COUNTRY_INFO!A9) -> Nigeria | B9: =IF(COUNTRY_INFO!B9=0," ",COUNTRY_INFO!B9) -> Abia | C9: =IF(COUNTRY_INFO!C9=0," ",COUNTRY_INFO!C9) -> Aba North | D9: =IF(COUNTRY_INFO!$T$9:$T$1000="MDA2 (DEC+ALB)", COUNTRY_INFO!$T$9:$T$1000, " ") ->  | I9: =SUM(F9:H9) -> 0 | M9: =SUM(J9:L9) -> 0 | N9: =IF(F9<>0, IF(J9/F9*100=0, "-", J9/F9*100), " ") -> 
A10: =IF(COUNTRY_INFO!A10=0," ",COUNTRY_INFO!A10) -> Nigeria | B10: =IF(COUNTRY_INFO!B10=0," ",COUNTRY_INFO!B10) -> Abia | C10: =IF(COUNTRY_INFO!C10=0," ",COUNTRY_INFO!C10) -> Aba South | D10: =IF(COUNTRY_INFO!$T$9:$T$1000="MDA2 (DEC+ALB)", COUNTRY_INFO!$T$9:$T$1000, " ") ->  | I10: =SUM(F10:H10) -> 0 | M10: =SUM(J10:L10) -> 0 | N10: =IF(F10<>0, IF(J10/F10*100=0, "-", J10/F10*100), " ") ->  | O10: =IF(G10<>0, IF(K10/G10*100=0, "-", K10/G10*100), " ") ->  | P10: =IF(H10<>0, IF(L10/H10*100=0, "-", L10/H10*100), " ") ->  | Q10: =IF(I10<>0, IF(M10/I10*100=0, "-", M10/I10*100), " ") -> 
A11: =IF(COUNTRY_INFO!A11=0," ",COUNTRY_INFO!A11) -> Nigeria | B11: =IF(COUNTRY_INFO!B11=0," ",COUNTRY_INFO!B11) -> Abia | C11: =IF(COUNTRY_INFO!C11=0," ",COUNTRY_INFO!C11) -> Arochukwu | D11: =IF(COUNTRY_INFO!$T$9:$T$1000="MDA2 (DEC+ALB)", COUNTRY_INFO!$T$9:$T$1000, " ") ->  | I11: 0 | M11: 0
A12: =IF(COUNTRY_INFO!A12=0," ",COUNTRY_INFO!A12) -> Nigeria | B12: =IF(COUNTRY_INFO!B12=0," ",COUNTRY_INFO!B12) -> Abia | C12: =IF(COUNTRY_INFO!C12=0," ",COUNTRY_INFO!C12) -> Bende | D12: =IF(COUNTRY_INFO!$T$9:$T$1000="MDA2 (DEC+ALB)", COUNTRY_INFO!$T$9:$T$1000, " ") ->  | I12: 0 | M12: 0
A13: =IF(COUNTRY_INFO!A13=0," ",COUNTRY_INFO!A13) -> Nigeria | B13: =IF(COUNTRY_INFO!B13=0," ",COUNTRY_INFO!B13) -> Abia | C13: =IF(COUNTRY_INFO!C13=0," ",COUNTRY_INFO!C13) -> Ikwuano | D13: =IF(COUNTRY_INFO!$T$9:$T$1000="MDA2 (DEC+ALB)", COUNTRY_INFO!$T$9:$T$1000, " ") ->  | I13: 0 | M13: 0
A14: =IF(COUNTRY_INFO!A14=0," ",COUNTRY_INFO!A14) -> Nigeria | B14: =IF(COUNTRY_INFO!B14=0," ",COUNTRY_INFO!B14) -> Abia | C14: =IF(COUNTRY_INFO!C14=0," ",COUNTRY_INFO!C14) -> Isiala-Ngwa North | D14: =IF(COUNTRY_INFO!$T$9:$T$1000="MDA2 (DEC+ALB)", COUNTRY_INFO!$T$9:$T$1000, " ") ->  | I14: 0 | M14: 0
A15: =IF(COUNTRY_INFO!A15=0," ",COUNTRY_INFO!A15) -> Nigeria | B15: =IF(COUNTRY_INFO!B15=0," ",COUNTRY_INFO!B15) -> Abia | C15: =IF(COUNTRY_INFO!C15=0," ",COUNTRY_INFO!C15) -> Isiala-Ngwa South | D15: =IF(COUNTRY_INFO!$T$9:$T$1000="MDA2 (DEC+ALB)", COUNTRY_INFO!$T$9:$T$1000, " ") ->  | I15: 0 | M15: 0
A16: =IF(COUNTRY_INFO!A16=0," ",COUNTRY_INFO!A16) -> Nigeria | B16: =IF(COUNTRY_INFO!B16=0," ",COUNTRY_INFO!B16) -> Abia | C16: =IF(COUNTRY_INFO!C16=0," ",COUNTRY_INFO!C16) -> Isiukwuato | D16: =IF(COUNTRY_INFO!$T$9:$T$1000="MDA2 (DEC+ALB)", COUNTRY_INFO!$T$9:$T$1000, " ") ->  | I16: 0 | M16: 0
A17: =IF(COUNTRY_INFO!A17=0," ",COUNTRY_INFO!A17) -> Nigeria | B17: =IF(COUNTRY_INFO!B17=0," ",COUNTRY_INFO!B17) -> Abia | C17: =IF(COUNTRY_INFO!C17=0," ",COUNTRY_INFO!C17) -> Obio-Ngwa | D17: =IF(COUNTRY_INFO!$T$9:$T$1000="MDA2 (DEC+ALB)", COUNTRY_INFO!$T$9:$T$1000, " ") ->  | I17: 0 | M17: 0
A18: =IF(COUNTRY_INFO!A18=0," ",COUNTRY_INFO!A18) -> Nigeria | B18: =IF(COUNTRY_INFO!B18=0," ",COUNTRY_INFO!B18) -> Abia | C18: =IF(COUNTRY_INFO!C18=0," ",COUNTRY_INFO!C18) -> Ohafia | D18: =IF(COUNTRY_INFO!$T$9:$T$1000="MDA2 (DEC+ALB)", COUNTRY_INFO!$T$9:$T$1000, " ") ->  | I18: 0 | M18: 0
A19: =IF(COUNTRY_INFO!A19=0," ",COUNTRY_INFO!A19) -> Nigeria | B19: =IF(COUNTRY_INFO!B19=0," ",COUNTRY_INFO!B19) -> Abia | C19: =IF(COUNTRY_INFO!C19=0," ",COUNTRY_INFO!C19) -> Osisioma Ngwa | D19: =IF(COUNTRY_INFO!$T$9:$T$1000="MDA2 (DEC+ALB)", COUNTRY_INFO!$T$9:$T$1000, " ") ->  | I19: 0 | M19: 0
A20: =IF(COUNTRY_INFO!A20=0," ",COUNTRY_INFO!A20) -> Nigeria | B20: =IF(COUNTRY_INFO!B20=0," ",COUNTRY_INFO!B20) -> Abia | C20: =IF(COUNTRY_INFO!C20=0," ",COUNTRY_INFO!C20) -> Ugwunagbo | D20: =IF(COUNTRY_INFO!$T$9:$T$1000="MDA2 (DEC+ALB)", COUNTRY_INFO!$T$9:$T$1000, " ") ->  | I20: 0 | M20: 0
A21: =IF(COUNTRY_INFO!A21=0," ",COUNTRY_INFO!A21) -> Nigeria | B21: =IF(COUNTRY_INFO!B21=0," ",COUNTRY_INFO!B21) -> Abia | C21: =IF(COUNTRY_INFO!C21=0," ",COUNTRY_INFO!C21) -> Ukwa East | D21: =IF(COUNTRY_INFO!$T$9:$T$1000="MDA2 (DEC+ALB)", COUNTRY_INFO!$T$9:$T$1000, " ") ->  | I21: 0 | M21: 0
A22: =IF(COUNTRY_INFO!A22=0," ",COUNTRY_INFO!A22) -> Nigeria | B22: =IF(COUNTRY_INFO!B22=0," ",COUNTRY_INFO!B22) -> Abia | C22: =IF(COUNTRY_INFO!C22=0," ",COUNTRY_INFO!C22) -> Ukwa West | D22: =IF(COUNTRY_INFO!$T$9:$T$1000="MDA2 (DEC+ALB)", COUNTRY_INFO!$T$9:$T$1000, " ") ->  | I22: 0 | M22: 0
A23: =IF(COUNTRY_INFO!A23=0," ",COUNTRY_INFO!A23) -> Nigeria | B23: =IF(COUNTRY_INFO!B23=0," ",COUNTRY_INFO!B23) -> Abia | C23: =IF(COUNTRY_INFO!C23=0," ",COUNTRY_INFO!C23) -> Umuahia North | D23: =IF(COUNTRY_INFO!$T$9:$T$1000="MDA2 (DEC+ALB)", COUNTRY_INFO!$T$9:$T$1000, " ") ->  | I23: 0 | M23: 0
A24: =IF(COUNTRY_INFO!A24=0," ",COUNTRY_INFO!A24) -> Nigeria | B24: =IF(COUNTRY_INFO!B24=0," ",COUNTRY_INFO!B24) -> Abia | C24: =IF(COUNTRY_INFO!C24=0," ",COUNTRY_INFO!C24) -> Umuahia South | D24: =IF(COUNTRY_INFO!$T$9:$T$1000="MDA2 (DEC+ALB)", COUNTRY_INFO!$T$9:$T$1000, " ") ->  | I24: 0 | M24: 0
A25: =IF(COUNTRY_INFO!A25=0," ",COUNTRY_INFO!A25) -> Nigeria | B25: =IF(COUNTRY_INFO!B25=0," ",COUNTRY_INFO!B25) -> Abia | C25: =IF(COUNTRY_INFO!C25=0," ",COUNTRY_INFO!C25) -> Umu-Nneochi | D25: =IF(COUNTRY_INFO!$T$9:$T$1000="MDA2 (DEC+ALB)", COUNTRY_INFO!$T$9:$T$1000, " ") ->  | I25: 0 | M25: 0
A26: =IF(COUNTRY_INFO!A26=0," ",COUNTRY_INFO!A26) -> Nigeria | B26: =IF(COUNTRY_INFO!B26=0," ",COUNTRY_INFO!B26) -> Adamawa | C26: =IF(COUNTRY_INFO!C26=0," ",COUNTRY_INFO!C26) -> Demsa | D26: =IF(COUNTRY_INFO!$T$9:$T$1000="MDA2 (DEC+ALB)", COUNTRY_INFO!$T$9:$T$1000, " ") ->  | I26: 0 | M26: 0
A27: =IF(COUNTRY_INFO!A27=0," ",COUNTRY_INFO!A27) -> Nigeria | B27: =IF(COUNTRY_INFO!B27=0," ",COUNTRY_INFO!B27) -> Adamawa | C27: =IF(COUNTRY_INFO!C27=0," ",COUNTRY_INFO!C27) -> Fufore | D27: =IF(COUNTRY_INFO!$T$9:$T$1000="MDA2 (DEC+ALB)", COUNTRY_INFO!$T$9:$T$1000, " ") ->  | I27: 0 | M27: 0
A28: =IF(COUNTRY_INFO!A28=0," ",COUNTRY_INFO!A28) -> Nigeria | B28: =IF(COUNTRY_INFO!B28=0," ",COUNTRY_INFO!B28) -> Adamawa | C28: =IF(COUNTRY_INFO!C28=0," ",COUNTRY_INFO!C28) -> Ganye | D28: =IF(COUNTRY_INFO!$T$9:$T$1000="MDA2 (DEC+ALB)", COUNTRY_INFO!$T$9:$T$1000, " ") ->  | I28: 0 | M28: 0
A29: =IF(COUNTRY_INFO!A29=0," ",COUNTRY_INFO!A29) -> Nigeria | B29: =IF(COUNTRY_INFO!B29=0," ",COUNTRY_INFO!B29) -> Adamawa | C29: =IF(COUNTRY_INFO!C29=0," ",COUNTRY_INFO!C29) -> Girei | D29: =IF(COUNTRY_INFO!$T$9:$T$1000="MDA2 (DEC+ALB)", COUNTRY_INFO!$T$9:$T$1000, " ") ->  | I29: 0 | M29: 0
A30: =IF(COUNTRY_INFO!A30=0," ",COUNTRY_INFO!A30) -> Nigeria | B30: =IF(COUNTRY_INFO!B30=0," ",COUNTRY_INFO!B30) -> Adamawa | C30: =IF(COUNTRY_INFO!C30=0," ",COUNTRY_INFO!C30) -> Gombi | D30: =IF(COUNTRY_INFO!$T$9:$T$1000="MDA2 (DEC+ALB)", COUNTRY_INFO!$T$9:$T$1000, " ") ->  | I30: 0 | M30: 0
A31: =IF(COUNTRY_INFO!A31=0," ",COUNTRY_INFO!A31) -> Nigeria | B31: =IF(COUNTRY_INFO!B31=0," ",COUNTRY_INFO!B31) -> Adamawa | C31: =IF(COUNTRY_INFO!C31=0," ",COUNTRY_INFO!C31) -> Guyuk | D31: =IF(COUNTRY_INFO!$T$9:$T$1000="MDA2 (DEC+ALB)", COUNTRY_INFO!$T$9:$T$1000, " ") ->  | I31: 0 | M31: 0
A32: =IF(COUNTRY_INFO!A32=0," ",COUNTRY_INFO!A32) -> Nigeria | B32: =IF(COUNTRY_INFO!B32=0," ",COUNTRY_INFO!B32) -> Adamawa | C32: =IF(COUNTRY_INFO!C32=0," ",COUNTRY_INFO!C32) -> Hong | D32: =IF(COUNTRY_INFO!$T$9:$T$1000="MDA2 (DEC+ALB)", COUNTRY_INFO!$T$9:$T$1000, " ") ->  | I32: 0 | M32: 0
A33: =IF(COUNTRY_INFO!A33=0," ",COUNTRY_INFO!A33) -> Nigeria | B33: =IF(COUNTRY_INFO!B33=0," ",COUNTRY_INFO!B33) -> Adamawa | C33: =IF(COUNTRY_INFO!C33=0," ",COUNTRY_INFO!C33) -> Jada | D33: =IF(COUNTRY_INFO!$T$9:$T$1000="MDA2 (DEC+ALB)", COUNTRY_INFO!$T$9:$T$1000, " ") ->  | I33: 0 | M33: 0
A34: =IF(COUNTRY_INFO!A34=0," ",COUNTRY_INFO!A34) -> Nigeria | B34: =IF(COUNTRY_INFO!B34=0," ",COUNTRY_INFO!B34) -> Adamawa | C34: =IF(COUNTRY_INFO!C34=0," ",COUNTRY_INFO!C34) -> Lamurde | D34: =IF(COUNTRY_INFO!$T$9:$T$1000="MDA2 (DEC+ALB)", COUNTRY_INFO!$T$9:$T$1000, " ") ->  | I34: 0 | M34: 0
A35: =IF(COUNTRY_INFO!A35=0," ",COUNTRY_INFO!A35) -> Nigeria | B35: =IF(COUNTRY_INFO!B35=0," ",COUNTRY_INFO!B35) -> Adamawa | C35: =IF(COUNTRY_INFO!C35=0," ",COUNTRY_INFO!C35) -> Madagali | D35: =IF(COUNTRY_INFO!$T$9:$T$1000="MDA2 (DEC+ALB)", COUNTRY_INFO!$T$9:$T$1000, " ") ->  | I35: 0 | M35: 0
A36: =IF(COUNTRY_INFO!A36=0," ",COUNTRY_INFO!A36) -> Nigeria | B36: =IF(COUNTRY_INFO!B36=0," ",COUNTRY_INFO!B36) -> Adamawa | C36: =IF(COUNTRY_INFO!C36=0," ",COUNTRY_INFO!C36) -> Maiha | D36: =IF(COUNTRY_INFO!$T$9:$T$1000="MDA2 (DEC+ALB)", COUNTRY_INFO!$T$9:$T$1000, " ") ->  | I36: 0 | M36: 0
A37: =IF(COUNTRY_INFO!A37=0," ",COUNTRY_INFO!A37) -> Nigeria | B37: =IF(COUNTRY_INFO!B37=0," ",COUNTRY_INFO!B37) -> Adamawa | C37: =IF(COUNTRY_INFO!C37=0," ",COUNTRY_INFO!C37) -> Mayo-belwa | D37: =IF(COUNTRY_INFO!$T$9:$T$1000="MDA2 (DEC+ALB)", COUNTRY_INFO!$T$9:$T$1000, " ") ->  | I37: 0 | M37: 0
A38: =IF(COUNTRY_INFO!A38=0," ",COUNTRY_INFO!A38) -> Nigeria | B38: =IF(COUNTRY_INFO!B38=0," ",COUNTRY_INFO!B38) -> Adamawa | C38: =IF(COUNTRY_INFO!C38=0," ",COUNTRY_INFO!C38) -> Michika | D38: =IF(COUNTRY_INFO!$T$9:$T$1000="MDA2 (DEC+ALB)", COUNTRY_INFO!$T$9:$T$1000, " ") ->  | I38: 0 | M38: 0
A39: =IF(COUNTRY_INFO!A39=0," ",COUNTRY_INFO!A39) -> Nigeria | B39: =IF(COUNTRY_INFO!B39=0," ",COUNTRY_INFO!B39) -> Adamawa | C39: =IF(COUNTRY_INFO!C39=0," ",COUNTRY_INFO!C39) -> Mubi North | D39: =IF(COUNTRY_INFO!$T$9:$T$1000="MDA2 (DEC+ALB)", COUNTRY_INFO!$T$9:$T$1000, " ") ->  | I39: 0 | M39: 0
A40: =IF(COUNTRY_INFO!A40=0," ",COUNTRY_INFO!A40) -> Nigeria | B40: =IF(COUNTRY_INFO!B40=0," ",COUNTRY_INFO!B40) -> Adamawa | C40: =IF(COUNTRY_INFO!C40=0," ",COUNTRY_INFO!C40) -> Mubi South | D40: =IF(COUNTRY_INFO!$T$9:$T$1000="MDA2 (DEC+ALB)", COUNTRY_INFO!$T$9:$T$1000, " ") ->  | I40: 0 | M40: 0
A41: =IF(COUNTRY_INFO!A41=0," ",COUNTRY_INFO!A41) -> Nigeria | B41: =IF(COUNTRY_INFO!B41=0," ",COUNTRY_INFO!B41) -> Adamawa | C41: =IF(COUNTRY_INFO!C41=0," ",COUNTRY_INFO!C41) -> Numan | D41: =IF(COUNTRY_INFO!$T$9:$T$1000="MDA2 (DEC+ALB)", COUNTRY_INFO!$T$9:$T$1000, " ") ->  | I41: 0 | M41: 0
A42: =IF(COUNTRY_INFO!A42=0," ",COUNTRY_INFO!A42) -> Nigeria | B42: =IF(COUNTRY_INFO!B42=0," ",COUNTRY_INFO!B42) -> Adamawa | C42: =IF(COUNTRY_INFO!C42=0," ",COUNTRY_INFO!C42) -> Shelleng | D42: =IF(COUNTRY_INFO!$T$9:$T$1000="MDA2 (DEC+ALB)", COUNTRY_INFO!$T$9:$T$1000, " ") ->  | I42: 0 | M42: 0
A43: =IF(COUNTRY_INFO!A43=0," ",COUNTRY_INFO!A43) -> Nigeria | B43: =IF(COUNTRY_INFO!B43=0," ",COUNTRY_INFO!B43) -> Adamawa | C43: =IF(COUNTRY_INFO!C43=0," ",COUNTRY_INFO!C43) -> Song | D43: =IF(COUNTRY_INFO!$T$9:$T$1000="MDA2 (DEC+ALB)", COUNTRY_INFO!$T$9:$T$1000, " ") ->  | I43: 0 | M43: 0
A44: =IF(COUNTRY_INFO!A44=0," ",COUNTRY_INFO!A44) -> Nigeria | B44: =IF(COUNTRY_INFO!B44=0," ",COUNTRY_INFO!B44) -> Adamawa | C44: =IF(COUNTRY_INFO!C44=0," ",COUNTRY_INFO!C44) -> Toungo | D44: =IF(COUNTRY_INFO!$T$9:$T$1000="MDA2 (DEC+ALB)", COUNTRY_INFO!$T$9:$T$1000, " ") ->  | I44: 0 | M44: 0
A45: =IF(COUNTRY_INFO!A45=0," ",COUNTRY_INFO!A45) -> Nigeria | B45: =IF(COUNTRY_INFO!B45=0," ",COUNTRY_INFO!B45) -> Adamawa | C45: =IF(COUNTRY_INFO!C45=0," ",COUNTRY_INFO!C45) -> Yola North | D45: =IF(COUNTRY_INFO!$T$9:$T$1000="MDA2 (DEC+ALB)", COUNTRY_INFO!$T$9:$T$1000, " ") ->  | I45: 0 | M45: 0
A46: =IF(COUNTRY_INFO!A46=0," ",COUNTRY_INFO!A46) -> Nigeria | B46: =IF(COUNTRY_INFO!B46=0," ",COUNTRY_INFO!B46) -> Adamawa | C46: =IF(COUNTRY_INFO!C46=0," ",COUNTRY_INFO!C46) -> Yola South | D46: =IF(COUNTRY_INFO!$T$9:$T$1000="MDA2 (DEC+ALB)", COUNTRY_INFO!$T$9:$T$1000, " ") ->  | I46: 0 | M46: 0
A47: =IF(COUNTRY_INFO!A47=0," ",COUNTRY_INFO!A47) -> Nigeria | B47: =IF(COUNTRY_INFO!B47=0," ",COUNTRY_INFO!B47) -> Akwa Ibom | C47: =IF(COUNTRY_INFO!C47=0," ",COUNTRY_INFO!C47) -> Abak | D47: =IF(COUNTRY_INFO!$T$9:$T$1000="MDA2 (DEC+ALB)", COUNTRY_INFO!$T$9:$T$1000, " ") ->  | I47: 0 | M47: 0
A48: =IF(COUNTRY_INFO!A48=0," ",COUNTRY_INFO!A48) -> Nigeria | B48: =IF(COUNTRY_INFO!B48=0," ",COUNTRY_INFO!B48) -> Akwa Ibom | C48: =IF(COUNTRY_INFO!C48=0," ",COUNTRY_INFO!C48) -> Eastern Obolo | D48: =IF(COUNTRY_INFO!$T$9:$T$1000="MDA2 (DEC+ALB)", COUNTRY_INFO!$T$9:$T$1000, " ") ->  | I48: 0 | M48: 0
A49: =IF(COUNTRY_INFO!A49=0," ",COUNTRY_INFO!A49) -> Nigeria | B49: =IF(COUNTRY_INFO!B49=0," ",COUNTRY_INFO!B49) -> Akwa Ibom | C49: =IF(COUNTRY_INFO!C49=0," ",COUNTRY_INFO!C49) -> Eket | D49: =IF(COUNTRY_INFO!$T$9:$T$1000="MDA2 (DEC+ALB)", COUNTRY_INFO!$T$9:$T$1000, " ") ->  | I49: 0 | M49: 0
A50: =IF(COUNTRY_INFO!A50=0," ",COUNTRY_INFO!A50) -> Nigeria | B50: =IF(COUNTRY_INFO!B50=0," ",COUNTRY_INFO!B50) -> Akwa Ibom | C50: =IF(COUNTRY_INFO!C50=0," ",COUNTRY_INFO!C50) -> Esit Eket | D50: =IF(COUNTRY_INFO!$T$9:$T$1000="MDA2 (DEC+ALB)", COUNTRY_INFO!$T$9:$T$1000, " ") ->  | I50: 0 | M50: 0
A51: =IF(COUNTRY_INFO!A51=0," ",COUNTRY_INFO!A51) -> Nigeria | B51: =IF(COUNTRY_INFO!B51=0," ",COUNTRY_INFO!B51) -> Akwa Ibom | C51: =IF(COUNTRY_INFO!C51=0," ",COUNTRY_INFO!C51) -> Essien Udim | D51: =IF(COUNTRY_INFO!$T$9:$T$1000="MDA2 (DEC+ALB)", COUNTRY_INFO!$T$9:$T$1000, " ") ->  | I51: 0 | M51: 0
A52: =IF(COUNTRY_INFO!A52=0," ",COUNTRY_INFO!A52) -> Nigeria | B52: =IF(COUNTRY_INFO!B52=0," ",COUNTRY_INFO!B52) -> Akwa Ibom | C52: =IF(COUNTRY_INFO!C52=0," ",COUNTRY_INFO!C52) -> Etim Ekpo | D52: =IF(COUNTRY_INFO!$T$9:$T$1000="MDA2 (DEC+ALB)", COUNTRY_INFO!$T$9:$T$1000, " ") ->  | I52: 0 | M52: 0
A53: =IF(COUNTRY_INFO!A53=0," ",COUNTRY_INFO!A53) -> Nigeria | B53: =IF(COUNTRY_INFO!B53=0," ",COUNTRY_INFO!B53) -> Akwa Ibom | C53: =IF(COUNTRY_INFO!C53=0," ",COUNTRY_INFO!C53) -> Etinan | D53: =IF(COUNTRY_INFO!$T$9:$T$1000="MDA2 (DEC+ALB)", COUNTRY_INFO!$T$9:$T$1000, " ") ->  | I53: 0 | M53: 0
A54: =IF(COUNTRY_INFO!A54=0," ",COUNTRY_INFO!A54) -> Nigeria | B54: =IF(COUNTRY_INFO!B54=0," ",COUNTRY_INFO!B54) -> Akwa Ibom | C54: =IF(COUNTRY_INFO!C54=0," ",COUNTRY_INFO!C54) -> Ibeno | D54: =IF(COUNTRY_INFO!$T$9:$T$1000="MDA2 (DEC+ALB)", COUNTRY_INFO!$T$9:$T$1000, " ") ->  | I54: 0 | M54: 0
A55: =IF(COUNTRY_INFO!A55=0," ",COUNTRY_INFO!A55) -> Nigeria | B55: =IF(COUNTRY_INFO!B55=0," ",COUNTRY_INFO!B55) -> Akwa Ibom | C55: =IF(COUNTRY_INFO!C55=0," ",COUNTRY_INFO!C55) -> Ibesikpo Asutan | D55: =IF(COUNTRY_INFO!$T$9:$T$1000="MDA2 (DEC+ALB)", COUNTRY_INFO!$T$9:$T$1000, " ") ->  | I55: 0 | M55: 0
A56: =IF(COUNTRY_INFO!A56=0," ",COUNTRY_INFO!A56) -> Nigeria | B56: =IF(COUNTRY_INFO!B56=0," ",COUNTRY_INFO!B56) -> Akwa Ibom | C56: =IF(COUNTRY_INFO!C56=0," ",COUNTRY_INFO!C56) -> Ibiono Ibom | D56: =IF(COUNTRY_INFO!$T$9:$T$1000="MDA2 (DEC+ALB)", COUNTRY_INFO!$T$9:$T$1000, " ") ->  | I56: 0 | M56: 0
A57: =IF(COUNTRY_INFO!A57=0," ",COUNTRY_INFO!A57) -> Nigeria | B57: =IF(COUNTRY_INFO!B57=0," ",COUNTRY_INFO!B57) -> Akwa Ibom | C57: =IF(COUNTRY_INFO!C57=0," ",COUNTRY_INFO!C57) -> Ika | D57: =IF(COUNTRY_INFO!$T$9:$T$1000="MDA2 (DEC+ALB)", COUNTRY_INFO!$T$9:$T$1000, " ") ->  | I57: 0 | M57: 0
A58: =IF(COUNTRY_INFO!A58=0," ",COUNTRY_INFO!A58) -> Nigeria | B58: =IF(COUNTRY_INFO!B58=0," ",COUNTRY_INFO!B58) -> Akwa Ibom | C58: =IF(COUNTRY_INFO!C58=0," ",COUNTRY_INFO!C58) -> Ikono | D58: =IF(COUNTRY_INFO!$T$9:$T$1000="MDA2 (DEC+ALB)", COUNTRY_INFO!$T$9:$T$1000, " ") ->  | I58: 0 | M58: 0
A59: =IF(COUNTRY_INFO!A59=0," ",COUNTRY_INFO!A59) -> Nigeria | B59: =IF(COUNTRY_INFO!B59=0," ",COUNTRY_INFO!B59) -> Akwa Ibom | C59: =IF(COUNTRY_INFO!C59=0," ",COUNTRY_INFO!C59) -> Ikot Abasi | D59: =IF(COUNTRY_INFO!$T$9:$T$1000="MDA2 (DEC+ALB)", COUNTRY_INFO!$T$9:$T$1000, " ") ->  | I59: 0 | M59: 0
A60: =IF(COUNTRY_INFO!A60=0," ",COUNTRY_INFO!A60) -> Nigeria | B60: =IF(COUNTRY_INFO!B60=0," ",COUNTRY_INFO!B60) -> Akwa Ibom | C60: =IF(COUNTRY_INFO!C60=0," ",COUNTRY_INFO!C60) -> Ikot Ekpene | D60: =IF(COUNTRY_INFO!$T$9:$T$1000="MDA2 (DEC+ALB)", COUNTRY_INFO!$T$9:$T$1000, " ") ->  | I60: 0 | M60: 0
A61: =IF(COUNTRY_INFO!A61=0," ",COUNTRY_INFO!A61) -> Nigeria | B61: =IF(COUNTRY_INFO!B61=0," ",COUNTRY_INFO!B61) -> Akwa Ibom | C61: =IF(COUNTRY_INFO!C61=0," ",COUNTRY_INFO!C61) -> Ini | D61: =IF(COUNTRY_INFO!$T$9:$T$1000="MDA2 (DEC+ALB)", COUNTRY_INFO!$T$9:$T$1000, " ") ->  | I61: 0 | M61: 0
A62: =IF(COUNTRY_INFO!A62=0," ",COUNTRY_INFO!A62) -> Nigeria | B62: =IF(COUNTRY_INFO!B62=0," ",COUNTRY_INFO!B62) -> Akwa Ibom | C62: =IF(COUNTRY_INFO!C62=0," ",COUNTRY_INFO!C62) -> Itu | D62: =IF(COUNTRY_INFO!$T$9:$T$1000="MDA2 (DEC+ALB)", COUNTRY_INFO!$T$9:$T$1000, " ") ->  | I62: 0 | M62: 0
A63: =IF(COUNTRY_INFO!A63=0," ",COUNTRY_INFO!A63) -> Nigeria | B63: =IF(COUNTRY_INFO!B63=0," ",COUNTRY_INFO!B63) -> Akwa Ibom | C63: =IF(COUNTRY_INFO!C63=0," ",COUNTRY_INFO!C63) -> Mbo | D63: =IF(COUNTRY_INFO!$T$9:$T$1000="MDA2 (DEC+ALB)", COUNTRY_INFO!$T$9:$T$1000, " ") ->  | I63: 0 | M63: 0
A64: =IF(COUNTRY_INFO!A64=0," ",COUNTRY_INFO!A64) -> Nigeria | B64: =IF(COUNTRY_INFO!B64=0," ",COUNTRY_INFO!B64) -> Akwa Ibom | C64: =IF(COUNTRY_INFO!C64=0," ",COUNTRY_INFO!C64) -> Mkpat Enin | D64: =IF(COUNTRY_INFO!$T$9:$T$1000="MDA2 (DEC+ALB)", COUNTRY_INFO!$T$9:$T$1000, " ") ->  | I64: 0 | M64: 0
A65: =IF(COUNTRY_INFO!A65=0," ",COUNTRY_INFO!A65) -> Nigeria | B65: =IF(COUNTRY_INFO!B65=0," ",COUNTRY_INFO!B65) -> Akwa Ibom | C65: =IF(COUNTRY_INFO!C65=0," ",COUNTRY_INFO!C65) -> Nsit Atai | D65: =IF(COUNTRY_INFO!$T$9:$T$1000="MDA2 (DEC+ALB)", COUNTRY_INFO!$T$9:$T$1000, " ") ->  | I65: 0 | M65: 0
A66: =IF(COUNTRY_INFO!A66=0," ",COUNTRY_INFO!A66) -> Nigeria | B66: =IF(COUNTRY_INFO!B66=0," ",COUNTRY_INFO!B66) -> Akwa Ibom | C66: =IF(COUNTRY_INFO!C66=0," ",COUNTRY_INFO!C66) -> Nsit Ibom | D66: =IF(COUNTRY_INFO!$T$9:$T$1000="MDA2 (DEC+ALB)", COUNTRY_INFO!$T$9:$T$1000, " ") ->  | I66: 0 | M66: 0
A67: =IF(COUNTRY_INFO!A67=0," ",COUNTRY_INFO!A67) -> Nigeria | B67: =IF(COUNTRY_INFO!B67=0," ",COUNTRY_INFO!B67) -> Akwa Ibom | C67: =IF(COUNTRY_INFO!C67=0," ",COUNTRY_INFO!C67) -> Nsit Ubiom | D67: =IF(COUNTRY_INFO!$T$9:$T$1000="MDA2 (DEC+ALB)", COUNTRY_INFO!$T$9:$T$1000, " ") ->  | I67: 0 | M67: 0
A68: =IF(COUNTRY_INFO!A68=0," ",COUNTRY_INFO!A68) -> Nigeria | B68: =IF(COUNTRY_INFO!B68=0," ",COUNTRY_INFO!B68) -> Akwa Ibom | C68: =IF(COUNTRY_INFO!C68=0," ",COUNTRY_INFO!C68) -> Obot Akara | D68: =IF(COUNTRY_INFO!$T$9:$T$1000="MDA2 (DEC+ALB)", COUNTRY_INFO!$T$9:$T$1000, " ") ->  | I68: 0 | M68: 0
A69: =IF(COUNTRY_INFO!A69=0," ",COUNTRY_INFO!A69) -> Nigeria | B69: =IF(COUNTRY_INFO!B69=0," ",COUNTRY_INFO!B69) -> Akwa Ibom | C69: =IF(COUNTRY_INFO!C69=0," ",COUNTRY_INFO!C69) -> Okobo | D69: =IF(COUNTRY_INFO!$T$9:$T$1000="MDA2 (DEC+ALB)", COUNTRY_INFO!$T$9:$T$1000, " ") ->  | I69: 0 | M69: 0
A70: =IF(COUNTRY_INFO!A70=0," ",COUNTRY_INFO!A70) -> Nigeria | B70: =IF(COUNTRY_INFO!B70=0," ",COUNTRY_INFO!B70) -> Akwa Ibom | C70: =IF(COUNTRY_INFO!C70=0," ",COUNTRY_INFO!C70) -> Onna | D70: =IF(COUNTRY_INFO!$T$9:$T$1000="MDA2 (DEC+ALB)", COUNTRY_INFO!$T$9:$T$1000, " ") ->  | I70: 0 | M70: 0
A71: =IF(COUNTRY_INFO!A71=0," ",COUNTRY_INFO!A71) -> Nigeria | B71: =IF(COUNTRY_INFO!B71=0," ",COUNTRY_INFO!B71) -> Akwa Ibom | C71: =IF(COUNTRY_INFO!C71=0," ",COUNTRY_INFO!C71) -> Oron | D71: =IF(COUNTRY_INFO!$T$9:$T$1000="MDA2 (DEC+ALB)", COUNTRY_INFO!$T$9:$T$1000, " ") ->  | I71: 0 | M71: 0
A72: =IF(COUNTRY_INFO!A72=0," ",COUNTRY_INFO!A72) -> Nigeria | B72: =IF(COUNTRY_INFO!B72=0," ",COUNTRY_INFO!B72) -> Akwa Ibom | C72: =IF(COUNTRY_INFO!C72=0," ",COUNTRY_INFO!C72) -> Oruk Anam | D72: =IF(COUNTRY_INFO!$T$9:$T$1000="MDA2 (DEC+ALB)", COUNTRY_INFO!$T$9:$T$1000, " ") ->  | I72: 0 | M72: 0
A73: =IF(COUNTRY_INFO!A73=0," ",COUNTRY_INFO!A73) -> Nigeria | B73: =IF(COUNTRY_INFO!B73=0," ",COUNTRY_INFO!B73) -> Akwa Ibom | C73: =IF(COUNTRY_INFO!C73=0," ",COUNTRY_INFO!C73) -> Udung Uko | D73: =IF(COUNTRY_INFO!$T$9:$T$1000="MDA2 (DEC+ALB)", COUNTRY_INFO!$T$9:$T$1000, " ") ->  | I73: 0 | M73: 0
A74: =IF(COUNTRY_INFO!A74=0," ",COUNTRY_INFO!A74) -> Nigeria | B74: =IF(COUNTRY_INFO!B74=0," ",COUNTRY_INFO!B74) -> Akwa Ibom | C74: =IF(COUNTRY_INFO!C74=0," ",COUNTRY_INFO!C74) -> Ukanafun | D74: =IF(COUNTRY_INFO!$T$9:$T$1000="MDA2 (DEC+ALB)", COUNTRY_INFO!$T$9:$T$1000, " ") ->  | I74: =SUM(F74:H74) -> 0 | M74: =SUM(J74:L74) -> 0 | N74: =IF(F74<>0, IF(J74/F74*100=0, "-", J74/F74*100), " ") ->  | O74: =IF(G74<>0, IF(K74/G74*100=0, "-", K74/G74*100), " ") ->  | P74: =IF(H74<>0, IF(L74/H74*100=0, "-", L74/H74*100), " ") ->  | Q74: =IF(I74<>0, IF(M74/I74*100=0, "-", M74/I74*100), " ") -> 
A75: =IF(COUNTRY_INFO!A75=0," ",COUNTRY_INFO!A75) -> Nigeria | B75: =IF(COUNTRY_INFO!B75=0," ",COUNTRY_INFO!B75) -> Akwa Ibom | C75: =IF(COUNTRY_INFO!C75=0," ",COUNTRY_INFO!C75) -> Uruan | D75: =IF(COUNTRY_INFO!$T$9:$T$1000="MDA2 (DEC+ALB)", COUNTRY_INFO!$T$9:$T$1000, " ") ->  | I75: 0 | M75: 0
A76: =IF(COUNTRY_INFO!A76=0," ",COUNTRY_INFO!A76) -> Nigeria | B76: =IF(COUNTRY_INFO!B76=0," ",COUNTRY_INFO!B76) -> Akwa Ibom | C76: =IF(COUNTRY_INFO!C76=0," ",COUNTRY_INFO!C76) -> Urue-Offong/Oruko | D76: =IF(COUNTRY_INFO!$T$9:$T$1000="MDA2 (DEC+ALB)", COUNTRY_INFO!$T$9:$T$1000, " ") ->  | I76: 0 | M76: 0
A77: =IF(COUNTRY_INFO!A77=0," ",COUNTRY_INFO!A77) -> Nigeria | B77: =IF(COUNTRY_INFO!B77=0," ",COUNTRY_INFO!B77) -> Akwa Ibom | C77: =IF(COUNTRY_INFO!C77=0," ",COUNTRY_INFO!C77) -> Uyo | D77: =IF(COUNTRY_INFO!$T$9:$T$1000="MDA2 (DEC+ALB)", COUNTRY_INFO!$T$9:$T$1000, " ") ->  | I77: 0 | M77: 0
A78: =IF(COUNTRY_INFO!A78=0," ",COUNTRY_INFO!A78) -> Nigeria | B78: =IF(COUNTRY_INFO!B78=0," ",COUNTRY_INFO!B78) -> Anambra | C78: =IF(COUNTRY_INFO!C78=0," ",COUNTRY_INFO!C78) -> Aguata | D78: =IF(COUNTRY_INFO!$T$9:$T$1000="MDA2 (DEC+ALB)", COUNTRY_INFO!$T$9:$T$1000, " ") ->  | I78: 0 | M78: 0
A79: =IF(COUNTRY_INFO!A79=0," ",COUNTRY_INFO!A79) -> Nigeria | B79: =IF(COUNTRY_INFO!B79=0," ",COUNTRY_INFO!B79) -> Anambra | C79: =IF(COUNTRY_INFO!C79=0," ",COUNTRY_INFO!C79) -> Anambra East | D79: =IF(COUNTRY_INFO!$T$9:$T$1000="MDA2 (DEC+ALB)", COUNTRY_INFO!$T$9:$T$1000, " ") ->  | I79: 0 | M79: 0
A80: =IF(COUNTRY_INFO!A80=0," ",COUNTRY_INFO!A80) -> Nigeria | B80: =IF(COUNTRY_INFO!B80=0," ",COUNTRY_INFO!B80) -> Anambra | C80: =IF(COUNTRY_INFO!C80=0," ",COUNTRY_INFO!C80) -> Anambra West | D80: =IF(COUNTRY_INFO!$T$9:$T$1000="MDA2 (DEC+ALB)", COUNTRY_INFO!$T$9:$T$1000, " ") ->  | I80: 0 | M80: 0
A81: =IF(COUNTRY_INFO!A81=0," ",COUNTRY_INFO!A81) -> Nigeria | B81: =IF(COUNTRY_INFO!B81=0," ",COUNTRY_INFO!B81) -> Anambra | C81: =IF(COUNTRY_INFO!C81=0," ",COUNTRY_INFO!C81) -> Anaocha | D81: =IF(COUNTRY_INFO!$T$9:$T$1000="MDA2 (DEC+ALB)", COUNTRY_INFO!$T$9:$T$1000, " ") ->  | I81: 0 | M81: 0
A82: =IF(COUNTRY_INFO!A82=0," ",COUNTRY_INFO!A82) -> Nigeria | B82: =IF(COUNTRY_INFO!B82=0," ",COUNTRY_INFO!B82) -> Anambra | C82: =IF(COUNTRY_INFO!C82=0," ",COUNTRY_INFO!C82) -> Awka North | D82: =IF(COUNTRY_INFO!$T$9:$T$1000="MDA2 (DEC+ALB)", COUNTRY_INFO!$T$9:$T$1000, " ") ->  | I82: 0 | M82: 0
A83: =IF(COUNTRY_INFO!A83=0," ",COUNTRY_INFO!A83) -> Nigeria | B83: =IF(COUNTRY_INFO!B83=0," ",COUNTRY_INFO!B83) -> Anambra | C83: =IF(COUNTRY_INFO!C83=0," ",COUNTRY_INFO!C83) -> Awka south | D83: =IF(COUNTRY_INFO!$T$9:$T$1000="MDA2 (DEC+ALB)", COUNTRY_INFO!$T$9:$T$1000, " ") ->  | I83: 0 | M83: 0
A84: =IF(COUNTRY_INFO!A84=0," ",COUNTRY_INFO!A84) -> Nigeria | B84: =IF(COUNTRY_INFO!B84=0," ",COUNTRY_INFO!B84) -> Anambra | C84: =IF(COUNTRY_INFO!C84=0," ",COUNTRY_INFO!C84) -> Ayamelum | D84: =IF(COUNTRY_INFO!$T$9:$T$1000="MDA2 (DEC+ALB)", COUNTRY_INFO!$T$9:$T$1000, " ") ->  | I84: 0 | M84: 0
A85: =IF(COUNTRY_INFO!A85=0," ",COUNTRY_INFO!A85) -> Nigeria | B85: =IF(COUNTRY_INFO!B85=0," ",COUNTRY_INFO!B85) -> Anambra | C85: =IF(COUNTRY_INFO!C85=0," ",COUNTRY_INFO!C85) -> Dunukofia | D85: =IF(COUNTRY_INFO!$T$9:$T$1000="MDA2 (DEC+ALB)", COUNTRY_INFO!$T$9:$T$1000, " ") ->  | I85: 0 | M85: 0
A86: =IF(COUNTRY_INFO!A86=0," ",COUNTRY_INFO!A86) -> Nigeria | B86: =IF(COUNTRY_INFO!B86=0," ",COUNTRY_INFO!B86) -> Anambra | C86: =IF(COUNTRY_INFO!C86=0," ",COUNTRY_INFO!C86) -> Ekwusiko | D86: =IF(COUNTRY_INFO!$T$9:$T$1000="MDA2 (DEC+ALB)", COUNTRY_INFO!$T$9:$T$1000, " ") ->  | I86: 0 | M86: 0
A87: =IF(COUNTRY_INFO!A87=0," ",COUNTRY_INFO!A87) -> Nigeria | B87: =IF(COUNTRY_INFO!B87=0," ",COUNTRY_INFO!B87) -> Anambra | C87: =IF(COUNTRY_INFO!C87=0," ",COUNTRY_INFO!C87) -> Idimili North | D87: =IF(COUNTRY_INFO!$T$9:$T$1000="MDA2 (DEC+ALB)", COUNTRY_INFO!$T$9:$T$1000, " ") ->  | I87: 0 | M87: 0
A88: =IF(COUNTRY_INFO!A88=0," ",COUNTRY_INFO!A88) -> Nigeria | B88: =IF(COUNTRY_INFO!B88=0," ",COUNTRY_INFO!B88) -> Anambra | C88: =IF(COUNTRY_INFO!C88=0," ",COUNTRY_INFO!C88) -> Idimili South | D88: =IF(COUNTRY_INFO!$T$9:$T$1000="MDA2 (DEC+ALB)", COUNTRY_INFO!$T$9:$T$1000, " ") ->  | I88: 0 | M88: 0
A89: =IF(COUNTRY_INFO!A89=0," ",COUNTRY_INFO!A89) -> Nigeria | B89: =IF(COUNTRY_INFO!B89=0," ",COUNTRY_INFO!B89) -> Anambra | C89: =IF(COUNTRY_INFO!C89=0," ",COUNTRY_INFO!C89) -> Ihiala | D89: =IF(COUNTRY_INFO!$T$9:$T$1000="MDA2 (DEC+ALB)", COUNTRY_INFO!$T$9:$T$1000, " ") ->  | I89: 0 | M89: 0
A90: =IF(COUNTRY_INFO!A90=0," ",COUNTRY_INFO!A90) -> Nigeria | B90: =IF(COUNTRY_INFO!B90=0," ",COUNTRY_INFO!B90) -> Anambra | C90: =IF(COUNTRY_INFO!C90=0," ",COUNTRY_INFO!C90) -> Njikoka | D90: =IF(COUNTRY_INFO!$T$9:$T$1000="MDA2 (DEC+ALB)", COUNTRY_INFO!$T$9:$T$1000, " ") ->  | I90: 0 | M90: 0
A91: =IF(COUNTRY_INFO!A91=0," ",COUNTRY_INFO!A91) -> Nigeria | B91: =IF(COUNTRY_INFO!B91=0," ",COUNTRY_INFO!B91) -> Anambra | C91: =IF(COUNTRY_INFO!C91=0," ",COUNTRY_INFO!C91) -> Nnewi North | D91: =IF(COUNTRY_INFO!$T$9:$T$1000="MDA2 (DEC+ALB)", COUNTRY_INFO!$T$9:$T$1000, " ") ->  | I91: 0 | M91: 0
A92: =IF(COUNTRY_INFO!A92=0," ",COUNTRY_INFO!A92) -> Nigeria | B92: =IF(COUNTRY_INFO!B92=0," ",COUNTRY_INFO!B92) -> Anambra | C92: =IF(COUNTRY_INFO!C92=0," ",COUNTRY_INFO!C92) -> Nnewi South | D92: =IF(COUNTRY_INFO!$T$9:$T$1000="MDA2 (DEC+ALB)", COUNTRY_INFO!$T$9:$T$1000, " ") ->  | I92: 0 | M92: 0
A93: =IF(COUNTRY_INFO!A93=0," ",COUNTRY_INFO!A93) -> Nigeria | B93: =IF(COUNTRY_INFO!B93=0," ",COUNTRY_INFO!B93) -> Anambra | C93: =IF(COUNTRY_INFO!C93=0," ",COUNTRY_INFO!C93) -> Ogbaru | D93: =IF(COUNTRY_INFO!$T$9:$T$1000="MDA2 (DEC+ALB)", COUNTRY_INFO!$T$9:$T$1000, " ") ->  | I93: 0 | M93: 0
A94: =IF(COUNTRY_INFO!A94=0," ",COUNTRY_INFO!A94) -> Nigeria | B94: =IF(COUNTRY_INFO!B94=0," ",COUNTRY_INFO!B94) -> Anambra | C94: =IF(COUNTRY_INFO!C94=0," ",COUNTRY_INFO!C94) -> Onitsha North | D94: =IF(COUNTRY_INFO!$T$9:$T$1000="MDA2 (DEC+ALB)", COUNTRY_INFO!$T$9:$T$1000, " ") ->  | I94: 0 | M94: 0
A95: =IF(COUNTRY_INFO!A95=0," ",COUNTRY_INFO!A95) -> Nigeria | B95: =IF(COUNTRY_INFO!B95=0," ",COUNTRY_INFO!B95) -> Anambra | C95: =IF(COUNTRY_INFO!C95=0," ",COUNTRY_INFO!C95) -> Onitsha South | D95: =IF(COUNTRY_INFO!$T$9:$T$1000="MDA2 (DEC+ALB)", COUNTRY_INFO!$T$9:$T$1000, " ") ->  | I95: 0 | M95: 0
A96: =IF(COUNTRY_INFO!A96=0," ",COUNTRY_INFO!A96) -> Nigeria | B96: =IF(COUNTRY_INFO!B96=0," ",COUNTRY_INFO!B96) -> Anambra | C96: =IF(COUNTRY_INFO!C96=0," ",COUNTRY_INFO!C96) -> Orumba North | D96: =IF(COUNTRY_INFO!$T$9:$T$1000="MDA2 (DEC+ALB)", COUNTRY_INFO!$T$9:$T$1000, " ") ->  | I96: 0 | M96: 0
A97: =IF(COUNTRY_INFO!A97=0," ",COUNTRY_INFO!A97) -> Nigeria | B97: =IF(COUNTRY_INFO!B97=0," ",COUNTRY_INFO!B97) -> Anambra | C97: =IF(COUNTRY_INFO!C97=0," ",COUNTRY_INFO!C97) -> Orumba South | D97: =IF(COUNTRY_INFO!$T$9:$T$1000="MDA2 (DEC+ALB)", COUNTRY_INFO!$T$9:$T$1000, " ") ->  | I97: 0 | M97: 0
A98: =IF(COUNTRY_INFO!A98=0," ",COUNTRY_INFO!A98) -> Nigeria | B98: =IF(COUNTRY_INFO!B98=0," ",COUNTRY_INFO!B98) -> Anambra | C98: =IF(COUNTRY_INFO!C98=0," ",COUNTRY_INFO!C98) -> Oyi | D98: =IF(COUNTRY_INFO!$T$9:$T$1000="MDA2 (DEC+ALB)", COUNTRY_INFO!$T$9:$T$1000, " ") ->  | I98: 0 | M98: 0
A99: =IF(COUNTRY_INFO!A99=0," ",COUNTRY_INFO!A99) -> Nigeria | B99: =IF(COUNTRY_INFO!B99=0," ",COUNTRY_INFO!B99) -> Bauchi | C99: =IF(COUNTRY_INFO!C99=0," ",COUNTRY_INFO!C99) -> Alkaleri | D99: =IF(COUNTRY_INFO!$T$9:$T$1000="MDA2 (DEC+ALB)", COUNTRY_INFO!$T$9:$T$1000, " ") ->  | I99: 0 | M99: 0
A100: =IF(COUNTRY_INFO!A100=0," ",COUNTRY_INFO!A100) -> Nigeria | B100: =IF(COUNTRY_INFO!B100=0," ",COUNTRY_INFO!B100) -> Bauchi | C100: =IF(COUNTRY_INFO!C100=0," ",COUNTRY_INFO!C100) -> Bauchi | D100: =IF(COUNTRY_INFO!$T$9:$T$1000="MDA2 (DEC+ALB)", COUNTRY_INFO!$T$9:$T$1000, " ") ->  | I100: 0 | M100: 0
A101: =IF(COUNTRY_INFO!A101=0," ",COUNTRY_INFO!A101) -> Nigeria | B101: =IF(COUNTRY_INFO!B101=0," ",COUNTRY_INFO!B101) -> Bauchi | C101: =IF(COUNTRY_INFO!C101=0," ",COUNTRY_INFO!C101) -> Bogoro | D101: =IF(COUNTRY_INFO!$T$9:$T$1000="MDA2 (DEC+ALB)", COUNTRY_INFO!$T$9:$T$1000, " ") ->  | I101: 0 | M101: 0
A102: =IF(COUNTRY_INFO!A102=0," ",COUNTRY_INFO!A102) -> Nigeria | B102: =IF(COUNTRY_INFO!B102=0," ",COUNTRY_INFO!B102) -> Bauchi | C102: =IF(COUNTRY_INFO!C102=0," ",COUNTRY_INFO!C102) -> Damban | D102: =IF(COUNTRY_INFO!$T$9:$T$1000="MDA2 (DEC+ALB)", COUNTRY_INFO!$T$9:$T$1000, " ") ->  | I102: 0 | M102: 0
A103: =IF(COUNTRY_INFO!A103=0," ",COUNTRY_INFO!A103) -> Nigeria | B103: =IF(COUNTRY_INFO!B103=0," ",COUNTRY_INFO!B103) -> Bauchi | C103: =IF(COUNTRY_INFO!C103=0," ",COUNTRY_INFO!C103) -> Darazo | D103: =IF(COUNTRY_INFO!$T$9:$T$1000="MDA2 (DEC+ALB)", COUNTRY_INFO!$T$9:$T$1000, " ") ->  | I103: 0 | M103: 0
A104: =IF(COUNTRY_INFO!A104=0," ",COUNTRY_INFO!A104) -> Nigeria | B104: =IF(COUNTRY_INFO!B104=0," ",COUNTRY_INFO!B104) -> Bauchi | C104: =IF(COUNTRY_INFO!C104=0," ",COUNTRY_INFO!C104) -> Dass | D104: =IF(COUNTRY_INFO!$T$9:$T$1000="MDA2 (DEC+ALB)", COUNTRY_INFO!$T$9:$T$1000, " ") ->  | I104: 0 | M104: 0
A105: =IF(COUNTRY_INFO!A105=0," ",COUNTRY_INFO!A105) -> Nigeria | B105: =IF(COUNTRY_INFO!B105=0," ",COUNTRY_INFO!B105) -> Bauchi | C105: =IF(COUNTRY_INFO!C105=0," ",COUNTRY_INFO!C105) -> Gamawa | D105: =IF(COUNTRY_INFO!$T$9:$T$1000="MDA2 (DEC+ALB)", COUNTRY_INFO!$T$9:$T$1000, " ") ->  | I105: 0 | M105: 0
A106: =IF(COUNTRY_INFO!A106=0," ",COUNTRY_INFO!A106) -> Nigeria | B106: =IF(COUNTRY_INFO!B106=0," ",COUNTRY_INFO!B106) -> Bauchi | C106: =IF(COUNTRY_INFO!C106=0," ",COUNTRY_INFO!C106) -> Ganjuwa | D106: =IF(COUNTRY_INFO!$T$9:$T$1000="MDA2 (DEC+ALB)", COUNTRY_INFO!$T$9:$T$1000, " ") ->  | I106: 0 | M106: 0
A107: =IF(COUNTRY_INFO!A107=0," ",COUNTRY_INFO!A107) -> Nigeria | B107: =IF(COUNTRY_INFO!B107=0," ",COUNTRY_INFO!B107) -> Bauchi | C107: =IF(COUNTRY_INFO!C107=0," ",COUNTRY_INFO!C107) -> Giade | D107: =IF(COUNTRY_INFO!$T$9:$T$1000="MDA2 (DEC+ALB)", COUNTRY_INFO!$T$9:$T$1000, " ") ->  | I107: 0 | M107: 0
A108: =IF(COUNTRY_INFO!A108=0," ",COUNTRY_INFO!A108) -> Nigeria | B108: =IF(COUNTRY_INFO!B108=0," ",COUNTRY_INFO!B108) -> Bauchi | C108: =IF(COUNTRY_INFO!C108=0," ",COUNTRY_INFO!C108) -> Itas/Gadua | D108: =IF(COUNTRY_INFO!$T$9:$T$1000="MDA2 (DEC+ALB)", COUNTRY_INFO!$T$9:$T$1000, " ") ->  | I108: 0 | M108: 0
A109: =IF(COUNTRY_INFO!A109=0," ",COUNTRY_INFO!A109) -> Nigeria | B109: =IF(COUNTRY_INFO!B109=0," ",COUNTRY_INFO!B109) -> Bauchi | C109: =IF(COUNTRY_INFO!C109=0," ",COUNTRY_INFO!C109) -> Jama'are | D109: =IF(COUNTRY_INFO!$T$9:$T$1000="MDA2 (DEC+ALB)", COUNTRY_INFO!$T$9:$T$1000, " ") ->  | I109: 0 | M109: 0
A110: =IF(COUNTRY_INFO!A110=0," ",COUNTRY_INFO!A110) -> Nigeria | B110: =IF(COUNTRY_INFO!B110=0," ",COUNTRY_INFO!B110) -> Bauchi | C110: =IF(COUNTRY_INFO!C110=0," ",COUNTRY_INFO!C110) -> Katagun | D110: =IF(COUNTRY_INFO!$T$9:$T$1000="MDA2 (DEC+ALB)", COUNTRY_INFO!$T$9:$T$1000, " ") ->  | I110: 0 | M110: 0
A111: =IF(COUNTRY_INFO!A111=0," ",COUNTRY_INFO!A111) -> Nigeria | B111: =IF(COUNTRY_INFO!B111=0," ",COUNTRY_INFO!B111) -> Bauchi | C111: =IF(COUNTRY_INFO!C111=0," ",COUNTRY_INFO!C111) -> Kirfi | D111: =IF(COUNTRY_INFO!$T$9:$T$1000="MDA2 (DEC+ALB)", COUNTRY_INFO!$T$9:$T$1000, " ") ->  | I111: 0 | M111: 0
A112: =IF(COUNTRY_INFO!A112=0," ",COUNTRY_INFO!A112) -> Nigeria | B112: =IF(COUNTRY_INFO!B112=0," ",COUNTRY_INFO!B112) -> Bauchi | C112: =IF(COUNTRY_INFO!C112=0," ",COUNTRY_INFO!C112) -> Misau | D112: =IF(COUNTRY_INFO!$T$9:$T$1000="MDA2 (DEC+ALB)", COUNTRY_INFO!$T$9:$T$1000, " ") ->  | I112: 0 | M112: 0
A113: =IF(COUNTRY_INFO!A113=0," ",COUNTRY_INFO!A113) -> Nigeria | B113: =IF(COUNTRY_INFO!B113=0," ",COUNTRY_INFO!B113) -> Bauchi | C113: =IF(COUNTRY_INFO!C113=0," ",COUNTRY_INFO!C113) -> Ningi | D113: =IF(COUNTRY_INFO!$T$9:$T$1000="MDA2 (DEC+ALB)", COUNTRY_INFO!$T$9:$T$1000, " ") ->  | I113: 0 | M113: 0
A114: =IF(COUNTRY_INFO!A114=0," ",COUNTRY_INFO!A114) -> Nigeria | B114: =IF(COUNTRY_INFO!B114=0," ",COUNTRY_INFO!B114) -> Bauchi | C114: =IF(COUNTRY_INFO!C114=0," ",COUNTRY_INFO!C114) -> Shira | D114: =IF(COUNTRY_INFO!$T$9:$T$1000="MDA2 (DEC+ALB)", COUNTRY_INFO!$T$9:$T$1000, " ") ->  | I114: 0 | M114: 0
A115: =IF(COUNTRY_INFO!A115=0," ",COUNTRY_INFO!A115) -> Nigeria | B115: =IF(COUNTRY_INFO!B115=0," ",COUNTRY_INFO!B115) -> Bauchi | C115: =IF(COUNTRY_INFO!C115=0," ",COUNTRY_INFO!C115) -> Tafawa-Balewa | D115: =IF(COUNTRY_INFO!$T$9:$T$1000="MDA2 (DEC+ALB)", COUNTRY_INFO!$T$9:$T$1000, " ") ->  | I115: 0 | M115: 0
A116: =IF(COUNTRY_INFO!A116=0," ",COUNTRY_INFO!A116) -> Nigeria | B116: =IF(COUNTRY_INFO!B116=0," ",COUNTRY_INFO!B116) -> Bauchi | C116: =IF(COUNTRY_INFO!C116=0," ",COUNTRY_INFO!C116) -> Toro | D116: =IF(COUNTRY_INFO!$T$9:$T$1000="MDA2 (DEC+ALB)", COUNTRY_INFO!$T$9:$T$1000, " ") ->  | I116: 0 | M116: 0
A117: =IF(COUNTRY_INFO!A117=0," ",COUNTRY_INFO!A117) -> Nigeria | B117: =IF(COUNTRY_INFO!B117=0," ",COUNTRY_INFO!B117) -> Bauchi | C117: =IF(COUNTRY_INFO!C117=0," ",COUNTRY_INFO!C117) -> Warji | D117: =IF(COUNTRY_INFO!$T$9:$T$1000="MDA2 (DEC+ALB)", COUNTRY_INFO!$T$9:$T$1000, " ") ->  | I117: 0 | M117: 0
A118: =IF(COUNTRY_INFO!A118=0," ",COUNTRY_INFO!A118) -> Nigeria | B118: =IF(COUNTRY_INFO!B118=0," ",COUNTRY_INFO!B118) -> Bauchi | C118: =IF(COUNTRY_INFO!C118=0," ",COUNTRY_INFO!C118) -> Zaki | D118: =IF(COUNTRY_INFO!$T$9:$T$1000="MDA2 (DEC+ALB)", COUNTRY_INFO!$T$9:$T$1000, " ") ->  | I118: 0 | M118: 0
A119: =IF(COUNTRY_INFO!A119=0," ",COUNTRY_INFO!A119) -> Nigeria | B119: =IF(COUNTRY_INFO!B119=0," ",COUNTRY_INFO!B119) -> Bayelsa | C119: =IF(COUNTRY_INFO!C119=0," ",COUNTRY_INFO!C119) -> Brass | D119: =IF(COUNTRY_INFO!$T$9:$T$1000="MDA2 (DEC+ALB)", COUNTRY_INFO!$T$9:$T$1000, " ") ->  | I119: 0 | M119: 0
A120: =IF(COUNTRY_INFO!A120=0," ",COUNTRY_INFO!A120) -> Nigeria | B120: =IF(COUNTRY_INFO!B120=0," ",COUNTRY_INFO!B120) -> Bayelsa | C120: =IF(COUNTRY_INFO!C120=0," ",COUNTRY_INFO!C120) -> Ekeremo | D120: =IF(COUNTRY_INFO!$T$9:$T$1000="MDA2 (DEC+ALB)", COUNTRY_INFO!$T$9:$T$1000, " ") ->  | I120: 0 | M120: 0
A121: =IF(COUNTRY_INFO!A121=0," ",COUNTRY_INFO!A121) -> Nigeria | B121: =IF(COUNTRY_INFO!B121=0," ",COUNTRY_INFO!B121) -> Bayelsa | C121: =IF(COUNTRY_INFO!C121=0," ",COUNTRY_INFO!C121) -> Kolokuma/Opokuma | D121: =IF(COUNTRY_INFO!$T$9:$T$1000="MDA2 (DEC+ALB)", COUNTRY_INFO!$T$9:$T$1000, " ") ->  | I121: 0 | M121: 0
A122: =IF(COUNTRY_INFO!A122=0," ",COUNTRY_INFO!A122) -> Nigeria | B122: =IF(COUNTRY_INFO!B122=0," ",COUNTRY_INFO!B122) -> Bayelsa | C122: =IF(COUNTRY_INFO!C122=0," ",COUNTRY_INFO!C122) -> Nembe | D122: =IF(COUNTRY_INFO!$T$9:$T$1000="MDA2 (DEC+ALB)", COUNTRY_INFO!$T$9:$T$1000, " ") ->  | I122: 0 | M122: 0
A123: =IF(COUNTRY_INFO!A123=0," ",COUNTRY_INFO!A123) -> Nigeria | B123: =IF(COUNTRY_INFO!B123=0," ",COUNTRY_INFO!B123) -> Bayelsa | C123: =IF(COUNTRY_INFO!C123=0," ",COUNTRY_INFO!C123) -> Ogbia | D123: =IF(COUNTRY_INFO!$T$9:$T$1000="MDA2 (DEC+ALB)", COUNTRY_INFO!$T$9:$T$1000, " ") ->  | I123: 0 | M123: 0
A124: =IF(COUNTRY_INFO!A124=0," ",COUNTRY_INFO!A124) -> Nigeria | B124: =IF(COUNTRY_INFO!B124=0," ",COUNTRY_INFO!B124) -> Bayelsa | C124: =IF(COUNTRY_INFO!C124=0," ",COUNTRY_INFO!C124) -> Sagbama | D124: =IF(COUNTRY_INFO!$T$9:$T$1000="MDA2 (DEC+ALB)", COUNTRY_INFO!$T$9:$T$1000, " ") ->  | I124: 0 | M124: 0
A125: =IF(COUNTRY_INFO!A125=0," ",COUNTRY_INFO!A125) -> Nigeria | B125: =IF(COUNTRY_INFO!B125=0," ",COUNTRY_INFO!B125) -> Bayelsa | C125: =IF(COUNTRY_INFO!C125=0," ",COUNTRY_INFO!C125) -> Southern Ijaw | D125: =IF(COUNTRY_INFO!$T$9:$T$1000="MDA2 (DEC+ALB)", COUNTRY_INFO!$T$9:$T$1000, " ") ->  | I125: 0 | M125: 0
A126: =IF(COUNTRY_INFO!A126=0," ",COUNTRY_INFO!A126) -> Nigeria | B126: =IF(COUNTRY_INFO!B126=0," ",COUNTRY_INFO!B126) -> Bayelsa | C126: =IF(COUNTRY_INFO!C126=0," ",COUNTRY_INFO!C126) -> Yenegoa | D126: =IF(COUNTRY_INFO!$T$9:$T$1000="MDA2 (DEC+ALB)", COUNTRY_INFO!$T$9:$T$1000, " ") ->  | I126: 0 | M126: 0
A127: =IF(COUNTRY_INFO!A127=0," ",COUNTRY_INFO!A127) -> Nigeria | B127: =IF(COUNTRY_INFO!B127=0," ",COUNTRY_INFO!B127) -> Benue | C127: =IF(COUNTRY_INFO!C127=0," ",COUNTRY_INFO!C127) -> Ado | D127: =IF(COUNTRY_INFO!$T$9:$T$1000="MDA2 (DEC+ALB)", COUNTRY_INFO!$T$9:$T$1000, " ") ->  | I127: 0 | M127: 0
A128: =IF(COUNTRY_INFO!A128=0," ",COUNTRY_INFO!A128) -> Nigeria | B128: =IF(COUNTRY_INFO!B128=0," ",COUNTRY_INFO!B128) -> Benue | C128: =IF(COUNTRY_INFO!C128=0," ",COUNTRY_INFO!C128) -> Agatu | D128: =IF(COUNTRY_INFO!$T$9:$T$1000="MDA2 (DEC+ALB)", COUNTRY_INFO!$T$9:$T$1000, " ") ->  | I128: 0 | M128: 0
A129: =IF(COUNTRY_INFO!A129=0," ",COUNTRY_INFO!A129) -> Nigeria | B129: =IF(COUNTRY_INFO!B129=0," ",COUNTRY_INFO!B129) -> Benue | C129: =IF(COUNTRY_INFO!C129=0," ",COUNTRY_INFO!C129) -> Apa | D129: =IF(COUNTRY_INFO!$T$9:$T$1000="MDA2 (DEC+ALB)", COUNTRY_INFO!$T$9:$T$1000, " ") ->  | I129: 0 | M129: 0
A130: =IF(COUNTRY_INFO!A130=0," ",COUNTRY_INFO!A130) -> Nigeria | B130: =IF(COUNTRY_INFO!B130=0," ",COUNTRY_INFO!B130) -> Benue | C130: =IF(COUNTRY_INFO!C130=0," ",COUNTRY_INFO!C130) -> Buruku | D130: =IF(COUNTRY_INFO!$T$9:$T$1000="MDA2 (DEC+ALB)", COUNTRY_INFO!$T$9:$T$1000, " ") ->  | I130: 0 | M130: 0
A131: =IF(COUNTRY_INFO!A131=0," ",COUNTRY_INFO!A131) -> Nigeria | B131: =IF(COUNTRY_INFO!B131=0," ",COUNTRY_INFO!B131) -> Benue | C131: =IF(COUNTRY_INFO!C131=0," ",COUNTRY_INFO!C131) -> Gboko | D131: =IF(COUNTRY_INFO!$T$9:$T$1000="MDA2 (DEC+ALB)", COUNTRY_INFO!$T$9:$T$1000, " ") ->  | I131: 0 | M131: 0
A132: =IF(COUNTRY_INFO!A132=0," ",COUNTRY_INFO!A132) -> Nigeria | B132: =IF(COUNTRY_INFO!B132=0," ",COUNTRY_INFO!B132) -> Benue | C132: =IF(COUNTRY_INFO!C132=0," ",COUNTRY_INFO!C132) -> Guma | D132: =IF(COUNTRY_INFO!$T$9:$T$1000="MDA2 (DEC+ALB)", COUNTRY_INFO!$T$9:$T$1000, " ") ->  | I132: 0 | M132: 0
A133: =IF(COUNTRY_INFO!A133=0," ",COUNTRY_INFO!A133) -> Nigeria | B133: =IF(COUNTRY_INFO!B133=0," ",COUNTRY_INFO!B133) -> Benue | C133: =IF(COUNTRY_INFO!C133=0," ",COUNTRY_INFO!C133) -> Gwer East | D133: =IF(COUNTRY_INFO!$T$9:$T$1000="MDA2 (DEC+ALB)", COUNTRY_INFO!$T$9:$T$1000, " ") ->  | I133: 0 | M133: 0
A134: =IF(COUNTRY_INFO!A134=0," ",COUNTRY_INFO!A134) -> Nigeria | B134: =IF(COUNTRY_INFO!B134=0," ",COUNTRY_INFO!B134) -> Benue | C134: =IF(COUNTRY_INFO!C134=0," ",COUNTRY_INFO!C134) -> Gwer West | D134: =IF(COUNTRY_INFO!$T$9:$T$1000="MDA2 (DEC+ALB)", COUNTRY_INFO!$T$9:$T$1000, " ") ->  | I134: 0 | M134: 0
A135: =IF(COUNTRY_INFO!A135=0," ",COUNTRY_INFO!A135) -> Nigeria | B135: =IF(COUNTRY_INFO!B135=0," ",COUNTRY_INFO!B135) -> Benue | C135: =IF(COUNTRY_INFO!C135=0," ",COUNTRY_INFO!C135) -> Katsina-Ala | D135: =IF(COUNTRY_INFO!$T$9:$T$1000="MDA2 (DEC+ALB)", COUNTRY_INFO!$T$9:$T$1000, " ") ->  | I135: 0 | M135: 0
A136: =IF(COUNTRY_INFO!A136=0," ",COUNTRY_INFO!A136) -> Nigeria | B136: =IF(COUNTRY_INFO!B136=0," ",COUNTRY_INFO!B136) -> Benue | C136: =IF(COUNTRY_INFO!C136=0," ",COUNTRY_INFO!C136) -> Konshisha | D136: =IF(COUNTRY_INFO!$T$9:$T$1000="MDA2 (DEC+ALB)", COUNTRY_INFO!$T$9:$T$1000, " ") ->  | I136: 0 | M136: 0
A137: =IF(COUNTRY_INFO!A137=0," ",COUNTRY_INFO!A137) -> Nigeria | B137: =IF(COUNTRY_INFO!B137=0," ",COUNTRY_INFO!B137) -> Benue | C137: =IF(COUNTRY_INFO!C137=0," ",COUNTRY_INFO!C137) -> Kwande | D137: =IF(COUNTRY_INFO!$T$9:$T$1000="MDA2 (DEC+ALB)", COUNTRY_INFO!$T$9:$T$1000, " ") ->  | I137: 0 | M137: 0
A138: =IF(COUNTRY_INFO!A138=0," ",COUNTRY_INFO!A138) -> Nigeria | B138: =IF(COUNTRY_INFO!B138=0," ",COUNTRY_INFO!B138) -> Benue | C138: =IF(COUNTRY_INFO!C138=0," ",COUNTRY_INFO!C138) -> Logo | D138: =IF(COUNTRY_INFO!$T$9:$T$1000="MDA2 (DEC+ALB)", COUNTRY_INFO!$T$9:$T$1000, " ") ->  | I138: =SUM(F138:H138) -> 0 | M138: =SUM(J138:L138) -> 0 | N138: =IF(F138<>0, IF(J138/F138*100=0, "-", J138/F138*100), " ") ->  | O138: =IF(G138<>0, IF(K138/G138*100=0, "-", K138/G138*100), " ") ->  | P138: =IF(H138<>0, IF(L138/H138*100=0, "-", L138/H138*100), " ") ->  | Q138: =IF(I138<>0, IF(M138/I138*100=0, "-", M138/I138*100), " ") -> 
A139: =IF(COUNTRY_INFO!A139=0," ",COUNTRY_INFO!A139) -> Nigeria | B139: =IF(COUNTRY_INFO!B139=0," ",COUNTRY_INFO!B139) -> Benue | C139: =IF(COUNTRY_INFO!C139=0," ",COUNTRY_INFO!C139) -> Makurdi | D139: =IF(COUNTRY_INFO!$T$9:$T$1000="MDA2 (DEC+ALB)", COUNTRY_INFO!$T$9:$T$1000, " ") ->  | I139: 0 | M139: 0
A140: =IF(COUNTRY_INFO!A140=0," ",COUNTRY_INFO!A140) -> Nigeria | B140: =IF(COUNTRY_INFO!B140=0," ",COUNTRY_INFO!B140) -> Benue | C140: =IF(COUNTRY_INFO!C140=0," ",COUNTRY_INFO!C140) -> Obi | D140: =IF(COUNTRY_INFO!$T$9:$T$1000="MDA2 (DEC+ALB)", COUNTRY_INFO!$T$9:$T$1000, " ") ->  | I140: 0 | M140: 0
A141: =IF(COUNTRY_INFO!A141=0," ",COUNTRY_INFO!A141) -> Nigeria | B141: =IF(COUNTRY_INFO!B141=0," ",COUNTRY_INFO!B141) -> Benue | C141: =IF(COUNTRY_INFO!C141=0," ",COUNTRY_INFO!C141) -> Ogbadibo | D141: =IF(COUNTRY_INFO!$T$9:$T$1000="MDA2 (DEC+ALB)", COUNTRY_INFO!$T$9:$T$1000, " ") ->  | I141: 0 | M141: 0
A142: =IF(COUNTRY_INFO!A142=0," ",COUNTRY_INFO!A142) -> Nigeria | B142: =IF(COUNTRY_INFO!B142=0," ",COUNTRY_INFO!B142) -> Benue | C142: =IF(COUNTRY_INFO!C142=0," ",COUNTRY_INFO!C142) -> Ohimini | D142: =IF(COUNTRY_INFO!$T$9:$T$1000="MDA2 (DEC+ALB)", COUNTRY_INFO!$T$9:$T$1000, " ") ->  | I142: 0 | M142: 0
A143: =IF(COUNTRY_INFO!A143=0," ",COUNTRY_INFO!A143) -> Nigeria | B143: =IF(COUNTRY_INFO!B143=0," ",COUNTRY_INFO!B143) -> Benue | C143: =IF(COUNTRY_INFO!C143=0," ",COUNTRY_INFO!C143) -> Oju | D143: =IF(COUNTRY_INFO!$T$9:$T$1000="MDA2 (DEC+ALB)", COUNTRY_INFO!$T$9:$T$1000, " ") ->  | I143: 0 | M143: 0
A144: =IF(COUNTRY_INFO!A144=0," ",COUNTRY_INFO!A144) -> Nigeria | B144: =IF(COUNTRY_INFO!B144=0," ",COUNTRY_INFO!B144) -> Benue | C144: =IF(COUNTRY_INFO!C144=0," ",COUNTRY_INFO!C144) -> Okpokwu | D144: =IF(COUNTRY_INFO!$T$9:$T$1000="MDA2 (DEC+ALB)", COUNTRY_INFO!$T$9:$T$1000, " ") ->  | I144: 0 | M144: 0
A145: =IF(COUNTRY_INFO!A145=0," ",COUNTRY_INFO!A145) -> Nigeria | B145: =IF(COUNTRY_INFO!B145=0," ",COUNTRY_INFO!B145) -> Benue | C145: =IF(COUNTRY_INFO!C145=0," ",COUNTRY_INFO!C145) -> Otorkpo | D145: =IF(COUNTRY_INFO!$T$9:$T$1000="MDA2 (DEC+ALB)", COUNTRY_INFO!$T$9:$T$1000, " ") ->  | I145: 0 | M145: 0
A146: =IF(COUNTRY_INFO!A146=0," ",COUNTRY_INFO!A146) -> Nigeria | B146: =IF(COUNTRY_INFO!B146=0," ",COUNTRY_INFO!B146) -> Benue | C146: =IF(COUNTRY_INFO!C146=0," ",COUNTRY_INFO!C146) -> Tarka | D146: =IF(COUNTRY_INFO!$T$9:$T$1000="MDA2 (DEC+ALB)", COUNTRY_INFO!$T$9:$T$1000, " ") ->  | I146: 0 | M146: 0
A147: =IF(COUNTRY_INFO!A147=0," ",COUNTRY_INFO!A147) -> Nigeria | B147: =IF(COUNTRY_INFO!B147=0," ",COUNTRY_INFO!B147) -> Benue | C147: =IF(COUNTRY_INFO!C147=0," ",COUNTRY_INFO!C147) -> Ukum | D147: =IF(COUNTRY_INFO!$T$9:$T$1000="MDA2 (DEC+ALB)", COUNTRY_INFO!$T$9:$T$1000, " ") ->  | I147: 0 | M147: 0
A148: =IF(COUNTRY_INFO!A148=0," ",COUNTRY_INFO!A148) -> Nigeria | B148: =IF(COUNTRY_INFO!B148=0," ",COUNTRY_INFO!B148) -> Benue | C148: =IF(COUNTRY_INFO!C148=0," ",COUNTRY_INFO!C148) -> Ushongo | D148: =IF(COUNTRY_INFO!$T$9:$T$1000="MDA2 (DEC+ALB)", COUNTRY_INFO!$T$9:$T$1000, " ") ->  | I148: 0 | M148: 0
A149: =IF(COUNTRY_INFO!A149=0," ",COUNTRY_INFO!A149) -> Nigeria | B149: =IF(COUNTRY_INFO!B149=0," ",COUNTRY_INFO!B149) -> Benue | C149: =IF(COUNTRY_INFO!C149=0," ",COUNTRY_INFO!C149) -> Vandeikya | D149: =IF(COUNTRY_INFO!$T$9:$T$1000="MDA2 (DEC+ALB)", COUNTRY_INFO!$T$9:$T$1000, " ") ->  | I149: 0 | M149: 0
A150: =IF(COUNTRY_INFO!A150=0," ",COUNTRY_INFO!A150) -> Nigeria | B150: =IF(COUNTRY_INFO!B150=0," ",COUNTRY_INFO!B150) -> Borno | C150: =IF(COUNTRY_INFO!C150=0," ",COUNTRY_INFO!C150) -> Adadara | D150: =IF(COUNTRY_INFO!$T$9:$T$1000="MDA2 (DEC+ALB)", COUNTRY_INFO!$T$9:$T$1000, " ") ->  | I150: 0 | M150: 0
A151: =IF(COUNTRY_INFO!A151=0," ",COUNTRY_INFO!A151) -> Nigeria | B151: =IF(COUNTRY_INFO!B151=0," ",COUNTRY_INFO!B151) -> Borno | C151: =IF(COUNTRY_INFO!C151=0," ",COUNTRY_INFO!C151) -> Askir/Uba | D151: =IF(COUNTRY_INFO!$T$9:$T$1000="MDA2 (DEC+ALB)", COUNTRY_INFO!$T$9:$T$1000, " ") ->  | I151: 0 | M151: 0
A152: =IF(COUNTRY_INFO!A152=0," ",COUNTRY_INFO!A152) -> Nigeria | B152: =IF(COUNTRY_INFO!B152=0," ",COUNTRY_INFO!B152) -> Borno | C152: =IF(COUNTRY_INFO!C152=0," ",COUNTRY_INFO!C152) -> Bama | D152: =IF(COUNTRY_INFO!$T$9:$T$1000="MDA2 (DEC+ALB)", COUNTRY_INFO!$T$9:$T$1000, " ") ->  | I152: 0 | M152: 0
A153: =IF(COUNTRY_INFO!A153=0," ",COUNTRY_INFO!A153) -> Nigeria | B153: =IF(COUNTRY_INFO!B153=0," ",COUNTRY_INFO!B153) -> Borno | C153: =IF(COUNTRY_INFO!C153=0," ",COUNTRY_INFO!C153) -> Bayo | D153: =IF(COUNTRY_INFO!$T$9:$T$1000="MDA2 (DEC+ALB)", COUNTRY_INFO!$T$9:$T$1000, " ") ->  | I153: 0 | M153: 0
A154: =IF(COUNTRY_INFO!A154=0," ",COUNTRY_INFO!A154) -> Nigeria | B154: =IF(COUNTRY_INFO!B154=0," ",COUNTRY_INFO!B154) -> Borno | C154: =IF(COUNTRY_INFO!C154=0," ",COUNTRY_INFO!C154) -> Biu | D154: =IF(COUNTRY_INFO!$T$9:$T$1000="MDA2 (DEC+ALB)", COUNTRY_INFO!$T$9:$T$1000, " ") ->  | I154: 0 | M154: 0
A155: =IF(COUNTRY_INFO!A155=0," ",COUNTRY_INFO!A155) -> Nigeria | B155: =IF(COUNTRY_INFO!B155=0," ",COUNTRY_INFO!B155) -> Borno | C155: =IF(COUNTRY_INFO!C155=0," ",COUNTRY_INFO!C155) -> Chibok | D155: =IF(COUNTRY_INFO!$T$9:$T$1000="MDA2 (DEC+ALB)", COUNTRY_INFO!$T$9:$T$1000, " ") ->  | I155: 0 | M155: 0
A156: =IF(COUNTRY_INFO!A156=0," ",COUNTRY_INFO!A156) -> Nigeria | B156: =IF(COUNTRY_INFO!B156=0," ",COUNTRY_INFO!B156) -> Borno | C156: =IF(COUNTRY_INFO!C156=0," ",COUNTRY_INFO!C156) -> Damboa | D156: =IF(COUNTRY_INFO!$T$9:$T$1000="MDA2 (DEC+ALB)", COUNTRY_INFO!$T$9:$T$1000, " ") ->  | I156: 0 | M156: 0
A157: =IF(COUNTRY_INFO!A157=0," ",COUNTRY_INFO!A157) -> Nigeria | B157: =IF(COUNTRY_INFO!B157=0," ",COUNTRY_INFO!B157) -> Borno | C157: =IF(COUNTRY_INFO!C157=0," ",COUNTRY_INFO!C157) -> Dikwa | D157: =IF(COUNTRY_INFO!$T$9:$T$1000="MDA2 (DEC+ALB)", COUNTRY_INFO!$T$9:$T$1000, " ") ->  | I157: 0 | M157: 0
A158: =IF(COUNTRY_INFO!A158=0," ",COUNTRY_INFO!A158) -> Nigeria | B158: =IF(COUNTRY_INFO!B158=0," ",COUNTRY_INFO!B158) -> Borno | C158: =IF(COUNTRY_INFO!C158=0," ",COUNTRY_INFO!C158) -> Gubio | D158: =IF(COUNTRY_INFO!$T$9:$T$1000="MDA2 (DEC+ALB)", COUNTRY_INFO!$T$9:$T$1000, " ") ->  | I158: 0 | M158: 0
A159: =IF(COUNTRY_INFO!A159=0," ",COUNTRY_INFO!A159) -> Nigeria | B159: =IF(COUNTRY_INFO!B159=0," ",COUNTRY_INFO!B159) -> Borno | C159: =IF(COUNTRY_INFO!C159=0," ",COUNTRY_INFO!C159) -> Guzamala | D159: =IF(COUNTRY_INFO!$T$9:$T$1000="MDA2 (DEC+ALB)", COUNTRY_INFO!$T$9:$T$1000, " ") ->  | I159: 0 | M159: 0
A160: =IF(COUNTRY_INFO!A160=0," ",COUNTRY_INFO!A160) -> Nigeria | B160: =IF(COUNTRY_INFO!B160=0," ",COUNTRY_INFO!B160) -> Borno | C160: =IF(COUNTRY_INFO!C160=0," ",COUNTRY_INFO!C160) -> Gwoza | D160: =IF(COUNTRY_INFO!$T$9:$T$1000="MDA2 (DEC+ALB)", COUNTRY_INFO!$T$9:$T$1000, " ") ->  | I160: 0 | M160: 0
A161: =IF(COUNTRY_INFO!A161=0," ",COUNTRY_INFO!A161) -> Nigeria | B161: =IF(COUNTRY_INFO!B161=0," ",COUNTRY_INFO!B161) -> Borno | C161: =IF(COUNTRY_INFO!C161=0," ",COUNTRY_INFO!C161) -> Hawul | D161: =IF(COUNTRY_INFO!$T$9:$T$1000="MDA2 (DEC+ALB)", COUNTRY_INFO!$T$9:$T$1000, " ") ->  | I161: 0 | M161: 0
A162: =IF(COUNTRY_INFO!A162=0," ",COUNTRY_INFO!A162) -> Nigeria | B162: =IF(COUNTRY_INFO!B162=0," ",COUNTRY_INFO!B162) -> Borno | C162: =IF(COUNTRY_INFO!C162=0," ",COUNTRY_INFO!C162) -> Jere | D162: =IF(COUNTRY_INFO!$T$9:$T$1000="MDA2 (DEC+ALB)", COUNTRY_INFO!$T$9:$T$1000, " ") ->  | I162: 0 | M162: 0
A163: =IF(COUNTRY_INFO!A163=0," ",COUNTRY_INFO!A163) -> Nigeria | B163: =IF(COUNTRY_INFO!B163=0," ",COUNTRY_INFO!B163) -> Borno | C163: =IF(COUNTRY_INFO!C163=0," ",COUNTRY_INFO!C163) -> Kaga | D163: =IF(COUNTRY_INFO!$T$9:$T$1000="MDA2 (DEC+ALB)", COUNTRY_INFO!$T$9:$T$1000, " ") ->  | I163: 0 | M163: 0
A164: =IF(COUNTRY_INFO!A164=0," ",COUNTRY_INFO!A164) -> Nigeria | B164: =IF(COUNTRY_INFO!B164=0," ",COUNTRY_INFO!B164) -> Borno | C164: =IF(COUNTRY_INFO!C164=0," ",COUNTRY_INFO!C164) -> Kala Balge | D164: =IF(COUNTRY_INFO!$T$9:$T$1000="MDA2 (DEC+ALB)", COUNTRY_INFO!$T$9:$T$1000, " ") ->  | I164: 0 | M164: 0
A165: =IF(COUNTRY_INFO!A165=0," ",COUNTRY_INFO!A165) -> Nigeria | B165: =IF(COUNTRY_INFO!B165=0," ",COUNTRY_INFO!B165) -> Borno | C165: =IF(COUNTRY_INFO!C165=0," ",COUNTRY_INFO!C165) -> Konduga | D165: =IF(COUNTRY_INFO!$T$9:$T$1000="MDA2 (DEC+ALB)", COUNTRY_INFO!$T$9:$T$1000, " ") ->  | I165: 0 | M165: 0
A166: =IF(COUNTRY_INFO!A166=0," ",COUNTRY_INFO!A166) -> Nigeria | B166: =IF(COUNTRY_INFO!B166=0," ",COUNTRY_INFO!B166) -> Borno | C166: =IF(COUNTRY_INFO!C166=0," ",COUNTRY_INFO!C166) -> Kukawa | D166: =IF(COUNTRY_INFO!$T$9:$T$1000="MDA2 (DEC+ALB)", COUNTRY_INFO!$T$9:$T$1000, " ") ->  | I166: 0 | M166: 0
A167: =IF(COUNTRY_INFO!A167=0," ",COUNTRY_INFO!A167) -> Nigeria | B167: =IF(COUNTRY_INFO!B167=0," ",COUNTRY_INFO!B167) -> Borno | C167: =IF(COUNTRY_INFO!C167=0," ",COUNTRY_INFO!C167) -> Kwaya Kusar | D167: =IF(COUNTRY_INFO!$T$9:$T$1000="MDA2 (DEC+ALB)", COUNTRY_INFO!$T$9:$T$1000, " ") ->  | I167: 0 | M167: 0
A168: =IF(COUNTRY_INFO!A168=0," ",COUNTRY_INFO!A168) -> Nigeria | B168: =IF(COUNTRY_INFO!B168=0," ",COUNTRY_INFO!B168) -> Borno | C168: =IF(COUNTRY_INFO!C168=0," ",COUNTRY_INFO!C168) -> Mafa | D168: =IF(COUNTRY_INFO!$T$9:$T$1000="MDA2 (DEC+ALB)", COUNTRY_INFO!$T$9:$T$1000, " ") ->  | I168: 0 | M168: 0
A169: =IF(COUNTRY_INFO!A169=0," ",COUNTRY_INFO!A169) -> Nigeria | B169: =IF(COUNTRY_INFO!B169=0," ",COUNTRY_INFO!B169) -> Borno | C169: =IF(COUNTRY_INFO!C169=0," ",COUNTRY_INFO!C169) -> Magumeri | D169: =IF(COUNTRY_INFO!$T$9:$T$1000="MDA2 (DEC+ALB)", COUNTRY_INFO!$T$9:$T$1000, " ") ->  | I169: 0 | M169: 0
A170: =IF(COUNTRY_INFO!A170=0," ",COUNTRY_INFO!A170) -> Nigeria | B170: =IF(COUNTRY_INFO!B170=0," ",COUNTRY_INFO!B170) -> Borno | C170: =IF(COUNTRY_INFO!C170=0," ",COUNTRY_INFO!C170) -> Maiduguri | D170: =IF(COUNTRY_INFO!$T$9:$T$1000="MDA2 (DEC+ALB)", COUNTRY_INFO!$T$9:$T$1000, " ") ->  | I170: 0 | M170: 0
A171: =IF(COUNTRY_INFO!A171=0," ",COUNTRY_INFO!A171) -> Nigeria | B171: =IF(COUNTRY_INFO!B171=0," ",COUNTRY_INFO!B171) -> Borno | C171: =IF(COUNTRY_INFO!C171=0," ",COUNTRY_INFO!C171) -> Marte | D171: =IF(COUNTRY_INFO!$T$9:$T$1000="MDA2 (DEC+ALB)", COUNTRY_INFO!$T$9:$T$1000, " ") ->  | I171: 0 | M171: 0
A172: =IF(COUNTRY_INFO!A172=0," ",COUNTRY_INFO!A172) -> Nigeria | B172: =IF(COUNTRY_INFO!B172=0," ",COUNTRY_INFO!B172) -> Borno | C172: =IF(COUNTRY_INFO!C172=0," ",COUNTRY_INFO!C172) -> Mobbar | D172: =IF(COUNTRY_INFO!$T$9:$T$1000="MDA2 (DEC+ALB)", COUNTRY_INFO!$T$9:$T$1000, " ") ->  | I172: 0 | M172: 0
A173: =IF(COUNTRY_INFO!A173=0," ",COUNTRY_INFO!A173) -> Nigeria | B173: =IF(COUNTRY_INFO!B173=0," ",COUNTRY_INFO!B173) -> Borno | C173: =IF(COUNTRY_INFO!C173=0," ",COUNTRY_INFO!C173) -> Monguno | D173: =IF(COUNTRY_INFO!$T$9:$T$1000="MDA2 (DEC+ALB)", COUNTRY_INFO!$T$9:$T$1000, " ") ->  | I173: 0 | M173: 0
A174: =IF(COUNTRY_INFO!A174=0," ",COUNTRY_INFO!A174) -> Nigeria | B174: =IF(COUNTRY_INFO!B174=0," ",COUNTRY_INFO!B174) -> Borno | C174: =IF(COUNTRY_INFO!C174=0," ",COUNTRY_INFO!C174) -> Ngala | D174: =IF(COUNTRY_INFO!$T$9:$T$1000="MDA2 (DEC+ALB)", COUNTRY_INFO!$T$9:$T$1000, " ") ->  | I174: 0 | M174: 0
A175: =IF(COUNTRY_INFO!A175=0," ",COUNTRY_INFO!A175) -> Nigeria | B175: =IF(COUNTRY_INFO!B175=0," ",COUNTRY_INFO!B175) -> Borno | C175: =IF(COUNTRY_INFO!C175=0," ",COUNTRY_INFO!C175) -> Nganzai | D175: =IF(COUNTRY_INFO!$T$9:$T$1000="MDA2 (DEC+ALB)", COUNTRY_INFO!$T$9:$T$1000, " ") ->  | I175: 0 | M175: 0
A176: =IF(COUNTRY_INFO!A176=0," ",COUNTRY_INFO!A176) -> Nigeria | B176: =IF(COUNTRY_INFO!B176=0," ",COUNTRY_INFO!B176) -> Borno | C176: =IF(COUNTRY_INFO!C176=0," ",COUNTRY_INFO!C176) -> Shani | D176: =IF(COUNTRY_INFO!$T$9:$T$1000="MDA2 (DEC+ALB)", COUNTRY_INFO!$T$9:$T$1000, " ") ->  | I176: 0 | M176: 0
A177: =IF(COUNTRY_INFO!A177=0," ",COUNTRY_INFO!A177) -> Nigeria | B177: =IF(COUNTRY_INFO!B177=0," ",COUNTRY_INFO!B177) -> Cross River | C177: =IF(COUNTRY_INFO!C177=0," ",COUNTRY_INFO!C177) -> Abi | D177: =IF(COUNTRY_INFO!$T$9:$T$1000="MDA2 (DEC+ALB)", COUNTRY_INFO!$T$9:$T$1000, " ") ->  | I177: 0 | M177: 0
